Workbook

Sheet Sample Report (hidden)
A2: Date
A3: Hen
A4: Program
A5: Start at 999999
A6: Sequence component 1 | B6: Time 1 | C6: Seqeunce Component 2 | D6: Time 2 | E6: Seqeunce Component 3 | F6: Time 3 | G6: Correct 0 = No 1=Yes | J6: Seqeunce | K6: Time
A7: 12 | B7: 7 | C7: 12 | D7: 42 | E7: 13 | F7: 18 | G7: if 77 new line, if 31 or 41 = yes new line on 77, | J7: =string of Seqeunce compponent 1, 2 & 3 | K7: =time 3
A8: This continues until ther is a 1 on its own to indicate start of summary data
J9: 10-19 =1
A10: Summary Data | J10: 20-29 =2
A11: Correct | B11: Incorrect | C11: Rft | D11: total | E11: Av Correct | F11: Av Incorrect | G11: Percent correct | H11: Time | J11: in this example the seqeunce would be 111
A12: 40 | B12: 33 | C12: 40 | D12: 73 | E12: 23.95 | F12: 15 | G12: 54 | H12: 806

Sheet Summary
A2: Day | B2: Date | C2: Average Response Rate | D2: Target % | E2: RF for non correct sequence | F2: U Value | K2: Block 1 | L2: Block 2 | M2: Block 3 | N2: Block 4 | O2: Block 5 | P2: Block 6
A3: 1 | B3: ='!MC31A00.105'!B2:C2 -> <date> | C3: =('!MC31A00.105'!J98/60)/'!MC31A00.105'!Q3 -> 4.059963768 | D3: ='!MC31A00.105'!N44/'!MC31A00.105'!Q3 -> 0 | E3: =SUM('!MC31A00.105'!L44:Q44)/'!MC31A00.105'!Q3 -> 132.0978261 | F3: ='!MC31A00.105'!Q40 -> 0.6071736127 | J3: Average Response Rate | K3: =AVERAGE(C3:C7) -> 3.309550712 | L3: =AVERAGE(C8:C12) -> 16.90588863 | M3: =AVERAGE(C13:C17) -> 35.51194444 | N3: =AVERAGE(C18:C22) -> 26.65379639 | O3: =AVERAGE(C23:C27) -> 20.35722222 | P3: =AVERAGE(C28:C32) -> 18.5485103
A4: 2 | B4: ='!N102A20.105'!B2:C2 -> <date> | C4: =('!N102A20.105'!J63/60)/'!N102A20.105'!Q3 -> 6.462931034 | D4: ='!N102A20.105'!N44/'!N102A20.105'!Q3 -> 0 | E4: =SUM('!N102A20.105'!L44:Q44)/'!N102A20.105'!Q3 -> 209.3103448 | F4: ='!N102A20.105'!Q40 -> 0.6451763583 | J4: Target % | K4: =AVERAGE(D3:D7) -> 0.003389830508 | L4: =AVERAGE(D8:D12) -> 0.0125 | M4: =AVERAGE(D13:D17) -> 0 | N4: =AVERAGE(D18:D22) -> 0.006896551724 | O4: =AVERAGE(D23:D27) -> 0.02222222222 | P4: =AVERAGE(D28:D32) -> 0.008064516129
A5: 3 | B5: ='!N103A10.105'!B2:C2 -> <date> | C5: =('!N103A10.105'!J7/60)/'!N103A10.105'!Q3 -> 0 | D5: ='!N103A10.105'!N44/'!N103A10.105'!Q3 -> 0 | E5: =SUM('!N103A10.105'!L44:Q44)/'!N103A10.105'!Q3 -> 0 | F5: 0 | J5: CCRF | K5: =AVERAGE(E3:E7) -> 106.4296003 | L5: =AVERAGE(E8:E12) -> 56.41487471 | M5: =AVERAGE(E13:E17) -> 0.3416666667 | N5: =AVERAGE(E18:E22) -> 0.3196715928 | O5: =AVERAGE(E23:E27) -> 0.3603174603 | P5: =AVERAGE(E28:E32) -> 0.3178763441
A6: 4 | B6: ='!N104B30.105'!B2:C2 -> <date> | C6: =('!N104B30.105'!J64/60)/'!N104B30.105'!Q3 -> 6.024858757 | D6: ='!N104B30.105'!N44/'!N104B30.105'!Q3 -> 0.01694915254 | E6: =SUM('!N104B30.105'!L44:Q44)/'!N104B30.105'!Q3 -> 190.3898305 | F6: ='!N104B30.105'!Q40 -> 0.6017333314 | J6: U Value | K6: =AVERAGE(F3:F7) -> 0.5460367749 | L6: =AVERAGE(F8:F12) -> 0.7425994436 | M6: =AVERAGE(F13:F17) -> 0.7644020252 | N6: =AVERAGE(F18:F22) -> 0.8154976283 | O6: =AVERAGE(F23:F27) -> 0.7734481369 | P6: =AVERAGE(F28:F32) -> 0.7912960013
A7: 5 | B7: ='!N105A10.105'!B2:C2 -> <date> | C7: =('!N105A10.105'!J26/60)/'!N105A10.105'!Q3 -> 0 | D7: ='!N105A10.105'!N44/'!N105A10.105'!Q3 -> 0 | E7: =SUM('!N105A10.105'!L44:Q44)/'!N105A10.105'!Q3 -> 0.35 | F7: ='!N105A10.105'!Q40 -> 0.8761005719
A8: 6 | B8: ='!N106840.105'!B2:C2 -> <date> | C8: =('!N106840.105'!J17/60)/'!N106840.105'!Q3 -> 36.29545455 | D8: ='!N106840.105'!N44/'!N106840.105'!Q3 -> 0 | E8: =SUM('!N106840.105'!L44:Q44)/'!N106840.105'!Q3 -> 0.3636363636 | F8: ='!N106840.105'!Q40 -> 0.8948855177
A9: 7 | B9: ='!N107910.105'!B2:C2 -> <date> | C9: =('!N107910.105'!J38/60)/'!N107910.105'!Q3 -> 11.75208333 | D9: ='!N107910.105'!N44/'!N107910.105'!Q3 -> 0.0625 | E9: =SUM('!N107910.105'!L44:Q44)/'!N107910.105'!Q3 -> 0.40625 | F9: ='!N107910.105'!Q40 -> 0.7055036533 | G9: =K3 -> 3.309550712 | H9: 16.90588863 | I9: 35.51194444 | J9: 26.65379639 | K9: 20.35722222 | L9: 18.5485103 | M9: =K4 -> 0.003389830508 | N9: 0.0125 | O9: 0 | P9: 0.006896551724 | Q9: 0.02222222222 | R9: 0.008064516129 | S9: =K6 -> 0.5460367749 | T9: 0.7425994436 | U9: 0.7644020252 | V9: 0.8154976283 | W9: 0.7734481369 | X9: 0.7912960013
A10: 8 | B10: ='!N108A10.105'!B2:C2 -> <date> | C10: =('!N108A10.105'!J46/60)/'!N108A10.105'!Q3 -> 8.619583333 | D10: ='!N108A10.105'!N44/'!N108A10.105'!Q3 -> 0 | E10: =SUM('!N108A10.105'!L44:Q44)/'!N108A10.105'!Q3 -> 280.625 | F10: ='!N108A10.105'!Q40 -> 0.6804916789
A11: 9 | B11: ='!N109900.105'!B2:C2 -> <date> | C11: =('!N109900.105'!J33/60)/'!N109900.105'!Q3 -> 12.66296296 | D11: ='!N109900.105'!N44/'!N109900.105'!Q3 -> 0 | E11: =SUM('!N109900.105'!L44:Q44)/'!N109900.105'!Q3 -> 0.3333333333 | F11: ='!N109900.105'!Q40 -> 0.7420243871
A12: 10 | B12: ='!N110A10.105'!B2:C2 -> <date> | C12: =('!N110A10.105'!J32/60)/'!N110A10.105'!Q3 -> 15.19935897 | D12: ='!N110A10.105'!N44/'!N110A10.105'!Q3 -> 0 | E12: =SUM('!N110A10.105'!L44:Q44)/'!N110A10.105'!Q3 -> 0.3461538462 | F12: ='!N110A10.105'!Q40 -> 0.6900919811
A13: 11 | B13: ='!N111C00.105'!B2:C2 -> <date> | C13: =('!N111C00.105'!J17/60)/'!N111C00.105'!Q3 -> 19.73472222 | D13: ='!N111C00.105'!N44/'!N111C00.105'!Q3 -> 0 | E13: =SUM('!N111C00.105'!L44:Q44)/'!N111C00.105'!Q3 -> 0.3333333333 | F13: ='!N111C00.105'!Q40 -> 0.7372137943
A14: 12 | B14: ='!N112850.105'!B2:C2 -> <date> | C14: =('!N112850.105'!J12/60)/'!N112850.105'!Q3 -> 54.14166667 | D14: ='!N112850.105'!N44/'!N112850.105'!Q3 -> 0 | E14: =SUM('!N112850.105'!L44:Q44)/'!N112850.105'!Q3 -> 0.3333333333 | F14: ='!N112850.105'!Q40 -> 0.2514629986
A15: 13 | B15: ='!N113A30.105'!B2:C2 -> <date> | C15: =('!N113A30.105'!J14/60)/'!N113A30.105'!Q3 -> 38.44166667 | D15: ='!N113A30.105'!N44/'!N113A30.105'!Q3 -> 0 | E15: =SUM('!N113A30.105'!L44:Q44)/'!N113A30.105'!Q3 -> 0.375 | F15: ='!N113A30.105'!Q40 -> 0.8333333333
A16: 14 | B16: ='!N114920.105'!B2:C2 -> <date> | C16: =('!N114920.105'!J9/60)/'!N114920.105'!Q3 -> 4.538888889 | D16: ='!N114920.105'!N44/'!N114920.105'!Q3 -> 0 | E16: =SUM('!N114920.105'!L44:Q44)/'!N114920.105'!Q3 -> 0.3333333333 | F16: ='!N114920.105'!Q40 -> 1
A17: 15 | B17: ='!N115940.105'!B2:C2 -> <date> | C17: =('!N115940.105'!J12/60)/'!N115940.105'!Q3 -> 60.70277778 | D17: ='!N115940.105'!N44/'!N115940.105'!Q3 -> 0 | E17: =SUM('!N115940.105'!L44:Q44)/'!N115940.105'!Q3 -> 0.3333333333 | F17: ='!N115940.105'!Q40 -> 1
A18: 16 | B18: ='!N116920.105'!B2:C2 -> <date> | C18: =('!N116920.105'!J26/60)/'!N116920.105'!Q3 -> 16.80666667 | D18: ='!N116920.105'!N44/'!N116920.105'!Q3 -> 0 | E18: =SUM('!N116920.105'!L44:Q44)/'!N116920.105'!Q3 -> 0.35 | F18: ='!N116920.105'!Q40 -> 0.8061642034
A19: 17 | B19: ='!N117B40.105'!B2:C2 -> <date> | C19: =('!N117B40.105'!J13/60)/'!N117B40.105'!Q3 -> 51.75714286 | D19: ='!N117B40.105'!N44/'!N117B40.105'!Q3 -> 0 | E19: =SUM('!N117B40.105'!L44:Q44)/'!N117B40.105'!Q3 -> 0.2857142857 | F19: ='!N117B40.105'!Q40 -> 0.898226518
A20: 18 | B20: ='!N118B10.105'!B2:C2 -> <date> | C20: =('!N118B10.105'!J18/60)/'!N118B10.105'!Q3 -> 0 | D20: ='!N118B10.105'!N44/'!N118B10.105'!Q3 -> 0 | E20: =SUM('!N118B10.105'!L44:Q44)/'!N118B10.105'!Q3 -> 0.3333333333 | F20: ='!N118B10.105'!Q40 -> 0.8423282766
A21: 19 | B21: ='!N120A40.105'!B2:C2 -> <date> | C21: =('!N120A40.105'!J10/60)/'!N120A40.105'!Q3 -> 51.55 | D21: ='!N120A40.105'!N44/'!N120A40.105'!Q3 -> 0 | E21: =SUM('!N120A40.105'!L44:Q44)/'!N120A40.105'!Q3 -> 0.25 | F21: ='!N120A40.105'!Q40 -> 0.75
A22: 20 | B22: ='!N121B10.105'!B2:C2 -> <date> | C22: =('!N121B10.105'!J34/60)/'!N121B10.105'!Q3 -> 13.15517241 | D22: ='!N121B10.105'!N44/'!N121B10.105'!Q3 -> 0.03448275862 | E22: =SUM('!N121B10.105'!L44:Q44)/'!N121B10.105'!Q3 -> 0.3793103448 | F22: ='!N121B10.105'!Q40 -> 0.7807691437
A23: 21 | B23: ='!N122930.105'!B2:C2 -> <date> | C23: =('!N122930.105'!J11/60)/'!N122930.105'!Q3 -> 47.43888889 | D23: ='!N122930.105'!N44/'!N122930.105'!Q3 -> 0 | E23: =SUM('!N122930.105'!L44:Q44)/'!N122930.105'!Q3 -> 0.3333333333 | F23: ='!N122930.105'!Q40 -> 0.5904362833
A24: 22 | B24: ='!N123B00.105'!B2:C2 -> <date> | C24: =('!N123B00.105'!J20/60)/'!N123B00.105'!Q3 -> 0 | D24: ='!N123B00.105'!N44/'!N123B00.105'!Q3 -> 0 | E24: =SUM('!N123B00.105'!L44:Q44)/'!N123B00.105'!Q3 -> 0.3571428571 | F24: ='!N123B00.105'!Q40 -> 0.6360146706
A25: 23 | B25: ='!N124950.105'!B2:C2 -> <date> | C25: =('!N124950.105'!J12/60)/'!N124950.105'!Q3 -> 41.75833333 | D25: ='!N124950.105'!N44/'!N124950.105'!Q3 -> 0 | E25: =SUM('!N124950.105'!L44:Q44)/'!N124950.105'!Q3 -> 0.3333333333 | F25: ='!N124950.105'!Q40 -> 0.8710490643
A26: 24 | B26: ='!N125A20.105'!B2:C2 -> <date> | C26: =('!N125A20.105'!J24/60)/'!N125A20.105'!Q3 -> 0 | D26: ='!N125A20.105'!N44/'!N125A20.105'!Q3 -> 0 | E26: =SUM('!N125A20.105'!L44:Q44)/'!N125A20.105'!Q3 -> 0.3333333333 | F26: ='!N125A20.105'!Q40 -> 0.7697406662
A27: 25 | B27: ='!N127A30.105'!B2:C2 -> <date> | C27: =('!N127A30.105'!J15/60)/'!N127A30.105'!Q3 -> 12.58888889 | D27: ='!N127A30.105'!N44/'!N127A30.105'!Q3 -> 0.1111111111 | E27: =SUM('!N127A30.105'!L44:Q44)/'!N127A30.105'!Q3 -> 0.4444444444 | F27: ='!N127A30.105'!Q40 -> 1
A28: 26 | B28: ='!N128900.105'!B2:C2 -> <date> | C28: =('!N128900.105'!J10/60)/'!N128900.105'!Q3 -> 2.629166667 | D28: ='!N128900.105'!N44/'!N128900.105'!Q3 -> 0 | E28: =SUM('!N128900.105'!L44:Q44)/'!N128900.105'!Q3 -> 0.25 | F28: ='!N128900.105'!Q40 -> 0.75
A29: 27 | B29: ='!N129A40.105'!B2:C2 -> <date> | C29: =('!N129A40.105'!J36/60)/'!N129A40.105'!Q3 -> 11.08709677 | D29: ='!N129A40.105'!N44/'!N129A40.105'!Q3 -> 0.03225806452 | E29: =SUM('!N129A40.105'!L44:Q44)/'!N129A40.105'!Q3 -> 0.3548387097 | F29: ='!N129A40.105'!Q40 -> 0.6993027007
A30: 28 | B30: ='!N130A40.105'!B2:C2 -> <date> | C30: =('!N130A40.105'!J23/60)/'!N130A40.105'!Q3 -> 19.42037037 | D30: ='!N130A40.105'!N44/'!N130A40.105'!Q3 -> 0 | E30: =SUM('!N130A40.105'!L44:Q44)/'!N130A40.105'!Q3 -> 0.3333333333 | F30: ='!N130A40.105'!Q40 -> 0.8560879164
A31: 29 | B31: ='!N131830.105'!B2:C2 -> <date> | C31: =('!N131830.105'!J15/60)/'!N131830.105'!Q3 -> 41.05740741 | D31: ='!N131830.105'!N44/'!N131830.105'!Q3 -> 0 | E31: =SUM('!N131830.105'!L44:Q44)/'!N131830.105'!Q3 -> 0.3333333333 | F31: ='!N131830.105'!Q40 -> 0.8597933881
A32: 30

Sheet Start
F1: Use Folder 51 | H1: Auto Clean Up | J1: Correct sequence
F2: FALSE | H2: TRUE | J2: 21121
A4: Working with Folder | G4: Process All/Or Pick A number: ALL or an integer
A5: E:\Hen Data\Raw Data\105_185\phase 5\ | G5: ALL
A6: Filenames:
A7: !MC31A00.105 | G7: Paint Cells
A8: !N102A20.105 | G8: FALSE
A9: !N103A10.105
A10: !N104B30.105
A11: !N105A10.105
A12: !N106840.105
A13: !N107910.105
A14: !N108A10.105
A15: !N109900.105
A16: !N110A10.105
A17: !N111C00.105
A18: !N112850.105
A19: !N113A30.105
A20: !N114920.105
A21: !N115940.105
A22: !N116920.105
A23: !N117B40.105
A24: !N118B10.105
A25: !N120A40.105
A26: !N121B10.105
A27: !N122930.105
A28: !N123B00.105
A29: !N124950.105
A30: !N125A20.105
A31: !N127A30.105
A32: !N128900.105
A33: !N129A40.105
A34: !N130A40.105
A35: !N131830.105

Sheet !MC31A00.105
A1: Report for:!MC31A00.105
A2: Date: | B2: <date>
A3: Hen: | B3: <hen> | F3: Correct Sequence | G3: =Start!J2 -> 21121 | P3: Total Sequences in Data | Q3: =4994-COUNTBLANK(L7:L5000) -> 92 | V3: Total Sequences in Block Data | W3: =COUNTA(L7:L21) -> 15 | AA3: Total Sequences in Block Data | AB3: =COUNTA(L22:L37) -> 16 | AF3: Total Sequences in Block Data | AG3: =COUNTA(L38:L52) -> 15 | AK3: Total Sequences in Block Data | AL3: =COUNTA(L53:L67) -> 15 | AP3: Total Sequences in Block Data | AQ3: =COUNTA(L68:L83) -> 16 | AU3: Total Sequences in Block Data | AV3: =COUNTA(L84:L98) -> 15
P4: Total Sequences in Summary | Q4: =SUM(O7:O38) -> 92 | V4: Total Sequences in Block Summary | W4: =SUM(U7:U38) -> 15 | AA4: Total Sequences in Block Summary | AB4: =SUM(Z7:Z38) -> 16 | AF4: Total Sequences in Block Summary | AG4: =SUM(AE7:AE38) -> 15 | AK4: Total Sequences in Block Summary | AL4: =SUM(AJ7:AJ38) -> 15 | AP4: Total Sequences in Block Summary | AQ4: =SUM(AO7:AO38) -> 16 | AU4: Total Sequences in Block Summary | AV4: =SUM(AT7:AT38) -> 15
T5: Block 1 | Y5: Block 2 | AD5: Block 3 | AI5: Block 4 | AN5: Block 5 | AS5: Block 6
A6: Sequence Component 1 | B6: Time 1 | C6: Sequence Component 2 | D6: Time 2 | E6: Sequence Component 3 | F6: Time 3 | G6: Sequence Component 4 | H6: Time 4 | I6: Sequence Component 5 | J6: Time 5 | K6: Correct? 0=No 1=Yes | L6: Sequence | N6: Frequency | P6: Relative Frequency | Q6: Variability | T6: Frequency | V6: Relative Frequency | W6: Variability | Y6: Frequency | AA6: Relative Frequency | AB6: Variability | AD6: Frequency | AF6: Relative Frequency | AG6: Variability | AI6: Frequency | AK6: Relative Frequency | AL6: Variability | AN6: Frequency | AP6: Relative Frequency | AQ6: Variability | AS6: Frequency | AU6: Relative Frequency | AV6: Variability
A7: 12 | B7: 19 | C7: 24 | D7: 29 | E7: 24 | F7: 59 | G7: 23 | H7: 88 | I7: 24 | J7: 131 | K7: 0 | L7: 12222 | N7: 11111 | O7: =COUNTIF($L$7:$L$500,N7) -> 0 | P7: =O7/$Q$4 -> 0 | Q7: =IF(P7=0,0,(P7*((LOG(P7))/LOG(2)))) -> 0 | T7: =N7 -> 11111 | U7: =COUNTIF(L7:L21,T7) -> 0 | V7: =U7/(W4-U25) -> 0 | W7: =IF(V7=0,0,(V7*((LOG(V7))/LOG(2)))) -> 0 | Y7: =N7 -> 11111 | Z7: =COUNTIF(L22:L37,Y7) -> 0 | AA7: =Z7/(AB4-Z25) -> 0 | AB7: =IF(AA7=0,0,(AA7*((LOG(AA7))/LOG(2)))) -> 0 | AD7: =N7 -> 11111 | AE7: =COUNTIF(L38:L52,AD7) -> 0 | AF7: =AE7/(AG4-AE25) -> 0 | AG7: =IF(AF7=0,0,(AF7*((LOG(AF7))/LOG(2)))) -> 0 | AI7: =N7 -> 11111 | AJ7: =COUNTIF(L53:L67,AI7) -> 0 | AK7: =AJ7/(AL4-AJ25) -> 0 | AL7: =IF(AK7=0,0,(AK7*((LOG(AK7))/LOG(2)))) -> 0 | AN7: =N7 -> 11111 | AO7: =COUNTIF(L68:L83,AN7) -> 0 | AP7: =AO7/(AQ4-AO25) -> 0 | AQ7: =IF(AP7=0,0,(AP7*((LOG(AP7))/LOG(2)))) -> 0 | AS7: =N7 -> 11111 | AT7: =COUNTIF(L84:L98,AS7) -> 0 | AU7: =AT7/(AV4-AT25) -> 0 | AV7: =IF(AU7=0,0,(AU7*((LOG(AU7))/LOG(2)))) -> 0
A8: 12 | B8: 240 | C8: 24 | D8: 251 | E8: 13 | F8: 316 | G8: 23 | H8: 329 | I8: 24 | J8: 344 | K8: 0 | L8: 12122 | N8: 11112 | O8: =COUNTIF($L$7:$L$500,N8) -> 2 | P8: =O8/$Q$4 -> 0.02173913043 | Q8: =IF(P8=0,0,(P8*((LOG(P8))/LOG(2)))) -> -0.1200774338 | T8: =N8 -> 11112 | U8: =COUNTIF(L7:L21,T8) -> 0 | V8: =U8/(W4-U25) -> 0 | W8: =IF(V8=0,0,(V8*((LOG(V8))/LOG(2)))) -> 0 | Y8: =N8 -> 11112 | Z8: =COUNTIF(L22:L37,Y8) -> 0 | AA8: =Z8/(AB4-Z25) -> 0 | AB8: =IF(AA8=0,0,(AA8*((LOG(AA8))/LOG(2)))) -> 0 | AD8: =N8 -> 11112 | AE8: =COUNTIF(L38:L52,AD8) -> 0 | AF8: =AE8/(AG4-AE25) -> 0 | AG8: =IF(AF8=0,0,(AF8*((LOG(AF8))/LOG(2)))) -> 0 | AI8: =N8 -> 11112 | AJ8: =COUNTIF(L53:L67,AI8) -> 0 | AK8: =AJ8/(AL4-AJ25) -> 0 | AL8: =IF(AK8=0,0,(AK8*((LOG(AK8))/LOG(2)))) -> 0 | AN8: =N8 -> 11112 | AO8: =COUNTIF(L68:L83,AN8) -> 0 | AP8: =AO8/(AQ4-AO25) -> 0 | AQ8: =IF(AP8=0,0,(AP8*((LOG(AP8))/LOG(2)))) -> 0 | AS8: =N8 -> 11112 | AT8: =COUNTIF(L84:L98,AS8) -> 2 | AU8: =AT8/(AV4-AT25) -> 0.1333333333 | AV8: =IF(AU8=0,0,(AU8*((LOG(AU8))/LOG(2)))) -> -0.3875854127
A9: 21 | B9: 468 | C9: 22 | D9: 522 | E9: 13 | F9: 547 | G9: 23 | H9: 559 | I9: 24 | J9: 573 | K9: 0 | L9: 22122 | N9: 11121 | O9: =COUNTIF($L$7:$L$500,N9) -> 3 | P9: =O9/$Q$4 -> 0.03260869565 | Q9: =IF(P9=0,0,(P9*((LOG(P9))/LOG(2)))) -> -0.1610412866 | T9: =N9 -> 11121 | U9: =COUNTIF(L7:L21,T9) -> 0 | V9: =U9/(W4-U25) -> 0 | W9: =IF(V9=0,0,(V9*((LOG(V9))/LOG(2)))) -> 0 | Y9: =N9 -> 11121 | Z9: =COUNTIF(L22:L37,Y9) -> 0 | AA9: =Z9/(AB4-Z25) -> 0 | AB9: =IF(AA9=0,0,(AA9*((LOG(AA9))/LOG(2)))) -> 0 | AD9: =N9 -> 11121 | AE9: =COUNTIF(L38:L52,AD9) -> 0 | AF9: =AE9/(AG4-AE25) -> 0 | AG9: =IF(AF9=0,0,(AF9*((LOG(AF9))/LOG(2)))) -> 0 | AI9: =N9 -> 11121 | AJ9: =COUNTIF(L53:L67,AI9) -> 1 | AK9: =AJ9/(AL4-AJ25) -> 0.06666666667 | AL9: =IF(AK9=0,0,(AK9*((LOG(AK9))/LOG(2)))) -> -0.260459373 | AN9: =N9 -> 11121 | AO9: =COUNTIF(L68:L83,AN9) -> 1 | AP9: =AO9/(AQ4-AO25) -> 0.0625 | AQ9: =IF(AP9=0,0,(AP9*((LOG(AP9))/LOG(2)))) -> -0.25 | AS9: =N9 -> 11121 | AT9: =COUNTIF(L84:L98,AS9) -> 1 | AU9: =AT9/(AV4-AT25) -> 0.06666666667 | AV9: =IF(AU9=0,0,(AU9*((LOG(AU9))/LOG(2)))) -> -0.260459373
A10: 12 | B10: 683 | C10: 24 | D10: 695 | E10: 24 | F10: 722 | G10: 14 | H10: 745 | I10: 24 | J10: 758 | K10: 0 | L10: 12212 | N10: 11122 | O10: =COUNTIF($L$7:$L$500,N10) -> 3 | P10: =O10/$Q$4 -> 0.03260869565 | Q10: =IF(P10=0,0,(P10*((LOG(P10))/LOG(2)))) -> -0.1610412866 | T10: =N10 -> 11122 | U10: =COUNTIF(L7:L21,T10) -> 0 | V10: =U10/(W4-U25) -> 0 | W10: =IF(V10=0,0,(V10*((LOG(V10))/LOG(2)))) -> 0 | Y10: =N10 -> 11122 | Z10: =COUNTIF(L22:L37,Y10) -> 0 | AA10: =Z10/(AB4-Z25) -> 0 | AB10: =IF(AA10=0,0,(AA10*((LOG(AA10))/LOG(2)))) -> 0 | AD10: =N10 -> 11122 | AE10: =COUNTIF(L38:L52,AD10) -> 0 | AF10: =AE10/(AG4-AE25) -> 0 | AG10: =IF(AF10=0,0,(AF10*((LOG(AF10))/LOG(2)))) -> 0 | AI10: =N10 -> 11122 | AJ10: =COUNTIF(L53:L67,AI10) -> 0 | AK10: =AJ10/(AL4-AJ25) -> 0 | AL10: =IF(AK10=0,0,(AK10*((LOG(AK10))/LOG(2)))) -> 0 | AN10: =N10 -> 11122 | AO10: =COUNTIF(L68:L83,AN10) -> 3 | AP10: =AO10/(AQ4-AO25) -> 0.1875 | AQ10: =IF(AP10=0,0,(AP10*((LOG(AP10))/LOG(2)))) -> -0.4528195311 | AS10: =N10 -> 11122 | AT10: =COUNTIF(L84:L98,AS10) -> 0 | AU10: =AT10/(AV4-AT25) -> 0 | AV10: =IF(AU10=0,0,(AU10*((LOG(AU10))/LOG(2)))) -> 0
A11: 12 | B11: 865 | C11: 24 | D11: 875 | E11: 24 | F11: 901 | G11: 23 | H11: 925 | I11: 13 | J11: 948 | K11: 0 | L11: 12221 | N11: 11211 | O11: =COUNTIF($L$7:$L$500,N11) -> 0 | P11: =O11/$Q$4 -> 0 | Q11: =IF(P11=0,0,(P11*((LOG(P11))/LOG(2)))) -> 0 | T11: =N11 -> 11211 | U11: =COUNTIF(L7:L21,T11) -> 0 | V11: =U11/(W4-U25) -> 0 | W11: =IF(V11=0,0,(V11*((LOG(V11))/LOG(2)))) -> 0 | Y11: =N11 -> 11211 | Z11: =COUNTIF(L22:L37,Y11) -> 0 | AA11: =Z11/(AB4-Z25) -> 0 | AB11: =IF(AA11=0,0,(AA11*((LOG(AA11))/LOG(2)))) -> 0 | AD11: =N11 -> 11211 | AE11: =COUNTIF(L38:L52,AD11) -> 0 | AF11: =AE11/(AG4-AE25) -> 0 | AG11: =IF(AF11=0,0,(AF11*((LOG(AF11))/LOG(2)))) -> 0 | AI11: =N11 -> 11211 | AJ11: =COUNTIF(L53:L67,AI11) -> 0 | AK11: =AJ11/(AL4-AJ25) -> 0 | AL11: =IF(AK11=0,0,(AK11*((LOG(AK11))/LOG(2)))) -> 0 | AN11: =N11 -> 11211 | AO11: =COUNTIF(L68:L83,AN11) -> 0 | AP11: =AO11/(AQ4-AO25) -> 0 | AQ11: =IF(AP11=0,0,(AP11*((LOG(AP11))/LOG(2)))) -> 0 | AS11: =N11 -> 11211 | AT11: =COUNTIF(L84:L98,AS11) -> 0 | AU11: =AT11/(AV4-AT25) -> 0 | AV11: =IF(AU11=0,0,(AU11*((LOG(AU11))/LOG(2)))) -> 0
A12: 12 | B12: 1056 | C12: 24 | D12: 1092 | E12: 13 | F12: 1111 | G12: 23 | H12: 1121 | I12: 24 | J12: 1131 | K12: 0 | L12: 12122 | N12: 11212 | O12: =COUNTIF($L$7:$L$500,N12) -> 7 | P12: =O12/$Q$4 -> 0.07608695652 | Q12: =IF(P12=0,0,(P12*((LOG(P12))/LOG(2)))) -> -0.282754883 | T12: =N12 -> 11212 | U12: =COUNTIF(L7:L21,T12) -> 1 | V12: =U12/(W4-U25) -> 0.06666666667 | W12: =IF(V12=0,0,(V12*((LOG(V12))/LOG(2)))) -> -0.260459373 | Y12: =N12 -> 11212 | Z12: =COUNTIF(L22:L37,Y12) -> 0 | AA12: =Z12/(AB4-Z25) -> 0 | AB12: =IF(AA12=0,0,(AA12*((LOG(AA12))/LOG(2)))) -> 0 | AD12: =N12 -> 11212 | AE12: =COUNTIF(L38:L52,AD12) -> 1 | AF12: =AE12/(AG4-AE25) -> 0.06666666667 | AG12: =IF(AF12=0,0,(AF12*((LOG(AF12))/LOG(2)))) -> -0.260459373 | AI12: =N12 -> 11212 | AJ12: =COUNTIF(L53:L67,AI12) -> 2 | AK12: =AJ12/(AL4-AJ25) -> 0.1333333333 | AL12: =IF(AK12=0,0,(AK12*((LOG(AK12))/LOG(2)))) -> -0.3875854127 | AN12: =N12 -> 11212 | AO12: =COUNTIF(L68:L83,AN12) -> 2 | AP12: =AO12/(AQ4-AO25) -> 0.125 | AQ12: =IF(AP12=0,0,(AP12*((LOG(AP12))/LOG(2)))) -> -0.375 | AS12: =N12 -> 11212 | AT12: =COUNTIF(L84:L98,AS12) -> 1 | AU12: =AT12/(AV4-AT25) -> 0.06666666667 | AV12: =IF(AU12=0,0,(AU12*((LOG(AU12))/LOG(2)))) -> -0.260459373
A13: 12 | B13: 1253 | C13: 13 | D13: 1262 | E13: 24 | F13: 1272 | G13: 23 | H13: 1301 | I13: 13 | J13: 1313 | K13: 0 | L13: 11221 | N13: 11221 | O13: =COUNTIF($L$7:$L$500,N13) -> 2 | P13: =O13/$Q$4 -> 0.02173913043 | Q13: =IF(P13=0,0,(P13*((LOG(P13))/LOG(2)))) -> -0.1200774338 | T13: =N13 -> 11221 | U13: =COUNTIF(L7:L21,T13) -> 1 | V13: =U13/(W4-U25) -> 0.06666666667 | W13: =IF(V13=0,0,(V13*((LOG(V13))/LOG(2)))) -> -0.260459373 | Y13: =N13 -> 11221 | Z13: =COUNTIF(L22:L37,Y13) -> 0 | AA13: =Z13/(AB4-Z25) -> 0 | AB13: =IF(AA13=0,0,(AA13*((LOG(AA13))/LOG(2)))) -> 0 | AD13: =N13 -> 11221 | AE13: =COUNTIF(L38:L52,AD13) -> 0 | AF13: =AE13/(AG4-AE25) -> 0 | AG13: =IF(AF13=0,0,(AF13*((LOG(AF13))/LOG(2)))) -> 0 | AI13: =N13 -> 11221 | AJ13: =COUNTIF(L53:L67,AI13) -> 0 | AK13: =AJ13/(AL4-AJ25) -> 0 | AL13: =IF(AK13=0,0,(AK13*((LOG(AK13))/LOG(2)))) -> 0 | AN13: =N13 -> 11221 | AO13: =COUNTIF(L68:L83,AN13) -> 0 | AP13: =AO13/(AQ4-AO25) -> 0 | AQ13: =IF(AP13=0,0,(AP13*((LOG(AP13))/LOG(2)))) -> 0 | AS13: =N13 -> 11221 | AT13: =COUNTIF(L84:L98,AS13) -> 1 | AU13: =AT13/(AV4-AT25) -> 0.06666666667 | AV13: =IF(AU13=0,0,(AU13*((LOG(AU13))/LOG(2)))) -> -0.260459373
A14: 12 | B14: 1419 | C14: 24 | D14: 1432 | E14: 24 | F14: 1460 | G14: 23 | H14: 1491 | I14: 13 | J14: 1507 | K14: 0 | L14: 12221 | N14: 11222 | O14: =COUNTIF($L$7:$L$500,N14) -> 12 | P14: =O14/$Q$4 -> 0.1304347826 | Q14: =IF(P14=0,0,(P14*((LOG(P14))/LOG(2)))) -> -0.3832955811 | T14: =N14 -> 11222 | U14: =COUNTIF(L7:L21,T14) -> 1 | V14: =U14/(W4-U25) -> 0.06666666667 | W14: =IF(V14=0,0,(V14*((LOG(V14))/LOG(2)))) -> -0.260459373 | Y14: =N14 -> 11222 | Z14: =COUNTIF(L22:L37,Y14) -> 0 | AA14: =Z14/(AB4-Z25) -> 0 | AB14: =IF(AA14=0,0,(AA14*((LOG(AA14))/LOG(2)))) -> 0 | AD14: =N14 -> 11222 | AE14: =COUNTIF(L38:L52,AD14) -> 1 | AF14: =AE14/(AG4-AE25) -> 0.06666666667 | AG14: =IF(AF14=0,0,(AF14*((LOG(AF14))/LOG(2)))) -> -0.260459373 | AI14: =N14 -> 11222 | AJ14: =COUNTIF(L53:L67,AI14) -> 3 | AK14: =AJ14/(AL4-AJ25) -> 0.2 | AL14: =IF(AK14=0,0,(AK14*((LOG(AK14))/LOG(2)))) -> -0.464385619 | AN14: =N14 -> 11222 | AO14: =COUNTIF(L68:L83,AN14) -> 6 | AP14: =AO14/(AQ4-AO25) -> 0.375 | AQ14: =IF(AP14=0,0,(AP14*((LOG(AP14))/LOG(2)))) -> -0.5306390622 | AS14: =N14 -> 11222 | AT14: =COUNTIF(L84:L98,AS14) -> 1 | AU14: =AT14/(AV4-AT25) -> 0.06666666667 | AV14: =IF(AU14=0,0,(AU14*((LOG(AU14))/LOG(2)))) -> -0.260459373
A15: 12 | B15: 1618 | C15: 24 | D15: 1630 | E15: 13 | F15: 1643 | G15: 23 | H15: 1656 | I15: 13 | J15: 1675 | K15: 0 | L15: 12121 | N15: 12111 | O15: =COUNTIF($L$7:$L$500,N15) -> 0 | P15: =O15/$Q$4 -> 0 | Q15: =IF(P15=0,0,(P15*((LOG(P15))/LOG(2)))) -> 0 | T15: =N15 -> 12111 | U15: =COUNTIF(L7:L21,T15) -> 0 | V15: =U15/(W4-U25) -> 0 | W15: =IF(V15=0,0,(V15*((LOG(V15))/LOG(2)))) -> 0 | Y15: =N15 -> 12111 | Z15: =COUNTIF(L22:L37,Y15) -> 0 | AA15: =Z15/(AB4-Z25) -> 0 | AB15: =IF(AA15=0,0,(AA15*((LOG(AA15))/LOG(2)))) -> 0 | AD15: =N15 -> 12111 | AE15: =COUNTIF(L38:L52,AD15) -> 0 | AF15: =AE15/(AG4-AE25) -> 0 | AG15: =IF(AF15=0,0,(AF15*((LOG(AF15))/LOG(2)))) -> 0 | AI15: =N15 -> 12111 | AJ15: =COUNTIF(L53:L67,AI15) -> 0 | AK15: =AJ15/(AL4-AJ25) -> 0 | AL15: =IF(AK15=0,0,(AK15*((LOG(AK15))/LOG(2)))) -> 0 | AN15: =N15 -> 12111 | AO15: =COUNTIF(L68:L83,AN15) -> 0 | AP15: =AO15/(AQ4-AO25) -> 0 | AQ15: =IF(AP15=0,0,(AP15*((LOG(AP15))/LOG(2)))) -> 0 | AS15: =N15 -> 12111 | AT15: =COUNTIF(L84:L98,AS15) -> 0 | AU15: =AT15/(AV4-AT25) -> 0 | AV15: =IF(AU15=0,0,(AU15*((LOG(AU15))/LOG(2)))) -> 0
A16: 12 | B16: 1785 | C16: 24 | D16: 1795 | E16: 24 | F16: 1805 | G16: 23 | H16: 1826 | I16: 24 | J16: 1852 | K16: 0 | L16: 12222 | N16: 12112 | O16: =COUNTIF($L$7:$L$500,N16) -> 0 | P16: =O16/$Q$4 -> 0 | Q16: =IF(P16=0,0,(P16*((LOG(P16))/LOG(2)))) -> 0 | T16: =N16 -> 12112 | U16: =COUNTIF(L7:L21,T16) -> 0 | V16: =U16/(W4-U25) -> 0 | W16: =IF(V16=0,0,(V16*((LOG(V16))/LOG(2)))) -> 0 | Y16: =N16 -> 12112 | Z16: =COUNTIF(L22:L37,Y16) -> 0 | AA16: =Z16/(AB4-Z25) -> 0 | AB16: =IF(AA16=0,0,(AA16*((LOG(AA16))/LOG(2)))) -> 0 | AD16: =N16 -> 12112 | AE16: =COUNTIF(L38:L52,AD16) -> 0 | AF16: =AE16/(AG4-AE25) -> 0 | AG16: =IF(AF16=0,0,(AF16*((LOG(AF16))/LOG(2)))) -> 0 | AI16: =N16 -> 12112 | AJ16: =COUNTIF(L53:L67,AI16) -> 0 | AK16: =AJ16/(AL4-AJ25) -> 0 | AL16: =IF(AK16=0,0,(AK16*((LOG(AK16))/LOG(2)))) -> 0 | AN16: =N16 -> 12112 | AO16: =COUNTIF(L68:L83,AN16) -> 0 | AP16: =AO16/(AQ4-AO25) -> 0 | AQ16: =IF(AP16=0,0,(AP16*((LOG(AP16))/LOG(2)))) -> 0 | AS16: =N16 -> 12112 | AT16: =COUNTIF(L84:L98,AS16) -> 0 | AU16: =AT16/(AV4-AT25) -> 0 | AV16: =IF(AU16=0,0,(AU16*((LOG(AU16))/LOG(2)))) -> 0
A17: 12 | B17: 1958 | C17: 13 | D17: 1968 | E17: 24 | F17: 1978 | G17: 14 | H17: 1997 | I17: 24 | J17: 2013 | K17: 0 | L17: 11212 | N17: 12121 | O17: =COUNTIF($L$7:$L$500,N17) -> 4 | P17: =O17/$Q$4 -> 0.04347826087 | Q17: =IF(P17=0,0,(P17*((LOG(P17))/LOG(2)))) -> -0.1966766068 | T17: =N17 -> 12121 | U17: =COUNTIF(L7:L21,T17) -> 1 | V17: =U17/(W4-U25) -> 0.06666666667 | W17: =IF(V17=0,0,(V17*((LOG(V17))/LOG(2)))) -> -0.260459373 | Y17: =N17 -> 12121 | Z17: =COUNTIF(L22:L37,Y17) -> 0 | AA17: =Z17/(AB4-Z25) -> 0 | AB17: =IF(AA17=0,0,(AA17*((LOG(AA17))/LOG(2)))) -> 0 | AD17: =N17 -> 12121 | AE17: =COUNTIF(L38:L52,AD17) -> 1 | AF17: =AE17/(AG4-AE25) -> 0.06666666667 | AG17: =IF(AF17=0,0,(AF17*((LOG(AF17))/LOG(2)))) -> -0.260459373 | AI17: =N17 -> 12121 | AJ17: =COUNTIF(L53:L67,AI17) -> 1 | AK17: =AJ17/(AL4-AJ25) -> 0.06666666667 | AL17: =IF(AK17=0,0,(AK17*((LOG(AK17))/LOG(2)))) -> -0.260459373 | AN17: =N17 -> 12121 | AO17: =COUNTIF(L68:L83,AN17) -> 0 | AP17: =AO17/(AQ4-AO25) -> 0 | AQ17: =IF(AP17=0,0,(AP17*((LOG(AP17))/LOG(2)))) -> 0 | AS17: =N17 -> 12121 | AT17: =COUNTIF(L84:L98,AS17) -> 1 | AU17: =AT17/(AV4-AT25) -> 0.06666666667 | AV17: =IF(AU17=0,0,(AU17*((LOG(AU17))/LOG(2)))) -> -0.260459373
A18: 21 | B18: 2131 | C18: 11 | D18: 2144 | E18: 22 | F18: 2157 | G18: 14 | H18: 2175 | I18: 24 | J18: 2184 | K18: 0 | L18: 21212 | N18: 12122 | O18: =COUNTIF($L$7:$L$500,N18) -> 10 | P18: =O18/$Q$4 -> 0.1086956522 | Q18: =IF(P18=0,0,(P18*((LOG(P18))/LOG(2)))) -> -0.3480036806 | T18: =N18 -> 12122 | U18: =COUNTIF(L7:L21,T18) -> 4 | V18: =U18/(W4-U25) -> 0.2666666667 | W18: =IF(V18=0,0,(V18*((LOG(V18))/LOG(2)))) -> -0.5085041588 | Y18: =N18 -> 12122 | Z18: =COUNTIF(L22:L37,Y18) -> 2 | AA18: =Z18/(AB4-Z25) -> 0.125 | AB18: =IF(AA18=0,0,(AA18*((LOG(AA18))/LOG(2)))) -> -0.375 | AD18: =N18 -> 12122 | AE18: =COUNTIF(L38:L52,AD18) -> 1 | AF18: =AE18/(AG4-AE25) -> 0.06666666667 | AG18: =IF(AF18=0,0,(AF18*((LOG(AF18))/LOG(2)))) -> -0.260459373 | AI18: =N18 -> 12122 | AJ18: =COUNTIF(L53:L67,AI18) -> 1 | AK18: =AJ18/(AL4-AJ25) -> 0.06666666667 | AL18: =IF(AK18=0,0,(AK18*((LOG(AK18))/LOG(2)))) -> -0.260459373 | AN18: =N18 -> 12122 | AO18: =COUNTIF(L68:L83,AN18) -> 1 | AP18: =AO18/(AQ4-AO25) -> 0.0625 | AQ18: =IF(AP18=0,0,(AP18*((LOG(AP18))/LOG(2)))) -> -0.25 | AS18: =N18 -> 12122 | AT18: =COUNTIF(L84:L98,AS18) -> 1 | AU18: =AT18/(AV4-AT25) -> 0.06666666667 | AV18: =IF(AU18=0,0,(AU18*((LOG(AU18))/LOG(2)))) -> -0.260459373
A19: 12 | B19: 2298 | C19: 13 | D19: 2317 | E19: 24 | F19: 2330 | G19: 23 | H19: 2360 | I19: 24 | J19: 2372 | K19: 0 | L19: 11222 | N19: 12211 | O19: =COUNTIF($L$7:$L$500,N19) -> 0 | P19: =O19/$Q$4 -> 0 | Q19: =IF(P19=0,0,(P19*((LOG(P19))/LOG(2)))) -> 0 | T19: =N19 -> 12211 | U19: =COUNTIF(L7:L21,T19) -> 0 | V19: =U19/(W4-U25) -> 0 | W19: =IF(V19=0,0,(V19*((LOG(V19))/LOG(2)))) -> 0 | Y19: =N19 -> 12211 | Z19: =COUNTIF(L22:L37,Y19) -> 0 | AA19: =Z19/(AB4-Z25) -> 0 | AB19: =IF(AA19=0,0,(AA19*((LOG(AA19))/LOG(2)))) -> 0 | AD19: =N19 -> 12211 | AE19: =COUNTIF(L38:L52,AD19) -> 0 | AF19: =AE19/(AG4-AE25) -> 0 | AG19: =IF(AF19=0,0,(AF19*((LOG(AF19))/LOG(2)))) -> 0 | AI19: =N19 -> 12211 | AJ19: =COUNTIF(L53:L67,AI19) -> 0 | AK19: =AJ19/(AL4-AJ25) -> 0 | AL19: =IF(AK19=0,0,(AK19*((LOG(AK19))/LOG(2)))) -> 0 | AN19: =N19 -> 12211 | AO19: =COUNTIF(L68:L83,AN19) -> 0 | AP19: =AO19/(AQ4-AO25) -> 0 | AQ19: =IF(AP19=0,0,(AP19*((LOG(AP19))/LOG(2)))) -> 0 | AS19: =N19 -> 12211 | AT19: =COUNTIF(L84:L98,AS19) -> 0 | AU19: =AT19/(AV4-AT25) -> 0 | AV19: =IF(AU19=0,0,(AU19*((LOG(AU19))/LOG(2)))) -> 0
A20: 12 | B20: 2480 | C20: 24 | D20: 2489 | E20: 13 | F20: 2499 | G20: 23 | H20: 2508 | I20: 24 | J20: 2532 | K20: 0 | L20: 12122 | N20: 12212 | O20: =COUNTIF($L$7:$L$500,N20) -> 7 | P20: =O20/$Q$4 -> 0.07608695652 | Q20: =IF(P20=0,0,(P20*((LOG(P20))/LOG(2)))) -> -0.282754883 | T20: =N20 -> 12212 | U20: =COUNTIF(L7:L21,T20) -> 1 | V20: =U20/(W4-U25) -> 0.06666666667 | W20: =IF(V20=0,0,(V20*((LOG(V20))/LOG(2)))) -> -0.260459373 | Y20: =N20 -> 12212 | Z20: =COUNTIF(L22:L37,Y20) -> 3 | AA20: =Z20/(AB4-Z25) -> 0.1875 | AB20: =IF(AA20=0,0,(AA20*((LOG(AA20))/LOG(2)))) -> -0.4528195311 | AD20: =N20 -> 12212 | AE20: =COUNTIF(L38:L52,AD20) -> 0 | AF20: =AE20/(AG4-AE25) -> 0 | AG20: =IF(AF20=0,0,(AF20*((LOG(AF20))/LOG(2)))) -> 0 | AI20: =N20 -> 12212 | AJ20: =COUNTIF(L53:L67,AI20) -> 2 | AK20: =AJ20/(AL4-AJ25) -> 0.1333333333 | AL20: =IF(AK20=0,0,(AK20*((LOG(AK20))/LOG(2)))) -> -0.3875854127 | AN20: =N20 -> 12212 | AO20: =COUNTIF(L68:L83,AN20) -> 0 | AP20: =AO20/(AQ4-AO25) -> 0 | AQ20: =IF(AP20=0,0,(AP20*((LOG(AP20))/LOG(2)))) -> 0 | AS20: =N20 -> 12212 | AT20: =COUNTIF(L84:L98,AS20) -> 1 | AU20: =AT20/(AV4-AT25) -> 0.06666666667 | AV20: =IF(AU20=0,0,(AU20*((LOG(AU20))/LOG(2)))) -> -0.260459373
A21: 12 | B21: 2646 | C21: 24 | D21: 2658 | E21: 13 | F21: 2668 | G21: 23 | H21: 2679 | I21: 24 | J21: 2705 | K21: 0 | L21: 12122 | N21: 12221 | O21: =COUNTIF($L$7:$L$500,N21) -> 7 | P21: =O21/$Q$4 -> 0.07608695652 | Q21: =IF(P21=0,0,(P21*((LOG(P21))/LOG(2)))) -> -0.282754883 | T21: =N21 -> 12221 | U21: =COUNTIF(L7:L21,T21) -> 2 | V21: =U21/(W4-U25) -> 0.1333333333 | W21: =IF(V21=0,0,(V21*((LOG(V21))/LOG(2)))) -> -0.3875854127 | Y21: =N21 -> 12221 | Z21: =COUNTIF(L22:L37,Y21) -> 2 | AA21: =Z21/(AB4-Z25) -> 0.125 | AB21: =IF(AA21=0,0,(AA21*((LOG(AA21))/LOG(2)))) -> -0.375 | AD21: =N21 -> 12221 | AE21: =COUNTIF(L38:L52,AD21) -> 2 | AF21: =AE21/(AG4-AE25) -> 0.1333333333 | AG21: =IF(AF21=0,0,(AF21*((LOG(AF21))/LOG(2)))) -> -0.3875854127 | AI21: =N21 -> 12221 | AJ21: =COUNTIF(L53:L67,AI21) -> 0 | AK21: =AJ21/(AL4-AJ25) -> 0 | AL21: =IF(AK21=0,0,(AK21*((LOG(AK21))/LOG(2)))) -> 0 | AN21: =N21 -> 12221 | AO21: =COUNTIF(L68:L83,AN21) -> 0 | AP21: =AO21/(AQ4-AO25) -> 0 | AQ21: =IF(AP21=0,0,(AP21*((LOG(AP21))/LOG(2)))) -> 0 | AS21: =N21 -> 12221 | AT21: =COUNTIF(L84:L98,AS21) -> 1 | AU21: =AT21/(AV4-AT25) -> 0.06666666667 | AV21: =IF(AU21=0,0,(AU21*((LOG(AU21))/LOG(2)))) -> -0.260459373
A22: 12 | B22: 2815 | C22: 24 | D22: 2839 | E22: 24 | F22: 2849 | G22: 23 | H22: 2858 | I22: 24 | J22: 2883 | K22: 0 | L22: 12222 | N22: 12222 | O22: =COUNTIF($L$7:$L$500,N22) -> 9 | P22: =O22/$Q$4 -> 0.09782608696 | Q22: =IF(P22=0,0,(P22*((LOG(P22))/LOG(2)))) -> -0.3280731803 | T22: =N22 -> 12222 | U22: =COUNTIF(L7:L21,T22) -> 2 | V22: =U22/(W4-U25) -> 0.1333333333 | W22: =IF(V22=0,0,(V22*((LOG(V22))/LOG(2)))) -> -0.3875854127 | Y22: =N22 -> 12222 | Z22: =COUNTIF(L22:L37,Y22) -> 3 | AA22: =Z22/(AB4-Z25) -> 0.1875 | AB22: =IF(AA22=0,0,(AA22*((LOG(AA22))/LOG(2)))) -> -0.4528195311 | AD22: =N22 -> 12222 | AE22: =COUNTIF(L38:L52,AD22) -> 1 | AF22: =AE22/(AG4-AE25) -> 0.06666666667 | AG22: =IF(AF22=0,0,(AF22*((LOG(AF22))/LOG(2)))) -> -0.260459373 | AI22: =N22 -> 12222 | AJ22: =COUNTIF(L53:L67,AI22) -> 1 | AK22: =AJ22/(AL4-AJ25) -> 0.06666666667 | AL22: =IF(AK22=0,0,(AK22*((LOG(AK22))/LOG(2)))) -> -0.260459373 | AN22: =N22 -> 12222 | AO22: =COUNTIF(L68:L83,AN22) -> 1 | AP22: =AO22/(AQ4-AO25) -> 0.0625 | AQ22: =IF(AP22=0,0,(AP22*((LOG(AP22))/LOG(2)))) -> -0.25 | AS22: =N22 -> 12222 | AT22: =COUNTIF(L84:L98,AS22) -> 1 | AU22: =AT22/(AV4-AT25) -> 0.06666666667 | AV22: =IF(AU22=0,0,(AU22*((LOG(AU22))/LOG(2)))) -> -0.260459373
A23: 12 | B23: 2991 | C23: 24 | D23: 2999 | E23: 24 | F23: 3018 | G23: 23 | H23: 3028 | I23: 13 | J23: 3042 | K23: 0 | L23: 12221 | N23: 21111 | O23: =COUNTIF($L$7:$L$500,N23) -> 0 | P23: =O23/$Q$4 -> 0 | Q23: =IF(P23=0,0,(P23*((LOG(P23))/LOG(2)))) -> 0 | T23: =N23 -> 21111 | U23: =COUNTIF(L7:L21,T23) -> 0 | V23: =U23/(W4-U25) -> 0 | W23: =IF(V23=0,0,(V23*((LOG(V23))/LOG(2)))) -> 0 | Y23: =N23 -> 21111 | Z23: =COUNTIF(L22:L37,Y23) -> 0 | AA23: =Z23/(AB4-Z25) -> 0 | AB23: =IF(AA23=0,0,(AA23*((LOG(AA23))/LOG(2)))) -> 0 | AD23: =N23 -> 21111 | AE23: =COUNTIF(L38:L52,AD23) -> 0 | AF23: =AE23/(AG4-AE25) -> 0 | AG23: =IF(AF23=0,0,(AF23*((LOG(AF23))/LOG(2)))) -> 0 | AI23: =N23 -> 21111 | AJ23: =COUNTIF(L53:L67,AI23) -> 0 | AK23: =AJ23/(AL4-AJ25) -> 0 | AL23: =IF(AK23=0,0,(AK23*((LOG(AK23))/LOG(2)))) -> 0 | AN23: =N23 -> 21111 | AO23: =COUNTIF(L68:L83,AN23) -> 0 | AP23: =AO23/(AQ4-AO25) -> 0 | AQ23: =IF(AP23=0,0,(AP23*((LOG(AP23))/LOG(2)))) -> 0 | AS23: =N23 -> 21111 | AT23: =COUNTIF(L84:L98,AS23) -> 0 | AU23: =AT23/(AV4-AT25) -> 0 | AV23: =IF(AU23=0,0,(AU23*((LOG(AU23))/LOG(2)))) -> 0
A24: 12 | B24: 3149 | C24: 24 | D24: 3161 | E24: 24 | F24: 3176 | G24: 14 | H24: 3187 | I24: 24 | J24: 3201 | K24: 0 | L24: 12212 | N24: 21112 | O24: =COUNTIF($L$7:$L$500,N24) -> 0 | P24: =O24/$Q$4 -> 0 | Q24: =IF(P24=0,0,(P24*((LOG(P24))/LOG(2)))) -> 0 | T24: =N24 -> 21112 | U24: =COUNTIF(L7:L21,T24) -> 0 | V24: =U24/(W4-U25) -> 0 | W24: =IF(V24=0,0,(V24*((LOG(V24))/LOG(2)))) -> 0 | Y24: =N24 -> 21112 | Z24: =COUNTIF(L22:L37,Y24) -> 0 | AA24: =Z24/(AB4-Z25) -> 0 | AB24: =IF(AA24=0,0,(AA24*((LOG(AA24))/LOG(2)))) -> 0 | AD24: =N24 -> 21112 | AE24: =COUNTIF(L38:L52,AD24) -> 0 | AF24: =AE24/(AG4-AE25) -> 0 | AG24: =IF(AF24=0,0,(AF24*((LOG(AF24))/LOG(2)))) -> 0 | AI24: =N24 -> 21112 | AJ24: =COUNTIF(L53:L67,AI24) -> 0 | AK24: =AJ24/(AL4-AJ25) -> 0 | AL24: =IF(AK24=0,0,(AK24*((LOG(AK24))/LOG(2)))) -> 0 | AN24: =N24 -> 21112 | AO24: =COUNTIF(L68:L83,AN24) -> 0 | AP24: =AO24/(AQ4-AO25) -> 0 | AQ24: =IF(AP24=0,0,(AP24*((LOG(AP24))/LOG(2)))) -> 0 | AS24: =N24 -> 21112 | AT24: =COUNTIF(L84:L98,AS24) -> 0 | AU24: =AT24/(AV4-AT25) -> 0 | AV24: =IF(AU24=0,0,(AU24*((LOG(AU24))/LOG(2)))) -> 0
A25: 12 | B25: 3307 | C25: 24 | D25: 3335 | E25: 24 | F25: 3345 | G25: 14 | H25: 3358 | I25: 24 | J25: 3372 | K25: 0 | L25: 12212 | N25: 21121 | O25: =COUNTIF($L$7:$L$500,N25) -> 0 | P25: =O25/$Q$4 -> 0 | Q25: =IF(P25=0,0,(P25*((LOG(P25))/LOG(2)))) -> 0 | T25: =N25 -> 21121 | U25: =COUNTIF(L7:L21,T25) -> 0 | Y25: =N25 -> 21121 | Z25: =COUNTIF(L22:L37,Y25) -> 0 | AD25: =N25 -> 21121 | AE25: =COUNTIF(L38:L52,AD25) -> 0 | AI25: =N25 -> 21121 | AJ25: =COUNTIF(L53:L67,AI25) -> 0 | AN25: =N25 -> 21121 | AO25: =COUNTIF(L68:L83,AN25) -> 0 | AS25: =N25 -> 21121 | AT25: =COUNTIF(L84:L98,AS25) -> 0
A26: 12 | B26: 3477 | C26: 24 | D26: 3506 | E26: 24 | F26: 3529 | G26: 23 | H26: 3540 | I26: 24 | J26: 3548 | K26: 0 | L26: 12222 | N26: 21122 | O26: =COUNTIF($L$7:$L$500,N26) -> 0 | P26: =O26/$Q$4 -> 0 | Q26: =IF(P26=0,0,(P26*((LOG(P26))/LOG(2)))) -> 0 | T26: =N26 -> 21122 | U26: =COUNTIF(L7:L21,T26) -> 0 | V26: =U26/(W4-U25) -> 0 | W26: =IF(V26=0,0,(V26*((LOG(V26))/LOG(2)))) -> 0 | Y26: =N26 -> 21122 | Z26: =COUNTIF(L22:L37,Y26) -> 0 | AA26: =Z26/(AB4-Z25) -> 0 | AB26: =IF(AA26=0,0,(AA26*((LOG(AA26))/LOG(2)))) -> 0 | AD26: =N26 -> 21122 | AE26: =COUNTIF(L38:L52,AD26) -> 0 | AF26: =AE26/(AG4-AE25) -> 0 | AG26: =IF(AF26=0,0,(AF26*((LOG(AF26))/LOG(2)))) -> 0 | AI26: =N26 -> 21122 | AJ26: =COUNTIF(L53:L67,AI26) -> 0 | AK26: =AJ26/(AL4-AJ25) -> 0 | AL26: =IF(AK26=0,0,(AK26*((LOG(AK26))/LOG(2)))) -> 0 | AN26: =N26 -> 21122 | AO26: =COUNTIF(L68:L83,AN26) -> 0 | AP26: =AO26/(AQ4-AO25) -> 0 | AQ26: =IF(AP26=0,0,(AP26*((LOG(AP26))/LOG(2)))) -> 0 | AS26: =N26 -> 21122 | AT26: =COUNTIF(L84:L98,AS26) -> 0 | AU26: =AT26/(AV4-AT25) -> 0 | AV26: =IF(AU26=0,0,(AU26*((LOG(AU26))/LOG(2)))) -> 0
A27: 12 | B27: 3655 | C27: 24 | D27: 3680 | E27: 13 | F27: 3693 | G27: 23 | H27: 3714 | I27: 24 | J27: 3723 | K27: 0 | L27: 12122 | N27: 21211 | O27: =COUNTIF($L$7:$L$500,N27) -> 0 | P27: =O27/$Q$4 -> 0 | Q27: =IF(P27=0,0,(P27*((LOG(P27))/LOG(2)))) -> 0 | T27: =N27 -> 21211 | U27: =COUNTIF(L7:L21,T27) -> 0 | V27: =U27/(W4-U25) -> 0 | W27: =IF(V27=0,0,(V27*((LOG(V27))/LOG(2)))) -> 0 | Y27: =N27 -> 21211 | Z27: =COUNTIF(L22:L37,Y27) -> 0 | AA27: =Z27/(AB4-Z25) -> 0 | AB27: =IF(AA27=0,0,(AA27*((LOG(AA27))/LOG(2)))) -> 0 | AD27: =N27 -> 21211 | AE27: =COUNTIF(L38:L52,AD27) -> 0 | AF27: =AE27/(AG4-AE25) -> 0 | AG27: =IF(AF27=0,0,(AF27*((LOG(AF27))/LOG(2)))) -> 0 | AI27: =N27 -> 21211 | AJ27: =COUNTIF(L53:L67,AI27) -> 0 | AK27: =AJ27/(AL4-AJ25) -> 0 | AL27: =IF(AK27=0,0,(AK27*((LOG(AK27))/LOG(2)))) -> 0 | AN27: =N27 -> 21211 | AO27: =COUNTIF(L68:L83,AN27) -> 0 | AP27: =AO27/(AQ4-AO25) -> 0 | AQ27: =IF(AP27=0,0,(AP27*((LOG(AP27))/LOG(2)))) -> 0 | AS27: =N27 -> 21211 | AT27: =COUNTIF(L84:L98,AS27) -> 0 | AU27: =AT27/(AV4-AT25) -> 0 | AV27: =IF(AU27=0,0,(AU27*((LOG(AU27))/LOG(2)))) -> 0
A28: 12 | B28: 3830 | C28: 24 | D28: 3871 | E28: 24 | F28: 3894 | G28: 23 | H28: 3917 | I28: 24 | J28: 3923 | K28: 0 | L28: 12222 | N28: 21212 | O28: =COUNTIF($L$7:$L$500,N28) -> 2 | P28: =O28/$Q$4 -> 0.02173913043 | Q28: =IF(P28=0,0,(P28*((LOG(P28))/LOG(2)))) -> -0.1200774338 | T28: =N28 -> 21212 | U28: =COUNTIF(L7:L21,T28) -> 1 | V28: =U28/(W4-U25) -> 0.06666666667 | W28: =IF(V28=0,0,(V28*((LOG(V28))/LOG(2)))) -> -0.260459373 | Y28: =N28 -> 21212 | Z28: =COUNTIF(L22:L37,Y28) -> 1 | AA28: =Z28/(AB4-Z25) -> 0.0625 | AB28: =IF(AA28=0,0,(AA28*((LOG(AA28))/LOG(2)))) -> -0.25 | AD28: =N28 -> 21212 | AE28: =COUNTIF(L38:L52,AD28) -> 0 | AF28: =AE28/(AG4-AE25) -> 0 | AG28: =IF(AF28=0,0,(AF28*((LOG(AF28))/LOG(2)))) -> 0 | AI28: =N28 -> 21212 | AJ28: =COUNTIF(L53:L67,AI28) -> 0 | AK28: =AJ28/(AL4-AJ25) -> 0 | AL28: =IF(AK28=0,0,(AK28*((LOG(AK28))/LOG(2)))) -> 0 | AN28: =N28 -> 21212 | AO28: =COUNTIF(L68:L83,AN28) -> 0 | AP28: =AO28/(AQ4-AO25) -> 0 | AQ28: =IF(AP28=0,0,(AP28*((LOG(AP28))/LOG(2)))) -> 0 | AS28: =N28 -> 21212 | AT28: =COUNTIF(L84:L98,AS28) -> 0 | AU28: =AT28/(AV4-AT25) -> 0 | AV28: =IF(AU28=0,0,(AU28*((LOG(AU28))/LOG(2)))) -> 0
A29: 12 | B29: 4036 | C29: 24 | D29: 4062 | E29: 24 | F29: 4084 | G29: 23 | H29: 4114 | I29: 13 | J29: 4124 | K29: 0 | L29: 12221 | N29: 21221 | O29: =COUNTIF($L$7:$L$500,N29) -> 1 | P29: =O29/$Q$4 -> 0.01086956522 | Q29: =IF(P29=0,0,(P29*((LOG(P29))/LOG(2)))) -> -0.07090828213 | T29: =N29 -> 21221 | U29: =COUNTIF(L7:L21,T29) -> 0 | V29: =U29/(W4-U25) -> 0 | W29: =IF(V29=0,0,(V29*((LOG(V29))/LOG(2)))) -> 0 | Y29: =N29 -> 21221 | Z29: =COUNTIF(L22:L37,Y29) -> 0 | AA29: =Z29/(AB4-Z25) -> 0 | AB29: =IF(AA29=0,0,(AA29*((LOG(AA29))/LOG(2)))) -> 0 | AD29: =N29 -> 21221 | AE29: =COUNTIF(L38:L52,AD29) -> 1 | AF29: =AE29/(AG4-AE25) -> 0.06666666667 | AG29: =IF(AF29=0,0,(AF29*((LOG(AF29))/LOG(2)))) -> -0.260459373 | AI29: =N29 -> 21221 | AJ29: =COUNTIF(L53:L67,AI29) -> 0 | AK29: =AJ29/(AL4-AJ25) -> 0 | AL29: =IF(AK29=0,0,(AK29*((LOG(AK29))/LOG(2)))) -> 0 | AN29: =N29 -> 21221 | AO29: =COUNTIF(L68:L83,AN29) -> 0 | AP29: =AO29/(AQ4-AO25) -> 0 | AQ29: =IF(AP29=0,0,(AP29*((LOG(AP29))/LOG(2)))) -> 0 | AS29: =N29 -> 21221 | AT29: =COUNTIF(L84:L98,AS29) -> 0 | AU29: =AT29/(AV4-AT25) -> 0 | AV29: =IF(AU29=0,0,(AU29*((LOG(AU29))/LOG(2)))) -> 0
A30: 12 | B30: 4231 | C30: 24 | D30: 4283 | E30: 24 | F30: 4304 | G30: 14 | H30: 4314 | I30: 24 | J30: 4327 | K30: 0 | L30: 12212 | N30: 21222 | O30: =COUNTIF($L$7:$L$500,N30) -> 2 | P30: =O30/$Q$4 -> 0.02173913043 | Q30: =IF(P30=0,0,(P30*((LOG(P30))/LOG(2)))) -> -0.1200774338 | T30: =N30 -> 21222 | U30: =COUNTIF(L7:L21,T30) -> 0 | V30: =U30/(W4-U25) -> 0 | W30: =IF(V30=0,0,(V30*((LOG(V30))/LOG(2)))) -> 0 | Y30: =N30 -> 21222 | Z30: =COUNTIF(L22:L37,Y30) -> 1 | AA30: =Z30/(AB4-Z25) -> 0.0625 | AB30: =IF(AA30=0,0,(AA30*((LOG(AA30))/LOG(2)))) -> -0.25 | AD30: =N30 -> 21222 | AE30: =COUNTIF(L38:L52,AD30) -> 0 | AF30: =AE30/(AG4-AE25) -> 0 | AG30: =IF(AF30=0,0,(AF30*((LOG(AF30))/LOG(2)))) -> 0 | AI30: =N30 -> 21222 | AJ30: =COUNTIF(L53:L67,AI30) -> 0 | AK30: =AJ30/(AL4-AJ25) -> 0 | AL30: =IF(AK30=0,0,(AK30*((LOG(AK30))/LOG(2)))) -> 0 | AN30: =N30 -> 21222 | AO30: =COUNTIF(L68:L83,AN30) -> 0 | AP30: =AO30/(AQ4-AO25) -> 0 | AQ30: =IF(AP30=0,0,(AP30*((LOG(AP30))/LOG(2)))) -> 0 | AS30: =N30 -> 21222 | AT30: =COUNTIF(L84:L98,AS30) -> 1 | AU30: =AT30/(AV4-AT25) -> 0.06666666667 | AV30: =IF(AU30=0,0,(AU30*((LOG(AU30))/LOG(2)))) -> -0.260459373
A31: 21 | B31: 4499 | C31: 11 | D31: 4513 | E31: 22 | F31: 4525 | G31: 23 | H31: 4539 | I31: 24 | J31: 4549 | K31: 0 | L31: 21222 | N31: 22111 | O31: =COUNTIF($L$7:$L$500,N31) -> 0 | P31: =O31/$Q$4 -> 0 | Q31: =IF(P31=0,0,(P31*((LOG(P31))/LOG(2)))) -> 0 | T31: =N31 -> 22111 | U31: =COUNTIF(L7:L21,T31) -> 0 | V31: =U31/(W4-U25) -> 0 | W31: =IF(V31=0,0,(V31*((LOG(V31))/LOG(2)))) -> 0 | Y31: =N31 -> 22111 | Z31: =COUNTIF(L22:L37,Y31) -> 0 | AA31: =Z31/(AB4-Z25) -> 0 | AB31: =IF(AA31=0,0,(AA31*((LOG(AA31))/LOG(2)))) -> 0 | AD31: =N31 -> 22111 | AE31: =COUNTIF(L38:L52,AD31) -> 0 | AF31: =AE31/(AG4-AE25) -> 0 | AG31: =IF(AF31=0,0,(AF31*((LOG(AF31))/LOG(2)))) -> 0 | AI31: =N31 -> 22111 | AJ31: =COUNTIF(L53:L67,AI31) -> 0 | AK31: =AJ31/(AL4-AJ25) -> 0 | AL31: =IF(AK31=0,0,(AK31*((LOG(AK31))/LOG(2)))) -> 0 | AN31: =N31 -> 22111 | AO31: =COUNTIF(L68:L83,AN31) -> 0 | AP31: =AO31/(AQ4-AO25) -> 0 | AQ31: =IF(AP31=0,0,(AP31*((LOG(AP31))/LOG(2)))) -> 0 | AS31: =N31 -> 22111 | AT31: =COUNTIF(L84:L98,AS31) -> 0 | AU31: =AT31/(AV4-AT25) -> 0 | AV31: =IF(AU31=0,0,(AU31*((LOG(AU31))/LOG(2)))) -> 0
A32: 21 | B32: 4663 | C32: 22 | D32: 4689 | E32: 13 | F32: 4703 | G32: 23 | H32: 4713 | I32: 24 | J32: 4724 | K32: 0 | L32: 22122 | N32: 22112 | O32: =COUNTIF($L$7:$L$500,N32) -> 0 | P32: =O32/$Q$4 -> 0 | Q32: =IF(P32=0,0,(P32*((LOG(P32))/LOG(2)))) -> 0 | T32: =N32 -> 22112 | U32: =COUNTIF(L7:L21,T32) -> 0 | V32: =U32/(W4-U25) -> 0 | W32: =IF(V32=0,0,(V32*((LOG(V32))/LOG(2)))) -> 0 | Y32: =N32 -> 22112 | Z32: =COUNTIF(L22:L37,Y32) -> 0 | AA32: =Z32/(AB4-Z25) -> 0 | AB32: =IF(AA32=0,0,(AA32*((LOG(AA32))/LOG(2)))) -> 0 | AD32: =N32 -> 22112 | AE32: =COUNTIF(L38:L52,AD32) -> 0 | AF32: =AE32/(AG4-AE25) -> 0 | AG32: =IF(AF32=0,0,(AF32*((LOG(AF32))/LOG(2)))) -> 0 | AI32: =N32 -> 22112 | AJ32: =COUNTIF(L53:L67,AI32) -> 0 | AK32: =AJ32/(AL4-AJ25) -> 0 | AL32: =IF(AK32=0,0,(AK32*((LOG(AK32))/LOG(2)))) -> 0 | AN32: =N32 -> 22112 | AO32: =COUNTIF(L68:L83,AN32) -> 0 | AP32: =AO32/(AQ4-AO25) -> 0 | AQ32: =IF(AP32=0,0,(AP32*((LOG(AP32))/LOG(2)))) -> 0 | AS32: =N32 -> 22112 | AT32: =COUNTIF(L84:L98,AS32) -> 0 | AU32: =AT32/(AV4-AT25) -> 0 | AV32: =IF(AU32=0,0,(AU32*((LOG(AU32))/LOG(2)))) -> 0
A33: 21 | B33: 4865 | C33: 22 | D33: 4884 | E33: 13 | F33: 4897 | G33: 23 | H33: 4907 | I33: 13 | J33: 4921 | K33: 0 | L33: 22121 | N33: 22121 | O33: =COUNTIF($L$7:$L$500,N33) -> 1 | P33: =O33/$Q$4 -> 0.01086956522 | Q33: =IF(P33=0,0,(P33*((LOG(P33))/LOG(2)))) -> -0.07090828213 | T33: =N33 -> 22121 | U33: =COUNTIF(L7:L21,T33) -> 0 | V33: =U33/(W4-U25) -> 0 | W33: =IF(V33=0,0,(V33*((LOG(V33))/LOG(2)))) -> 0 | Y33: =N33 -> 22121 | Z33: =COUNTIF(L22:L37,Y33) -> 1 | AA33: =Z33/(AB4-Z25) -> 0.0625 | AB33: =IF(AA33=0,0,(AA33*((LOG(AA33))/LOG(2)))) -> -0.25 | AD33: =N33 -> 22121 | AE33: =COUNTIF(L38:L52,AD33) -> 0 | AF33: =AE33/(AG4-AE25) -> 0 | AG33: =IF(AF33=0,0,(AF33*((LOG(AF33))/LOG(2)))) -> 0 | AI33: =N33 -> 22121 | AJ33: =COUNTIF(L53:L67,AI33) -> 0 | AK33: =AJ33/(AL4-AJ25) -> 0 | AL33: =IF(AK33=0,0,(AK33*((LOG(AK33))/LOG(2)))) -> 0 | AN33: =N33 -> 22121 | AO33: =COUNTIF(L68:L83,AN33) -> 0 | AP33: =AO33/(AQ4-AO25) -> 0 | AQ33: =IF(AP33=0,0,(AP33*((LOG(AP33))/LOG(2)))) -> 0 | AS33: =N33 -> 22121 | AT33: =COUNTIF(L84:L98,AS33) -> 0 | AU33: =AT33/(AV4-AT25) -> 0 | AV33: =IF(AU33=0,0,(AU33*((LOG(AU33))/LOG(2)))) -> 0
A34: 12 | B34: 5044 | C34: 24 | D34: 5075 | E34: 13 | F34: 5094 | G34: 23 | H34: 5116 | I34: 24 | J34: 5133 | K34: 0 | L34: 12122 | N34: 22122 | O34: =COUNTIF($L$7:$L$500,N34) -> 4 | P34: =O34/$Q$4 -> 0.04347826087 | Q34: =IF(P34=0,0,(P34*((LOG(P34))/LOG(2)))) -> -0.1966766068 | T34: =N34 -> 22122 | U34: =COUNTIF(L7:L21,T34) -> 1 | V34: =U34/(W4-U25) -> 0.06666666667 | W34: =IF(V34=0,0,(V34*((LOG(V34))/LOG(2)))) -> -0.260459373 | Y34: =N34 -> 22122 | Z34: =COUNTIF(L22:L37,Y34) -> 1 | AA34: =Z34/(AB4-Z25) -> 0.0625 | AB34: =IF(AA34=0,0,(AA34*((LOG(AA34))/LOG(2)))) -> -0.25 | AD34: =N34 -> 22122 | AE34: =COUNTIF(L38:L52,AD34) -> 1 | AF34: =AE34/(AG4-AE25) -> 0.06666666667 | AG34: =IF(AF34=0,0,(AF34*((LOG(AF34))/LOG(2)))) -> -0.260459373 | AI34: =N34 -> 22122 | AJ34: =COUNTIF(L53:L67,AI34) -> 1 | AK34: =AJ34/(AL4-AJ25) -> 0.06666666667 | AL34: =IF(AK34=0,0,(AK34*((LOG(AK34))/LOG(2)))) -> -0.260459373 | AN34: =N34 -> 22122 | AO34: =COUNTIF(L68:L83,AN34) -> 0 | AP34: =AO34/(AQ4-AO25) -> 0 | AQ34: =IF(AP34=0,0,(AP34*((LOG(AP34))/LOG(2)))) -> 0 | AS34: =N34 -> 22122 | AT34: =COUNTIF(L84:L98,AS34) -> 0 | AU34: =AT34/(AV4-AT25) -> 0 | AV34: =IF(AU34=0,0,(AU34*((LOG(AU34))/LOG(2)))) -> 0
A35: 21 | B35: 5283 | C35: 22 | D35: 5304 | E35: 24 | F35: 5324 | G35: 23 | H35: 5341 | I35: 24 | J35: 5351 | K35: 0 | L35: 22222 | N35: 22211 | O35: =COUNTIF($L$7:$L$500,N35) -> 2 | P35: =O35/$Q$4 -> 0.02173913043 | Q35: =IF(P35=0,0,(P35*((LOG(P35))/LOG(2)))) -> -0.1200774338 | T35: =N35 -> 22211 | U35: =COUNTIF(L7:L21,T35) -> 0 | V35: =U35/(W4-U25) -> 0 | W35: =IF(V35=0,0,(V35*((LOG(V35))/LOG(2)))) -> 0 | Y35: =N35 -> 22211 | Z35: =COUNTIF(L22:L37,Y35) -> 0 | AA35: =Z35/(AB4-Z25) -> 0 | AB35: =IF(AA35=0,0,(AA35*((LOG(AA35))/LOG(2)))) -> 0 | AD35: =N35 -> 22211 | AE35: =COUNTIF(L38:L52,AD35) -> 1 | AF35: =AE35/(AG4-AE25) -> 0.06666666667 | AG35: =IF(AF35=0,0,(AF35*((LOG(AF35))/LOG(2)))) -> -0.260459373 | AI35: =N35 -> 22211 | AJ35: =COUNTIF(L53:L67,AI35) -> 0 | AK35: =AJ35/(AL4-AJ25) -> 0 | AL35: =IF(AK35=0,0,(AK35*((LOG(AK35))/LOG(2)))) -> 0 | AN35: =N35 -> 22211 | AO35: =COUNTIF(L68:L83,AN35) -> 0 | AP35: =AO35/(AQ4-AO25) -> 0 | AQ35: =IF(AP35=0,0,(AP35*((LOG(AP35))/LOG(2)))) -> 0 | AS35: =N35 -> 22211 | AT35: =COUNTIF(L84:L98,AS35) -> 1 | AU35: =AT35/(AV4-AT25) -> 0.06666666667 | AV35: =IF(AU35=0,0,(AU35*((LOG(AU35))/LOG(2)))) -> -0.260459373
A36: 21 | B36: 5502 | C36: 11 | D36: 5518 | E36: 22 | F36: 5527 | G36: 14 | H36: 5537 | I36: 24 | J36: 5547 | K36: 0 | L36: 21212 | N36: 22212 | O36: =COUNTIF($L$7:$L$500,N36) -> 4 | P36: =O36/$Q$4 -> 0.04347826087 | Q36: =IF(P36=0,0,(P36*((LOG(P36))/LOG(2)))) -> -0.1966766068 | T36: =N36 -> 22212 | U36: =COUNTIF(L7:L21,T36) -> 0 | V36: =U36/(W4-U25) -> 0 | W36: =IF(V36=0,0,(V36*((LOG(V36))/LOG(2)))) -> 0 | Y36: =N36 -> 22212 | Z36: =COUNTIF(L22:L37,Y36) -> 1 | AA36: =Z36/(AB4-Z25) -> 0.0625 | AB36: =IF(AA36=0,0,(AA36*((LOG(AA36))/LOG(2)))) -> -0.25 | AD36: =N36 -> 22212 | AE36: =COUNTIF(L38:L52,AD36) -> 0 | AF36: =AE36/(AG4-AE25) -> 0 | AG36: =IF(AF36=0,0,(AF36*((LOG(AF36))/LOG(2)))) -> 0 | AI36: =N36 -> 22212 | AJ36: =COUNTIF(L53:L67,AI36) -> 0 | AK36: =AJ36/(AL4-AJ25) -> 0 | AL36: =IF(AK36=0,0,(AK36*((LOG(AK36))/LOG(2)))) -> 0 | AN36: =N36 -> 22212 | AO36: =COUNTIF(L68:L83,AN36) -> 2 | AP36: =AO36/(AQ4-AO25) -> 0.125 | AQ36: =IF(AP36=0,0,(AP36*((LOG(AP36))/LOG(2)))) -> -0.375 | AS36: =N36 -> 22212 | AT36: =COUNTIF(L84:L98,AS36) -> 1 | AU36: =AT36/(AV4-AT25) -> 0.06666666667 | AV36: =IF(AU36=0,0,(AU36*((LOG(AU36))/LOG(2)))) -> -0.260459373
A37: 21 | B37: 5744 | C37: 22 | D37: 5784 | E37: 24 | F37: 5793 | G37: 14 | H37: 5809 | I37: 24 | J37: 5827 | K37: 0 | L37: 22212 | N37: 22221 | O37: =COUNTIF($L$7:$L$500,N37) -> 1 | P37: =O37/$Q$4 -> 0.01086956522 | Q37: =IF(P37=0,0,(P37*((LOG(P37))/LOG(2)))) -> -0.07090828213 | T37: =N37 -> 22221 | U37: =COUNTIF(L7:L21,T37) -> 0 | V37: =U37/(W4-U25) -> 0 | W37: =IF(V37=0,0,(V37*((LOG(V37))/LOG(2)))) -> 0 | Y37: =N37 -> 22221 | Z37: =COUNTIF(L22:L37,Y37) -> 0 | AA37: =Z37/(AB4-Z25) -> 0 | AB37: =IF(AA37=0,0,(AA37*((LOG(AA37))/LOG(2)))) -> 0 | AD37: =N37 -> 22221 | AE37: =COUNTIF(L38:L52,AD37) -> 0 | AF37: =AE37/(AG4-AE25) -> 0 | AG37: =IF(AF37=0,0,(AF37*((LOG(AF37))/LOG(2)))) -> 0 | AI37: =N37 -> 22221 | AJ37: =COUNTIF(L53:L67,AI37) -> 1 | AK37: =AJ37/(AL4-AJ25) -> 0.06666666667 | AL37: =IF(AK37=0,0,(AK37*((LOG(AK37))/LOG(2)))) -> -0.260459373 | AN37: =N37 -> 22221 | AO37: =COUNTIF(L68:L83,AN37) -> 0 | AP37: =AO37/(AQ4-AO25) -> 0 | AQ37: =IF(AP37=0,0,(AP37*((LOG(AP37))/LOG(2)))) -> 0 | AS37: =N37 -> 22221 | AT37: =COUNTIF(L84:L98,AS37) -> 0 | AU37: =AT37/(AV4-AT25) -> 0 | AV37: =IF(AU37=0,0,(AU37*((LOG(AU37))/LOG(2)))) -> 0
A38: 21 | B38: 5989 | C38: 22 | D38: 6010 | E38: 24 | F38: 6017 | G38: 23 | H38: 6024 | I38: 24 | J38: 6041 | K38: 0 | L38: 22222 | N38: 22222 | O38: =COUNTIF($L$7:$L$500,N38) -> 9 | P38: =O38/$Q$4 -> 0.09782608696 | Q38: =IF(P38=0,0,(P38*((LOG(P38))/LOG(2)))) -> -0.3280731803 | T38: =N38 -> 22222 | U38: =COUNTIF(L7:L21,T38) -> 0 | V38: =U38/(W4-U25) -> 0 | W38: =IF(V38=0,0,(V38*((LOG(V38))/LOG(2)))) -> 0 | Y38: =N38 -> 22222 | Z38: =COUNTIF(L22:L37,Y38) -> 1 | AA38: =Z38/(AB4-Z25) -> 0.0625 | AB38: =IF(AA38=0,0,(AA38*((LOG(AA38))/LOG(2)))) -> -0.25 | AD38: =N38 -> 22222 | AE38: =COUNTIF(L38:L52,AD38) -> 5 | AF38: =AE38/(AG4-AE25) -> 0.3333333333 | AG38: =IF(AF38=0,0,(AF38*((LOG(AF38))/LOG(2)))) -> -0.5283208336 | AI38: =N38 -> 22222 | AJ38: =COUNTIF(L53:L67,AI38) -> 2 | AK38: =AJ38/(AL4-AJ25) -> 0.1333333333 | AL38: =IF(AK38=0,0,(AK38*((LOG(AK38))/LOG(2)))) -> -0.3875854127 | AN38: =N38 -> 22222 | AO38: =COUNTIF(L68:L83,AN38) -> 0 | AP38: =AO38/(AQ4-AO25) -> 0 | AQ38: =IF(AP38=0,0,(AP38*((LOG(AP38))/LOG(2)))) -> 0 | AS38: =N38 -> 22222 | AT38: =COUNTIF(L84:L98,AS38) -> 1 | AU38: =AT38/(AV4-AT25) -> 0.06666666667 | AV38: =IF(AU38=0,0,(AU38*((LOG(AU38))/LOG(2)))) -> -0.260459373
A39: 21 | B39: 6205 | C39: 22 | D39: 6223 | E39: 24 | F39: 6263 | G39: 23 | H39: 6285 | I39: 24 | J39: 6292 | K39: 0 | L39: 22222 | P39: =SUM(P7:P38) -> 1 | Q39: =-SUM(Q7:Q38) -> 3.960934681 | V39: =SUM(V7:V38) -> 1 | W39: =-SUM(W7:W38) -> 3.106890596 | AA39: =SUM(AA7:AA38) -> 1 | AB39: =-SUM(AB7:AB38) -> 3.155639062 | AF39: =SUM(AF7:AF38) -> 1 | AG39: =-SUM(AG7:AG38) -> 2.999581231 | AK39: =SUM(AK7:AK38) -> 1 | AL39: =-SUM(AL7:AL38) -> 3.189898095 | AP39: =SUM(AP7:AP38) -> 1 | AQ39: =-SUM(AQ7:AQ38) -> 2.483458593 | AU39: =SUM(AU7:AU38) -> 1 | AV39: =-SUM(AV7:AV38) -> 3.773557262
A40: 21 | B40: 6431 | C40: 22 | D40: 6462 | E40: 13 | F40: 6488 | G40: 23 | H40: 6498 | I40: 24 | J40: 6505 | K40: 0 | L40: 22122 | P40: U= | Q40: =Q39/(LOG(Q4)/LOG(2)) -> 0.6071736127 | V40: U1= | W40: =W39/(LOG(W4)/LOG(2)) -> 0.7952335802 | AA40: U2= | AB40: =AB39/(LOG(AB4)/LOG(2)) -> 0.7889097656 | AF40: U3= | AG40: =AG39/(LOG(AG4)/LOG(2)) -> 0.7677668871 | AK40: U4= | AL40: =AL39/(LOG(AL4)/LOG(2)) -> 0.8164800159 | AP40: U5= | AQ40: =AQ39/(LOG(AQ4)/LOG(2)) -> 0.6208646483 | AU40: U6= | AV40: =AV39/(LOG(AV4)/LOG(2)) -> 0.9658722634
A41: 12 | B41: 6625 | C41: 24 | D41: 6634 | E41: 24 | F41: 6644 | G41: 23 | H41: 6651 | I41: 13 | J41: 6665 | K41: 0 | L41: 12221
A42: 12 | B42: 6770 | C42: 13 | D42: 6790 | E42: 24 | F42: 6809 | G42: 14 | H42: 6819 | I42: 24 | J42: 6831 | K42: 0 | L42: 11212
A43: 12 | B43: 6950 | C43: 24 | D43: 6976 | E43: 13 | F43: 7000 | G43: 23 | H43: 7011 | I43: 13 | J43: 7025 | K43: 0 | L43: 12121 | N43: Total Target Seq
A44: 12 | B44: 7161 | C44: 24 | D44: 7176 | E44: 13 | F44: 7190 | G44: 23 | H44: 7200 | I44: 24 | J44: 7221 | K44: 0 | L44: 12122 | N44: =COUNTIF(L7:L98,G3) -> 0 | P44: 15 | Q44: 16 | R44: 15 | S44: 15 | T44: 16 | U44: 15
A45: 21 | B45: 7374 | C45: 11 | D45: 7384 | E45: 22 | F45: 7395 | G45: 23 | H45: 7404 | I45: 13 | J45: 7421 | K45: 0 | L45: 21221 | P45: % of reinforcement given in 6 equal intervals based on number of trials
A46: 21 | B46: 7524 | C46: 22 | D46: 7624 | E46: 24 | F46: 7647 | G46: 14 | H46: 7672 | I46: 13 | J46: 7705 | K46: 0 | L46: 22211 | P46: %_1 | Q46: %_2 | R46: %_3 | S46: %_4 | T46: %_5 | U46: %_6
A47: 21 | B47: 8119 | C47: 22 | D47: 8190 | E47: 24 | F47: 8202 | G47: 23 | H47: 8214 | I47: 24 | J47: 8246 | K47: 0 | L47: 22222 | O47: target sequence | P47: =$G$3 -> 21121 | Q47: =$G$3 -> 21121 | R47: =$G$3 -> 21121 | S47: =$G$3 -> 21121 | T47: =$G$3 -> 21121 | U47: =$G$3 -> 21121
A48: 21 | B48: 8537 | C48: 22 | D48: 8565 | E48: 24 | F48: 8578 | G48: 23 | H48: 8589 | I48: 24 | J48: 8620 | K48: 0 | L48: 22222 | O48: total reinforcement | P48: =U25 -> 0 | Q48: =Z25 -> 0 | R48: =AE25 -> 0 | S48: =AJ25 -> 0 | T48: =AO25 -> 0 | U48: =AT25 -> 0
A49: 21 | B49: 8763 | C49: 22 | D49: 8782 | E49: 24 | F49: 8791 | G49: 23 | H49: 8818 | I49: 24 | J49: 8834 | K49: 0 | L49: 22222 | O49: % target
A50: 12 | B50: 8959 | C50: 13 | D50: 8973 | E50: 24 | F50: 8996 | G50: 23 | H50: 9011 | I50: 24 | J50: 9030 | K50: 0 | L50: 11222 | O50: CCRF
A51: 12 | B51: 9308 | C51: 24 | D51: 9321 | E51: 24 | F51: 9342 | G51: 23 | H51: 9360 | I51: 24 | J51: 9373 | K51: 0 | L51: 12222 | O51: % CCRf
A52: 12 | B52: 9498 | C52: 24 | D52: 9514 | E52: 24 | F52: 9533 | G52: 23 | H52: 9561 | I52: 13 | J52: 9581 | K52: 0 | L52: 12221 | O52: average response rate | P52: =J21/P44 -> 180.3333333 | Q52: =(J37-J21)/Q44 -> 195.125 | R52: =(J52-J37)/R44 -> 250.2666667 | S52: =(J67-J52)/S44 -> 217.4 | T52: =(J83-J67)/T44 -> 234.125 | U52: =(J98-J83)/U44 -> 388.2
A53: 21 | B53: 9745 | C53: 22 | D53: 9766 | E53: 24 | F53: 9777 | G53: 23 | H53: 9803 | I53: 24 | J53: 9815 | K53: 0 | L53: 22222
A54: 21 | B54: 9964 | C54: 22 | D54: 9974 | E54: 24 | F54: 9985 | G54: 23 | H54: 10012 | I54: 13 | J54: 10028 | K54: 0 | L54: 22221
A55: 12 | B55: 10145 | C55: 13 | D55: 10174 | E55: 24 | F55: 10184 | G55: 14 | H55: 10198 | I55: 24 | J55: 10216 | K55: 0 | L55: 11212
A56: 12 | B56: 10361 | C56: 24 | D56: 10373 | E56: 24 | F56: 10397 | G56: 23 | H56: 10407 | I56: 24 | J56: 10421 | K56: 0 | L56: 12222
A57: 12 | B57: 10567 | C57: 24 | D57: 10581 | E57: 24 | F57: 10607 | G57: 14 | H57: 10624 | I57: 24 | J57: 10634 | K57: 0 | L57: 12212
A58: 12 | B58: 10747 | C58: 13 | D58: 10780 | E58: 24 | F58: 10793 | G58: 23 | H58: 10813 | I58: 24 | J58: 10837 | K58: 0 | L58: 11222
A59: 21 | B59: 10999 | C59: 22 | D59: 11026 | E59: 24 | F59: 11048 | G59: 23 | H59: 11058 | I59: 24 | J59: 11081 | K59: 0 | L59: 22222
A60: 21 | B60: 11223 | C60: 22 | D60: 11256 | E60: 13 | F60: 11269 | G60: 23 | H60: 11280 | I60: 24 | J60: 11291 | K60: 0 | L60: 22122
A61: 12 | B61: 11426 | C61: 24 | D61: 11440 | E61: 13 | F61: 11454 | G61: 23 | H61: 11464 | I61: 24 | J61: 11476 | K61: 0 | L61: 12122
A62: 12 | B62: 11595 | C62: 13 | D62: 11628 | E62: 24 | F62: 11640 | G62: 23 | H62: 11663 | I62: 24 | J62: 11690 | K62: 0 | L62: 11222
A63: 12 | B63: 11895 | C63: 24 | D63: 11983 | E63: 13 | F63: 11993 | G63: 23 | H63: 12003 | I63: 13 | J63: 12018 | K63: 0 | L63: 12121
A64: 12 | B64: 12154 | C64: 13 | D64: 12168 | E64: 13 | F64: 12182 | G64: 23 | H64: 12192 | I64: 13 | J64: 12207 | K64: 0 | L64: 11121
A65: 12 | B65: 12321 | C65: 13 | D65: 12363 | E65: 24 | F65: 12373 | G65: 23 | H65: 12400 | I65: 24 | J65: 12424 | K65: 0 | L65: 11222
A66: 12 | B66: 12571 | C66: 24 | D66: 12583 | E66: 24 | F66: 12608 | G66: 14 | H66: 12621 | I66: 24 | J66: 12639 | K66: 0 | L66: 12212
A67: 12 | B67: 12779 | C67: 13 | D67: 12796 | E67: 24 | F67: 12805 | G67: 14 | H67: 12832 | I67: 24 | J67: 12842 | K67: 0 | L67: 11212
A68: 12 | B68: 12969 | C68: 13 | D68: 12983 | E68: 13 | F68: 13000 | G68: 23 | H68: 13010 | I68: 24 | J68: 13023 | K68: 0 | L68: 11122
A69: 12 | B69: 13159 | C69: 13 | D69: 13175 | E69: 13 | F69: 13198 | G69: 23 | H69: 13217 | I69: 24 | J69: 13227 | K69: 0 | L69: 11122
A70: 12 | B70: 13345 | C70: 13 | D70: 13356 | E70: 13 | F70: 13373 | G70: 23 | H70: 13382 | I70: 24 | J70: 13397 | K70: 0 | L70: 11122
A71: 12 | B71: 13517 | C71: 13 | D71: 13530 | E71: 13 | F71: 13556 | G71: 23 | H71: 13566 | I71: 13 | J71: 13576 | K71: 0 | L71: 11121
A72: 12 | B72: 13776 | C72: 13 | D72: 13816 | E72: 24 | F72: 13825 | G72: 23 | H72: 13863 | I72: 24 | J72: 13887 | K72: 0 | L72: 11222
A73: 12 | B73: 14064 | C73: 24 | D73: 14073 | E73: 13 | F73: 14086 | G73: 23 | H73: 14095 | I73: 24 | J73: 14123 | K73: 0 | L73: 12122
A74: 12 | B74: 14382 | C74: 13 | D74: 14401 | E74: 24 | F74: 14414 | G74: 14 | H74: 14432 | I74: 24 | J74: 14441 | K74: 0 | L74: 11212
A75: 12 | B75: 14639 | C75: 13 | D75: 14657 | E75: 24 | F75: 14686 | G75: 23 | H75: 14707 | I75: 24 | J75: 14730 | K75: 0 | L75: 11222
A76: 12 | B76: 14856 | C76: 13 | D76: 14868 | E76: 24 | F76: 14896 | G76: 14 | H76: 14907 | I76: 24 | J76: 14917 | K76: 0 | L76: 11212
A77: 12 | B77: 15034 | C77: 13 | D77: 15062 | E77: 24 | F77: 15090 | G77: 23 | H77: 15113 | I77: 24 | J77: 15153 | K77: 0 | L77: 11222
A78: 12 | B78: 15332 | C78: 13 | D78: 15358 | E78: 24 | F78: 15371 | G78: 23 | H78: 15399 | I78: 24 | J78: 15419 | K78: 0 | L78: 11222
A79: 12 | B79: 15583 | C79: 24 | D79: 15616 | E79: 24 | F79: 15636 | G79: 23 | H79: 15656 | I79: 24 | J79: 15679 | K79: 0 | L79: 12222
A80: 21 | B80: 15848 | C80: 22 | D80: 15868 | E80: 24 | F80: 15890 | G80: 14 | H80: 15908 | I80: 24 | J80: 15918 | K80: 0 | L80: 22212
A81: 12 | B81: 16046 | C81: 13 | D81: 16091 | E81: 24 | F81: 16101 | G81: 23 | H81: 16139 | I81: 24 | J81: 16177 | K81: 0 | L81: 11222
A82: 21 | B82: 16293 | C82: 22 | D82: 16353 | E82: 24 | F82: 16365 | G82: 14 | H82: 16380 | I82: 24 | J82: 16392 | K82: 0 | L82: 22212
A83: 12 | B83: 16511 | C83: 13 | D83: 16527 | E83: 24 | F83: 16558 | G83: 23 | H83: 16578 | I83: 24 | J83: 16588 | K83: 0 | L83: 11222
A84: 21 | B84: 16742 | C84: 22 | D84: 16781 | E84: 24 | F84: 16806 | G84: 23 | H84: 16830 | I84: 24 | J84: 16861 | K84: 0 | L84: 22222
A85: 12 | B85: 16998 | C85: 13 | D85: 17017 | E85: 13 | F85: 17034 | G85: 14 | H85: 17047 | I85: 24 | J85: 17088 | K85: 0 | L85: 11112
A86: 12 | B86: 17467 | C86: 13 | D86: 17476 | E86: 13 | F86: 17601 | G86: 23 | H86: 17619 | I86: 13 | J86: 17628 | K86: 0 | L86: 11121
A87: 12 | B87: 17979 | C87: 24 | D87: 18011 | E87: 24 | F87: 18031 | G87: 23 | H87: 18057 | I87: 13 | J87: 18070 | K87: 0 | L87: 12221
A88: 12 | B88: 18359 | C88: 13 | D88: 18384 | E88: 24 | F88: 18414 | G88: 23 | H88: 18434 | I88: 13 | J88: 18451 | K88: 0 | L88: 11221
A89: 12 | B89: 18755 | C89: 24 | D89: 18765 | E89: 24 | F89: 18785 | G89: 23 | H89: 18817 | I89: 24 | J89: 18840 | K89: 0 | L89: 12222
A90: 12 | B90: 19355 | C90: 24 | D90: 19366 | E90: 13 | F90: 19397 | G90: 23 | H90: 19409 | I90: 13 | J90: 19423 | K90: 0 | L90: 12121
A91: 21 | B91: 19549 | C91: 22 | D91: 19571 | E91: 24 | F91: 19584 | G91: 14 | H91: 19594 | I91: 24 | J91: 19603 | K91: 0 | L91: 22212
A92: 12 | B92: 19746 | C92: 24 | D92: 19853 | E92: 24 | F92: 19920 | G92: 14 | H92: 19931 | I92: 24 | J92: 19941 | K92: 0 | L92: 12212
A93: 12 | B93: 20380 | C93: 13 | D93: 20404 | E93: 24 | F93: 20419 | G93: 23 | H93: 20442 | I93: 24 | J93: 20466 | K93: 0 | L93: 11222
A94: 12 | B94: 20601 | C94: 24 | D94: 20635 | E94: 13 | F94: 20650 | G94: 23 | H94: 20660 | I94: 24 | J94: 20672 | K94: 0 | L94: 12122
A95: 12 | B95: 21152 | C95: 13 | D95: 21206 | E95: 24 | F95: 21217 | G95: 14 | H95: 21240 | I95: 24 | J95: 21250 | K95: 0 | L95: 11212
A96: 12 | B96: 21494 | C96: 13 | D96: 21520 | E96: 13 | F96: 21538 | G96: 14 | H96: 21554 | I96: 24 | J96: 21567 | K96: 0 | L96: 11112
A97: 21 | B97: 21812 | C97: 22 | D97: 21834 | E97: 24 | F97: 21858 | G97: 14 | H97: 21879 | I97: 13 | J97: 21895 | K97: 0 | L97: 22211
A98: 21 | B98: 22300 | C98: 11 | D98: 22320 | E98: 22 | F98: 22330 | G98: 23 | H98: 22387 | I98: 24 | J98: 22411 | K98: 0 | L98: 21222

Sheet !N102A20.105
A1: Report for:!N102A20.105
A2: Date: | B2: <date>
A3: Hen: | B3: <hen> | F3: Correct Sequence | G3: =Start!J2 -> 21121 | P3: Total Sequences in Data | Q3: =4994-COUNTBLANK(L7:L5000) -> 58 | V3: Total Sequences in Block Data | W3: =COUNTA(L7:L16) -> 10 | AA3: Total Sequences in Block Data | AB3: =COUNTA(L17:L25) -> 9 | AF3: Total Sequences in Block Data | AG3: =COUNTA(L26:L35) -> 10 | AK3: Total Sequences in Block Data | AL3: =COUNTA(L36:L45) -> 10 | AP3: Total Sequences in Block Data | AQ3: =COUNTA(L46:L54) -> 9 | AU3: Total Sequences in Block Data | AV3: =COUNTA(L55:L64) -> 10
P4: Total Sequences in Summary | Q4: =SUM(O7:O38) -> 57 | V4: Total Sequences in Block Summary | W4: =SUM(U7:U38) -> 10 | AA4: Total Sequences in Block Summary | AB4: =SUM(Z7:Z38) -> 9 | AF4: Total Sequences in Block Summary | AG4: =SUM(AE7:AE38) -> 10 | AK4: Total Sequences in Block Summary | AL4: =SUM(AJ7:AJ38) -> 10 | AP4: Total Sequences in Block Summary | AQ4: =SUM(AO7:AO38) -> 9 | AU4: Total Sequences in Block Summary | AV4: =SUM(AT7:AT38) -> 9
T5: Block 1 | Y5: Block 2 | AD5: Block 3 | AI5: Block 4 | AN5: Block 5 | AS5: Block 6
A6: Sequence Component 1 | B6: Time 1 | C6: Sequence Component 2 | D6: Time 2 | E6: Sequence Component 3 | F6: Time 3 | G6: Sequence Component 4 | H6: Time 4 | I6: Sequence Component 5 | J6: Time 5 | K6: Correct? 0=No 1=Yes | L6: Sequence | N6: Frequency | P6: Relative Frequency | Q6: Variability | T6: Frequency | V6: Relative Frequency | W6: Variability | Y6: Frequency | AA6: Relative Frequency | AB6: Variability | AD6: Frequency | AF6: Relative Frequency | AG6: Variability | AI6: Frequency | AK6: Relative Frequency | AL6: Variability | AN6: Frequency | AP6: Relative Frequency | AQ6: Variability | AS6: Frequency | AU6: Relative Frequency | AV6: Variability
A7: 12 | B7: 14 | C7: 24 | D7: 31 | E7: 24 | F7: 46 | G7: 23 | H7: 64 | I7: 24 | J7: 72 | K7: 0 | L7: 12222 | N7: 11111 | O7: =COUNTIF($L$7:$L$500,N7) -> 4 | P7: =O7/$Q$4 -> 0.0701754386 | Q7: =IF(P7=0,0,(P7*((LOG(P7))/LOG(2)))) -> -0.2689747378 | T7: =N7 -> 11111 | U7: =COUNTIF(L7:L16,T7) -> 1 | V7: =U7/(W4-U25) -> 0.1 | W7: =IF(V7=0,0,(V7*((LOG(V7))/LOG(2)))) -> -0.3321928095 | Y7: =N7 -> 11111 | Z7: =COUNTIF(L17:L25,Y7) -> 0 | AA7: =Z7/(AB4-Z25) -> 0 | AB7: =IF(AA7=0,0,(AA7*((LOG(AA7))/LOG(2)))) -> 0 | AD7: =N7 -> 11111 | AE7: =COUNTIF(L26:L35,AD7) -> 1 | AF7: =AE7/(AG4-AE25) -> 0.1 | AG7: =IF(AF7=0,0,(AF7*((LOG(AF7))/LOG(2)))) -> -0.3321928095 | AI7: =N7 -> 11111 | AJ7: =COUNTIF(L36:L45,AI7) -> 0 | AK7: =AJ7/(AL4-AJ25) -> 0 | AL7: =IF(AK7=0,0,(AK7*((LOG(AK7))/LOG(2)))) -> 0 | AN7: =N7 -> 11111 | AO7: =COUNTIF(L46:L54,AN7) -> 0 | AP7: =AO7/(AQ4-AO25) -> 0 | AQ7: =IF(AP7=0,0,(AP7*((LOG(AP7))/LOG(2)))) -> 0 | AS7: =N7 -> 11111 | AT7: =COUNTIF(L55:L64,AS7) -> 2 | AU7: =AT7/(AV4-AT25) -> 0.2222222222 | AV7: =IF(AU7=0,0,(AU7*((LOG(AU7))/LOG(2)))) -> -0.4822055559
A8: 21 | B8: 194 | C8: 22 | D8: 207 | E8: 24 | F8: 235 | G8: 23 | H8: 244 | I8: 24 | J8: 268 | K8: 0 | L8: 22222 | N8: 11112 | O8: =COUNTIF($L$7:$L$500,N8) -> 0 | P8: =O8/$Q$4 -> 0 | Q8: =IF(P8=0,0,(P8*((LOG(P8))/LOG(2)))) -> 0 | T8: =N8 -> 11112 | U8: =COUNTIF(L7:L16,T8) -> 0 | V8: =U8/(W4-U25) -> 0 | W8: =IF(V8=0,0,(V8*((LOG(V8))/LOG(2)))) -> 0 | Y8: =N8 -> 11112 | Z8: =COUNTIF(L17:L25,Y8) -> 0 | AA8: =Z8/(AB4-Z25) -> 0 | AB8: =IF(AA8=0,0,(AA8*((LOG(AA8))/LOG(2)))) -> 0 | AD8: =N8 -> 11112 | AE8: =COUNTIF(L26:L35,AD8) -> 0 | AF8: =AE8/(AG4-AE25) -> 0 | AG8: =IF(AF8=0,0,(AF8*((LOG(AF8))/LOG(2)))) -> 0 | AI8: =N8 -> 11112 | AJ8: =COUNTIF(L36:L45,AI8) -> 0 | AK8: =AJ8/(AL4-AJ25) -> 0 | AL8: =IF(AK8=0,0,(AK8*((LOG(AK8))/LOG(2)))) -> 0 | AN8: =N8 -> 11112 | AO8: =COUNTIF(L46:L54,AN8) -> 0 | AP8: =AO8/(AQ4-AO25) -> 0 | AQ8: =IF(AP8=0,0,(AP8*((LOG(AP8))/LOG(2)))) -> 0 | AS8: =N8 -> 11112 | AT8: =COUNTIF(L55:L64,AS8) -> 0 | AU8: =AT8/(AV4-AT25) -> 0 | AV8: =IF(AU8=0,0,(AU8*((LOG(AU8))/LOG(2)))) -> 0
A9: 12 | B9: 377 | C9: 24 | D9: 404 | E9: 13 | F9: 418 | G9: 23 | H9: 427 | I9: 13 | J9: 437 | K9: 0 | L9: 12121 | N9: 11121 | O9: =COUNTIF($L$7:$L$500,N9) -> 6 | P9: =O9/$Q$4 -> 0.1052631579 | Q9: =IF(P9=0,0,(P9*((LOG(P9))/LOG(2)))) -> -0.3418871067 | T9: =N9 -> 11121 | U9: =COUNTIF(L7:L16,T9) -> 2 | V9: =U9/(W4-U25) -> 0.2 | W9: =IF(V9=0,0,(V9*((LOG(V9))/LOG(2)))) -> -0.464385619 | Y9: =N9 -> 11121 | Z9: =COUNTIF(L17:L25,Y9) -> 1 | AA9: =Z9/(AB4-Z25) -> 0.1111111111 | AB9: =IF(AA9=0,0,(AA9*((LOG(AA9))/LOG(2)))) -> -0.352213889 | AD9: =N9 -> 11121 | AE9: =COUNTIF(L26:L35,AD9) -> 1 | AF9: =AE9/(AG4-AE25) -> 0.1 | AG9: =IF(AF9=0,0,(AF9*((LOG(AF9))/LOG(2)))) -> -0.3321928095 | AI9: =N9 -> 11121 | AJ9: =COUNTIF(L36:L45,AI9) -> 1 | AK9: =AJ9/(AL4-AJ25) -> 0.1 | AL9: =IF(AK9=0,0,(AK9*((LOG(AK9))/LOG(2)))) -> -0.3321928095 | AN9: =N9 -> 11121 | AO9: =COUNTIF(L46:L54,AN9) -> 1 | AP9: =AO9/(AQ4-AO25) -> 0.1111111111 | AQ9: =IF(AP9=0,0,(AP9*((LOG(AP9))/LOG(2)))) -> -0.352213889 | AS9: =N9 -> 11121 | AT9: =COUNTIF(L55:L64,AS9) -> 0 | AU9: =AT9/(AV4-AT25) -> 0 | AV9: =IF(AU9=0,0,(AU9*((LOG(AU9))/LOG(2)))) -> 0
A10: 12 | B10: 547 | C10: 13 | D10: 561 | E10: 24 | F10: 568 | G10: 14 | H10: 582 | I10: 24 | J10: 591 | K10: 0 | L10: 11212 | N10: 11122 | O10: =COUNTIF($L$7:$L$500,N10) -> 0 | P10: =O10/$Q$4 -> 0 | Q10: =IF(P10=0,0,(P10*((LOG(P10))/LOG(2)))) -> 0 | T10: =N10 -> 11122 | U10: =COUNTIF(L7:L16,T10) -> 0 | V10: =U10/(W4-U25) -> 0 | W10: =IF(V10=0,0,(V10*((LOG(V10))/LOG(2)))) -> 0 | Y10: =N10 -> 11122 | Z10: =COUNTIF(L17:L25,Y10) -> 0 | AA10: =Z10/(AB4-Z25) -> 0 | AB10: =IF(AA10=0,0,(AA10*((LOG(AA10))/LOG(2)))) -> 0 | AD10: =N10 -> 11122 | AE10: =COUNTIF(L26:L35,AD10) -> 0 | AF10: =AE10/(AG4-AE25) -> 0 | AG10: =IF(AF10=0,0,(AF10*((LOG(AF10))/LOG(2)))) -> 0 | AI10: =N10 -> 11122 | AJ10: =COUNTIF(L36:L45,AI10) -> 0 | AK10: =AJ10/(AL4-AJ25) -> 0 | AL10: =IF(AK10=0,0,(AK10*((LOG(AK10))/LOG(2)))) -> 0 | AN10: =N10 -> 11122 | AO10: =COUNTIF(L46:L54,AN10) -> 0 | AP10: =AO10/(AQ4-AO25) -> 0 | AQ10: =IF(AP10=0,0,(AP10*((LOG(AP10))/LOG(2)))) -> 0 | AS10: =N10 -> 11122 | AT10: =COUNTIF(L55:L64,AS10) -> 0 | AU10: =AT10/(AV4-AT25) -> 0 | AV10: =IF(AU10=0,0,(AU10*((LOG(AU10))/LOG(2)))) -> 0
A11: 12 | B11: 697 | C11: 13 | D11: 708 | E11: 13 | F11: 732 | G11: 23 | H11: 741 | I11: 13 | J11: 756 | K11: 0 | L11: 11121 | N11: 11211 | O11: =COUNTIF($L$7:$L$500,N11) -> 1 | P11: =O11/$Q$4 -> 0.01754385965 | Q11: =IF(P11=0,0,(P11*((LOG(P11))/LOG(2)))) -> -0.1023314038 | T11: =N11 -> 11211 | U11: =COUNTIF(L7:L16,T11) -> 0 | V11: =U11/(W4-U25) -> 0 | W11: =IF(V11=0,0,(V11*((LOG(V11))/LOG(2)))) -> 0 | Y11: =N11 -> 11211 | Z11: =COUNTIF(L17:L25,Y11) -> 0 | AA11: =Z11/(AB4-Z25) -> 0 | AB11: =IF(AA11=0,0,(AA11*((LOG(AA11))/LOG(2)))) -> 0 | AD11: =N11 -> 11211 | AE11: =COUNTIF(L26:L35,AD11) -> 1 | AF11: =AE11/(AG4-AE25) -> 0.1 | AG11: =IF(AF11=0,0,(AF11*((LOG(AF11))/LOG(2)))) -> -0.3321928095 | AI11: =N11 -> 11211 | AJ11: =COUNTIF(L36:L45,AI11) -> 0 | AK11: =AJ11/(AL4-AJ25) -> 0 | AL11: =IF(AK11=0,0,(AK11*((LOG(AK11))/LOG(2)))) -> 0 | AN11: =N11 -> 11211 | AO11: =COUNTIF(L46:L54,AN11) -> 0 | AP11: =AO11/(AQ4-AO25) -> 0 | AQ11: =IF(AP11=0,0,(AP11*((LOG(AP11))/LOG(2)))) -> 0 | AS11: =N11 -> 11211 | AT11: =COUNTIF(L55:L64,AS11) -> 0 | AU11: =AT11/(AV4-AT25) -> 0 | AV11: =IF(AU11=0,0,(AU11*((LOG(AU11))/LOG(2)))) -> 0
A12: 12 | B12: 874 | C12: 13 | D12: 892 | E12: 13 | F12: 903 | G12: 14 | H12: 930 | I12: 13 | J12: 945 | K12: 0 | L12: 11111 | N12: 11212 | O12: =COUNTIF($L$7:$L$500,N12) -> 8 | P12: =O12/$Q$4 -> 0.1403508772 | Q12: =IF(P12=0,0,(P12*((LOG(P12))/LOG(2)))) -> -0.3975985985 | T12: =N12 -> 11212 | U12: =COUNTIF(L7:L16,T12) -> 1 | V12: =U12/(W4-U25) -> 0.1 | W12: =IF(V12=0,0,(V12*((LOG(V12))/LOG(2)))) -> -0.3321928095 | Y12: =N12 -> 11212 | Z12: =COUNTIF(L17:L25,Y12) -> 3 | AA12: =Z12/(AB4-Z25) -> 0.3333333333 | AB12: =IF(AA12=0,0,(AA12*((LOG(AA12))/LOG(2)))) -> -0.5283208336 | AD12: =N12 -> 11212 | AE12: =COUNTIF(L26:L35,AD12) -> 0 | AF12: =AE12/(AG4-AE25) -> 0 | AG12: =IF(AF12=0,0,(AF12*((LOG(AF12))/LOG(2)))) -> 0 | AI12: =N12 -> 11212 | AJ12: =COUNTIF(L36:L45,AI12) -> 0 | AK12: =AJ12/(AL4-AJ25) -> 0 | AL12: =IF(AK12=0,0,(AK12*((LOG(AK12))/LOG(2)))) -> 0 | AN12: =N12 -> 11212 | AO12: =COUNTIF(L46:L54,AN12) -> 3 | AP12: =AO12/(AQ4-AO25) -> 0.3333333333 | AQ12: =IF(AP12=0,0,(AP12*((LOG(AP12))/LOG(2)))) -> -0.5283208336 | AS12: =N12 -> 11212 | AT12: =COUNTIF(L55:L64,AS12) -> 1 | AU12: =AT12/(AV4-AT25) -> 0.1111111111 | AV12: =IF(AU12=0,0,(AU12*((LOG(AU12))/LOG(2)))) -> -0.352213889
A13: 12 | B13: 1060 | C13: 13 | D13: 1074 | E13: 13 | F13: 1089 | G13: 23 | H13: 1099 | I13: 13 | J13: 1110 | K13: 0 | L13: 11121 | N13: 11221 | O13: =COUNTIF($L$7:$L$500,N13) -> 1 | P13: =O13/$Q$4 -> 0.01754385965 | Q13: =IF(P13=0,0,(P13*((LOG(P13))/LOG(2)))) -> -0.1023314038 | T13: =N13 -> 11221 | U13: =COUNTIF(L7:L16,T13) -> 0 | V13: =U13/(W4-U25) -> 0 | W13: =IF(V13=0,0,(V13*((LOG(V13))/LOG(2)))) -> 0 | Y13: =N13 -> 11221 | Z13: =COUNTIF(L17:L25,Y13) -> 0 | AA13: =Z13/(AB4-Z25) -> 0 | AB13: =IF(AA13=0,0,(AA13*((LOG(AA13))/LOG(2)))) -> 0 | AD13: =N13 -> 11221 | AE13: =COUNTIF(L26:L35,AD13) -> 1 | AF13: =AE13/(AG4-AE25) -> 0.1 | AG13: =IF(AF13=0,0,(AF13*((LOG(AF13))/LOG(2)))) -> -0.3321928095 | AI13: =N13 -> 11221 | AJ13: =COUNTIF(L36:L45,AI13) -> 0 | AK13: =AJ13/(AL4-AJ25) -> 0 | AL13: =IF(AK13=0,0,(AK13*((LOG(AK13))/LOG(2)))) -> 0 | AN13: =N13 -> 11221 | AO13: =COUNTIF(L46:L54,AN13) -> 0 | AP13: =AO13/(AQ4-AO25) -> 0 | AQ13: =IF(AP13=0,0,(AP13*((LOG(AP13))/LOG(2)))) -> 0 | AS13: =N13 -> 11221 | AT13: =COUNTIF(L55:L64,AS13) -> 0 | AU13: =AT13/(AV4-AT25) -> 0 | AV13: =IF(AU13=0,0,(AU13*((LOG(AU13))/LOG(2)))) -> 0
A14: 12 | B14: 1232 | C14: 24 | D14: 1243 | E14: 13 | F14: 1259 | G14: 23 | H14: 1271 | I14: 13 | J14: 1286 | K14: 0 | L14: 12121 | N14: 11222 | O14: =COUNTIF($L$7:$L$500,N14) -> 1 | P14: =O14/$Q$4 -> 0.01754385965 | Q14: =IF(P14=0,0,(P14*((LOG(P14))/LOG(2)))) -> -0.1023314038 | T14: =N14 -> 11222 | U14: =COUNTIF(L7:L16,T14) -> 0 | V14: =U14/(W4-U25) -> 0 | W14: =IF(V14=0,0,(V14*((LOG(V14))/LOG(2)))) -> 0 | Y14: =N14 -> 11222 | Z14: =COUNTIF(L17:L25,Y14) -> 1 | AA14: =Z14/(AB4-Z25) -> 0.1111111111 | AB14: =IF(AA14=0,0,(AA14*((LOG(AA14))/LOG(2)))) -> -0.352213889 | AD14: =N14 -> 11222 | AE14: =COUNTIF(L26:L35,AD14) -> 0 | AF14: =AE14/(AG4-AE25) -> 0 | AG14: =IF(AF14=0,0,(AF14*((LOG(AF14))/LOG(2)))) -> 0 | AI14: =N14 -> 11222 | AJ14: =COUNTIF(L36:L45,AI14) -> 0 | AK14: =AJ14/(AL4-AJ25) -> 0 | AL14: =IF(AK14=0,0,(AK14*((LOG(AK14))/LOG(2)))) -> 0 | AN14: =N14 -> 11222 | AO14: =COUNTIF(L46:L54,AN14) -> 0 | AP14: =AO14/(AQ4-AO25) -> 0 | AQ14: =IF(AP14=0,0,(AP14*((LOG(AP14))/LOG(2)))) -> 0 | AS14: =N14 -> 11222 | AT14: =COUNTIF(L55:L64,AS14) -> 0 | AU14: =AT14/(AV4-AT25) -> 0 | AV14: =IF(AU14=0,0,(AU14*((LOG(AU14))/LOG(2)))) -> 0
A15: 21 | B15: 1402 | C15: 11 | D15: 1435 | E15: 22 | F15: 1446 | G15: 14 | H15: 1461 | I15: 13 | J15: 1486 | K15: 0 | L15: 21211 | N15: 12111 | O15: =COUNTIF($L$7:$L$500,N15) -> 0 | P15: =O15/$Q$4 -> 0 | Q15: =IF(P15=0,0,(P15*((LOG(P15))/LOG(2)))) -> 0 | T15: =N15 -> 12111 | U15: =COUNTIF(L7:L16,T15) -> 0 | V15: =U15/(W4-U25) -> 0 | W15: =IF(V15=0,0,(V15*((LOG(V15))/LOG(2)))) -> 0 | Y15: =N15 -> 12111 | Z15: =COUNTIF(L17:L25,Y15) -> 0 | AA15: =Z15/(AB4-Z25) -> 0 | AB15: =IF(AA15=0,0,(AA15*((LOG(AA15))/LOG(2)))) -> 0 | AD15: =N15 -> 12111 | AE15: =COUNTIF(L26:L35,AD15) -> 0 | AF15: =AE15/(AG4-AE25) -> 0 | AG15: =IF(AF15=0,0,(AF15*((LOG(AF15))/LOG(2)))) -> 0 | AI15: =N15 -> 12111 | AJ15: =COUNTIF(L36:L45,AI15) -> 0 | AK15: =AJ15/(AL4-AJ25) -> 0 | AL15: =IF(AK15=0,0,(AK15*((LOG(AK15))/LOG(2)))) -> 0 | AN15: =N15 -> 12111 | AO15: =COUNTIF(L46:L54,AN15) -> 0 | AP15: =AO15/(AQ4-AO25) -> 0 | AQ15: =IF(AP15=0,0,(AP15*((LOG(AP15))/LOG(2)))) -> 0 | AS15: =N15 -> 12111 | AT15: =COUNTIF(L55:L64,AS15) -> 0 | AU15: =AT15/(AV4-AT25) -> 0 | AV15: =IF(AU15=0,0,(AU15*((LOG(AU15))/LOG(2)))) -> 0
A16: 12 | B16: 1620 | C16: 24 | D16: 1631 | E16: 24 | F16: 1653 | G16: 14 | H16: 1666 | I16: 24 | J16: 1676 | K16: 0 | L16: 12212 | N16: 12112 | O16: =COUNTIF($L$7:$L$500,N16) -> 1 | P16: =O16/$Q$4 -> 0.01754385965 | Q16: =IF(P16=0,0,(P16*((LOG(P16))/LOG(2)))) -> -0.1023314038 | T16: =N16 -> 12112 | U16: =COUNTIF(L7:L16,T16) -> 0 | V16: =U16/(W4-U25) -> 0 | W16: =IF(V16=0,0,(V16*((LOG(V16))/LOG(2)))) -> 0 | Y16: =N16 -> 12112 | Z16: =COUNTIF(L17:L25,Y16) -> 0 | AA16: =Z16/(AB4-Z25) -> 0 | AB16: =IF(AA16=0,0,(AA16*((LOG(AA16))/LOG(2)))) -> 0 | AD16: =N16 -> 12112 | AE16: =COUNTIF(L26:L35,AD16) -> 0 | AF16: =AE16/(AG4-AE25) -> 0 | AG16: =IF(AF16=0,0,(AF16*((LOG(AF16))/LOG(2)))) -> 0 | AI16: =N16 -> 12112 | AJ16: =COUNTIF(L36:L45,AI16) -> 0 | AK16: =AJ16/(AL4-AJ25) -> 0 | AL16: =IF(AK16=0,0,(AK16*((LOG(AK16))/LOG(2)))) -> 0 | AN16: =N16 -> 12112 | AO16: =COUNTIF(L46:L54,AN16) -> 1 | AP16: =AO16/(AQ4-AO25) -> 0.1111111111 | AQ16: =IF(AP16=0,0,(AP16*((LOG(AP16))/LOG(2)))) -> -0.352213889 | AS16: =N16 -> 12112 | AT16: =COUNTIF(L55:L64,AS16) -> 0 | AU16: =AT16/(AV4-AT25) -> 0 | AV16: =IF(AU16=0,0,(AU16*((LOG(AU16))/LOG(2)))) -> 0
A17: 12 | B17: 1786 | C17: 13 | D17: 1830 | E17: 24 | F17: 1840 | G17: 14 | H17: 1856 | I17: 24 | J17: 1869 | K17: 0 | L17: 11212 | N17: 12121 | O17: =COUNTIF($L$7:$L$500,N17) -> 11 | P17: =O17/$Q$4 -> 0.1929824561 | Q17: =IF(P17=0,0,(P17*((LOG(P17))/LOG(2)))) -> -0.4580358307 | T17: =N17 -> 12121 | U17: =COUNTIF(L7:L16,T17) -> 2 | V17: =U17/(W4-U25) -> 0.2 | W17: =IF(V17=0,0,(V17*((LOG(V17))/LOG(2)))) -> -0.464385619 | Y17: =N17 -> 12121 | Z17: =COUNTIF(L17:L25,Y17) -> 3 | AA17: =Z17/(AB4-Z25) -> 0.3333333333 | AB17: =IF(AA17=0,0,(AA17*((LOG(AA17))/LOG(2)))) -> -0.5283208336 | AD17: =N17 -> 12121 | AE17: =COUNTIF(L26:L35,AD17) -> 2 | AF17: =AE17/(AG4-AE25) -> 0.2 | AG17: =IF(AF17=0,0,(AF17*((LOG(AF17))/LOG(2)))) -> -0.464385619 | AI17: =N17 -> 12121 | AJ17: =COUNTIF(L36:L45,AI17) -> 3 | AK17: =AJ17/(AL4-AJ25) -> 0.3 | AL17: =IF(AK17=0,0,(AK17*((LOG(AK17))/LOG(2)))) -> -0.5210896782 | AN17: =N17 -> 12121 | AO17: =COUNTIF(L46:L54,AN17) -> 0 | AP17: =AO17/(AQ4-AO25) -> 0 | AQ17: =IF(AP17=0,0,(AP17*((LOG(AP17))/LOG(2)))) -> 0 | AS17: =N17 -> 12121 | AT17: =COUNTIF(L55:L64,AS17) -> 1 | AU17: =AT17/(AV4-AT25) -> 0.1111111111 | AV17: =IF(AU17=0,0,(AU17*((LOG(AU17))/LOG(2)))) -> -0.352213889
A18: 12 | B18: 2010 | C18: 24 | D18: 2021 | E18: 13 | F18: 2036 | G18: 23 | H18: 2046 | I18: 13 | J18: 2062 | K18: 0 | L18: 12121 | N18: 12122 | O18: =COUNTIF($L$7:$L$500,N18) -> 1 | P18: =O18/$Q$4 -> 0.01754385965 | Q18: =IF(P18=0,0,(P18*((LOG(P18))/LOG(2)))) -> -0.1023314038 | T18: =N18 -> 12122 | U18: =COUNTIF(L7:L16,T18) -> 0 | V18: =U18/(W4-U25) -> 0 | W18: =IF(V18=0,0,(V18*((LOG(V18))/LOG(2)))) -> 0 | Y18: =N18 -> 12122 | Z18: =COUNTIF(L17:L25,Y18) -> 0 | AA18: =Z18/(AB4-Z25) -> 0 | AB18: =IF(AA18=0,0,(AA18*((LOG(AA18))/LOG(2)))) -> 0 | AD18: =N18 -> 12122 | AE18: =COUNTIF(L26:L35,AD18) -> 0 | AF18: =AE18/(AG4-AE25) -> 0 | AG18: =IF(AF18=0,0,(AF18*((LOG(AF18))/LOG(2)))) -> 0 | AI18: =N18 -> 12122 | AJ18: =COUNTIF(L36:L45,AI18) -> 0 | AK18: =AJ18/(AL4-AJ25) -> 0 | AL18: =IF(AK18=0,0,(AK18*((LOG(AK18))/LOG(2)))) -> 0 | AN18: =N18 -> 12122 | AO18: =COUNTIF(L46:L54,AN18) -> 0 | AP18: =AO18/(AQ4-AO25) -> 0 | AQ18: =IF(AP18=0,0,(AP18*((LOG(AP18))/LOG(2)))) -> 0 | AS18: =N18 -> 12122 | AT18: =COUNTIF(L55:L64,AS18) -> 1 | AU18: =AT18/(AV4-AT25) -> 0.1111111111 | AV18: =IF(AU18=0,0,(AU18*((LOG(AU18))/LOG(2)))) -> -0.352213889
A19: 12 | B19: 2172 | C19: 24 | D19: 2198 | E19: 13 | F19: 2213 | G19: 23 | H19: 2222 | I19: 13 | J19: 2235 | K19: 0 | L19: 12121 | N19: 12211 | O19: =COUNTIF($L$7:$L$500,N19) -> 0 | P19: =O19/$Q$4 -> 0 | Q19: =IF(P19=0,0,(P19*((LOG(P19))/LOG(2)))) -> 0 | T19: =N19 -> 12211 | U19: =COUNTIF(L7:L16,T19) -> 0 | V19: =U19/(W4-U25) -> 0 | W19: =IF(V19=0,0,(V19*((LOG(V19))/LOG(2)))) -> 0 | Y19: =N19 -> 12211 | Z19: =COUNTIF(L17:L25,Y19) -> 0 | AA19: =Z19/(AB4-Z25) -> 0 | AB19: =IF(AA19=0,0,(AA19*((LOG(AA19))/LOG(2)))) -> 0 | AD19: =N19 -> 12211 | AE19: =COUNTIF(L26:L35,AD19) -> 0 | AF19: =AE19/(AG4-AE25) -> 0 | AG19: =IF(AF19=0,0,(AF19*((LOG(AF19))/LOG(2)))) -> 0 | AI19: =N19 -> 12211 | AJ19: =COUNTIF(L36:L45,AI19) -> 0 | AK19: =AJ19/(AL4-AJ25) -> 0 | AL19: =IF(AK19=0,0,(AK19*((LOG(AK19))/LOG(2)))) -> 0 | AN19: =N19 -> 12211 | AO19: =COUNTIF(L46:L54,AN19) -> 0 | AP19: =AO19/(AQ4-AO25) -> 0 | AQ19: =IF(AP19=0,0,(AP19*((LOG(AP19))/LOG(2)))) -> 0 | AS19: =N19 -> 12211 | AT19: =COUNTIF(L55:L64,AS19) -> 0 | AU19: =AT19/(AV4-AT25) -> 0 | AV19: =IF(AU19=0,0,(AU19*((LOG(AU19))/LOG(2)))) -> 0
A20: 12 | B20: 2360 | C20: 13 | D20: 2371 | E20: 24 | F20: 2380 | G20: 14 | H20: 2394 | I20: 24 | J20: 2403 | K20: 0 | L20: 11212 | N20: 12212 | O20: =COUNTIF($L$7:$L$500,N20) -> 3 | P20: =O20/$Q$4 -> 0.05263157895 | Q20: =IF(P20=0,0,(P20*((LOG(P20))/LOG(2)))) -> -0.2235751323 | T20: =N20 -> 12212 | U20: =COUNTIF(L7:L16,T20) -> 1 | V20: =U20/(W4-U25) -> 0.1 | W20: =IF(V20=0,0,(V20*((LOG(V20))/LOG(2)))) -> -0.3321928095 | Y20: =N20 -> 12212 | Z20: =COUNTIF(L17:L25,Y20) -> 1 | AA20: =Z20/(AB4-Z25) -> 0.1111111111 | AB20: =IF(AA20=0,0,(AA20*((LOG(AA20))/LOG(2)))) -> -0.352213889 | AD20: =N20 -> 12212 | AE20: =COUNTIF(L26:L35,AD20) -> 0 | AF20: =AE20/(AG4-AE25) -> 0 | AG20: =IF(AF20=0,0,(AF20*((LOG(AF20))/LOG(2)))) -> 0 | AI20: =N20 -> 12212 | AJ20: =COUNTIF(L36:L45,AI20) -> 0 | AK20: =AJ20/(AL4-AJ25) -> 0 | AL20: =IF(AK20=0,0,(AK20*((LOG(AK20))/LOG(2)))) -> 0 | AN20: =N20 -> 12212 | AO20: =COUNTIF(L46:L54,AN20) -> 1 | AP20: =AO20/(AQ4-AO25) -> 0.1111111111 | AQ20: =IF(AP20=0,0,(AP20*((LOG(AP20))/LOG(2)))) -> -0.352213889 | AS20: =N20 -> 12212 | AT20: =COUNTIF(L55:L64,AS20) -> 0 | AU20: =AT20/(AV4-AT25) -> 0 | AV20: =IF(AU20=0,0,(AU20*((LOG(AU20))/LOG(2)))) -> 0
A21: 12 | B21: 2542 | C21: 24 | D21: 2553 | E21: 24 | F21: 2578 | G21: 14 | H21: 2596 | I21: 24 | J21: 2607 | K21: 0 | L21: 12212 | N21: 12221 | O21: =COUNTIF($L$7:$L$500,N21) -> 1 | P21: =O21/$Q$4 -> 0.01754385965 | Q21: =IF(P21=0,0,(P21*((LOG(P21))/LOG(2)))) -> -0.1023314038 | T21: =N21 -> 12221 | U21: =COUNTIF(L7:L16,T21) -> 0 | V21: =U21/(W4-U25) -> 0 | W21: =IF(V21=0,0,(V21*((LOG(V21))/LOG(2)))) -> 0 | Y21: =N21 -> 12221 | Z21: =COUNTIF(L17:L25,Y21) -> 0 | AA21: =Z21/(AB4-Z25) -> 0 | AB21: =IF(AA21=0,0,(AA21*((LOG(AA21))/LOG(2)))) -> 0 | AD21: =N21 -> 12221 | AE21: =COUNTIF(L26:L35,AD21) -> 0 | AF21: =AE21/(AG4-AE25) -> 0 | AG21: =IF(AF21=0,0,(AF21*((LOG(AF21))/LOG(2)))) -> 0 | AI21: =N21 -> 12221 | AJ21: =COUNTIF(L36:L45,AI21) -> 1 | AK21: =AJ21/(AL4-AJ25) -> 0.1 | AL21: =IF(AK21=0,0,(AK21*((LOG(AK21))/LOG(2)))) -> -0.3321928095 | AN21: =N21 -> 12221 | AO21: =COUNTIF(L46:L54,AN21) -> 0 | AP21: =AO21/(AQ4-AO25) -> 0 | AQ21: =IF(AP21=0,0,(AP21*((LOG(AP21))/LOG(2)))) -> 0 | AS21: =N21 -> 12221 | AT21: =COUNTIF(L55:L64,AS21) -> 0 | AU21: =AT21/(AV4-AT25) -> 0 | AV21: =IF(AU21=0,0,(AU21*((LOG(AU21))/LOG(2)))) -> 0
A22: 12 | B22: 2728 | C22: 13 | D22: 2742 | E22: 24 | F22: 2769 | G22: 14 | H22: 2788 | I22: 24 | J22: 2801 | K22: 0 | L22: 11212 | N22: 12222 | O22: =COUNTIF($L$7:$L$500,N22) -> 1 | P22: =O22/$Q$4 -> 0.01754385965 | Q22: =IF(P22=0,0,(P22*((LOG(P22))/LOG(2)))) -> -0.1023314038 | T22: =N22 -> 12222 | U22: =COUNTIF(L7:L16,T22) -> 1 | V22: =U22/(W4-U25) -> 0.1 | W22: =IF(V22=0,0,(V22*((LOG(V22))/LOG(2)))) -> -0.3321928095 | Y22: =N22 -> 12222 | Z22: =COUNTIF(L17:L25,Y22) -> 0 | AA22: =Z22/(AB4-Z25) -> 0 | AB22: =IF(AA22=0,0,(AA22*((LOG(AA22))/LOG(2)))) -> 0 | AD22: =N22 -> 12222 | AE22: =COUNTIF(L26:L35,AD22) -> 0 | AF22: =AE22/(AG4-AE25) -> 0 | AG22: =IF(AF22=0,0,(AF22*((LOG(AF22))/LOG(2)))) -> 0 | AI22: =N22 -> 12222 | AJ22: =COUNTIF(L36:L45,AI22) -> 0 | AK22: =AJ22/(AL4-AJ25) -> 0 | AL22: =IF(AK22=0,0,(AK22*((LOG(AK22))/LOG(2)))) -> 0 | AN22: =N22 -> 12222 | AO22: =COUNTIF(L46:L54,AN22) -> 0 | AP22: =AO22/(AQ4-AO25) -> 0 | AQ22: =IF(AP22=0,0,(AP22*((LOG(AP22))/LOG(2)))) -> 0 | AS22: =N22 -> 12222 | AT22: =COUNTIF(L55:L64,AS22) -> 0 | AU22: =AT22/(AV4-AT25) -> 0 | AV22: =IF(AU22=0,0,(AU22*((LOG(AU22))/LOG(2)))) -> 0
A23: 12 | B23: 2907 | C23: 13 | D23: 2925 | E23: 13 | F23: 2936 | G23: 23 | H23: 2945 | I23: 13 | J23: 2955 | K23: 0 | L23: 11121 | N23: 21111 | O23: =COUNTIF($L$7:$L$500,N23) -> 0 | P23: =O23/$Q$4 -> 0 | Q23: =IF(P23=0,0,(P23*((LOG(P23))/LOG(2)))) -> 0 | T23: =N23 -> 21111 | U23: =COUNTIF(L7:L16,T23) -> 0 | V23: =U23/(W4-U25) -> 0 | W23: =IF(V23=0,0,(V23*((LOG(V23))/LOG(2)))) -> 0 | Y23: =N23 -> 21111 | Z23: =COUNTIF(L17:L25,Y23) -> 0 | AA23: =Z23/(AB4-Z25) -> 0 | AB23: =IF(AA23=0,0,(AA23*((LOG(AA23))/LOG(2)))) -> 0 | AD23: =N23 -> 21111 | AE23: =COUNTIF(L26:L35,AD23) -> 0 | AF23: =AE23/(AG4-AE25) -> 0 | AG23: =IF(AF23=0,0,(AF23*((LOG(AF23))/LOG(2)))) -> 0 | AI23: =N23 -> 21111 | AJ23: =COUNTIF(L36:L45,AI23) -> 0 | AK23: =AJ23/(AL4-AJ25) -> 0 | AL23: =IF(AK23=0,0,(AK23*((LOG(AK23))/LOG(2)))) -> 0 | AN23: =N23 -> 21111 | AO23: =COUNTIF(L46:L54,AN23) -> 0 | AP23: =AO23/(AQ4-AO25) -> 0 | AQ23: =IF(AP23=0,0,(AP23*((LOG(AP23))/LOG(2)))) -> 0 | AS23: =N23 -> 21111 | AT23: =COUNTIF(L55:L64,AS23) -> 0 | AU23: =AT23/(AV4-AT25) -> 0 | AV23: =IF(AU23=0,0,(AU23*((LOG(AU23))/LOG(2)))) -> 0
A24: 12 | B24: 3069 | C24: 13 | D24: 3090 | E24: 24 | F24: 3097 | G24: 23 | H24: 3123 | I24: 24 | J24: 3137 | K24: 0 | L24: 11222 | N24: 21112 | O24: =COUNTIF($L$7:$L$500,N24) -> 0 | P24: =O24/$Q$4 -> 0 | Q24: =IF(P24=0,0,(P24*((LOG(P24))/LOG(2)))) -> 0 | T24: =N24 -> 21112 | U24: =COUNTIF(L7:L16,T24) -> 0 | V24: =U24/(W4-U25) -> 0 | W24: =IF(V24=0,0,(V24*((LOG(V24))/LOG(2)))) -> 0 | Y24: =N24 -> 21112 | Z24: =COUNTIF(L17:L25,Y24) -> 0 | AA24: =Z24/(AB4-Z25) -> 0 | AB24: =IF(AA24=0,0,(AA24*((LOG(AA24))/LOG(2)))) -> 0 | AD24: =N24 -> 21112 | AE24: =COUNTIF(L26:L35,AD24) -> 0 | AF24: =AE24/(AG4-AE25) -> 0 | AG24: =IF(AF24=0,0,(AF24*((LOG(AF24))/LOG(2)))) -> 0 | AI24: =N24 -> 21112 | AJ24: =COUNTIF(L36:L45,AI24) -> 0 | AK24: =AJ24/(AL4-AJ25) -> 0 | AL24: =IF(AK24=0,0,(AK24*((LOG(AK24))/LOG(2)))) -> 0 | AN24: =N24 -> 21112 | AO24: =COUNTIF(L46:L54,AN24) -> 0 | AP24: =AO24/(AQ4-AO25) -> 0 | AQ24: =IF(AP24=0,0,(AP24*((LOG(AP24))/LOG(2)))) -> 0 | AS24: =N24 -> 21112 | AT24: =COUNTIF(L55:L64,AS24) -> 0 | AU24: =AT24/(AV4-AT25) -> 0 | AV24: =IF(AU24=0,0,(AU24*((LOG(AU24))/LOG(2)))) -> 0
A25: 12 | B25: 3313 | C25: 24 | D25: 3323 | E25: 13 | F25: 3336 | G25: 23 | H25: 3346 | I25: 13 | J25: 3361 | K25: 0 | L25: 12121 | N25: 21121 | O25: =COUNTIF($L$7:$L$500,N25) -> 0 | P25: =O25/$Q$4 -> 0 | Q25: =IF(P25=0,0,(P25*((LOG(P25))/LOG(2)))) -> 0 | T25: =N25 -> 21121 | U25: =COUNTIF(L7:L16,T25) -> 0 | Y25: =N25 -> 21121 | Z25: =COUNTIF(L17:L25,Y25) -> 0 | AD25: =N25 -> 21121 | AE25: =COUNTIF(L26:L35,AD25) -> 0 | AI25: =N25 -> 21121 | AJ25: =COUNTIF(L36:L45,AI25) -> 0 | AN25: =N25 -> 21121 | AO25: =COUNTIF(L46:L54,AN25) -> 0 | AS25: =N25 -> 21121 | AT25: =COUNTIF(L55:L64,AS25) -> 0
A26: 21 | B26: 3575 | C26: 11 | D26: 3590 | E26: 22 | F26: 3600 | G26: 14 | H26: 3619 | I26: 24 | J26: 3633 | K26: 0 | L26: 21212 | N26: 21122 | O26: =COUNTIF($L$7:$L$500,N26) -> 1 | P26: =O26/$Q$4 -> 0.01754385965 | Q26: =IF(P26=0,0,(P26*((LOG(P26))/LOG(2)))) -> -0.1023314038 | T26: =N26 -> 21122 | U26: =COUNTIF(L7:L16,T26) -> 0 | V26: =U26/(W4-U25) -> 0 | W26: =IF(V26=0,0,(V26*((LOG(V26))/LOG(2)))) -> 0 | Y26: =N26 -> 21122 | Z26: =COUNTIF(L17:L25,Y26) -> 0 | AA26: =Z26/(AB4-Z25) -> 0 | AB26: =IF(AA26=0,0,(AA26*((LOG(AA26))/LOG(2)))) -> 0 | AD26: =N26 -> 21122 | AE26: =COUNTIF(L26:L35,AD26) -> 0 | AF26: =AE26/(AG4-AE25) -> 0 | AG26: =IF(AF26=0,0,(AF26*((LOG(AF26))/LOG(2)))) -> 0 | AI26: =N26 -> 21122 | AJ26: =COUNTIF(L36:L45,AI26) -> 0 | AK26: =AJ26/(AL4-AJ25) -> 0 | AL26: =IF(AK26=0,0,(AK26*((LOG(AK26))/LOG(2)))) -> 0 | AN26: =N26 -> 21122 | AO26: =COUNTIF(L46:L54,AN26) -> 0 | AP26: =AO26/(AQ4-AO25) -> 0 | AQ26: =IF(AP26=0,0,(AP26*((LOG(AP26))/LOG(2)))) -> 0 | AS26: =N26 -> 21122 | AT26: =COUNTIF(L55:L64,AS26) -> 1 | AU26: =AT26/(AV4-AT25) -> 0.1111111111 | AV26: =IF(AU26=0,0,(AU26*((LOG(AU26))/LOG(2)))) -> -0.352213889
A27: 12 | B27: 3759 | C27: 13 | D27: 3779 | E27: 13 | F27: 3795 | G27: 14 | H27: 3805 | I27: 13 | J27: 3815 | K27: 0 | L27: 11111 | N27: 21211 | O27: =COUNTIF($L$7:$L$500,N27) -> 2 | P27: =O27/$Q$4 -> 0.0350877193 | Q27: =IF(P27=0,0,(P27*((LOG(P27))/LOG(2)))) -> -0.1695750882 | T27: =N27 -> 21211 | U27: =COUNTIF(L7:L16,T27) -> 1 | V27: =U27/(W4-U25) -> 0.1 | W27: =IF(V27=0,0,(V27*((LOG(V27))/LOG(2)))) -> -0.3321928095 | Y27: =N27 -> 21211 | Z27: =COUNTIF(L17:L25,Y27) -> 0 | AA27: =Z27/(AB4-Z25) -> 0 | AB27: =IF(AA27=0,0,(AA27*((LOG(AA27))/LOG(2)))) -> 0 | AD27: =N27 -> 21211 | AE27: =COUNTIF(L26:L35,AD27) -> 0 | AF27: =AE27/(AG4-AE25) -> 0 | AG27: =IF(AF27=0,0,(AF27*((LOG(AF27))/LOG(2)))) -> 0 | AI27: =N27 -> 21211 | AJ27: =COUNTIF(L36:L45,AI27) -> 0 | AK27: =AJ27/(AL4-AJ25) -> 0 | AL27: =IF(AK27=0,0,(AK27*((LOG(AK27))/LOG(2)))) -> 0 | AN27: =N27 -> 21211 | AO27: =COUNTIF(L46:L54,AN27) -> 1 | AP27: =AO27/(AQ4-AO25) -> 0.1111111111 | AQ27: =IF(AP27=0,0,(AP27*((LOG(AP27))/LOG(2)))) -> -0.352213889 | AS27: =N27 -> 21211 | AT27: =COUNTIF(L55:L64,AS27) -> 0 | AU27: =AT27/(AV4-AT25) -> 0 | AV27: =IF(AU27=0,0,(AU27*((LOG(AU27))/LOG(2)))) -> 0
A28: 12 | B28: 3941 | C28: 13 | D28: 3971 | E28: 24 | F28: 3991 | G28: 23 | H28: 4012 | I28: 13 | J28: 4026 | K28: 0 | L28: 11221 | N28: 21212 | O28: =COUNTIF($L$7:$L$500,N28) -> 7 | P28: =O28/$Q$4 -> 0.1228070175 | Q28: =IF(P28=0,0,(P28*((LOG(P28))/LOG(2)))) -> -0.3715569411 | T28: =N28 -> 21212 | U28: =COUNTIF(L7:L16,T28) -> 0 | V28: =U28/(W4-U25) -> 0 | W28: =IF(V28=0,0,(V28*((LOG(V28))/LOG(2)))) -> 0 | Y28: =N28 -> 21212 | Z28: =COUNTIF(L17:L25,Y28) -> 0 | AA28: =Z28/(AB4-Z25) -> 0 | AB28: =IF(AA28=0,0,(AA28*((LOG(AA28))/LOG(2)))) -> 0 | AD28: =N28 -> 21212 | AE28: =COUNTIF(L26:L35,AD28) -> 2 | AF28: =AE28/(AG4-AE25) -> 0.2 | AG28: =IF(AF28=0,0,(AF28*((LOG(AF28))/LOG(2)))) -> -0.464385619 | AI28: =N28 -> 21212 | AJ28: =COUNTIF(L36:L45,AI28) -> 0 | AK28: =AJ28/(AL4-AJ25) -> 0 | AL28: =IF(AK28=0,0,(AK28*((LOG(AK28))/LOG(2)))) -> 0 | AN28: =N28 -> 21212 | AO28: =COUNTIF(L46:L54,AN28) -> 2 | AP28: =AO28/(AQ4-AO25) -> 0.2222222222 | AQ28: =IF(AP28=0,0,(AP28*((LOG(AP28))/LOG(2)))) -> -0.4822055559 | AS28: =N28 -> 21212 | AT28: =COUNTIF(L55:L64,AS28) -> 3 | AU28: =AT28/(AV4-AT25) -> 0.3333333333 | AV28: =IF(AU28=0,0,(AU28*((LOG(AU28))/LOG(2)))) -> -0.5283208336
A29: 12 | B29: 4159 | C29: 13 | D29: 4175 | E29: 13 | F29: 4189 | G29: 23 | H29: 4200 | I29: 13 | J29: 4209 | K29: 0 | L29: 11121 | N29: 21221 | O29: =COUNTIF($L$7:$L$500,N29) -> 1 | P29: =O29/$Q$4 -> 0.01754385965 | Q29: =IF(P29=0,0,(P29*((LOG(P29))/LOG(2)))) -> -0.1023314038 | T29: =N29 -> 21221 | U29: =COUNTIF(L7:L16,T29) -> 0 | V29: =U29/(W4-U25) -> 0 | W29: =IF(V29=0,0,(V29*((LOG(V29))/LOG(2)))) -> 0 | Y29: =N29 -> 21221 | Z29: =COUNTIF(L17:L25,Y29) -> 0 | AA29: =Z29/(AB4-Z25) -> 0 | AB29: =IF(AA29=0,0,(AA29*((LOG(AA29))/LOG(2)))) -> 0 | AD29: =N29 -> 21221 | AE29: =COUNTIF(L26:L35,AD29) -> 0 | AF29: =AE29/(AG4-AE25) -> 0 | AG29: =IF(AF29=0,0,(AF29*((LOG(AF29))/LOG(2)))) -> 0 | AI29: =N29 -> 21221 | AJ29: =COUNTIF(L36:L45,AI29) -> 1 | AK29: =AJ29/(AL4-AJ25) -> 0.1 | AL29: =IF(AK29=0,0,(AK29*((LOG(AK29))/LOG(2)))) -> -0.3321928095 | AN29: =N29 -> 21221 | AO29: =COUNTIF(L46:L54,AN29) -> 0 | AP29: =AO29/(AQ4-AO25) -> 0 | AQ29: =IF(AP29=0,0,(AP29*((LOG(AP29))/LOG(2)))) -> 0 | AS29: =N29 -> 21221 | AT29: =COUNTIF(L55:L64,AS29) -> 0 | AU29: =AT29/(AV4-AT25) -> 0 | AV29: =IF(AU29=0,0,(AU29*((LOG(AU29))/LOG(2)))) -> 0
A30: 21 | B30: 4471 | C30: 11 | D30: 4483 | E30: 22 | F30: 4493 | G30: 14 | H30: 4506 | I30: 24 | J30: 4533 | K30: 0 | L30: 21212 | N30: 21222 | O30: =COUNTIF($L$7:$L$500,N30) -> 0 | P30: =O30/$Q$4 -> 0 | Q30: =IF(P30=0,0,(P30*((LOG(P30))/LOG(2)))) -> 0 | T30: =N30 -> 21222 | U30: =COUNTIF(L7:L16,T30) -> 0 | V30: =U30/(W4-U25) -> 0 | W30: =IF(V30=0,0,(V30*((LOG(V30))/LOG(2)))) -> 0 | Y30: =N30 -> 21222 | Z30: =COUNTIF(L17:L25,Y30) -> 0 | AA30: =Z30/(AB4-Z25) -> 0 | AB30: =IF(AA30=0,0,(AA30*((LOG(AA30))/LOG(2)))) -> 0 | AD30: =N30 -> 21222 | AE30: =COUNTIF(L26:L35,AD30) -> 0 | AF30: =AE30/(AG4-AE25) -> 0 | AG30: =IF(AF30=0,0,(AF30*((LOG(AF30))/LOG(2)))) -> 0 | AI30: =N30 -> 21222 | AJ30: =COUNTIF(L36:L45,AI30) -> 0 | AK30: =AJ30/(AL4-AJ25) -> 0 | AL30: =IF(AK30=0,0,(AK30*((LOG(AK30))/LOG(2)))) -> 0 | AN30: =N30 -> 21222 | AO30: =COUNTIF(L46:L54,AN30) -> 0 | AP30: =AO30/(AQ4-AO25) -> 0 | AQ30: =IF(AP30=0,0,(AP30*((LOG(AP30))/LOG(2)))) -> 0 | AS30: =N30 -> 21222 | AT30: =COUNTIF(L55:L64,AS30) -> 0 | AU30: =AT30/(AV4-AT25) -> 0 | AV30: =IF(AU30=0,0,(AU30*((LOG(AU30))/LOG(2)))) -> 0
A31: 12 | B31: 4877 | C31: 24 | D31: 4887 | E31: 13 | F31: 4900 | G31: 23 | H31: 4907 | I31: 13 | J31: 4921 | K31: 0 | L31: 12121 | N31: 22111 | O31: =COUNTIF($L$7:$L$500,N31) -> 0 | P31: =O31/$Q$4 -> 0 | Q31: =IF(P31=0,0,(P31*((LOG(P31))/LOG(2)))) -> 0 | T31: =N31 -> 22111 | U31: =COUNTIF(L7:L16,T31) -> 0 | V31: =U31/(W4-U25) -> 0 | W31: =IF(V31=0,0,(V31*((LOG(V31))/LOG(2)))) -> 0 | Y31: =N31 -> 22111 | Z31: =COUNTIF(L17:L25,Y31) -> 0 | AA31: =Z31/(AB4-Z25) -> 0 | AB31: =IF(AA31=0,0,(AA31*((LOG(AA31))/LOG(2)))) -> 0 | AD31: =N31 -> 22111 | AE31: =COUNTIF(L26:L35,AD31) -> 0 | AF31: =AE31/(AG4-AE25) -> 0 | AG31: =IF(AF31=0,0,(AF31*((LOG(AF31))/LOG(2)))) -> 0 | AI31: =N31 -> 22111 | AJ31: =COUNTIF(L36:L45,AI31) -> 0 | AK31: =AJ31/(AL4-AJ25) -> 0 | AL31: =IF(AK31=0,0,(AK31*((LOG(AK31))/LOG(2)))) -> 0 | AN31: =N31 -> 22111 | AO31: =COUNTIF(L46:L54,AN31) -> 0 | AP31: =AO31/(AQ4-AO25) -> 0 | AQ31: =IF(AP31=0,0,(AP31*((LOG(AP31))/LOG(2)))) -> 0 | AS31: =N31 -> 22111 | AT31: =COUNTIF(L55:L64,AS31) -> 0 | AU31: =AT31/(AV4-AT25) -> 0 | AV31: =IF(AU31=0,0,(AU31*((LOG(AU31))/LOG(2)))) -> 0
A32: 12 | B32: 5263 | C32: 24 | D32: 5274 | E32: 13 | F32: 5289 | G32: 23 | H32: 5299 | I32: 13 | J32: 5314 | K32: 0 | L32: 12121 | N32: 22112 | O32: =COUNTIF($L$7:$L$500,N32) -> 0 | P32: =O32/$Q$4 -> 0 | Q32: =IF(P32=0,0,(P32*((LOG(P32))/LOG(2)))) -> 0 | T32: =N32 -> 22112 | U32: =COUNTIF(L7:L16,T32) -> 0 | V32: =U32/(W4-U25) -> 0 | W32: =IF(V32=0,0,(V32*((LOG(V32))/LOG(2)))) -> 0 | Y32: =N32 -> 22112 | Z32: =COUNTIF(L17:L25,Y32) -> 0 | AA32: =Z32/(AB4-Z25) -> 0 | AB32: =IF(AA32=0,0,(AA32*((LOG(AA32))/LOG(2)))) -> 0 | AD32: =N32 -> 22112 | AE32: =COUNTIF(L26:L35,AD32) -> 0 | AF32: =AE32/(AG4-AE25) -> 0 | AG32: =IF(AF32=0,0,(AF32*((LOG(AF32))/LOG(2)))) -> 0 | AI32: =N32 -> 22112 | AJ32: =COUNTIF(L36:L45,AI32) -> 0 | AK32: =AJ32/(AL4-AJ25) -> 0 | AL32: =IF(AK32=0,0,(AK32*((LOG(AK32))/LOG(2)))) -> 0 | AN32: =N32 -> 22112 | AO32: =COUNTIF(L46:L54,AN32) -> 0 | AP32: =AO32/(AQ4-AO25) -> 0 | AQ32: =IF(AP32=0,0,(AP32*((LOG(AP32))/LOG(2)))) -> 0 | AS32: =N32 -> 22112 | AT32: =COUNTIF(L55:L64,AS32) -> 0 | AU32: =AT32/(AV4-AT25) -> 0 | AV32: =IF(AU32=0,0,(AU32*((LOG(AU32))/LOG(2)))) -> 0
A33: 12 | B33: 5503 | C33: 13 | D33: 5532 | E33: 24 | F33: 5558 | G33: 14 | H33: 5607 | I33: 13 | J33: 5626 | K33: 0 | L33: 11211 | N33: 22121 | O33: =COUNTIF($L$7:$L$500,N33) -> 1 | P33: =O33/$Q$4 -> 0.01754385965 | Q33: =IF(P33=0,0,(P33*((LOG(P33))/LOG(2)))) -> -0.1023314038 | T33: =N33 -> 22121 | U33: =COUNTIF(L7:L16,T33) -> 0 | V33: =U33/(W4-U25) -> 0 | W33: =IF(V33=0,0,(V33*((LOG(V33))/LOG(2)))) -> 0 | Y33: =N33 -> 22121 | Z33: =COUNTIF(L17:L25,Y33) -> 0 | AA33: =Z33/(AB4-Z25) -> 0 | AB33: =IF(AA33=0,0,(AA33*((LOG(AA33))/LOG(2)))) -> 0 | AD33: =N33 -> 22121 | AE33: =COUNTIF(L26:L35,AD33) -> 0 | AF33: =AE33/(AG4-AE25) -> 0 | AG33: =IF(AF33=0,0,(AF33*((LOG(AF33))/LOG(2)))) -> 0 | AI33: =N33 -> 22121 | AJ33: =COUNTIF(L36:L45,AI33) -> 1 | AK33: =AJ33/(AL4-AJ25) -> 0.1 | AL33: =IF(AK33=0,0,(AK33*((LOG(AK33))/LOG(2)))) -> -0.3321928095 | AN33: =N33 -> 22121 | AO33: =COUNTIF(L46:L54,AN33) -> 0 | AP33: =AO33/(AQ4-AO25) -> 0 | AQ33: =IF(AP33=0,0,(AP33*((LOG(AP33))/LOG(2)))) -> 0 | AS33: =N33 -> 22121 | AT33: =COUNTIF(L55:L64,AS33) -> 0 | AU33: =AT33/(AV4-AT25) -> 0 | AV33: =IF(AU33=0,0,(AU33*((LOG(AU33))/LOG(2)))) -> 0
A34: 21 | B34: 5816 | C34: 22 | D34: 5833 | E34: 24 | F34: 5868 | G34: 14 | H34: 5878 | I34: 24 | J34: 5884 | K34: 0 | L34: 22212 | N34: 22122 | O34: =COUNTIF($L$7:$L$500,N34) -> 2 | P34: =O34/$Q$4 -> 0.0350877193 | Q34: =IF(P34=0,0,(P34*((LOG(P34))/LOG(2)))) -> -0.1695750882 | T34: =N34 -> 22122 | U34: =COUNTIF(L7:L16,T34) -> 0 | V34: =U34/(W4-U25) -> 0 | W34: =IF(V34=0,0,(V34*((LOG(V34))/LOG(2)))) -> 0 | Y34: =N34 -> 22122 | Z34: =COUNTIF(L17:L25,Y34) -> 0 | AA34: =Z34/(AB4-Z25) -> 0 | AB34: =IF(AA34=0,0,(AA34*((LOG(AA34))/LOG(2)))) -> 0 | AD34: =N34 -> 22122 | AE34: =COUNTIF(L26:L35,AD34) -> 0 | AF34: =AE34/(AG4-AE25) -> 0 | AG34: =IF(AF34=0,0,(AF34*((LOG(AF34))/LOG(2)))) -> 0 | AI34: =N34 -> 22122 | AJ34: =COUNTIF(L36:L45,AI34) -> 2 | AK34: =AJ34/(AL4-AJ25) -> 0.2 | AL34: =IF(AK34=0,0,(AK34*((LOG(AK34))/LOG(2)))) -> -0.464385619 | AN34: =N34 -> 22122 | AO34: =COUNTIF(L46:L54,AN34) -> 0 | AP34: =AO34/(AQ4-AO25) -> 0 | AQ34: =IF(AP34=0,0,(AP34*((LOG(AP34))/LOG(2)))) -> 0 | AS34: =N34 -> 22122 | AT34: =COUNTIF(L55:L64,AS34) -> 0 | AU34: =AT34/(AV4-AT25) -> 0 | AV34: =IF(AU34=0,0,(AU34*((LOG(AU34))/LOG(2)))) -> 0
A35: 21 | B35: 6097 | C35: 22 | D35: 6114 | E35: 24 | F35: 6130 | G35: 23 | H35: 6149 | I35: 24 | J35: 6159 | K35: 0 | L35: 22222 | N35: 22211 | O35: =COUNTIF($L$7:$L$500,N35) -> 0 | P35: =O35/$Q$4 -> 0 | Q35: =IF(P35=0,0,(P35*((LOG(P35))/LOG(2)))) -> 0 | T35: =N35 -> 22211 | U35: =COUNTIF(L7:L16,T35) -> 0 | V35: =U35/(W4-U25) -> 0 | W35: =IF(V35=0,0,(V35*((LOG(V35))/LOG(2)))) -> 0 | Y35: =N35 -> 22211 | Z35: =COUNTIF(L17:L25,Y35) -> 0 | AA35: =Z35/(AB4-Z25) -> 0 | AB35: =IF(AA35=0,0,(AA35*((LOG(AA35))/LOG(2)))) -> 0 | AD35: =N35 -> 22211 | AE35: =COUNTIF(L26:L35,AD35) -> 0 | AF35: =AE35/(AG4-AE25) -> 0 | AG35: =IF(AF35=0,0,(AF35*((LOG(AF35))/LOG(2)))) -> 0 | AI35: =N35 -> 22211 | AJ35: =COUNTIF(L36:L45,AI35) -> 0 | AK35: =AJ35/(AL4-AJ25) -> 0 | AL35: =IF(AK35=0,0,(AK35*((LOG(AK35))/LOG(2)))) -> 0 | AN35: =N35 -> 22211 | AO35: =COUNTIF(L46:L54,AN35) -> 0 | AP35: =AO35/(AQ4-AO25) -> 0 | AQ35: =IF(AP35=0,0,(AP35*((LOG(AP35))/LOG(2)))) -> 0 | AS35: =N35 -> 22211 | AT35: =COUNTIF(L55:L64,AS35) -> 0 | AU35: =AT35/(AV4-AT25) -> 0 | AV35: =IF(AU35=0,0,(AU35*((LOG(AU35))/LOG(2)))) -> 0
A36: 21 | B36: 6321 | C36: 22 | D36: 6330 | E36: 13 | F36: 6392 | G36: 23 | H36: 6402 | I36: 24 | J36: 6412 | K36: 0 | L36: 22122 | N36: 22212 | O36: =COUNTIF($L$7:$L$500,N36) -> 2 | P36: =O36/$Q$4 -> 0.0350877193 | Q36: =IF(P36=0,0,(P36*((LOG(P36))/LOG(2)))) -> -0.1695750882 | T36: =N36 -> 22212 | U36: =COUNTIF(L7:L16,T36) -> 0 | V36: =U36/(W4-U25) -> 0 | W36: =IF(V36=0,0,(V36*((LOG(V36))/LOG(2)))) -> 0 | Y36: =N36 -> 22212 | Z36: =COUNTIF(L17:L25,Y36) -> 0 | AA36: =Z36/(AB4-Z25) -> 0 | AB36: =IF(AA36=0,0,(AA36*((LOG(AA36))/LOG(2)))) -> 0 | AD36: =N36 -> 22212 | AE36: =COUNTIF(L26:L35,AD36) -> 1 | AF36: =AE36/(AG4-AE25) -> 0.1 | AG36: =IF(AF36=0,0,(AF36*((LOG(AF36))/LOG(2)))) -> -0.3321928095 | AI36: =N36 -> 22212 | AJ36: =COUNTIF(L36:L45,AI36) -> 1 | AK36: =AJ36/(AL4-AJ25) -> 0.1 | AL36: =IF(AK36=0,0,(AK36*((LOG(AK36))/LOG(2)))) -> -0.3321928095 | AN36: =N36 -> 22212 | AO36: =COUNTIF(L46:L54,AN36) -> 0 | AP36: =AO36/(AQ4-AO25) -> 0 | AQ36: =IF(AP36=0,0,(AP36*((LOG(AP36))/LOG(2)))) -> 0 | AS36: =N36 -> 22212 | AT36: =COUNTIF(L55:L64,AS36) -> 0 | AU36: =AT36/(AV4-AT25) -> 0 | AV36: =IF(AU36=0,0,(AU36*((LOG(AU36))/LOG(2)))) -> 0
A37: 12 | B37: 6555 | C37: 24 | D37: 6582 | E37: 24 | F37: 6604 | G37: 23 | H37: 6624 | I37: 13 | J37: 6635 | K37: 0 | L37: 12221 | N37: 22221 | O37: =COUNTIF($L$7:$L$500,N37) -> 0 | P37: =O37/$Q$4 -> 0 | Q37: =IF(P37=0,0,(P37*((LOG(P37))/LOG(2)))) -> 0 | T37: =N37 -> 22221 | U37: =COUNTIF(L7:L16,T37) -> 0 | V37: =U37/(W4-U25) -> 0 | W37: =IF(V37=0,0,(V37*((LOG(V37))/LOG(2)))) -> 0 | Y37: =N37 -> 22221 | Z37: =COUNTIF(L17:L25,Y37) -> 0 | AA37: =Z37/(AB4-Z25) -> 0 | AB37: =IF(AA37=0,0,(AA37*((LOG(AA37))/LOG(2)))) -> 0 | AD37: =N37 -> 22221 | AE37: =COUNTIF(L26:L35,AD37) -> 0 | AF37: =AE37/(AG4-AE25) -> 0 | AG37: =IF(AF37=0,0,(AF37*((LOG(AF37))/LOG(2)))) -> 0 | AI37: =N37 -> 22221 | AJ37: =COUNTIF(L36:L45,AI37) -> 0 | AK37: =AJ37/(AL4-AJ25) -> 0 | AL37: =IF(AK37=0,0,(AK37*((LOG(AK37))/LOG(2)))) -> 0 | AN37: =N37 -> 22221 | AO37: =COUNTIF(L46:L54,AN37) -> 0 | AP37: =AO37/(AQ4-AO25) -> 0 | AQ37: =IF(AP37=0,0,(AP37*((LOG(AP37))/LOG(2)))) -> 0 | AS37: =N37 -> 22221 | AT37: =COUNTIF(L55:L64,AS37) -> 0 | AU37: =AT37/(AV4-AT25) -> 0 | AV37: =IF(AU37=0,0,(AU37*((LOG(AU37))/LOG(2)))) -> 0
A38: 21 | B38: 6772 | C38: 22 | D38: 6783 | E38: 24 | F38: 6802 | G38: 14 | H38: 6815 | I38: 24 | J38: 6826 | K38: 0 | L38: 22212 | N38: 22222 | O38: =COUNTIF($L$7:$L$500,N38) -> 2 | P38: =O38/$Q$4 -> 0.0350877193 | Q38: =IF(P38=0,0,(P38*((LOG(P38))/LOG(2)))) -> -0.1695750882 | T38: =N38 -> 22222 | U38: =COUNTIF(L7:L16,T38) -> 1 | V38: =U38/(W4-U25) -> 0.1 | W38: =IF(V38=0,0,(V38*((LOG(V38))/LOG(2)))) -> -0.3321928095 | Y38: =N38 -> 22222 | Z38: =COUNTIF(L17:L25,Y38) -> 0 | AA38: =Z38/(AB4-Z25) -> 0 | AB38: =IF(AA38=0,0,(AA38*((LOG(AA38))/LOG(2)))) -> 0 | AD38: =N38 -> 22222 | AE38: =COUNTIF(L26:L35,AD38) -> 1 | AF38: =AE38/(AG4-AE25) -> 0.1 | AG38: =IF(AF38=0,0,(AF38*((LOG(AF38))/LOG(2)))) -> -0.3321928095 | AI38: =N38 -> 22222 | AJ38: =COUNTIF(L36:L45,AI38) -> 0 | AK38: =AJ38/(AL4-AJ25) -> 0 | AL38: =IF(AK38=0,0,(AK38*((LOG(AK38))/LOG(2)))) -> 0 | AN38: =N38 -> 22222 | AO38: =COUNTIF(L46:L54,AN38) -> 0 | AP38: =AO38/(AQ4-AO25) -> 0 | AQ38: =IF(AP38=0,0,(AP38*((LOG(AP38))/LOG(2)))) -> 0 | AS38: =N38 -> 22222 | AT38: =COUNTIF(L55:L64,AS38) -> 0 | AU38: =AT38/(AV4-AT25) -> 0 | AV38: =IF(AU38=0,0,(AU38*((LOG(AU38))/LOG(2)))) -> 0
A39: 21 | B39: 6957 | C39: 11 | D39: 6972 | E39: 22 | F39: 6983 | G39: 23 | H39: 6993 | I39: 13 | J39: 7004 | K39: 0 | L39: 21221 | P39: =SUM(P7:P38) -> 1 | Q39: =-SUM(Q7:Q38) -> 3.763242738 | V39: =SUM(V7:V38) -> 1 | W39: =-SUM(W7:W38) -> 2.921928095 | AA39: =SUM(AA7:AA38) -> 1 | AB39: =-SUM(AB7:AB38) -> 2.113283334 | AF39: =SUM(AF7:AF38) -> 1 | AG39: =-SUM(AG7:AG38) -> 2.921928095 | AK39: =SUM(AK7:AK38) -> 1 | AL39: =-SUM(AL7:AL38) -> 2.646439345 | AP39: =SUM(AP7:AP38) -> 1 | AQ39: =-SUM(AQ7:AQ38) -> 2.419381946 | AU39: =SUM(AU7:AU38) -> 1 | AV39: =-SUM(AV7:AV38) -> 2.419381946
A40: 12 | B40: 7164 | C40: 24 | D40: 7178 | E40: 13 | F40: 7197 | G40: 23 | H40: 7206 | I40: 13 | J40: 7220 | K40: 0 | L40: 12121 | P40: U= | Q40: =Q39/(LOG(Q4)/LOG(2)) -> 0.6451763583 | V40: U1= | W40: =W39/(LOG(W4)/LOG(2)) -> 0.8795880017 | AA40: U2= | AB40: =AB39/(LOG(AB4)/LOG(2)) -> 0.6666666667 | AF40: U3= | AG40: =AG39/(LOG(AG4)/LOG(2)) -> 0.8795880017 | AK40: U4= | AL40: =AL39/(LOG(AL4)/LOG(2)) -> 0.7966576245 | AP40: U5= | AQ40: =AQ39/(LOG(AQ4)/LOG(2)) -> 0.7632300274 | AU40: U6= | AV40: =AV39/(LOG(AV4)/LOG(2)) -> 0.7632300274
A41: 12 | B41: 7426 | C41: 24 | D41: 7438 | E41: 13 | F41: 7451 | G41: 23 | H41: 7461 | I41: 13 | J41: 7476 | K41: 0 | L41: 12121
A42: 21 | B42: 7663 | C42: 22 | D42: 7721 | E42: 13 | F42: 7732 | G42: 23 | H42: 7742 | I42: 24 | J42: 7751 | K42: 0 | L42: 22122
A43: 12 | B43: 7940 | C43: 13 | D43: 7955 | E43: 13 | F43: 7994 | G43: 23 | H43: 8004 | I43: 13 | J43: 8028 | K43: 0 | L43: 11121 | N43: Total Target Seq
A44: 12 | B44: 8263 | C44: 24 | D44: 8271 | E44: 13 | F44: 8286 | G44: 23 | H44: 8296 | I44: 13 | J44: 8308 | K44: 0 | L44: 12121 | N44: =COUNTIF(L7:L64,G3) -> 0 | P44: 10 | Q44: 9 | R44: 10 | S44: 10 | T44: 9 | U44: 10
A45: 21 | B45: 8544 | C45: 22 | D45: 8567 | E45: 13 | F45: 8577 | G45: 23 | H45: 8587 | I45: 13 | J45: 8600 | K45: 0 | L45: 22121 | P45: % of reinforcement given in 6 equal intervals based on number of trials
A46: 21 | B46: 8806 | C46: 11 | D46: 8820 | E46: 22 | F46: 8847 | G46: 14 | H46: 8862 | I46: 24 | J46: 8874 | K46: 0 | L46: 21212 | P46: %_1 | Q46: %_2 | R46: %_3 | S46: %_4 | T46: %_5 | U46: %_6
A47: 21 | B47: 10008 | C47: 11 | D47: 10042 | E47: 22 | F47: 10053 | G47: 14 | H47: 10078 | I47: 13 | J47: 10090 | K47: 0 | L47: 21211 | O47: target sequence | P47: =$G$3 -> 21121 | Q47: =$G$3 -> 21121 | R47: =$G$3 -> 21121 | S47: =$G$3 -> 21121 | T47: =$G$3 -> 21121 | U47: =$G$3 -> 21121
A48: 12 | B48: 11680 | C48: 24 | D48: 11691 | E48: 24 | F48: 11702 | G48: 14 | H48: 11716 | I48: 24 | J48: 11727 | K48: 0 | L48: 12212 | O48: total reinforcement | P48: =U25 -> 0 | Q48: =Z25 -> 0 | R48: =AE25 -> 0 | S48: =AJ25 -> 0 | T48: =AO25 -> 0 | U48: =AT25 -> 0
A49: 12 | B49: 11995 | C49: 13 | D49: 12015 | E49: 24 | F49: 12028 | G49: 14 | H49: 12048 | I49: 24 | J49: 12058 | K49: 0 | L49: 11212 | O49: % target
A50: 12 | B50: 12600 | C50: 24 | D50: 12610 | E50: 13 | F50: 12643 | G50: 14 | H50: 12666 | I50: 24 | J50: 12678 | K50: 0 | L50: 12112 | O50: CCRF
A51: 12 | B51: 13011 | C51: 13 | D51: 13041 | E51: 24 | F51: 13051 | G51: 14 | H51: 13065 | I51: 24 | J51: 13077 | K51: 0 | L51: 11212 | O51: % CCRf
A52: 21 | B52: 13294 | C52: 11 | D52: 13321 | E52: 22 | F52: 13334 | G52: 14 | H52: 13349 | I52: 24 | J52: 13362 | K52: 0 | L52: 21212 | O52: average response rate | P52: =J16/P44 -> 167.6 | Q52: =(J25-J16)/Q44 -> 187.2222222 | R52: =(J35-J25)/R44 -> 279.8 | S52: =(J45-J35)/S44 -> 244.1 | T52: =(J54-J45)/T44 -> 586.8888889 | U52: =(J64-J54)/U44 -> -1388.2
A53: 12 | B53: 13489 | C53: 13 | D53: 13503 | E53: 13 | F53: 13533 | G53: 23 | H53: 13543 | I53: 13 | J53: 13556 | K53: 0 | L53: 11121
A54: 12 | B54: 13828 | C54: 13 | D54: 13843 | E54: 24 | F54: 13862 | G54: 14 | H54: 13872 | I54: 24 | J54: 13882 | K54: 0 | L54: 11212
A55: 12 | B55: 14098 | C55: 24 | D55: 14108 | E55: 13 | F55: 17485 | G55: 23 | H55: 17521 | I55: 24 | J55: 17552 | K55: 0 | L55: 12122
A56: 12 | B56: 17815 | C56: 13 | D56: 17842 | E56: 13 | F56: 17879 | G56: 14 | H56: 17889 | I56: 13 | J56: 17902 | K56: 0 | L56: 11111
A57: 21 | B57: 19249 | C57: 11 | D57: 19290 | E57: 22 | F57: 19326 | G57: 14 | H57: 19599 | I57: 24 | J57: 19624 | K57: 0 | L57: 21212
A58: 12 | B58: 20147 | C58: 13 | D58: 20178 | E58: 24 | F58: 20344 | G58: 14 | H58: 20365 | I58: 24 | J58: 20376 | K58: 0 | L58: 11212
A59: 21 | B59: 20830 | C59: 11 | D59: 20893 | E59: 22 | F59: 20905 | G59: 14 | H59: 20930 | I59: 24 | J59: 20966 | K59: 0 | L59: 21212
A60: 12 | B60: 21080 | C60: 24 | D60: 21093 | E60: 13 | F60: 21104 | G60: 23 | H60: 21115 | I60: 13 | J60: 21129 | K60: 0 | L60: 12121
A61: 21 | B61: 21318 | C61: 11 | D61: 21334 | E61: 22 | F61: 21345 | G61: 14 | H61: 21392 | I61: 24 | J61: 21416 | K61: 0 | L61: 21212
A62: 21 | B62: 21592 | C62: 11 | D62: 21605 | E62: 11 | F62: 21615 | G62: 21 | H62: 21626 | I62: 22 | J62: 21652 | K62: 0 | L62: 21122
A63: 12 | B63: 22429 | C63: 13 | D63: 22447 | E63: 13 | F63: 22457 | G63: 14 | H63: 22466 | I63: 13 | J63: 22491 | K63: 0 | L63: 11111
A64: 21 | B64: 23820 | C64: 22 | D64: 23850 | L64: 22

Sheet !N103A10.105
A1: Report for:!N103A10.105
A2: Date: | B2: <date>
A3: Hen: | B3: <hen> | F3: Correct Sequence | G3: =Start!J2 -> 21121 | P3: Total Sequences in Data | Q3: =4994-COUNTBLANK(L7:L5000) -> 1 | V3: Total Sequences in Block Data | W3: =COUNTA(L6:L7) -> 2 | AA3: Total Sequences in Block Data | AB3: =COUNTA(L6:L7) -> 2 | AF3: Total Sequences in Block Data | AG3: =COUNTA(L7:L7) -> 1 | AK3: Total Sequences in Block Data | AL3: =COUNTA(L7:L8) -> 1 | AP3: Total Sequences in Block Data | AQ3: =COUNTA(L7:L8) -> 1 | AU3: Total Sequences in Block Data | AV3: =COUNTA(L7:L8) -> 1
P4: Total Sequences in Summary | Q4: =SUM(O7:O38) -> 0 | V4: Total Sequences in Block Summary | W4: =SUM(U7:U38) -> 0 | AA4: Total Sequences in Block Summary | AB4: =SUM(Z7:Z38) -> 0 | AF4: Total Sequences in Block Summary | AG4: =SUM(AE7:AE38) -> 0 | AK4: Total Sequences in Block Summary | AL4: =SUM(AJ7:AJ38) -> 0 | AP4: Total Sequences in Block Summary | AQ4: =SUM(AO7:AO38) -> 0 | AU4: Total Sequences in Block Summary | AV4: =SUM(AT7:AT38) -> 0
T5: Block 1 | Y5: Block 2 | AD5: Block 3 | AI5: Block 4 | AN5: Block 5 | AS5: Block 6
A6: Sequence Component 1 | B6: Time 1 | C6: Sequence Component 2 | D6: Time 2 | E6: Sequence Component 3 | F6: Time 3 | G6: Sequence Component 4 | H6: Time 4 | I6: Sequence Component 5 | J6: Time 5 | K6: Correct? 0=No 1=Yes | L6: Sequence | N6: Frequency | P6: Relative Frequency | Q6: Variability | T6: Frequency | V6: Relative Frequency | W6: Variability | Y6: Frequency | AA6: Relative Frequency | AB6: Variability | AD6: Frequency | AF6: Relative Frequency | AG6: Variability | AI6: Frequency | AK6: Relative Frequency | AL6: Variability | AN6: Frequency | AP6: Relative Frequency | AQ6: Variability | AS6: Frequency | AU6: Relative Frequency | AV6: Variability
A7: 12 | B7: 10 | C7: 24 | D7: 24 | E7: 13 | F7: 32 | L7: 121 | N7: 11111 | O7: =COUNTIF($L$7:$L$500,N7) -> 0 | P7: =O7/$Q$4 ->  | Q7: =IF(P7=0,0,(P7*((LOG(P7))/LOG(2)))) ->  | T7: =N7 -> 11111 | U7: =COUNTIF(L6:L7,T7) -> 0 | V7: =U7/(W4-U25) ->  | W7: =IF(V7=0,0,(V7*((LOG(V7))/LOG(2)))) ->  | Y7: =N7 -> 11111 | Z7: =COUNTIF(L6:L7,Y7) -> 0 | AA7: =Z7/(AB4-Z25) ->  | AB7: =IF(AA7=0,0,(AA7*((LOG(AA7))/LOG(2)))) ->  | AD7: =N7 -> 11111 | AE7: =COUNTIF(L7:L7,AD7) -> 0 | AF7: =AE7/(AG4-AE25) ->  | AG7: =IF(AF7=0,0,(AF7*((LOG(AF7))/LOG(2)))) ->  | AI7: =N7 -> 11111 | AJ7: =COUNTIF(L7:L8,AI7) -> 0 | AK7: =AJ7/(AL4-AJ25) ->  | AL7: =IF(AK7=0,0,(AK7*((LOG(AK7))/LOG(2)))) ->  | AN7: =N7 -> 11111 | AO7: =COUNTIF(L7:L8,AN7) -> 0 | AP7: =AO7/(AQ4-AO25) ->  | AQ7: =IF(AP7=0,0,(AP7*((LOG(AP7))/LOG(2)))) ->  | AS7: =N7 -> 11111 | AT7: =COUNTIF(L7:L8,AS7) -> 0 | AU7: =AT7/(AV4-AT25) ->  | AV7: =IF(AU7=0,0,(AU7*((LOG(AU7))/LOG(2)))) -> 
N8: 11112 | O8: =COUNTIF($L$7:$L$500,N8) -> 0 | P8: =O8/$Q$4 ->  | Q8: =IF(P8=0,0,(P8*((LOG(P8))/LOG(2)))) ->  | T8: =N8 -> 11112 | U8: =COUNTIF(L6:L7,T8) -> 0 | V8: =U8/(W4-U25) ->  | W8: =IF(V8=0,0,(V8*((LOG(V8))/LOG(2)))) ->  | Y8: =N8 -> 11112 | Z8: =COUNTIF(L6:L7,Y8) -> 0 | AA8: =Z8/(AB4-Z25) ->  | AB8: =IF(AA8=0,0,(AA8*((LOG(AA8))/LOG(2)))) ->  | AD8: =N8 -> 11112 | AE8: =COUNTIF(L7:L7,AD8) -> 0 | AF8: =AE8/(AG4-AE25) ->  | AG8: =IF(AF8=0,0,(AF8*((LOG(AF8))/LOG(2)))) ->  | AI8: =N8 -> 11112 | AJ8: =COUNTIF(L7:L8,AI8) -> 0 | AK8: =AJ8/(AL4-AJ25) ->  | AL8: =IF(AK8=0,0,(AK8*((LOG(AK8))/LOG(2)))) ->  | AN8: =N8 -> 11112 | AO8: =COUNTIF(L7:L8,AN8) -> 0 | AP8: =AO8/(AQ4-AO25) ->  | AQ8: =IF(AP8=0,0,(AP8*((LOG(AP8))/LOG(2)))) ->  | AS8: =N8 -> 11112 | AT8: =COUNTIF(L7:L8,AS8) -> 0 | AU8: =AT8/(AV4-AT25) ->  | AV8: =IF(AU8=0,0,(AU8*((LOG(AU8))/LOG(2)))) -> 
N9: 11121 | O9: =COUNTIF($L$7:$L$500,N9) -> 0 | P9: =O9/$Q$4 ->  | Q9: =IF(P9=0,0,(P9*((LOG(P9))/LOG(2)))) ->  | T9: =N9 -> 11121 | U9: =COUNTIF(L6:L7,T9) -> 0 | V9: =U9/(W4-U25) ->  | W9: =IF(V9=0,0,(V9*((LOG(V9))/LOG(2)))) ->  | Y9: =N9 -> 11121 | Z9: =COUNTIF(L6:L7,Y9) -> 0 | AA9: =Z9/(AB4-Z25) ->  | AB9: =IF(AA9=0,0,(AA9*((LOG(AA9))/LOG(2)))) ->  | AD9: =N9 -> 11121 | AE9: =COUNTIF(L7:L7,AD9) -> 0 | AF9: =AE9/(AG4-AE25) ->  | AG9: =IF(AF9=0,0,(AF9*((LOG(AF9))/LOG(2)))) ->  | AI9: =N9 -> 11121 | AJ9: =COUNTIF(L7:L8,AI9) -> 0 | AK9: =AJ9/(AL4-AJ25) ->  | AL9: =IF(AK9=0,0,(AK9*((LOG(AK9))/LOG(2)))) ->  | AN9: =N9 -> 11121 | AO9: =COUNTIF(L7:L8,AN9) -> 0 | AP9: =AO9/(AQ4-AO25) ->  | AQ9: =IF(AP9=0,0,(AP9*((LOG(AP9))/LOG(2)))) ->  | AS9: =N9 -> 11121 | AT9: =COUNTIF(L7:L8,AS9) -> 0 | AU9: =AT9/(AV4-AT25) ->  | AV9: =IF(AU9=0,0,(AU9*((LOG(AU9))/LOG(2)))) -> 
N10: 11122 | O10: =COUNTIF($L$7:$L$500,N10) -> 0 | P10: =O10/$Q$4 ->  | Q10: =IF(P10=0,0,(P10*((LOG(P10))/LOG(2)))) ->  | T10: =N10 -> 11122 | U10: =COUNTIF(L6:L7,T10) -> 0 | V10: =U10/(W4-U25) ->  | W10: =IF(V10=0,0,(V10*((LOG(V10))/LOG(2)))) ->  | Y10: =N10 -> 11122 | Z10: =COUNTIF(L6:L7,Y10) -> 0 | AA10: =Z10/(AB4-Z25) ->  | AB10: =IF(AA10=0,0,(AA10*((LOG(AA10))/LOG(2)))) ->  | AD10: =N10 -> 11122 | AE10: =COUNTIF(L7:L7,AD10) -> 0 | AF10: =AE10/(AG4-AE25) ->  | AG10: =IF(AF10=0,0,(AF10*((LOG(AF10))/LOG(2)))) ->  | AI10: =N10 -> 11122 | AJ10: =COUNTIF(L7:L8,AI10) -> 0 | AK10: =AJ10/(AL4-AJ25) ->  | AL10: =IF(AK10=0,0,(AK10*((LOG(AK10))/LOG(2)))) ->  | AN10: =N10 -> 11122 | AO10: =COUNTIF(L7:L8,AN10) -> 0 | AP10: =AO10/(AQ4-AO25) ->  | AQ10: =IF(AP10=0,0,(AP10*((LOG(AP10))/LOG(2)))) ->  | AS10: =N10 -> 11122 | AT10: =COUNTIF(L7:L8,AS10) -> 0 | AU10: =AT10/(AV4-AT25) ->  | AV10: =IF(AU10=0,0,(AU10*((LOG(AU10))/LOG(2)))) -> 
N11: 11211 | O11: =COUNTIF($L$7:$L$500,N11) -> 0 | P11: =O11/$Q$4 ->  | Q11: =IF(P11=0,0,(P11*((LOG(P11))/LOG(2)))) ->  | T11: =N11 -> 11211 | U11: =COUNTIF(L6:L7,T11) -> 0 | V11: =U11/(W4-U25) ->  | W11: =IF(V11=0,0,(V11*((LOG(V11))/LOG(2)))) ->  | Y11: =N11 -> 11211 | Z11: =COUNTIF(L6:L7,Y11) -> 0 | AA11: =Z11/(AB4-Z25) ->  | AB11: =IF(AA11=0,0,(AA11*((LOG(AA11))/LOG(2)))) ->  | AD11: =N11 -> 11211 | AE11: =COUNTIF(L7:L7,AD11) -> 0 | AF11: =AE11/(AG4-AE25) ->  | AG11: =IF(AF11=0,0,(AF11*((LOG(AF11))/LOG(2)))) ->  | AI11: =N11 -> 11211 | AJ11: =COUNTIF(L7:L8,AI11) -> 0 | AK11: =AJ11/(AL4-AJ25) ->  | AL11: =IF(AK11=0,0,(AK11*((LOG(AK11))/LOG(2)))) ->  | AN11: =N11 -> 11211 | AO11: =COUNTIF(L7:L8,AN11) -> 0 | AP11: =AO11/(AQ4-AO25) ->  | AQ11: =IF(AP11=0,0,(AP11*((LOG(AP11))/LOG(2)))) ->  | AS11: =N11 -> 11211 | AT11: =COUNTIF(L7:L8,AS11) -> 0 | AU11: =AT11/(AV4-AT25) ->  | AV11: =IF(AU11=0,0,(AU11*((LOG(AU11))/LOG(2)))) -> 
N12: 11212 | O12: =COUNTIF($L$7:$L$500,N12) -> 0 | P12: =O12/$Q$4 ->  | Q12: =IF(P12=0,0,(P12*((LOG(P12))/LOG(2)))) ->  | T12: =N12 -> 11212 | U12: =COUNTIF(L6:L7,T12) -> 0 | V12: =U12/(W4-U25) ->  | W12: =IF(V12=0,0,(V12*((LOG(V12))/LOG(2)))) ->  | Y12: =N12 -> 11212 | Z12: =COUNTIF(L6:L7,Y12) -> 0 | AA12: =Z12/(AB4-Z25) ->  | AB12: =IF(AA12=0,0,(AA12*((LOG(AA12))/LOG(2)))) ->  | AD12: =N12 -> 11212 | AE12: =COUNTIF(L7:L7,AD12) -> 0 | AF12: =AE12/(AG4-AE25) ->  | AG12: =IF(AF12=0,0,(AF12*((LOG(AF12))/LOG(2)))) ->  | AI12: =N12 -> 11212 | AJ12: =COUNTIF(L7:L8,AI12) -> 0 | AK12: =AJ12/(AL4-AJ25) ->  | AL12: =IF(AK12=0,0,(AK12*((LOG(AK12))/LOG(2)))) ->  | AN12: =N12 -> 11212 | AO12: =COUNTIF(L7:L8,AN12) -> 0 | AP12: =AO12/(AQ4-AO25) ->  | AQ12: =IF(AP12=0,0,(AP12*((LOG(AP12))/LOG(2)))) ->  | AS12: =N12 -> 11212 | AT12: =COUNTIF(L7:L8,AS12) -> 0 | AU12: =AT12/(AV4-AT25) ->  | AV12: =IF(AU12=0,0,(AU12*((LOG(AU12))/LOG(2)))) -> 
N13: 11221 | O13: =COUNTIF($L$7:$L$500,N13) -> 0 | P13: =O13/$Q$4 ->  | Q13: =IF(P13=0,0,(P13*((LOG(P13))/LOG(2)))) ->  | T13: =N13 -> 11221 | U13: =COUNTIF(L6:L7,T13) -> 0 | V13: =U13/(W4-U25) ->  | W13: =IF(V13=0,0,(V13*((LOG(V13))/LOG(2)))) ->  | Y13: =N13 -> 11221 | Z13: =COUNTIF(L6:L7,Y13) -> 0 | AA13: =Z13/(AB4-Z25) ->  | AB13: =IF(AA13=0,0,(AA13*((LOG(AA13))/LOG(2)))) ->  | AD13: =N13 -> 11221 | AE13: =COUNTIF(L7:L7,AD13) -> 0 | AF13: =AE13/(AG4-AE25) ->  | AG13: =IF(AF13=0,0,(AF13*((LOG(AF13))/LOG(2)))) ->  | AI13: =N13 -> 11221 | AJ13: =COUNTIF(L7:L8,AI13) -> 0 | AK13: =AJ13/(AL4-AJ25) ->  | AL13: =IF(AK13=0,0,(AK13*((LOG(AK13))/LOG(2)))) ->  | AN13: =N13 -> 11221 | AO13: =COUNTIF(L7:L8,AN13) -> 0 | AP13: =AO13/(AQ4-AO25) ->  | AQ13: =IF(AP13=0,0,(AP13*((LOG(AP13))/LOG(2)))) ->  | AS13: =N13 -> 11221 | AT13: =COUNTIF(L7:L8,AS13) -> 0 | AU13: =AT13/(AV4-AT25) ->  | AV13: =IF(AU13=0,0,(AU13*((LOG(AU13))/LOG(2)))) -> 
N14: 11222 | O14: =COUNTIF($L$7:$L$500,N14) -> 0 | P14: =O14/$Q$4 ->  | Q14: =IF(P14=0,0,(P14*((LOG(P14))/LOG(2)))) ->  | T14: =N14 -> 11222 | U14: =COUNTIF(L6:L7,T14) -> 0 | V14: =U14/(W4-U25) ->  | W14: =IF(V14=0,0,(V14*((LOG(V14))/LOG(2)))) ->  | Y14: =N14 -> 11222 | Z14: =COUNTIF(L6:L7,Y14) -> 0 | AA14: =Z14/(AB4-Z25) ->  | AB14: =IF(AA14=0,0,(AA14*((LOG(AA14))/LOG(2)))) ->  | AD14: =N14 -> 11222 | AE14: =COUNTIF(L7:L7,AD14) -> 0 | AF14: =AE14/(AG4-AE25) ->  | AG14: =IF(AF14=0,0,(AF14*((LOG(AF14))/LOG(2)))) ->  | AI14: =N14 -> 11222 | AJ14: =COUNTIF(L7:L8,AI14) -> 0 | AK14: =AJ14/(AL4-AJ25) ->  | AL14: =IF(AK14=0,0,(AK14*((LOG(AK14))/LOG(2)))) ->  | AN14: =N14 -> 11222 | AO14: =COUNTIF(L7:L8,AN14) -> 0 | AP14: =AO14/(AQ4-AO25) ->  | AQ14: =IF(AP14=0,0,(AP14*((LOG(AP14))/LOG(2)))) ->  | AS14: =N14 -> 11222 | AT14: =COUNTIF(L7:L8,AS14) -> 0 | AU14: =AT14/(AV4-AT25) ->  | AV14: =IF(AU14=0,0,(AU14*((LOG(AU14))/LOG(2)))) -> 
N15: 12111 | O15: =COUNTIF($L$7:$L$500,N15) -> 0 | P15: =O15/$Q$4 ->  | Q15: =IF(P15=0,0,(P15*((LOG(P15))/LOG(2)))) ->  | T15: =N15 -> 12111 | U15: =COUNTIF(L6:L7,T15) -> 0 | V15: =U15/(W4-U25) ->  | W15: =IF(V15=0,0,(V15*((LOG(V15))/LOG(2)))) ->  | Y15: =N15 -> 12111 | Z15: =COUNTIF(L6:L7,Y15) -> 0 | AA15: =Z15/(AB4-Z25) ->  | AB15: =IF(AA15=0,0,(AA15*((LOG(AA15))/LOG(2)))) ->  | AD15: =N15 -> 12111 | AE15: =COUNTIF(L7:L7,AD15) -> 0 | AF15: =AE15/(AG4-AE25) ->  | AG15: =IF(AF15=0,0,(AF15*((LOG(AF15))/LOG(2)))) ->  | AI15: =N15 -> 12111 | AJ15: =COUNTIF(L7:L8,AI15) -> 0 | AK15: =AJ15/(AL4-AJ25) ->  | AL15: =IF(AK15=0,0,(AK15*((LOG(AK15))/LOG(2)))) ->  | AN15: =N15 -> 12111 | AO15: =COUNTIF(L7:L8,AN15) -> 0 | AP15: =AO15/(AQ4-AO25) ->  | AQ15: =IF(AP15=0,0,(AP15*((LOG(AP15))/LOG(2)))) ->  | AS15: =N15 -> 12111 | AT15: =COUNTIF(L7:L8,AS15) -> 0 | AU15: =AT15/(AV4-AT25) ->  | AV15: =IF(AU15=0,0,(AU15*((LOG(AU15))/LOG(2)))) -> 
N16: 12112 | O16: =COUNTIF($L$7:$L$500,N16) -> 0 | P16: =O16/$Q$4 ->  | Q16: =IF(P16=0,0,(P16*((LOG(P16))/LOG(2)))) ->  | T16: =N16 -> 12112 | U16: =COUNTIF(L6:L7,T16) -> 0 | V16: =U16/(W4-U25) ->  | W16: =IF(V16=0,0,(V16*((LOG(V16))/LOG(2)))) ->  | Y16: =N16 -> 12112 | Z16: =COUNTIF(L6:L7,Y16) -> 0 | AA16: =Z16/(AB4-Z25) ->  | AB16: =IF(AA16=0,0,(AA16*((LOG(AA16))/LOG(2)))) ->  | AD16: =N16 -> 12112 | AE16: =COUNTIF(L7:L7,AD16) -> 0 | AF16: =AE16/(AG4-AE25) ->  | AG16: =IF(AF16=0,0,(AF16*((LOG(AF16))/LOG(2)))) ->  | AI16: =N16 -> 12112 | AJ16: =COUNTIF(L7:L8,AI16) -> 0 | AK16: =AJ16/(AL4-AJ25) ->  | AL16: =IF(AK16=0,0,(AK16*((LOG(AK16))/LOG(2)))) ->  | AN16: =N16 -> 12112 | AO16: =COUNTIF(L7:L8,AN16) -> 0 | AP16: =AO16/(AQ4-AO25) ->  | AQ16: =IF(AP16=0,0,(AP16*((LOG(AP16))/LOG(2)))) ->  | AS16: =N16 -> 12112 | AT16: =COUNTIF(L7:L8,AS16) -> 0 | AU16: =AT16/(AV4-AT25) ->  | AV16: =IF(AU16=0,0,(AU16*((LOG(AU16))/LOG(2)))) -> 
N17: 12121 | O17: =COUNTIF($L$7:$L$500,N17) -> 0 | P17: =O17/$Q$4 ->  | Q17: =IF(P17=0,0,(P17*((LOG(P17))/LOG(2)))) ->  | T17: =N17 -> 12121 | U17: =COUNTIF(L6:L7,T17) -> 0 | V17: =U17/(W4-U25) ->  | W17: =IF(V17=0,0,(V17*((LOG(V17))/LOG(2)))) ->  | Y17: =N17 -> 12121 | Z17: =COUNTIF(L6:L7,Y17) -> 0 | AA17: =Z17/(AB4-Z25) ->  | AB17: =IF(AA17=0,0,(AA17*((LOG(AA17))/LOG(2)))) ->  | AD17: =N17 -> 12121 | AE17: =COUNTIF(L7:L7,AD17) -> 0 | AF17: =AE17/(AG4-AE25) ->  | AG17: =IF(AF17=0,0,(AF17*((LOG(AF17))/LOG(2)))) ->  | AI17: =N17 -> 12121 | AJ17: =COUNTIF(L7:L8,AI17) -> 0 | AK17: =AJ17/(AL4-AJ25) ->  | AL17: =IF(AK17=0,0,(AK17*((LOG(AK17))/LOG(2)))) ->  | AN17: =N17 -> 12121 | AO17: =COUNTIF(L7:L8,AN17) -> 0 | AP17: =AO17/(AQ4-AO25) ->  | AQ17: =IF(AP17=0,0,(AP17*((LOG(AP17))/LOG(2)))) ->  | AS17: =N17 -> 12121 | AT17: =COUNTIF(L7:L8,AS17) -> 0 | AU17: =AT17/(AV4-AT25) ->  | AV17: =IF(AU17=0,0,(AU17*((LOG(AU17))/LOG(2)))) -> 
N18: 12122 | O18: =COUNTIF($L$7:$L$500,N18) -> 0 | P18: =O18/$Q$4 ->  | Q18: =IF(P18=0,0,(P18*((LOG(P18))/LOG(2)))) ->  | T18: =N18 -> 12122 | U18: =COUNTIF(L6:L7,T18) -> 0 | V18: =U18/(W4-U25) ->  | W18: =IF(V18=0,0,(V18*((LOG(V18))/LOG(2)))) ->  | Y18: =N18 -> 12122 | Z18: =COUNTIF(L6:L7,Y18) -> 0 | AA18: =Z18/(AB4-Z25) ->  | AB18: =IF(AA18=0,0,(AA18*((LOG(AA18))/LOG(2)))) ->  | AD18: =N18 -> 12122 | AE18: =COUNTIF(L7:L7,AD18) -> 0 | AF18: =AE18/(AG4-AE25) ->  | AG18: =IF(AF18=0,0,(AF18*((LOG(AF18))/LOG(2)))) ->  | AI18: =N18 -> 12122 | AJ18: =COUNTIF(L7:L8,AI18) -> 0 | AK18: =AJ18/(AL4-AJ25) ->  | AL18: =IF(AK18=0,0,(AK18*((LOG(AK18))/LOG(2)))) ->  | AN18: =N18 -> 12122 | AO18: =COUNTIF(L7:L8,AN18) -> 0 | AP18: =AO18/(AQ4-AO25) ->  | AQ18: =IF(AP18=0,0,(AP18*((LOG(AP18))/LOG(2)))) ->  | AS18: =N18 -> 12122 | AT18: =COUNTIF(L7:L8,AS18) -> 0 | AU18: =AT18/(AV4-AT25) ->  | AV18: =IF(AU18=0,0,(AU18*((LOG(AU18))/LOG(2)))) -> 
N19: 12211 | O19: =COUNTIF($L$7:$L$500,N19) -> 0 | P19: =O19/$Q$4 ->  | Q19: =IF(P19=0,0,(P19*((LOG(P19))/LOG(2)))) ->  | T19: =N19 -> 12211 | U19: =COUNTIF(L6:L7,T19) -> 0 | V19: =U19/(W4-U25) ->  | W19: =IF(V19=0,0,(V19*((LOG(V19))/LOG(2)))) ->  | Y19: =N19 -> 12211 | Z19: =COUNTIF(L6:L7,Y19) -> 0 | AA19: =Z19/(AB4-Z25) ->  | AB19: =IF(AA19=0,0,(AA19*((LOG(AA19))/LOG(2)))) ->  | AD19: =N19 -> 12211 | AE19: =COUNTIF(L7:L7,AD19) -> 0 | AF19: =AE19/(AG4-AE25) ->  | AG19: =IF(AF19=0,0,(AF19*((LOG(AF19))/LOG(2)))) ->  | AI19: =N19 -> 12211 | AJ19: =COUNTIF(L7:L8,AI19) -> 0 | AK19: =AJ19/(AL4-AJ25) ->  | AL19: =IF(AK19=0,0,(AK19*((LOG(AK19))/LOG(2)))) ->  | AN19: =N19 -> 12211 | AO19: =COUNTIF(L7:L8,AN19) -> 0 | AP19: =AO19/(AQ4-AO25) ->  | AQ19: =IF(AP19=0,0,(AP19*((LOG(AP19))/LOG(2)))) ->  | AS19: =N19 -> 12211 | AT19: =COUNTIF(L7:L8,AS19) -> 0 | AU19: =AT19/(AV4-AT25) ->  | AV19: =IF(AU19=0,0,(AU19*((LOG(AU19))/LOG(2)))) -> 
N20: 12212 | O20: =COUNTIF($L$7:$L$500,N20) -> 0 | P20: =O20/$Q$4 ->  | Q20: =IF(P20=0,0,(P20*((LOG(P20))/LOG(2)))) ->  | T20: =N20 -> 12212 | U20: =COUNTIF(L6:L7,T20) -> 0 | V20: =U20/(W4-U25) ->  | W20: =IF(V20=0,0,(V20*((LOG(V20))/LOG(2)))) ->  | Y20: =N20 -> 12212 | Z20: =COUNTIF(L6:L7,Y20) -> 0 | AA20: =Z20/(AB4-Z25) ->  | AB20: =IF(AA20=0,0,(AA20*((LOG(AA20))/LOG(2)))) ->  | AD20: =N20 -> 12212 | AE20: =COUNTIF(L7:L7,AD20) -> 0 | AF20: =AE20/(AG4-AE25) ->  | AG20: =IF(AF20=0,0,(AF20*((LOG(AF20))/LOG(2)))) ->  | AI20: =N20 -> 12212 | AJ20: =COUNTIF(L7:L8,AI20) -> 0 | AK20: =AJ20/(AL4-AJ25) ->  | AL20: =IF(AK20=0,0,(AK20*((LOG(AK20))/LOG(2)))) ->  | AN20: =N20 -> 12212 | AO20: =COUNTIF(L7:L8,AN20) -> 0 | AP20: =AO20/(AQ4-AO25) ->  | AQ20: =IF(AP20=0,0,(AP20*((LOG(AP20))/LOG(2)))) ->  | AS20: =N20 -> 12212 | AT20: =COUNTIF(L7:L8,AS20) -> 0 | AU20: =AT20/(AV4-AT25) ->  | AV20: =IF(AU20=0,0,(AU20*((LOG(AU20))/LOG(2)))) -> 
N21: 12221 | O21: =COUNTIF($L$7:$L$500,N21) -> 0 | P21: =O21/$Q$4 ->  | Q21: =IF(P21=0,0,(P21*((LOG(P21))/LOG(2)))) ->  | T21: =N21 -> 12221 | U21: =COUNTIF(L6:L7,T21) -> 0 | V21: =U21/(W4-U25) ->  | W21: =IF(V21=0,0,(V21*((LOG(V21))/LOG(2)))) ->  | Y21: =N21 -> 12221 | Z21: =COUNTIF(L6:L7,Y21) -> 0 | AA21: =Z21/(AB4-Z25) ->  | AB21: =IF(AA21=0,0,(AA21*((LOG(AA21))/LOG(2)))) ->  | AD21: =N21 -> 12221 | AE21: =COUNTIF(L7:L7,AD21) -> 0 | AF21: =AE21/(AG4-AE25) ->  | AG21: =IF(AF21=0,0,(AF21*((LOG(AF21))/LOG(2)))) ->  | AI21: =N21 -> 12221 | AJ21: =COUNTIF(L7:L8,AI21) -> 0 | AK21: =AJ21/(AL4-AJ25) ->  | AL21: =IF(AK21=0,0,(AK21*((LOG(AK21))/LOG(2)))) ->  | AN21: =N21 -> 12221 | AO21: =COUNTIF(L7:L8,AN21) -> 0 | AP21: =AO21/(AQ4-AO25) ->  | AQ21: =IF(AP21=0,0,(AP21*((LOG(AP21))/LOG(2)))) ->  | AS21: =N21 -> 12221 | AT21: =COUNTIF(L7:L8,AS21) -> 0 | AU21: =AT21/(AV4-AT25) ->  | AV21: =IF(AU21=0,0,(AU21*((LOG(AU21))/LOG(2)))) -> 
N22: 12222 | O22: =COUNTIF($L$7:$L$500,N22) -> 0 | P22: =O22/$Q$4 ->  | Q22: =IF(P22=0,0,(P22*((LOG(P22))/LOG(2)))) ->  | T22: =N22 -> 12222 | U22: =COUNTIF(L6:L7,T22) -> 0 | V22: =U22/(W4-U25) ->  | W22: =IF(V22=0,0,(V22*((LOG(V22))/LOG(2)))) ->  | Y22: =N22 -> 12222 | Z22: =COUNTIF(L6:L7,Y22) -> 0 | AA22: =Z22/(AB4-Z25) ->  | AB22: =IF(AA22=0,0,(AA22*((LOG(AA22))/LOG(2)))) ->  | AD22: =N22 -> 12222 | AE22: =COUNTIF(L7:L7,AD22) -> 0 | AF22: =AE22/(AG4-AE25) ->  | AG22: =IF(AF22=0,0,(AF22*((LOG(AF22))/LOG(2)))) ->  | AI22: =N22 -> 12222 | AJ22: =COUNTIF(L7:L8,AI22) -> 0 | AK22: =AJ22/(AL4-AJ25) ->  | AL22: =IF(AK22=0,0,(AK22*((LOG(AK22))/LOG(2)))) ->  | AN22: =N22 -> 12222 | AO22: =COUNTIF(L7:L8,AN22) -> 0 | AP22: =AO22/(AQ4-AO25) ->  | AQ22: =IF(AP22=0,0,(AP22*((LOG(AP22))/LOG(2)))) ->  | AS22: =N22 -> 12222 | AT22: =COUNTIF(L7:L8,AS22) -> 0 | AU22: =AT22/(AV4-AT25) ->  | AV22: =IF(AU22=0,0,(AU22*((LOG(AU22))/LOG(2)))) -> 
N23: 21111 | O23: =COUNTIF($L$7:$L$500,N23) -> 0 | P23: =O23/$Q$4 ->  | Q23: =IF(P23=0,0,(P23*((LOG(P23))/LOG(2)))) ->  | T23: =N23 -> 21111 | U23: =COUNTIF(L6:L7,T23) -> 0 | V23: =U23/(W4-U25) ->  | W23: =IF(V23=0,0,(V23*((LOG(V23))/LOG(2)))) ->  | Y23: =N23 -> 21111 | Z23: =COUNTIF(L6:L7,Y23) -> 0 | AA23: =Z23/(AB4-Z25) ->  | AB23: =IF(AA23=0,0,(AA23*((LOG(AA23))/LOG(2)))) ->  | AD23: =N23 -> 21111 | AE23: =COUNTIF(L7:L7,AD23) -> 0 | AF23: =AE23/(AG4-AE25) ->  | AG23: =IF(AF23=0,0,(AF23*((LOG(AF23))/LOG(2)))) ->  | AI23: =N23 -> 21111 | AJ23: =COUNTIF(L7:L8,AI23) -> 0 | AK23: =AJ23/(AL4-AJ25) ->  | AL23: =IF(AK23=0,0,(AK23*((LOG(AK23))/LOG(2)))) ->  | AN23: =N23 -> 21111 | AO23: =COUNTIF(L7:L8,AN23) -> 0 | AP23: =AO23/(AQ4-AO25) ->  | AQ23: =IF(AP23=0,0,(AP23*((LOG(AP23))/LOG(2)))) ->  | AS23: =N23 -> 21111 | AT23: =COUNTIF(L7:L8,AS23) -> 0 | AU23: =AT23/(AV4-AT25) ->  | AV23: =IF(AU23=0,0,(AU23*((LOG(AU23))/LOG(2)))) -> 
N24: 21112 | O24: =COUNTIF($L$7:$L$500,N24) -> 0 | P24: =O24/$Q$4 ->  | Q24: =IF(P24=0,0,(P24*((LOG(P24))/LOG(2)))) ->  | T24: =N24 -> 21112 | U24: =COUNTIF(L6:L7,T24) -> 0 | V24: =U24/(W4-U25) ->  | W24: =IF(V24=0,0,(V24*((LOG(V24))/LOG(2)))) ->  | Y24: =N24 -> 21112 | Z24: =COUNTIF(L6:L7,Y24) -> 0 | AA24: =Z24/(AB4-Z25) ->  | AB24: =IF(AA24=0,0,(AA24*((LOG(AA24))/LOG(2)))) ->  | AD24: =N24 -> 21112 | AE24: =COUNTIF(L7:L7,AD24) -> 0 | AF24: =AE24/(AG4-AE25) ->  | AG24: =IF(AF24=0,0,(AF24*((LOG(AF24))/LOG(2)))) ->  | AI24: =N24 -> 21112 | AJ24: =COUNTIF(L7:L8,AI24) -> 0 | AK24: =AJ24/(AL4-AJ25) ->  | AL24: =IF(AK24=0,0,(AK24*((LOG(AK24))/LOG(2)))) ->  | AN24: =N24 -> 21112 | AO24: =COUNTIF(L7:L8,AN24) -> 0 | AP24: =AO24/(AQ4-AO25) ->  | AQ24: =IF(AP24=0,0,(AP24*((LOG(AP24))/LOG(2)))) ->  | AS24: =N24 -> 21112 | AT24: =COUNTIF(L7:L8,AS24) -> 0 | AU24: =AT24/(AV4-AT25) ->  | AV24: =IF(AU24=0,0,(AU24*((LOG(AU24))/LOG(2)))) -> 
N25: 21121 | O25: =COUNTIF($L$7:$L$500,N25) -> 0 | P25: =O25/$Q$4 ->  | Q25: =IF(P25=0,0,(P25*((LOG(P25))/LOG(2)))) ->  | T25: =N25 -> 21121 | U25: =COUNTIF(L6:L7,T25) -> 0 | Y25: =N25 -> 21121 | Z25: =COUNTIF(L6:L7,Y25) -> 0 | AD25: =N25 -> 21121 | AE25: =COUNTIF(L7:L7,AD25) -> 0 | AI25: =N25 -> 21121 | AJ25: =COUNTIF(L7:L8,AI25) -> 0 | AN25: =N25 -> 21121 | AO25: =COUNTIF(L7:L8,AN25) -> 0 | AS25: =N25 -> 21121 | AT25: =COUNTIF(L7:L8,AS25) -> 0
N26: 21122 | O26: =COUNTIF($L$7:$L$500,N26) -> 0 | P26: =O26/$Q$4 ->  | Q26: =IF(P26=0,0,(P26*((LOG(P26))/LOG(2)))) ->  | T26: =N26 -> 21122 | U26: =COUNTIF(L6:L7,T26) -> 0 | V26: =U26/(W4-U25) ->  | W26: =IF(V26=0,0,(V26*((LOG(V26))/LOG(2)))) ->  | Y26: =N26 -> 21122 | Z26: =COUNTIF(L6:L7,Y26) -> 0 | AA26: =Z26/(AB4-Z25) ->  | AB26: =IF(AA26=0,0,(AA26*((LOG(AA26))/LOG(2)))) ->  | AD26: =N26 -> 21122 | AE26: =COUNTIF(L7:L7,AD26) -> 0 | AF26: =AE26/(AG4-AE25) ->  | AG26: =IF(AF26=0,0,(AF26*((LOG(AF26))/LOG(2)))) ->  | AI26: =N26 -> 21122 | AJ26: =COUNTIF(L7:L8,AI26) -> 0 | AK26: =AJ26/(AL4-AJ25) ->  | AL26: =IF(AK26=0,0,(AK26*((LOG(AK26))/LOG(2)))) ->  | AN26: =N26 -> 21122 | AO26: =COUNTIF(L7:L8,AN26) -> 0 | AP26: =AO26/(AQ4-AO25) ->  | AQ26: =IF(AP26=0,0,(AP26*((LOG(AP26))/LOG(2)))) ->  | AS26: =N26 -> 21122 | AT26: =COUNTIF(L7:L8,AS26) -> 0 | AU26: =AT26/(AV4-AT25) ->  | AV26: =IF(AU26=0,0,(AU26*((LOG(AU26))/LOG(2)))) -> 
N27: 21211 | O27: =COUNTIF($L$7:$L$500,N27) -> 0 | P27: =O27/$Q$4 ->  | Q27: =IF(P27=0,0,(P27*((LOG(P27))/LOG(2)))) ->  | T27: =N27 -> 21211 | U27: =COUNTIF(L6:L7,T27) -> 0 | V27: =U27/(W4-U25) ->  | W27: =IF(V27=0,0,(V27*((LOG(V27))/LOG(2)))) ->  | Y27: =N27 -> 21211 | Z27: =COUNTIF(L6:L7,Y27) -> 0 | AA27: =Z27/(AB4-Z25) ->  | AB27: =IF(AA27=0,0,(AA27*((LOG(AA27))/LOG(2)))) ->  | AD27: =N27 -> 21211 | AE27: =COUNTIF(L7:L7,AD27) -> 0 | AF27: =AE27/(AG4-AE25) ->  | AG27: =IF(AF27=0,0,(AF27*((LOG(AF27))/LOG(2)))) ->  | AI27: =N27 -> 21211 | AJ27: =COUNTIF(L7:L8,AI27) -> 0 | AK27: =AJ27/(AL4-AJ25) ->  | AL27: =IF(AK27=0,0,(AK27*((LOG(AK27))/LOG(2)))) ->  | AN27: =N27 -> 21211 | AO27: =COUNTIF(L7:L8,AN27) -> 0 | AP27: =AO27/(AQ4-AO25) ->  | AQ27: =IF(AP27=0,0,(AP27*((LOG(AP27))/LOG(2)))) ->  | AS27: =N27 -> 21211 | AT27: =COUNTIF(L7:L8,AS27) -> 0 | AU27: =AT27/(AV4-AT25) ->  | AV27: =IF(AU27=0,0,(AU27*((LOG(AU27))/LOG(2)))) -> 
N28: 21212 | O28: =COUNTIF($L$7:$L$500,N28) -> 0 | P28: =O28/$Q$4 ->  | Q28: =IF(P28=0,0,(P28*((LOG(P28))/LOG(2)))) ->  | T28: =N28 -> 21212 | U28: =COUNTIF(L6:L7,T28) -> 0 | V28: =U28/(W4-U25) ->  | W28: =IF(V28=0,0,(V28*((LOG(V28))/LOG(2)))) ->  | Y28: =N28 -> 21212 | Z28: =COUNTIF(L6:L7,Y28) -> 0 | AA28: =Z28/(AB4-Z25) ->  | AB28: =IF(AA28=0,0,(AA28*((LOG(AA28))/LOG(2)))) ->  | AD28: =N28 -> 21212 | AE28: =COUNTIF(L7:L7,AD28) -> 0 | AF28: =AE28/(AG4-AE25) ->  | AG28: =IF(AF28=0,0,(AF28*((LOG(AF28))/LOG(2)))) ->  | AI28: =N28 -> 21212 | AJ28: =COUNTIF(L7:L8,AI28) -> 0 | AK28: =AJ28/(AL4-AJ25) ->  | AL28: =IF(AK28=0,0,(AK28*((LOG(AK28))/LOG(2)))) ->  | AN28: =N28 -> 21212 | AO28: =COUNTIF(L7:L8,AN28) -> 0 | AP28: =AO28/(AQ4-AO25) ->  | AQ28: =IF(AP28=0,0,(AP28*((LOG(AP28))/LOG(2)))) ->  | AS28: =N28 -> 21212 | AT28: =COUNTIF(L7:L8,AS28) -> 0 | AU28: =AT28/(AV4-AT25) ->  | AV28: =IF(AU28=0,0,(AU28*((LOG(AU28))/LOG(2)))) -> 
N29: 21221 | O29: =COUNTIF($L$7:$L$500,N29) -> 0 | P29: =O29/$Q$4 ->  | Q29: =IF(P29=0,0,(P29*((LOG(P29))/LOG(2)))) ->  | T29: =N29 -> 21221 | U29: =COUNTIF(L6:L7,T29) -> 0 | V29: =U29/(W4-U25) ->  | W29: =IF(V29=0,0,(V29*((LOG(V29))/LOG(2)))) ->  | Y29: =N29 -> 21221 | Z29: =COUNTIF(L6:L7,Y29) -> 0 | AA29: =Z29/(AB4-Z25) ->  | AB29: =IF(AA29=0,0,(AA29*((LOG(AA29))/LOG(2)))) ->  | AD29: =N29 -> 21221 | AE29: =COUNTIF(L7:L7,AD29) -> 0 | AF29: =AE29/(AG4-AE25) ->  | AG29: =IF(AF29=0,0,(AF29*((LOG(AF29))/LOG(2)))) ->  | AI29: =N29 -> 21221 | AJ29: =COUNTIF(L7:L8,AI29) -> 0 | AK29: =AJ29/(AL4-AJ25) ->  | AL29: =IF(AK29=0,0,(AK29*((LOG(AK29))/LOG(2)))) ->  | AN29: =N29 -> 21221 | AO29: =COUNTIF(L7:L8,AN29) -> 0 | AP29: =AO29/(AQ4-AO25) ->  | AQ29: =IF(AP29=0,0,(AP29*((LOG(AP29))/LOG(2)))) ->  | AS29: =N29 -> 21221 | AT29: =COUNTIF(L7:L8,AS29) -> 0 | AU29: =AT29/(AV4-AT25) ->  | AV29: =IF(AU29=0,0,(AU29*((LOG(AU29))/LOG(2)))) -> 
N30: 21222 | O30: =COUNTIF($L$7:$L$500,N30) -> 0 | P30: =O30/$Q$4 ->  | Q30: =IF(P30=0,0,(P30*((LOG(P30))/LOG(2)))) ->  | T30: =N30 -> 21222 | U30: =COUNTIF(L6:L7,T30) -> 0 | V30: =U30/(W4-U25) ->  | W30: =IF(V30=0,0,(V30*((LOG(V30))/LOG(2)))) ->  | Y30: =N30 -> 21222 | Z30: =COUNTIF(L6:L7,Y30) -> 0 | AA30: =Z30/(AB4-Z25) ->  | AB30: =IF(AA30=0,0,(AA30*((LOG(AA30))/LOG(2)))) ->  | AD30: =N30 -> 21222 | AE30: =COUNTIF(L7:L7,AD30) -> 0 | AF30: =AE30/(AG4-AE25) ->  | AG30: =IF(AF30=0,0,(AF30*((LOG(AF30))/LOG(2)))) ->  | AI30: =N30 -> 21222 | AJ30: =COUNTIF(L7:L8,AI30) -> 0 | AK30: =AJ30/(AL4-AJ25) ->  | AL30: =IF(AK30=0,0,(AK30*((LOG(AK30))/LOG(2)))) ->  | AN30: =N30 -> 21222 | AO30: =COUNTIF(L7:L8,AN30) -> 0 | AP30: =AO30/(AQ4-AO25) ->  | AQ30: =IF(AP30=0,0,(AP30*((LOG(AP30))/LOG(2)))) ->  | AS30: =N30 -> 21222 | AT30: =COUNTIF(L7:L8,AS30) -> 0 | AU30: =AT30/(AV4-AT25) ->  | AV30: =IF(AU30=0,0,(AU30*((LOG(AU30))/LOG(2)))) -> 
N31: 22111 | O31: =COUNTIF($L$7:$L$500,N31) -> 0 | P31: =O31/$Q$4 ->  | Q31: =IF(P31=0,0,(P31*((LOG(P31))/LOG(2)))) ->  | T31: =N31 -> 22111 | U31: =COUNTIF(L6:L7,T31) -> 0 | V31: =U31/(W4-U25) ->  | W31: =IF(V31=0,0,(V31*((LOG(V31))/LOG(2)))) ->  | Y31: =N31 -> 22111 | Z31: =COUNTIF(L6:L7,Y31) -> 0 | AA31: =Z31/(AB4-Z25) ->  | AB31: =IF(AA31=0,0,(AA31*((LOG(AA31))/LOG(2)))) ->  | AD31: =N31 -> 22111 | AE31: =COUNTIF(L7:L7,AD31) -> 0 | AF31: =AE31/(AG4-AE25) ->  | AG31: =IF(AF31=0,0,(AF31*((LOG(AF31))/LOG(2)))) ->  | AI31: =N31 -> 22111 | AJ31: =COUNTIF(L7:L8,AI31) -> 0 | AK31: =AJ31/(AL4-AJ25) ->  | AL31: =IF(AK31=0,0,(AK31*((LOG(AK31))/LOG(2)))) ->  | AN31: =N31 -> 22111 | AO31: =COUNTIF(L7:L8,AN31) -> 0 | AP31: =AO31/(AQ4-AO25) ->  | AQ31: =IF(AP31=0,0,(AP31*((LOG(AP31))/LOG(2)))) ->  | AS31: =N31 -> 22111 | AT31: =COUNTIF(L7:L8,AS31) -> 0 | AU31: =AT31/(AV4-AT25) ->  | AV31: =IF(AU31=0,0,(AU31*((LOG(AU31))/LOG(2)))) -> 
N32: 22112 | O32: =COUNTIF($L$7:$L$500,N32) -> 0 | P32: =O32/$Q$4 ->  | Q32: =IF(P32=0,0,(P32*((LOG(P32))/LOG(2)))) ->  | T32: =N32 -> 22112 | U32: =COUNTIF(L6:L7,T32) -> 0 | V32: =U32/(W4-U25) ->  | W32: =IF(V32=0,0,(V32*((LOG(V32))/LOG(2)))) ->  | Y32: =N32 -> 22112 | Z32: =COUNTIF(L6:L7,Y32) -> 0 | AA32: =Z32/(AB4-Z25) ->  | AB32: =IF(AA32=0,0,(AA32*((LOG(AA32))/LOG(2)))) ->  | AD32: =N32 -> 22112 | AE32: =COUNTIF(L7:L7,AD32) -> 0 | AF32: =AE32/(AG4-AE25) ->  | AG32: =IF(AF32=0,0,(AF32*((LOG(AF32))/LOG(2)))) ->  | AI32: =N32 -> 22112 | AJ32: =COUNTIF(L7:L8,AI32) -> 0 | AK32: =AJ32/(AL4-AJ25) ->  | AL32: =IF(AK32=0,0,(AK32*((LOG(AK32))/LOG(2)))) ->  | AN32: =N32 -> 22112 | AO32: =COUNTIF(L7:L8,AN32) -> 0 | AP32: =AO32/(AQ4-AO25) ->  | AQ32: =IF(AP32=0,0,(AP32*((LOG(AP32))/LOG(2)))) ->  | AS32: =N32 -> 22112 | AT32: =COUNTIF(L7:L8,AS32) -> 0 | AU32: =AT32/(AV4-AT25) ->  | AV32: =IF(AU32=0,0,(AU32*((LOG(AU32))/LOG(2)))) -> 
N33: 22121 | O33: =COUNTIF($L$7:$L$500,N33) -> 0 | P33: =O33/$Q$4 ->  | Q33: =IF(P33=0,0,(P33*((LOG(P33))/LOG(2)))) ->  | T33: =N33 -> 22121 | U33: =COUNTIF(L6:L7,T33) -> 0 | V33: =U33/(W4-U25) ->  | W33: =IF(V33=0,0,(V33*((LOG(V33))/LOG(2)))) ->  | Y33: =N33 -> 22121 | Z33: =COUNTIF(L6:L7,Y33) -> 0 | AA33: =Z33/(AB4-Z25) ->  | AB33: =IF(AA33=0,0,(AA33*((LOG(AA33))/LOG(2)))) ->  | AD33: =N33 -> 22121 | AE33: =COUNTIF(L7:L7,AD33) -> 0 | AF33: =AE33/(AG4-AE25) ->  | AG33: =IF(AF33=0,0,(AF33*((LOG(AF33))/LOG(2)))) ->  | AI33: =N33 -> 22121 | AJ33: =COUNTIF(L7:L8,AI33) -> 0 | AK33: =AJ33/(AL4-AJ25) ->  | AL33: =IF(AK33=0,0,(AK33*((LOG(AK33))/LOG(2)))) ->  | AN33: =N33 -> 22121 | AO33: =COUNTIF(L7:L8,AN33) -> 0 | AP33: =AO33/(AQ4-AO25) ->  | AQ33: =IF(AP33=0,0,(AP33*((LOG(AP33))/LOG(2)))) ->  | AS33: =N33 -> 22121 | AT33: =COUNTIF(L7:L8,AS33) -> 0 | AU33: =AT33/(AV4-AT25) ->  | AV33: =IF(AU33=0,0,(AU33*((LOG(AU33))/LOG(2)))) -> 
N34: 22122 | O34: =COUNTIF($L$7:$L$500,N34) -> 0 | P34: =O34/$Q$4 ->  | Q34: =IF(P34=0,0,(P34*((LOG(P34))/LOG(2)))) ->  | T34: =N34 -> 22122 | U34: =COUNTIF(L6:L7,T34) -> 0 | V34: =U34/(W4-U25) ->  | W34: =IF(V34=0,0,(V34*((LOG(V34))/LOG(2)))) ->  | Y34: =N34 -> 22122 | Z34: =COUNTIF(L6:L7,Y34) -> 0 | AA34: =Z34/(AB4-Z25) ->  | AB34: =IF(AA34=0,0,(AA34*((LOG(AA34))/LOG(2)))) ->  | AD34: =N34 -> 22122 | AE34: =COUNTIF(L7:L7,AD34) -> 0 | AF34: =AE34/(AG4-AE25) ->  | AG34: =IF(AF34=0,0,(AF34*((LOG(AF34))/LOG(2)))) ->  | AI34: =N34 -> 22122 | AJ34: =COUNTIF(L7:L8,AI34) -> 0 | AK34: =AJ34/(AL4-AJ25) ->  | AL34: =IF(AK34=0,0,(AK34*((LOG(AK34))/LOG(2)))) ->  | AN34: =N34 -> 22122 | AO34: =COUNTIF(L7:L8,AN34) -> 0 | AP34: =AO34/(AQ4-AO25) ->  | AQ34: =IF(AP34=0,0,(AP34*((LOG(AP34))/LOG(2)))) ->  | AS34: =N34 -> 22122 | AT34: =COUNTIF(L7:L8,AS34) -> 0 | AU34: =AT34/(AV4-AT25) ->  | AV34: =IF(AU34=0,0,(AU34*((LOG(AU34))/LOG(2)))) -> 
N35: 22211 | O35: =COUNTIF($L$7:$L$500,N35) -> 0 | P35: =O35/$Q$4 ->  | Q35: =IF(P35=0,0,(P35*((LOG(P35))/LOG(2)))) ->  | T35: =N35 -> 22211 | U35: =COUNTIF(L6:L7,T35) -> 0 | V35: =U35/(W4-U25) ->  | W35: =IF(V35=0,0,(V35*((LOG(V35))/LOG(2)))) ->  | Y35: =N35 -> 22211 | Z35: =COUNTIF(L6:L7,Y35) -> 0 | AA35: =Z35/(AB4-Z25) ->  | AB35: =IF(AA35=0,0,(AA35*((LOG(AA35))/LOG(2)))) ->  | AD35: =N35 -> 22211 | AE35: =COUNTIF(L7:L7,AD35) -> 0 | AF35: =AE35/(AG4-AE25) ->  | AG35: =IF(AF35=0,0,(AF35*((LOG(AF35))/LOG(2)))) ->  | AI35: =N35 -> 22211 | AJ35: =COUNTIF(L7:L8,AI35) -> 0 | AK35: =AJ35/(AL4-AJ25) ->  | AL35: =IF(AK35=0,0,(AK35*((LOG(AK35))/LOG(2)))) ->  | AN35: =N35 -> 22211 | AO35: =COUNTIF(L7:L8,AN35) -> 0 | AP35: =AO35/(AQ4-AO25) ->  | AQ35: =IF(AP35=0,0,(AP35*((LOG(AP35))/LOG(2)))) ->  | AS35: =N35 -> 22211 | AT35: =COUNTIF(L7:L8,AS35) -> 0 | AU35: =AT35/(AV4-AT25) ->  | AV35: =IF(AU35=0,0,(AU35*((LOG(AU35))/LOG(2)))) -> 
N36: 22212 | O36: =COUNTIF($L$7:$L$500,N36) -> 0 | P36: =O36/$Q$4 ->  | Q36: =IF(P36=0,0,(P36*((LOG(P36))/LOG(2)))) ->  | T36: =N36 -> 22212 | U36: =COUNTIF(L6:L7,T36) -> 0 | V36: =U36/(W4-U25) ->  | W36: =IF(V36=0,0,(V36*((LOG(V36))/LOG(2)))) ->  | Y36: =N36 -> 22212 | Z36: =COUNTIF(L6:L7,Y36) -> 0 | AA36: =Z36/(AB4-Z25) ->  | AB36: =IF(AA36=0,0,(AA36*((LOG(AA36))/LOG(2)))) ->  | AD36: =N36 -> 22212 | AE36: =COUNTIF(L7:L7,AD36) -> 0 | AF36: =AE36/(AG4-AE25) ->  | AG36: =IF(AF36=0,0,(AF36*((LOG(AF36))/LOG(2)))) ->  | AI36: =N36 -> 22212 | AJ36: =COUNTIF(L7:L8,AI36) -> 0 | AK36: =AJ36/(AL4-AJ25) ->  | AL36: =IF(AK36=0,0,(AK36*((LOG(AK36))/LOG(2)))) ->  | AN36: =N36 -> 22212 | AO36: =COUNTIF(L7:L8,AN36) -> 0 | AP36: =AO36/(AQ4-AO25) ->  | AQ36: =IF(AP36=0,0,(AP36*((LOG(AP36))/LOG(2)))) ->  | AS36: =N36 -> 22212 | AT36: =COUNTIF(L7:L8,AS36) -> 0 | AU36: =AT36/(AV4-AT25) ->  | AV36: =IF(AU36=0,0,(AU36*((LOG(AU36))/LOG(2)))) -> 
N37: 22221 | O37: =COUNTIF($L$7:$L$500,N37) -> 0 | P37: =O37/$Q$4 ->  | Q37: =IF(P37=0,0,(P37*((LOG(P37))/LOG(2)))) ->  | T37: =N37 -> 22221 | U37: =COUNTIF(L6:L7,T37) -> 0 | V37: =U37/(W4-U25) ->  | W37: =IF(V37=0,0,(V37*((LOG(V37))/LOG(2)))) ->  | Y37: =N37 -> 22221 | Z37: =COUNTIF(L6:L7,Y37) -> 0 | AA37: =Z37/(AB4-Z25) ->  | AB37: =IF(AA37=0,0,(AA37*((LOG(AA37))/LOG(2)))) ->  | AD37: =N37 -> 22221 | AE37: =COUNTIF(L7:L7,AD37) -> 0 | AF37: =AE37/(AG4-AE25) ->  | AG37: =IF(AF37=0,0,(AF37*((LOG(AF37))/LOG(2)))) ->  | AI37: =N37 -> 22221 | AJ37: =COUNTIF(L7:L8,AI37) -> 0 | AK37: =AJ37/(AL4-AJ25) ->  | AL37: =IF(AK37=0,0,(AK37*((LOG(AK37))/LOG(2)))) ->  | AN37: =N37 -> 22221 | AO37: =COUNTIF(L7:L8,AN37) -> 0 | AP37: =AO37/(AQ4-AO25) ->  | AQ37: =IF(AP37=0,0,(AP37*((LOG(AP37))/LOG(2)))) ->  | AS37: =N37 -> 22221 | AT37: =COUNTIF(L7:L8,AS37) -> 0 | AU37: =AT37/(AV4-AT25) ->  | AV37: =IF(AU37=0,0,(AU37*((LOG(AU37))/LOG(2)))) -> 
N38: 22222 | O38: =COUNTIF($L$7:$L$500,N38) -> 0 | P38: =O38/$Q$4 ->  | Q38: =IF(P38=0,0,(P38*((LOG(P38))/LOG(2)))) ->  | T38: =N38 -> 22222 | U38: =COUNTIF(L6:L7,T38) -> 0 | V38: =U38/(W4-U25) ->  | W38: =IF(V38=0,0,(V38*((LOG(V38))/LOG(2)))) ->  | Y38: =N38 -> 22222 | Z38: =COUNTIF(L6:L7,Y38) -> 0 | AA38: =Z38/(AB4-Z25) ->  | AB38: =IF(AA38=0,0,(AA38*((LOG(AA38))/LOG(2)))) ->  | AD38: =N38 -> 22222 | AE38: =COUNTIF(L7:L7,AD38) -> 0 | AF38: =AE38/(AG4-AE25) ->  | AG38: =IF(AF38=0,0,(AF38*((LOG(AF38))/LOG(2)))) ->  | AI38: =N38 -> 22222 | AJ38: =COUNTIF(L7:L8,AI38) -> 0 | AK38: =AJ38/(AL4-AJ25) ->  | AL38: =IF(AK38=0,0,(AK38*((LOG(AK38))/LOG(2)))) ->  | AN38: =N38 -> 22222 | AO38: =COUNTIF(L7:L8,AN38) -> 0 | AP38: =AO38/(AQ4-AO25) ->  | AQ38: =IF(AP38=0,0,(AP38*((LOG(AP38))/LOG(2)))) ->  | AS38: =N38 -> 22222 | AT38: =COUNTIF(L7:L8,AS38) -> 0 | AU38: =AT38/(AV4-AT25) ->  | AV38: =IF(AU38=0,0,(AU38*((LOG(AU38))/LOG(2)))) -> 
P39: =SUM(P7:P38) ->  | Q39: =-SUM(Q7:Q38) ->  | V39: =SUM(V7:V38) ->  | W39: =-SUM(W7:W38) ->  | AA39: =SUM(AA7:AA38) ->  | AB39: =-SUM(AB7:AB38) ->  | AF39: =SUM(AF7:AF38) ->  | AG39: =-SUM(AG7:AG38) ->  | AK39: =SUM(AK7:AK38) ->  | AL39: =-SUM(AL7:AL38) ->  | AP39: =SUM(AP7:AP38) ->  | AQ39: =-SUM(AQ7:AQ38) ->  | AU39: =SUM(AU7:AU38) ->  | AV39: =-SUM(AV7:AV38) -> 
P40: U= | Q40: =Q39/(LOG(Q4)/LOG(2)) ->  | V40: U1= | W40: =W39/(LOG(W4)/LOG(2)) ->  | AA40: U2= | AB40: =AB39/(LOG(AB4)/LOG(2)) ->  | AF40: U3= | AG40: =AG39/(LOG(AG4)/LOG(2)) ->  | AK40: U4= | AL40: =AL39/(LOG(AL4)/LOG(2)) ->  | AP40: U5= | AQ40: =AQ39/(LOG(AQ4)/LOG(2)) ->  | AU40: U6= | AV40: =AV39/(LOG(AV4)/LOG(2)) -> 
N43: Total Target Seq
N44: =COUNTIF(L7:L7,G3) -> 0 | P44: 0 | Q44: 0 | R44: 1 | S44: 0 | T44: 0 | U44: 0
P45: % of reinforcement given in 6 equal intervals based on number of trials
P46: %_1 | Q46: %_2 | R46: %_3 | S46: %_4 | T46: %_5 | U46: %_6
O47: target sequence | P47: =$G$3 -> 21121 | Q47: =$G$3 -> 21121 | R47: =$G$3 -> 21121 | S47: =$G$3 -> 21121 | T47: =$G$3 -> 21121 | U47: =$G$3 -> 21121
O48: total reinforcement | P48: =U25 -> 0 | Q48: =Z25 -> 0 | R48: =AE25 -> 0 | S48: =AJ25 -> 0 | T48: =AO25 -> 0 | U48: =AT25 -> 0
O49: % target
O50: CCRF
O51: % CCRf
O52: average response rate | P52: =J6/P44 ->  | Q52: =(J6-J6)/Q44 ->  | R52: =(J7-J6)/R44 ->  | S52: =(J7-J7)/S44 ->  | T52: =(J7-J7)/T44 ->  | U52: =(J7-J7)/U44 -> 

Sheet !N104B30.105
A1: Report for:!N104B30.105
A2: Date: | B2: <date>
A3: Hen: | B3: <hen> | F3: Correct Sequence | G3: =Start!J2 -> 21121 | P3: Total Sequences in Data | Q3: =4994-COUNTBLANK(L7:L5000) -> 59 | V3: Total Sequences in Block Data | W3: =COUNTA(L7:L16) -> 10 | AA3: Total Sequences in Block Data | AB3: =COUNTA(L17:L26) -> 10 | AF3: Total Sequences in Block Data | AG3: =COUNTA(L27:L35) -> 9 | AK3: Total Sequences in Block Data | AL3: =COUNTA(L36:L45) -> 10 | AP3: Total Sequences in Block Data | AQ3: =COUNTA(L46:L55) -> 10 | AU3: Total Sequences in Block Data | AV3: =COUNTA(L56:L65) -> 10
P4: Total Sequences in Summary | Q4: =SUM(O7:O38) -> 58 | V4: Total Sequences in Block Summary | W4: =SUM(U7:U38) -> 10 | AA4: Total Sequences in Block Summary | AB4: =SUM(Z7:Z38) -> 10 | AF4: Total Sequences in Block Summary | AG4: =SUM(AE7:AE38) -> 9 | AK4: Total Sequences in Block Summary | AL4: =SUM(AJ7:AJ38) -> 10 | AP4: Total Sequences in Block Summary | AQ4: =SUM(AO7:AO38) -> 10 | AU4: Total Sequences in Block Summary | AV4: =SUM(AT7:AT38) -> 9
T5: Block 1 | Y5: Block 2 | AD5: Block 3 | AI5: Block 4 | AN5: Block 5 | AS5: Block 6
A6: Sequence Component 1 | B6: Time 1 | C6: Sequence Component 2 | D6: Time 2 | E6: Sequence Component 3 | F6: Time 3 | G6: Sequence Component 4 | H6: Time 4 | I6: Sequence Component 5 | J6: Time 5 | K6: Correct? 0=No 1=Yes | L6: Sequence | N6: Frequency | P6: Relative Frequency | Q6: Variability | T6: Frequency | V6: Relative Frequency | W6: Variability | Y6: Frequency | AA6: Relative Frequency | AB6: Variability | AD6: Frequency | AF6: Relative Frequency | AG6: Variability | AI6: Frequency | AK6: Relative Frequency | AL6: Variability | AN6: Frequency | AP6: Relative Frequency | AQ6: Variability | AS6: Frequency | AU6: Relative Frequency | AV6: Variability
A7: 21 | B7: 24 | C7: 11 | D7: 38 | E7: 22 | F7: 47 | G7: 14 | H7: 63 | I7: 24 | J7: 72 | K7: 0 | L7: 21212 | N7: 11111 | O7: =COUNTIF($L$7:$L$500,N7) -> 2 | P7: =O7/$Q$4 -> 0.03448275862 | Q7: =IF(P7=0,0,(P7*((LOG(P7))/LOG(2)))) -> -0.167516586 | T7: =N7 -> 11111 | U7: =COUNTIF(L7:L16,T7) -> 0 | V7: =U7/(W4-U25) -> 0 | W7: =IF(V7=0,0,(V7*((LOG(V7))/LOG(2)))) -> 0 | Y7: =N7 -> 11111 | Z7: =COUNTIF(L17:L26,Y7) -> 0 | AA7: =Z7/(AB4-Z25) -> 0 | AB7: =IF(AA7=0,0,(AA7*((LOG(AA7))/LOG(2)))) -> 0 | AD7: =N7 -> 11111 | AE7: =COUNTIF(L27:L35,AD7) -> 0 | AF7: =AE7/(AG4-AE25) -> 0 | AG7: =IF(AF7=0,0,(AF7*((LOG(AF7))/LOG(2)))) -> 0 | AI7: =N7 -> 11111 | AJ7: =COUNTIF(L36:L45,AI7) -> 1 | AK7: =AJ7/(AL4-AJ25) -> 0.1 | AL7: =IF(AK7=0,0,(AK7*((LOG(AK7))/LOG(2)))) -> -0.3321928095 | AN7: =N7 -> 11111 | AO7: =COUNTIF(L46:L55,AN7) -> 0 | AP7: =AO7/(AQ4-AO25) -> 0 | AQ7: =IF(AP7=0,0,(AP7*((LOG(AP7))/LOG(2)))) -> 0 | AS7: =N7 -> 11111 | AT7: =COUNTIF(L56:L65,AS7) -> 1 | AU7: =AT7/(AV4-AT25) -> 0.1111111111 | AV7: =IF(AU7=0,0,(AU7*((LOG(AU7))/LOG(2)))) -> -0.352213889
A8: 12 | B8: 183 | C8: 24 | D8: 193 | E8: 13 | F8: 207 | G8: 23 | H8: 216 | I8: 13 | J8: 251 | K8: 0 | L8: 12121 | N8: 11112 | O8: =COUNTIF($L$7:$L$500,N8) -> 1 | P8: =O8/$Q$4 -> 0.01724137931 | Q8: =IF(P8=0,0,(P8*((LOG(P8))/LOG(2)))) -> -0.1009996723 | T8: =N8 -> 11112 | U8: =COUNTIF(L7:L16,T8) -> 0 | V8: =U8/(W4-U25) -> 0 | W8: =IF(V8=0,0,(V8*((LOG(V8))/LOG(2)))) -> 0 | Y8: =N8 -> 11112 | Z8: =COUNTIF(L17:L26,Y8) -> 0 | AA8: =Z8/(AB4-Z25) -> 0 | AB8: =IF(AA8=0,0,(AA8*((LOG(AA8))/LOG(2)))) -> 0 | AD8: =N8 -> 11112 | AE8: =COUNTIF(L27:L35,AD8) -> 0 | AF8: =AE8/(AG4-AE25) -> 0 | AG8: =IF(AF8=0,0,(AF8*((LOG(AF8))/LOG(2)))) -> 0 | AI8: =N8 -> 11112 | AJ8: =COUNTIF(L36:L45,AI8) -> 1 | AK8: =AJ8/(AL4-AJ25) -> 0.1 | AL8: =IF(AK8=0,0,(AK8*((LOG(AK8))/LOG(2)))) -> -0.3321928095 | AN8: =N8 -> 11112 | AO8: =COUNTIF(L46:L55,AN8) -> 0 | AP8: =AO8/(AQ4-AO25) -> 0 | AQ8: =IF(AP8=0,0,(AP8*((LOG(AP8))/LOG(2)))) -> 0 | AS8: =N8 -> 11112 | AT8: =COUNTIF(L56:L65,AS8) -> 0 | AU8: =AT8/(AV4-AT25) -> 0 | AV8: =IF(AU8=0,0,(AU8*((LOG(AU8))/LOG(2)))) -> 0
A9: 12 | B9: 363 | C9: 13 | D9: 378 | E9: 24 | F9: 388 | G9: 14 | H9: 398 | I9: 24 | J9: 426 | K9: 0 | L9: 11212 | N9: 11121 | O9: =COUNTIF($L$7:$L$500,N9) -> 6 | P9: =O9/$Q$4 -> 0.1034482759 | Q9: =IF(P9=0,0,(P9*((LOG(P9))/LOG(2)))) -> -0.3385881201 | T9: =N9 -> 11121 | U9: =COUNTIF(L7:L16,T9) -> 0 | V9: =U9/(W4-U25) -> 0 | W9: =IF(V9=0,0,(V9*((LOG(V9))/LOG(2)))) -> 0 | Y9: =N9 -> 11121 | Z9: =COUNTIF(L17:L26,Y9) -> 3 | AA9: =Z9/(AB4-Z25) -> 0.3 | AB9: =IF(AA9=0,0,(AA9*((LOG(AA9))/LOG(2)))) -> -0.5210896782 | AD9: =N9 -> 11121 | AE9: =COUNTIF(L27:L35,AD9) -> 1 | AF9: =AE9/(AG4-AE25) -> 0.1111111111 | AG9: =IF(AF9=0,0,(AF9*((LOG(AF9))/LOG(2)))) -> -0.352213889 | AI9: =N9 -> 11121 | AJ9: =COUNTIF(L36:L45,AI9) -> 0 | AK9: =AJ9/(AL4-AJ25) -> 0 | AL9: =IF(AK9=0,0,(AK9*((LOG(AK9))/LOG(2)))) -> 0 | AN9: =N9 -> 11121 | AO9: =COUNTIF(L46:L55,AN9) -> 2 | AP9: =AO9/(AQ4-AO25) -> 0.2 | AQ9: =IF(AP9=0,0,(AP9*((LOG(AP9))/LOG(2)))) -> -0.464385619 | AS9: =N9 -> 11121 | AT9: =COUNTIF(L56:L65,AS9) -> 0 | AU9: =AT9/(AV4-AT25) -> 0 | AV9: =IF(AU9=0,0,(AU9*((LOG(AU9))/LOG(2)))) -> 0
A10: 12 | B10: 547 | C10: 24 | D10: 580 | E10: 13 | F10: 590 | G10: 23 | H10: 599 | I10: 13 | J10: 610 | K10: 0 | L10: 12121 | N10: 11122 | O10: =COUNTIF($L$7:$L$500,N10) -> 1 | P10: =O10/$Q$4 -> 0.01724137931 | Q10: =IF(P10=0,0,(P10*((LOG(P10))/LOG(2)))) -> -0.1009996723 | T10: =N10 -> 11122 | U10: =COUNTIF(L7:L16,T10) -> 0 | V10: =U10/(W4-U25) -> 0 | W10: =IF(V10=0,0,(V10*((LOG(V10))/LOG(2)))) -> 0 | Y10: =N10 -> 11122 | Z10: =COUNTIF(L17:L26,Y10) -> 1 | AA10: =Z10/(AB4-Z25) -> 0.1 | AB10: =IF(AA10=0,0,(AA10*((LOG(AA10))/LOG(2)))) -> -0.3321928095 | AD10: =N10 -> 11122 | AE10: =COUNTIF(L27:L35,AD10) -> 0 | AF10: =AE10/(AG4-AE25) -> 0 | AG10: =IF(AF10=0,0,(AF10*((LOG(AF10))/LOG(2)))) -> 0 | AI10: =N10 -> 11122 | AJ10: =COUNTIF(L36:L45,AI10) -> 0 | AK10: =AJ10/(AL4-AJ25) -> 0 | AL10: =IF(AK10=0,0,(AK10*((LOG(AK10))/LOG(2)))) -> 0 | AN10: =N10 -> 11122 | AO10: =COUNTIF(L46:L55,AN10) -> 0 | AP10: =AO10/(AQ4-AO25) -> 0 | AQ10: =IF(AP10=0,0,(AP10*((LOG(AP10))/LOG(2)))) -> 0 | AS10: =N10 -> 11122 | AT10: =COUNTIF(L56:L65,AS10) -> 0 | AU10: =AT10/(AV4-AT25) -> 0 | AV10: =IF(AU10=0,0,(AU10*((LOG(AU10))/LOG(2)))) -> 0
A11: 12 | B11: 740 | C11: 13 | D11: 750 | E11: 24 | F11: 759 | G11: 14 | H11: 769 | I11: 24 | J11: 778 | K11: 0 | L11: 11212 | N11: 11211 | O11: =COUNTIF($L$7:$L$500,N11) -> 1 | P11: =O11/$Q$4 -> 0.01724137931 | Q11: =IF(P11=0,0,(P11*((LOG(P11))/LOG(2)))) -> -0.1009996723 | T11: =N11 -> 11211 | U11: =COUNTIF(L7:L16,T11) -> 0 | V11: =U11/(W4-U25) -> 0 | W11: =IF(V11=0,0,(V11*((LOG(V11))/LOG(2)))) -> 0 | Y11: =N11 -> 11211 | Z11: =COUNTIF(L17:L26,Y11) -> 0 | AA11: =Z11/(AB4-Z25) -> 0 | AB11: =IF(AA11=0,0,(AA11*((LOG(AA11))/LOG(2)))) -> 0 | AD11: =N11 -> 11211 | AE11: =COUNTIF(L27:L35,AD11) -> 1 | AF11: =AE11/(AG4-AE25) -> 0.1111111111 | AG11: =IF(AF11=0,0,(AF11*((LOG(AF11))/LOG(2)))) -> -0.352213889 | AI11: =N11 -> 11211 | AJ11: =COUNTIF(L36:L45,AI11) -> 0 | AK11: =AJ11/(AL4-AJ25) -> 0 | AL11: =IF(AK11=0,0,(AK11*((LOG(AK11))/LOG(2)))) -> 0 | AN11: =N11 -> 11211 | AO11: =COUNTIF(L46:L55,AN11) -> 0 | AP11: =AO11/(AQ4-AO25) -> 0 | AQ11: =IF(AP11=0,0,(AP11*((LOG(AP11))/LOG(2)))) -> 0 | AS11: =N11 -> 11211 | AT11: =COUNTIF(L56:L65,AS11) -> 0 | AU11: =AT11/(AV4-AT25) -> 0 | AV11: =IF(AU11=0,0,(AU11*((LOG(AU11))/LOG(2)))) -> 0
A12: 21 | B12: 909 | C12: 22 | D12: 925 | E12: 13 | F12: 938 | G12: 23 | H12: 947 | I12: 13 | J12: 956 | K12: 0 | L12: 22121 | N12: 11212 | O12: =COUNTIF($L$7:$L$500,N12) -> 10 | P12: =O12/$Q$4 -> 0.1724137931 | Q12: =IF(P12=0,0,(P12*((LOG(P12))/LOG(2)))) -> -0.4372505 | T12: =N12 -> 11212 | U12: =COUNTIF(L7:L16,T12) -> 3 | V12: =U12/(W4-U25) -> 0.3333333333 | W12: =IF(V12=0,0,(V12*((LOG(V12))/LOG(2)))) -> -0.5283208336 | Y12: =N12 -> 11212 | Z12: =COUNTIF(L17:L26,Y12) -> 2 | AA12: =Z12/(AB4-Z25) -> 0.2 | AB12: =IF(AA12=0,0,(AA12*((LOG(AA12))/LOG(2)))) -> -0.464385619 | AD12: =N12 -> 11212 | AE12: =COUNTIF(L27:L35,AD12) -> 0 | AF12: =AE12/(AG4-AE25) -> 0 | AG12: =IF(AF12=0,0,(AF12*((LOG(AF12))/LOG(2)))) -> 0 | AI12: =N12 -> 11212 | AJ12: =COUNTIF(L36:L45,AI12) -> 3 | AK12: =AJ12/(AL4-AJ25) -> 0.3 | AL12: =IF(AK12=0,0,(AK12*((LOG(AK12))/LOG(2)))) -> -0.5210896782 | AN12: =N12 -> 11212 | AO12: =COUNTIF(L46:L55,AN12) -> 1 | AP12: =AO12/(AQ4-AO25) -> 0.1 | AQ12: =IF(AP12=0,0,(AP12*((LOG(AP12))/LOG(2)))) -> -0.3321928095 | AS12: =N12 -> 11212 | AT12: =COUNTIF(L56:L65,AS12) -> 1 | AU12: =AT12/(AV4-AT25) -> 0.1111111111 | AV12: =IF(AU12=0,0,(AU12*((LOG(AU12))/LOG(2)))) -> -0.352213889
A13: 12 | B13: 1077 | C13: 13 | D13: 1097 | E13: 24 | F13: 1107 | G13: 14 | H13: 1117 | I13: 24 | J13: 1126 | K13: 0 | L13: 11212 | N13: 11221 | O13: =COUNTIF($L$7:$L$500,N13) -> 2 | P13: =O13/$Q$4 -> 0.03448275862 | Q13: =IF(P13=0,0,(P13*((LOG(P13))/LOG(2)))) -> -0.167516586 | T13: =N13 -> 11221 | U13: =COUNTIF(L7:L16,T13) -> 0 | V13: =U13/(W4-U25) -> 0 | W13: =IF(V13=0,0,(V13*((LOG(V13))/LOG(2)))) -> 0 | Y13: =N13 -> 11221 | Z13: =COUNTIF(L17:L26,Y13) -> 1 | AA13: =Z13/(AB4-Z25) -> 0.1 | AB13: =IF(AA13=0,0,(AA13*((LOG(AA13))/LOG(2)))) -> -0.3321928095 | AD13: =N13 -> 11221 | AE13: =COUNTIF(L27:L35,AD13) -> 0 | AF13: =AE13/(AG4-AE25) -> 0 | AG13: =IF(AF13=0,0,(AF13*((LOG(AF13))/LOG(2)))) -> 0 | AI13: =N13 -> 11221 | AJ13: =COUNTIF(L36:L45,AI13) -> 0 | AK13: =AJ13/(AL4-AJ25) -> 0 | AL13: =IF(AK13=0,0,(AK13*((LOG(AK13))/LOG(2)))) -> 0 | AN13: =N13 -> 11221 | AO13: =COUNTIF(L46:L55,AN13) -> 1 | AP13: =AO13/(AQ4-AO25) -> 0.1 | AQ13: =IF(AP13=0,0,(AP13*((LOG(AP13))/LOG(2)))) -> -0.3321928095 | AS13: =N13 -> 11221 | AT13: =COUNTIF(L56:L65,AS13) -> 0 | AU13: =AT13/(AV4-AT25) -> 0 | AV13: =IF(AU13=0,0,(AU13*((LOG(AU13))/LOG(2)))) -> 0
A14: 21 | B14: 1239 | C14: 11 | D14: 1246 | E14: 11 | F14: 1265 | G14: 21 | H14: 1275 | I14: 11 | J14: 1285 | K14: 1 | L14: 21121 | N14: 11222 | O14: =COUNTIF($L$7:$L$500,N14) -> 0 | P14: =O14/$Q$4 -> 0 | Q14: =IF(P14=0,0,(P14*((LOG(P14))/LOG(2)))) -> 0 | T14: =N14 -> 11222 | U14: =COUNTIF(L7:L16,T14) -> 0 | V14: =U14/(W4-U25) -> 0 | W14: =IF(V14=0,0,(V14*((LOG(V14))/LOG(2)))) -> 0 | Y14: =N14 -> 11222 | Z14: =COUNTIF(L17:L26,Y14) -> 0 | AA14: =Z14/(AB4-Z25) -> 0 | AB14: =IF(AA14=0,0,(AA14*((LOG(AA14))/LOG(2)))) -> 0 | AD14: =N14 -> 11222 | AE14: =COUNTIF(L27:L35,AD14) -> 0 | AF14: =AE14/(AG4-AE25) -> 0 | AG14: =IF(AF14=0,0,(AF14*((LOG(AF14))/LOG(2)))) -> 0 | AI14: =N14 -> 11222 | AJ14: =COUNTIF(L36:L45,AI14) -> 0 | AK14: =AJ14/(AL4-AJ25) -> 0 | AL14: =IF(AK14=0,0,(AK14*((LOG(AK14))/LOG(2)))) -> 0 | AN14: =N14 -> 11222 | AO14: =COUNTIF(L46:L55,AN14) -> 0 | AP14: =AO14/(AQ4-AO25) -> 0 | AQ14: =IF(AP14=0,0,(AP14*((LOG(AP14))/LOG(2)))) -> 0 | AS14: =N14 -> 11222 | AT14: =COUNTIF(L56:L65,AS14) -> 0 | AU14: =AT14/(AV4-AT25) -> 0 | AV14: =IF(AU14=0,0,(AU14*((LOG(AU14))/LOG(2)))) -> 0
A15: 12 | B15: 1409 | C15: 24 | D15: 1423 | E15: 24 | F15: 1447 | G15: 14 | H15: 1462 | I15: 24 | J15: 1472 | K15: 0 | L15: 12212 | N15: 12111 | O15: =COUNTIF($L$7:$L$500,N15) -> 0 | P15: =O15/$Q$4 -> 0 | Q15: =IF(P15=0,0,(P15*((LOG(P15))/LOG(2)))) -> 0 | T15: =N15 -> 12111 | U15: =COUNTIF(L7:L16,T15) -> 0 | V15: =U15/(W4-U25) -> 0 | W15: =IF(V15=0,0,(V15*((LOG(V15))/LOG(2)))) -> 0 | Y15: =N15 -> 12111 | Z15: =COUNTIF(L17:L26,Y15) -> 0 | AA15: =Z15/(AB4-Z25) -> 0 | AB15: =IF(AA15=0,0,(AA15*((LOG(AA15))/LOG(2)))) -> 0 | AD15: =N15 -> 12111 | AE15: =COUNTIF(L27:L35,AD15) -> 0 | AF15: =AE15/(AG4-AE25) -> 0 | AG15: =IF(AF15=0,0,(AF15*((LOG(AF15))/LOG(2)))) -> 0 | AI15: =N15 -> 12111 | AJ15: =COUNTIF(L36:L45,AI15) -> 0 | AK15: =AJ15/(AL4-AJ25) -> 0 | AL15: =IF(AK15=0,0,(AK15*((LOG(AK15))/LOG(2)))) -> 0 | AN15: =N15 -> 12111 | AO15: =COUNTIF(L46:L55,AN15) -> 0 | AP15: =AO15/(AQ4-AO25) -> 0 | AQ15: =IF(AP15=0,0,(AP15*((LOG(AP15))/LOG(2)))) -> 0 | AS15: =N15 -> 12111 | AT15: =COUNTIF(L56:L65,AS15) -> 0 | AU15: =AT15/(AV4-AT25) -> 0 | AV15: =IF(AU15=0,0,(AU15*((LOG(AU15))/LOG(2)))) -> 0
A16: 12 | B16: 1578 | C16: 24 | D16: 1591 | E16: 24 | F16: 1615 | G16: 14 | H16: 1629 | I16: 24 | J16: 1640 | K16: 0 | L16: 12212 | N16: 12112 | O16: =COUNTIF($L$7:$L$500,N16) -> 0 | P16: =O16/$Q$4 -> 0 | Q16: =IF(P16=0,0,(P16*((LOG(P16))/LOG(2)))) -> 0 | T16: =N16 -> 12112 | U16: =COUNTIF(L7:L16,T16) -> 0 | V16: =U16/(W4-U25) -> 0 | W16: =IF(V16=0,0,(V16*((LOG(V16))/LOG(2)))) -> 0 | Y16: =N16 -> 12112 | Z16: =COUNTIF(L17:L26,Y16) -> 0 | AA16: =Z16/(AB4-Z25) -> 0 | AB16: =IF(AA16=0,0,(AA16*((LOG(AA16))/LOG(2)))) -> 0 | AD16: =N16 -> 12112 | AE16: =COUNTIF(L27:L35,AD16) -> 0 | AF16: =AE16/(AG4-AE25) -> 0 | AG16: =IF(AF16=0,0,(AF16*((LOG(AF16))/LOG(2)))) -> 0 | AI16: =N16 -> 12112 | AJ16: =COUNTIF(L36:L45,AI16) -> 0 | AK16: =AJ16/(AL4-AJ25) -> 0 | AL16: =IF(AK16=0,0,(AK16*((LOG(AK16))/LOG(2)))) -> 0 | AN16: =N16 -> 12112 | AO16: =COUNTIF(L46:L55,AN16) -> 0 | AP16: =AO16/(AQ4-AO25) -> 0 | AQ16: =IF(AP16=0,0,(AP16*((LOG(AP16))/LOG(2)))) -> 0 | AS16: =N16 -> 12112 | AT16: =COUNTIF(L56:L65,AS16) -> 0 | AU16: =AT16/(AV4-AT25) -> 0 | AV16: =IF(AU16=0,0,(AU16*((LOG(AU16))/LOG(2)))) -> 0
A17: 12 | B17: 1746 | C17: 13 | D17: 1759 | E17: 13 | F17: 1778 | G17: 23 | H17: 1786 | I17: 24 | J17: 1811 | K17: 0 | L17: 11122 | N17: 12121 | O17: =COUNTIF($L$7:$L$500,N17) -> 7 | P17: =O17/$Q$4 -> 0.1206896552 | Q17: =IF(P17=0,0,(P17*((LOG(P17))/LOG(2)))) -> -0.3681790088 | T17: =N17 -> 12121 | U17: =COUNTIF(L7:L16,T17) -> 2 | V17: =U17/(W4-U25) -> 0.2222222222 | W17: =IF(V17=0,0,(V17*((LOG(V17))/LOG(2)))) -> -0.4822055559 | Y17: =N17 -> 12121 | Z17: =COUNTIF(L17:L26,Y17) -> 1 | AA17: =Z17/(AB4-Z25) -> 0.1 | AB17: =IF(AA17=0,0,(AA17*((LOG(AA17))/LOG(2)))) -> -0.3321928095 | AD17: =N17 -> 12121 | AE17: =COUNTIF(L27:L35,AD17) -> 3 | AF17: =AE17/(AG4-AE25) -> 0.3333333333 | AG17: =IF(AF17=0,0,(AF17*((LOG(AF17))/LOG(2)))) -> -0.5283208336 | AI17: =N17 -> 12121 | AJ17: =COUNTIF(L36:L45,AI17) -> 1 | AK17: =AJ17/(AL4-AJ25) -> 0.1 | AL17: =IF(AK17=0,0,(AK17*((LOG(AK17))/LOG(2)))) -> -0.3321928095 | AN17: =N17 -> 12121 | AO17: =COUNTIF(L46:L55,AN17) -> 0 | AP17: =AO17/(AQ4-AO25) -> 0 | AQ17: =IF(AP17=0,0,(AP17*((LOG(AP17))/LOG(2)))) -> 0 | AS17: =N17 -> 12121 | AT17: =COUNTIF(L56:L65,AS17) -> 0 | AU17: =AT17/(AV4-AT25) -> 0 | AV17: =IF(AU17=0,0,(AU17*((LOG(AU17))/LOG(2)))) -> 0
A18: 12 | B18: 1919 | C18: 24 | D18: 1926 | E18: 24 | F18: 1943 | G18: 23 | H18: 1965 | I18: 13 | J18: 1978 | K18: 0 | L18: 12221 | N18: 12122 | O18: =COUNTIF($L$7:$L$500,N18) -> 4 | P18: =O18/$Q$4 -> 0.06896551724 | Q18: =IF(P18=0,0,(P18*((LOG(P18))/LOG(2)))) -> -0.2660676548 | T18: =N18 -> 12122 | U18: =COUNTIF(L7:L16,T18) -> 0 | V18: =U18/(W4-U25) -> 0 | W18: =IF(V18=0,0,(V18*((LOG(V18))/LOG(2)))) -> 0 | Y18: =N18 -> 12122 | Z18: =COUNTIF(L17:L26,Y18) -> 0 | AA18: =Z18/(AB4-Z25) -> 0 | AB18: =IF(AA18=0,0,(AA18*((LOG(AA18))/LOG(2)))) -> 0 | AD18: =N18 -> 12122 | AE18: =COUNTIF(L27:L35,AD18) -> 1 | AF18: =AE18/(AG4-AE25) -> 0.1111111111 | AG18: =IF(AF18=0,0,(AF18*((LOG(AF18))/LOG(2)))) -> -0.352213889 | AI18: =N18 -> 12122 | AJ18: =COUNTIF(L36:L45,AI18) -> 0 | AK18: =AJ18/(AL4-AJ25) -> 0 | AL18: =IF(AK18=0,0,(AK18*((LOG(AK18))/LOG(2)))) -> 0 | AN18: =N18 -> 12122 | AO18: =COUNTIF(L46:L55,AN18) -> 2 | AP18: =AO18/(AQ4-AO25) -> 0.2 | AQ18: =IF(AP18=0,0,(AP18*((LOG(AP18))/LOG(2)))) -> -0.464385619 | AS18: =N18 -> 12122 | AT18: =COUNTIF(L56:L65,AS18) -> 1 | AU18: =AT18/(AV4-AT25) -> 0.1111111111 | AV18: =IF(AU18=0,0,(AU18*((LOG(AU18))/LOG(2)))) -> -0.352213889
A19: 12 | B19: 2081 | C19: 13 | D19: 2090 | E19: 24 | F19: 2097 | G19: 23 | H19: 2116 | I19: 13 | J19: 2131 | K19: 0 | L19: 11221 | N19: 12211 | O19: =COUNTIF($L$7:$L$500,N19) -> 0 | P19: =O19/$Q$4 -> 0 | Q19: =IF(P19=0,0,(P19*((LOG(P19))/LOG(2)))) -> 0 | T19: =N19 -> 12211 | U19: =COUNTIF(L7:L16,T19) -> 0 | V19: =U19/(W4-U25) -> 0 | W19: =IF(V19=0,0,(V19*((LOG(V19))/LOG(2)))) -> 0 | Y19: =N19 -> 12211 | Z19: =COUNTIF(L17:L26,Y19) -> 0 | AA19: =Z19/(AB4-Z25) -> 0 | AB19: =IF(AA19=0,0,(AA19*((LOG(AA19))/LOG(2)))) -> 0 | AD19: =N19 -> 12211 | AE19: =COUNTIF(L27:L35,AD19) -> 0 | AF19: =AE19/(AG4-AE25) -> 0 | AG19: =IF(AF19=0,0,(AF19*((LOG(AF19))/LOG(2)))) -> 0 | AI19: =N19 -> 12211 | AJ19: =COUNTIF(L36:L45,AI19) -> 0 | AK19: =AJ19/(AL4-AJ25) -> 0 | AL19: =IF(AK19=0,0,(AK19*((LOG(AK19))/LOG(2)))) -> 0 | AN19: =N19 -> 12211 | AO19: =COUNTIF(L46:L55,AN19) -> 0 | AP19: =AO19/(AQ4-AO25) -> 0 | AQ19: =IF(AP19=0,0,(AP19*((LOG(AP19))/LOG(2)))) -> 0 | AS19: =N19 -> 12211 | AT19: =COUNTIF(L56:L65,AS19) -> 0 | AU19: =AT19/(AV4-AT25) -> 0 | AV19: =IF(AU19=0,0,(AU19*((LOG(AU19))/LOG(2)))) -> 0
A20: 12 | B20: 2233 | C20: 13 | D20: 2242 | E20: 13 | F20: 2256 | G20: 23 | H20: 2265 | I20: 13 | J20: 2275 | K20: 0 | L20: 11121 | N20: 12212 | O20: =COUNTIF($L$7:$L$500,N20) -> 7 | P20: =O20/$Q$4 -> 0.1206896552 | Q20: =IF(P20=0,0,(P20*((LOG(P20))/LOG(2)))) -> -0.3681790088 | T20: =N20 -> 12212 | U20: =COUNTIF(L7:L16,T20) -> 2 | V20: =U20/(W4-U25) -> 0.2222222222 | W20: =IF(V20=0,0,(V20*((LOG(V20))/LOG(2)))) -> -0.4822055559 | Y20: =N20 -> 12212 | Z20: =COUNTIF(L17:L26,Y20) -> 0 | AA20: =Z20/(AB4-Z25) -> 0 | AB20: =IF(AA20=0,0,(AA20*((LOG(AA20))/LOG(2)))) -> 0 | AD20: =N20 -> 12212 | AE20: =COUNTIF(L27:L35,AD20) -> 1 | AF20: =AE20/(AG4-AE25) -> 0.1111111111 | AG20: =IF(AF20=0,0,(AF20*((LOG(AF20))/LOG(2)))) -> -0.352213889 | AI20: =N20 -> 12212 | AJ20: =COUNTIF(L36:L45,AI20) -> 1 | AK20: =AJ20/(AL4-AJ25) -> 0.1 | AL20: =IF(AK20=0,0,(AK20*((LOG(AK20))/LOG(2)))) -> -0.3321928095 | AN20: =N20 -> 12212 | AO20: =COUNTIF(L46:L55,AN20) -> 2 | AP20: =AO20/(AQ4-AO25) -> 0.2 | AQ20: =IF(AP20=0,0,(AP20*((LOG(AP20))/LOG(2)))) -> -0.464385619 | AS20: =N20 -> 12212 | AT20: =COUNTIF(L56:L65,AS20) -> 1 | AU20: =AT20/(AV4-AT25) -> 0.1111111111 | AV20: =IF(AU20=0,0,(AU20*((LOG(AU20))/LOG(2)))) -> -0.352213889
A21: 12 | B21: 2379 | C21: 13 | D21: 2398 | E21: 24 | F21: 2406 | G21: 14 | H21: 2418 | I21: 24 | J21: 2430 | K21: 0 | L21: 11212 | N21: 12221 | O21: =COUNTIF($L$7:$L$500,N21) -> 3 | P21: =O21/$Q$4 -> 0.05172413793 | Q21: =IF(P21=0,0,(P21*((LOG(P21))/LOG(2)))) -> -0.221018198 | T21: =N21 -> 12221 | U21: =COUNTIF(L7:L16,T21) -> 0 | V21: =U21/(W4-U25) -> 0 | W21: =IF(V21=0,0,(V21*((LOG(V21))/LOG(2)))) -> 0 | Y21: =N21 -> 12221 | Z21: =COUNTIF(L17:L26,Y21) -> 1 | AA21: =Z21/(AB4-Z25) -> 0.1 | AB21: =IF(AA21=0,0,(AA21*((LOG(AA21))/LOG(2)))) -> -0.3321928095 | AD21: =N21 -> 12221 | AE21: =COUNTIF(L27:L35,AD21) -> 0 | AF21: =AE21/(AG4-AE25) -> 0 | AG21: =IF(AF21=0,0,(AF21*((LOG(AF21))/LOG(2)))) -> 0 | AI21: =N21 -> 12221 | AJ21: =COUNTIF(L36:L45,AI21) -> 0 | AK21: =AJ21/(AL4-AJ25) -> 0 | AL21: =IF(AK21=0,0,(AK21*((LOG(AK21))/LOG(2)))) -> 0 | AN21: =N21 -> 12221 | AO21: =COUNTIF(L46:L55,AN21) -> 0 | AP21: =AO21/(AQ4-AO25) -> 0 | AQ21: =IF(AP21=0,0,(AP21*((LOG(AP21))/LOG(2)))) -> 0 | AS21: =N21 -> 12221 | AT21: =COUNTIF(L56:L65,AS21) -> 2 | AU21: =AT21/(AV4-AT25) -> 0.2222222222 | AV21: =IF(AU21=0,0,(AU21*((LOG(AU21))/LOG(2)))) -> -0.4822055559
A22: 12 | B22: 2532 | C22: 13 | D22: 2542 | E22: 13 | F22: 2558 | G22: 23 | H22: 2568 | I22: 13 | J22: 2582 | K22: 0 | L22: 11121 | N22: 12222 | O22: =COUNTIF($L$7:$L$500,N22) -> 0 | P22: =O22/$Q$4 -> 0 | Q22: =IF(P22=0,0,(P22*((LOG(P22))/LOG(2)))) -> 0 | T22: =N22 -> 12222 | U22: =COUNTIF(L7:L16,T22) -> 0 | V22: =U22/(W4-U25) -> 0 | W22: =IF(V22=0,0,(V22*((LOG(V22))/LOG(2)))) -> 0 | Y22: =N22 -> 12222 | Z22: =COUNTIF(L17:L26,Y22) -> 0 | AA22: =Z22/(AB4-Z25) -> 0 | AB22: =IF(AA22=0,0,(AA22*((LOG(AA22))/LOG(2)))) -> 0 | AD22: =N22 -> 12222 | AE22: =COUNTIF(L27:L35,AD22) -> 0 | AF22: =AE22/(AG4-AE25) -> 0 | AG22: =IF(AF22=0,0,(AF22*((LOG(AF22))/LOG(2)))) -> 0 | AI22: =N22 -> 12222 | AJ22: =COUNTIF(L36:L45,AI22) -> 0 | AK22: =AJ22/(AL4-AJ25) -> 0 | AL22: =IF(AK22=0,0,(AK22*((LOG(AK22))/LOG(2)))) -> 0 | AN22: =N22 -> 12222 | AO22: =COUNTIF(L46:L55,AN22) -> 0 | AP22: =AO22/(AQ4-AO25) -> 0 | AQ22: =IF(AP22=0,0,(AP22*((LOG(AP22))/LOG(2)))) -> 0 | AS22: =N22 -> 12222 | AT22: =COUNTIF(L56:L65,AS22) -> 0 | AU22: =AT22/(AV4-AT25) -> 0 | AV22: =IF(AU22=0,0,(AU22*((LOG(AU22))/LOG(2)))) -> 0
A23: 12 | B23: 2695 | C23: 13 | D23: 2715 | E23: 13 | F23: 2723 | G23: 23 | H23: 2733 | I23: 13 | J23: 2748 | K23: 0 | L23: 11121 | N23: 21111 | O23: =COUNTIF($L$7:$L$500,N23) -> 0 | P23: =O23/$Q$4 -> 0 | Q23: =IF(P23=0,0,(P23*((LOG(P23))/LOG(2)))) -> 0 | T23: =N23 -> 21111 | U23: =COUNTIF(L7:L16,T23) -> 0 | V23: =U23/(W4-U25) -> 0 | W23: =IF(V23=0,0,(V23*((LOG(V23))/LOG(2)))) -> 0 | Y23: =N23 -> 21111 | Z23: =COUNTIF(L17:L26,Y23) -> 0 | AA23: =Z23/(AB4-Z25) -> 0 | AB23: =IF(AA23=0,0,(AA23*((LOG(AA23))/LOG(2)))) -> 0 | AD23: =N23 -> 21111 | AE23: =COUNTIF(L27:L35,AD23) -> 0 | AF23: =AE23/(AG4-AE25) -> 0 | AG23: =IF(AF23=0,0,(AF23*((LOG(AF23))/LOG(2)))) -> 0 | AI23: =N23 -> 21111 | AJ23: =COUNTIF(L36:L45,AI23) -> 0 | AK23: =AJ23/(AL4-AJ25) -> 0 | AL23: =IF(AK23=0,0,(AK23*((LOG(AK23))/LOG(2)))) -> 0 | AN23: =N23 -> 21111 | AO23: =COUNTIF(L46:L55,AN23) -> 0 | AP23: =AO23/(AQ4-AO25) -> 0 | AQ23: =IF(AP23=0,0,(AP23*((LOG(AP23))/LOG(2)))) -> 0 | AS23: =N23 -> 21111 | AT23: =COUNTIF(L56:L65,AS23) -> 0 | AU23: =AT23/(AV4-AT25) -> 0 | AV23: =IF(AU23=0,0,(AU23*((LOG(AU23))/LOG(2)))) -> 0
A24: 12 | B24: 2886 | C24: 24 | D24: 2902 | E24: 13 | F24: 2911 | G24: 23 | H24: 2921 | I24: 13 | J24: 2932 | K24: 0 | L24: 12121 | N24: 21112 | O24: =COUNTIF($L$7:$L$500,N24) -> 0 | P24: =O24/$Q$4 -> 0 | Q24: =IF(P24=0,0,(P24*((LOG(P24))/LOG(2)))) -> 0 | T24: =N24 -> 21112 | U24: =COUNTIF(L7:L16,T24) -> 0 | V24: =U24/(W4-U25) -> 0 | W24: =IF(V24=0,0,(V24*((LOG(V24))/LOG(2)))) -> 0 | Y24: =N24 -> 21112 | Z24: =COUNTIF(L17:L26,Y24) -> 0 | AA24: =Z24/(AB4-Z25) -> 0 | AB24: =IF(AA24=0,0,(AA24*((LOG(AA24))/LOG(2)))) -> 0 | AD24: =N24 -> 21112 | AE24: =COUNTIF(L27:L35,AD24) -> 0 | AF24: =AE24/(AG4-AE25) -> 0 | AG24: =IF(AF24=0,0,(AF24*((LOG(AF24))/LOG(2)))) -> 0 | AI24: =N24 -> 21112 | AJ24: =COUNTIF(L36:L45,AI24) -> 0 | AK24: =AJ24/(AL4-AJ25) -> 0 | AL24: =IF(AK24=0,0,(AK24*((LOG(AK24))/LOG(2)))) -> 0 | AN24: =N24 -> 21112 | AO24: =COUNTIF(L46:L55,AN24) -> 0 | AP24: =AO24/(AQ4-AO25) -> 0 | AQ24: =IF(AP24=0,0,(AP24*((LOG(AP24))/LOG(2)))) -> 0 | AS24: =N24 -> 21112 | AT24: =COUNTIF(L56:L65,AS24) -> 0 | AU24: =AT24/(AV4-AT25) -> 0 | AV24: =IF(AU24=0,0,(AU24*((LOG(AU24))/LOG(2)))) -> 0
A25: 21 | B25: 3058 | C25: 22 | D25: 3078 | E25: 13 | F25: 3088 | G25: 23 | H25: 3099 | I25: 24 | J25: 3119 | K25: 0 | L25: 22122 | N25: 21121 | O25: =COUNTIF($L$7:$L$500,N25) -> 1 | P25: =O25/$Q$4 -> 0.01724137931 | Q25: =IF(P25=0,0,(P25*((LOG(P25))/LOG(2)))) -> -0.1009996723 | T25: =N25 -> 21121 | U25: =COUNTIF(L7:L16,T25) -> 1 | Y25: =N25 -> 21121 | Z25: =COUNTIF(L17:L26,Y25) -> 0 | AD25: =N25 -> 21121 | AE25: =COUNTIF(L27:L35,AD25) -> 0 | AI25: =N25 -> 21121 | AJ25: =COUNTIF(L36:L45,AI25) -> 0 | AN25: =N25 -> 21121 | AO25: =COUNTIF(L46:L55,AN25) -> 0 | AS25: =N25 -> 21121 | AT25: =COUNTIF(L56:L65,AS25) -> 0
A26: 12 | B26: 3229 | C26: 13 | D26: 3247 | E26: 24 | F26: 3254 | G26: 14 | H26: 3263 | I26: 24 | J26: 3272 | K26: 0 | L26: 11212 | N26: 21122 | O26: =COUNTIF($L$7:$L$500,N26) -> 0 | P26: =O26/$Q$4 -> 0 | Q26: =IF(P26=0,0,(P26*((LOG(P26))/LOG(2)))) -> 0 | T26: =N26 -> 21122 | U26: =COUNTIF(L7:L16,T26) -> 0 | V26: =U26/(W4-U25) -> 0 | W26: =IF(V26=0,0,(V26*((LOG(V26))/LOG(2)))) -> 0 | Y26: =N26 -> 21122 | Z26: =COUNTIF(L17:L26,Y26) -> 0 | AA26: =Z26/(AB4-Z25) -> 0 | AB26: =IF(AA26=0,0,(AA26*((LOG(AA26))/LOG(2)))) -> 0 | AD26: =N26 -> 21122 | AE26: =COUNTIF(L27:L35,AD26) -> 0 | AF26: =AE26/(AG4-AE25) -> 0 | AG26: =IF(AF26=0,0,(AF26*((LOG(AF26))/LOG(2)))) -> 0 | AI26: =N26 -> 21122 | AJ26: =COUNTIF(L36:L45,AI26) -> 0 | AK26: =AJ26/(AL4-AJ25) -> 0 | AL26: =IF(AK26=0,0,(AK26*((LOG(AK26))/LOG(2)))) -> 0 | AN26: =N26 -> 21122 | AO26: =COUNTIF(L46:L55,AN26) -> 0 | AP26: =AO26/(AQ4-AO25) -> 0 | AQ26: =IF(AP26=0,0,(AP26*((LOG(AP26))/LOG(2)))) -> 0 | AS26: =N26 -> 21122 | AT26: =COUNTIF(L56:L65,AS26) -> 0 | AU26: =AT26/(AV4-AT25) -> 0 | AV26: =IF(AU26=0,0,(AU26*((LOG(AU26))/LOG(2)))) -> 0
A27: 12 | B27: 3385 | C27: 13 | D27: 3393 | E27: 24 | F27: 3402 | G27: 14 | H27: 3413 | I27: 13 | J27: 3452 | K27: 0 | L27: 11211 | N27: 21211 | O27: =COUNTIF($L$7:$L$500,N27) -> 0 | P27: =O27/$Q$4 -> 0 | Q27: =IF(P27=0,0,(P27*((LOG(P27))/LOG(2)))) -> 0 | T27: =N27 -> 21211 | U27: =COUNTIF(L7:L16,T27) -> 0 | V27: =U27/(W4-U25) -> 0 | W27: =IF(V27=0,0,(V27*((LOG(V27))/LOG(2)))) -> 0 | Y27: =N27 -> 21211 | Z27: =COUNTIF(L17:L26,Y27) -> 0 | AA27: =Z27/(AB4-Z25) -> 0 | AB27: =IF(AA27=0,0,(AA27*((LOG(AA27))/LOG(2)))) -> 0 | AD27: =N27 -> 21211 | AE27: =COUNTIF(L27:L35,AD27) -> 0 | AF27: =AE27/(AG4-AE25) -> 0 | AG27: =IF(AF27=0,0,(AF27*((LOG(AF27))/LOG(2)))) -> 0 | AI27: =N27 -> 21211 | AJ27: =COUNTIF(L36:L45,AI27) -> 0 | AK27: =AJ27/(AL4-AJ25) -> 0 | AL27: =IF(AK27=0,0,(AK27*((LOG(AK27))/LOG(2)))) -> 0 | AN27: =N27 -> 21211 | AO27: =COUNTIF(L46:L55,AN27) -> 0 | AP27: =AO27/(AQ4-AO25) -> 0 | AQ27: =IF(AP27=0,0,(AP27*((LOG(AP27))/LOG(2)))) -> 0 | AS27: =N27 -> 21211 | AT27: =COUNTIF(L56:L65,AS27) -> 0 | AU27: =AT27/(AV4-AT25) -> 0 | AV27: =IF(AU27=0,0,(AU27*((LOG(AU27))/LOG(2)))) -> 0
A28: 21 | B28: 3841 | C28: 11 | D28: 3850 | E28: 22 | F28: 3859 | G28: 14 | H28: 3868 | I28: 24 | J28: 3878 | K28: 0 | L28: 21212 | N28: 21212 | O28: =COUNTIF($L$7:$L$500,N28) -> 9 | P28: =O28/$Q$4 -> 0.1551724138 | Q28: =IF(P28=0,0,(P28*((LOG(P28))/LOG(2)))) -> -0.417112137 | T28: =N28 -> 21212 | U28: =COUNTIF(L7:L16,T28) -> 1 | V28: =U28/(W4-U25) -> 0.1111111111 | W28: =IF(V28=0,0,(V28*((LOG(V28))/LOG(2)))) -> -0.352213889 | Y28: =N28 -> 21212 | Z28: =COUNTIF(L17:L26,Y28) -> 0 | AA28: =Z28/(AB4-Z25) -> 0 | AB28: =IF(AA28=0,0,(AA28*((LOG(AA28))/LOG(2)))) -> 0 | AD28: =N28 -> 21212 | AE28: =COUNTIF(L27:L35,AD28) -> 2 | AF28: =AE28/(AG4-AE25) -> 0.2222222222 | AG28: =IF(AF28=0,0,(AF28*((LOG(AF28))/LOG(2)))) -> -0.4822055559 | AI28: =N28 -> 21212 | AJ28: =COUNTIF(L36:L45,AI28) -> 3 | AK28: =AJ28/(AL4-AJ25) -> 0.3 | AL28: =IF(AK28=0,0,(AK28*((LOG(AK28))/LOG(2)))) -> -0.5210896782 | AN28: =N28 -> 21212 | AO28: =COUNTIF(L46:L55,AN28) -> 1 | AP28: =AO28/(AQ4-AO25) -> 0.1 | AQ28: =IF(AP28=0,0,(AP28*((LOG(AP28))/LOG(2)))) -> -0.3321928095 | AS28: =N28 -> 21212 | AT28: =COUNTIF(L56:L65,AS28) -> 2 | AU28: =AT28/(AV4-AT25) -> 0.2222222222 | AV28: =IF(AU28=0,0,(AU28*((LOG(AU28))/LOG(2)))) -> -0.4822055559
A29: 12 | B29: 4006 | C29: 24 | D29: 4012 | E29: 24 | F29: 4029 | G29: 14 | H29: 4039 | I29: 24 | J29: 4049 | K29: 0 | L29: 12212 | N29: 21221 | O29: =COUNTIF($L$7:$L$500,N29) -> 0 | P29: =O29/$Q$4 -> 0 | Q29: =IF(P29=0,0,(P29*((LOG(P29))/LOG(2)))) -> 0 | T29: =N29 -> 21221 | U29: =COUNTIF(L7:L16,T29) -> 0 | V29: =U29/(W4-U25) -> 0 | W29: =IF(V29=0,0,(V29*((LOG(V29))/LOG(2)))) -> 0 | Y29: =N29 -> 21221 | Z29: =COUNTIF(L17:L26,Y29) -> 0 | AA29: =Z29/(AB4-Z25) -> 0 | AB29: =IF(AA29=0,0,(AA29*((LOG(AA29))/LOG(2)))) -> 0 | AD29: =N29 -> 21221 | AE29: =COUNTIF(L27:L35,AD29) -> 0 | AF29: =AE29/(AG4-AE25) -> 0 | AG29: =IF(AF29=0,0,(AF29*((LOG(AF29))/LOG(2)))) -> 0 | AI29: =N29 -> 21221 | AJ29: =COUNTIF(L36:L45,AI29) -> 0 | AK29: =AJ29/(AL4-AJ25) -> 0 | AL29: =IF(AK29=0,0,(AK29*((LOG(AK29))/LOG(2)))) -> 0 | AN29: =N29 -> 21221 | AO29: =COUNTIF(L46:L55,AN29) -> 0 | AP29: =AO29/(AQ4-AO25) -> 0 | AQ29: =IF(AP29=0,0,(AP29*((LOG(AP29))/LOG(2)))) -> 0 | AS29: =N29 -> 21221 | AT29: =COUNTIF(L56:L65,AS29) -> 0 | AU29: =AT29/(AV4-AT25) -> 0 | AV29: =IF(AU29=0,0,(AU29*((LOG(AU29))/LOG(2)))) -> 0
A30: 12 | B30: 4171 | C30: 13 | D30: 4180 | E30: 13 | F30: 4194 | G30: 23 | H30: 4205 | I30: 13 | J30: 4215 | K30: 0 | L30: 11121 | N30: 21222 | O30: =COUNTIF($L$7:$L$500,N30) -> 0 | P30: =O30/$Q$4 -> 0 | Q30: =IF(P30=0,0,(P30*((LOG(P30))/LOG(2)))) -> 0 | T30: =N30 -> 21222 | U30: =COUNTIF(L7:L16,T30) -> 0 | V30: =U30/(W4-U25) -> 0 | W30: =IF(V30=0,0,(V30*((LOG(V30))/LOG(2)))) -> 0 | Y30: =N30 -> 21222 | Z30: =COUNTIF(L17:L26,Y30) -> 0 | AA30: =Z30/(AB4-Z25) -> 0 | AB30: =IF(AA30=0,0,(AA30*((LOG(AA30))/LOG(2)))) -> 0 | AD30: =N30 -> 21222 | AE30: =COUNTIF(L27:L35,AD30) -> 0 | AF30: =AE30/(AG4-AE25) -> 0 | AG30: =IF(AF30=0,0,(AF30*((LOG(AF30))/LOG(2)))) -> 0 | AI30: =N30 -> 21222 | AJ30: =COUNTIF(L36:L45,AI30) -> 0 | AK30: =AJ30/(AL4-AJ25) -> 0 | AL30: =IF(AK30=0,0,(AK30*((LOG(AK30))/LOG(2)))) -> 0 | AN30: =N30 -> 21222 | AO30: =COUNTIF(L46:L55,AN30) -> 0 | AP30: =AO30/(AQ4-AO25) -> 0 | AQ30: =IF(AP30=0,0,(AP30*((LOG(AP30))/LOG(2)))) -> 0 | AS30: =N30 -> 21222 | AT30: =COUNTIF(L56:L65,AS30) -> 0 | AU30: =AT30/(AV4-AT25) -> 0 | AV30: =IF(AU30=0,0,(AU30*((LOG(AU30))/LOG(2)))) -> 0
A31: 12 | B31: 4327 | C31: 24 | D31: 4340 | E31: 13 | F31: 4349 | G31: 23 | H31: 4358 | I31: 13 | J31: 4371 | K31: 0 | L31: 12121 | N31: 22111 | O31: =COUNTIF($L$7:$L$500,N31) -> 0 | P31: =O31/$Q$4 -> 0 | Q31: =IF(P31=0,0,(P31*((LOG(P31))/LOG(2)))) -> 0 | T31: =N31 -> 22111 | U31: =COUNTIF(L7:L16,T31) -> 0 | V31: =U31/(W4-U25) -> 0 | W31: =IF(V31=0,0,(V31*((LOG(V31))/LOG(2)))) -> 0 | Y31: =N31 -> 22111 | Z31: =COUNTIF(L17:L26,Y31) -> 0 | AA31: =Z31/(AB4-Z25) -> 0 | AB31: =IF(AA31=0,0,(AA31*((LOG(AA31))/LOG(2)))) -> 0 | AD31: =N31 -> 22111 | AE31: =COUNTIF(L27:L35,AD31) -> 0 | AF31: =AE31/(AG4-AE25) -> 0 | AG31: =IF(AF31=0,0,(AF31*((LOG(AF31))/LOG(2)))) -> 0 | AI31: =N31 -> 22111 | AJ31: =COUNTIF(L36:L45,AI31) -> 0 | AK31: =AJ31/(AL4-AJ25) -> 0 | AL31: =IF(AK31=0,0,(AK31*((LOG(AK31))/LOG(2)))) -> 0 | AN31: =N31 -> 22111 | AO31: =COUNTIF(L46:L55,AN31) -> 0 | AP31: =AO31/(AQ4-AO25) -> 0 | AQ31: =IF(AP31=0,0,(AP31*((LOG(AP31))/LOG(2)))) -> 0 | AS31: =N31 -> 22111 | AT31: =COUNTIF(L56:L65,AS31) -> 0 | AU31: =AT31/(AV4-AT25) -> 0 | AV31: =IF(AU31=0,0,(AU31*((LOG(AU31))/LOG(2)))) -> 0
A32: 12 | B32: 4501 | C32: 24 | D32: 4509 | E32: 13 | F32: 4518 | G32: 23 | H32: 4528 | I32: 24 | J32: 4547 | K32: 0 | L32: 12122 | N32: 22112 | O32: =COUNTIF($L$7:$L$500,N32) -> 0 | P32: =O32/$Q$4 -> 0 | Q32: =IF(P32=0,0,(P32*((LOG(P32))/LOG(2)))) -> 0 | T32: =N32 -> 22112 | U32: =COUNTIF(L7:L16,T32) -> 0 | V32: =U32/(W4-U25) -> 0 | W32: =IF(V32=0,0,(V32*((LOG(V32))/LOG(2)))) -> 0 | Y32: =N32 -> 22112 | Z32: =COUNTIF(L17:L26,Y32) -> 0 | AA32: =Z32/(AB4-Z25) -> 0 | AB32: =IF(AA32=0,0,(AA32*((LOG(AA32))/LOG(2)))) -> 0 | AD32: =N32 -> 22112 | AE32: =COUNTIF(L27:L35,AD32) -> 0 | AF32: =AE32/(AG4-AE25) -> 0 | AG32: =IF(AF32=0,0,(AF32*((LOG(AF32))/LOG(2)))) -> 0 | AI32: =N32 -> 22112 | AJ32: =COUNTIF(L36:L45,AI32) -> 0 | AK32: =AJ32/(AL4-AJ25) -> 0 | AL32: =IF(AK32=0,0,(AK32*((LOG(AK32))/LOG(2)))) -> 0 | AN32: =N32 -> 22112 | AO32: =COUNTIF(L46:L55,AN32) -> 0 | AP32: =AO32/(AQ4-AO25) -> 0 | AQ32: =IF(AP32=0,0,(AP32*((LOG(AP32))/LOG(2)))) -> 0 | AS32: =N32 -> 22112 | AT32: =COUNTIF(L56:L65,AS32) -> 0 | AU32: =AT32/(AV4-AT25) -> 0 | AV32: =IF(AU32=0,0,(AU32*((LOG(AU32))/LOG(2)))) -> 0
A33: 12 | B33: 4705 | C33: 24 | D33: 4714 | E33: 13 | F33: 4723 | G33: 23 | H33: 4732 | I33: 13 | J33: 4742 | K33: 0 | L33: 12121 | N33: 22121 | O33: =COUNTIF($L$7:$L$500,N33) -> 1 | P33: =O33/$Q$4 -> 0.01724137931 | Q33: =IF(P33=0,0,(P33*((LOG(P33))/LOG(2)))) -> -0.1009996723 | T33: =N33 -> 22121 | U33: =COUNTIF(L7:L16,T33) -> 1 | V33: =U33/(W4-U25) -> 0.1111111111 | W33: =IF(V33=0,0,(V33*((LOG(V33))/LOG(2)))) -> -0.352213889 | Y33: =N33 -> 22121 | Z33: =COUNTIF(L17:L26,Y33) -> 0 | AA33: =Z33/(AB4-Z25) -> 0 | AB33: =IF(AA33=0,0,(AA33*((LOG(AA33))/LOG(2)))) -> 0 | AD33: =N33 -> 22121 | AE33: =COUNTIF(L27:L35,AD33) -> 0 | AF33: =AE33/(AG4-AE25) -> 0 | AG33: =IF(AF33=0,0,(AF33*((LOG(AF33))/LOG(2)))) -> 0 | AI33: =N33 -> 22121 | AJ33: =COUNTIF(L36:L45,AI33) -> 0 | AK33: =AJ33/(AL4-AJ25) -> 0 | AL33: =IF(AK33=0,0,(AK33*((LOG(AK33))/LOG(2)))) -> 0 | AN33: =N33 -> 22121 | AO33: =COUNTIF(L46:L55,AN33) -> 0 | AP33: =AO33/(AQ4-AO25) -> 0 | AQ33: =IF(AP33=0,0,(AP33*((LOG(AP33))/LOG(2)))) -> 0 | AS33: =N33 -> 22121 | AT33: =COUNTIF(L56:L65,AS33) -> 0 | AU33: =AT33/(AV4-AT25) -> 0 | AV33: =IF(AU33=0,0,(AU33*((LOG(AU33))/LOG(2)))) -> 0
A34: 21 | B34: 5036 | C34: 11 | D34: 5046 | E34: 22 | F34: 5055 | G34: 14 | H34: 5069 | I34: 24 | J34: 5082 | K34: 0 | L34: 21212 | N34: 22122 | O34: =COUNTIF($L$7:$L$500,N34) -> 1 | P34: =O34/$Q$4 -> 0.01724137931 | Q34: =IF(P34=0,0,(P34*((LOG(P34))/LOG(2)))) -> -0.1009996723 | T34: =N34 -> 22122 | U34: =COUNTIF(L7:L16,T34) -> 0 | V34: =U34/(W4-U25) -> 0 | W34: =IF(V34=0,0,(V34*((LOG(V34))/LOG(2)))) -> 0 | Y34: =N34 -> 22122 | Z34: =COUNTIF(L17:L26,Y34) -> 1 | AA34: =Z34/(AB4-Z25) -> 0.1 | AB34: =IF(AA34=0,0,(AA34*((LOG(AA34))/LOG(2)))) -> -0.3321928095 | AD34: =N34 -> 22122 | AE34: =COUNTIF(L27:L35,AD34) -> 0 | AF34: =AE34/(AG4-AE25) -> 0 | AG34: =IF(AF34=0,0,(AF34*((LOG(AF34))/LOG(2)))) -> 0 | AI34: =N34 -> 22122 | AJ34: =COUNTIF(L36:L45,AI34) -> 0 | AK34: =AJ34/(AL4-AJ25) -> 0 | AL34: =IF(AK34=0,0,(AK34*((LOG(AK34))/LOG(2)))) -> 0 | AN34: =N34 -> 22122 | AO34: =COUNTIF(L46:L55,AN34) -> 0 | AP34: =AO34/(AQ4-AO25) -> 0 | AQ34: =IF(AP34=0,0,(AP34*((LOG(AP34))/LOG(2)))) -> 0 | AS34: =N34 -> 22122 | AT34: =COUNTIF(L56:L65,AS34) -> 0 | AU34: =AT34/(AV4-AT25) -> 0 | AV34: =IF(AU34=0,0,(AU34*((LOG(AU34))/LOG(2)))) -> 0
A35: 12 | B35: 5214 | C35: 24 | D35: 5223 | E35: 13 | F35: 5233 | G35: 23 | H35: 5244 | I35: 13 | J35: 5259 | K35: 0 | L35: 12121 | N35: 22211 | O35: =COUNTIF($L$7:$L$500,N35) -> 0 | P35: =O35/$Q$4 -> 0 | Q35: =IF(P35=0,0,(P35*((LOG(P35))/LOG(2)))) -> 0 | T35: =N35 -> 22211 | U35: =COUNTIF(L7:L16,T35) -> 0 | V35: =U35/(W4-U25) -> 0 | W35: =IF(V35=0,0,(V35*((LOG(V35))/LOG(2)))) -> 0 | Y35: =N35 -> 22211 | Z35: =COUNTIF(L17:L26,Y35) -> 0 | AA35: =Z35/(AB4-Z25) -> 0 | AB35: =IF(AA35=0,0,(AA35*((LOG(AA35))/LOG(2)))) -> 0 | AD35: =N35 -> 22211 | AE35: =COUNTIF(L27:L35,AD35) -> 0 | AF35: =AE35/(AG4-AE25) -> 0 | AG35: =IF(AF35=0,0,(AF35*((LOG(AF35))/LOG(2)))) -> 0 | AI35: =N35 -> 22211 | AJ35: =COUNTIF(L36:L45,AI35) -> 0 | AK35: =AJ35/(AL4-AJ25) -> 0 | AL35: =IF(AK35=0,0,(AK35*((LOG(AK35))/LOG(2)))) -> 0 | AN35: =N35 -> 22211 | AO35: =COUNTIF(L46:L55,AN35) -> 0 | AP35: =AO35/(AQ4-AO25) -> 0 | AQ35: =IF(AP35=0,0,(AP35*((LOG(AP35))/LOG(2)))) -> 0 | AS35: =N35 -> 22211 | AT35: =COUNTIF(L56:L65,AS35) -> 0 | AU35: =AT35/(AV4-AT25) -> 0 | AV35: =IF(AU35=0,0,(AU35*((LOG(AU35))/LOG(2)))) -> 0
A36: 12 | B36: 5363 | C36: 24 | D36: 5375 | E36: 13 | F36: 5383 | G36: 23 | H36: 5390 | I36: 13 | J36: 5401 | K36: 0 | L36: 12121 | N36: 22212 | O36: =COUNTIF($L$7:$L$500,N36) -> 2 | P36: =O36/$Q$4 -> 0.03448275862 | Q36: =IF(P36=0,0,(P36*((LOG(P36))/LOG(2)))) -> -0.167516586 | T36: =N36 -> 22212 | U36: =COUNTIF(L7:L16,T36) -> 0 | V36: =U36/(W4-U25) -> 0 | W36: =IF(V36=0,0,(V36*((LOG(V36))/LOG(2)))) -> 0 | Y36: =N36 -> 22212 | Z36: =COUNTIF(L17:L26,Y36) -> 0 | AA36: =Z36/(AB4-Z25) -> 0 | AB36: =IF(AA36=0,0,(AA36*((LOG(AA36))/LOG(2)))) -> 0 | AD36: =N36 -> 22212 | AE36: =COUNTIF(L27:L35,AD36) -> 0 | AF36: =AE36/(AG4-AE25) -> 0 | AG36: =IF(AF36=0,0,(AF36*((LOG(AF36))/LOG(2)))) -> 0 | AI36: =N36 -> 22212 | AJ36: =COUNTIF(L36:L45,AI36) -> 0 | AK36: =AJ36/(AL4-AJ25) -> 0 | AL36: =IF(AK36=0,0,(AK36*((LOG(AK36))/LOG(2)))) -> 0 | AN36: =N36 -> 22212 | AO36: =COUNTIF(L46:L55,AN36) -> 1 | AP36: =AO36/(AQ4-AO25) -> 0.1 | AQ36: =IF(AP36=0,0,(AP36*((LOG(AP36))/LOG(2)))) -> -0.3321928095 | AS36: =N36 -> 22212 | AT36: =COUNTIF(L56:L65,AS36) -> 1 | AU36: =AT36/(AV4-AT25) -> 0.1111111111 | AV36: =IF(AU36=0,0,(AU36*((LOG(AU36))/LOG(2)))) -> -0.352213889
A37: 21 | B37: 5573 | C37: 11 | D37: 5582 | E37: 22 | F37: 5592 | G37: 14 | H37: 5607 | I37: 24 | J37: 5617 | K37: 0 | L37: 21212 | N37: 22221 | O37: =COUNTIF($L$7:$L$500,N37) -> 0 | P37: =O37/$Q$4 -> 0 | Q37: =IF(P37=0,0,(P37*((LOG(P37))/LOG(2)))) -> 0 | T37: =N37 -> 22221 | U37: =COUNTIF(L7:L16,T37) -> 0 | V37: =U37/(W4-U25) -> 0 | W37: =IF(V37=0,0,(V37*((LOG(V37))/LOG(2)))) -> 0 | Y37: =N37 -> 22221 | Z37: =COUNTIF(L17:L26,Y37) -> 0 | AA37: =Z37/(AB4-Z25) -> 0 | AB37: =IF(AA37=0,0,(AA37*((LOG(AA37))/LOG(2)))) -> 0 | AD37: =N37 -> 22221 | AE37: =COUNTIF(L27:L35,AD37) -> 0 | AF37: =AE37/(AG4-AE25) -> 0 | AG37: =IF(AF37=0,0,(AF37*((LOG(AF37))/LOG(2)))) -> 0 | AI37: =N37 -> 22221 | AJ37: =COUNTIF(L36:L45,AI37) -> 0 | AK37: =AJ37/(AL4-AJ25) -> 0 | AL37: =IF(AK37=0,0,(AK37*((LOG(AK37))/LOG(2)))) -> 0 | AN37: =N37 -> 22221 | AO37: =COUNTIF(L46:L55,AN37) -> 0 | AP37: =AO37/(AQ4-AO25) -> 0 | AQ37: =IF(AP37=0,0,(AP37*((LOG(AP37))/LOG(2)))) -> 0 | AS37: =N37 -> 22221 | AT37: =COUNTIF(L56:L65,AS37) -> 0 | AU37: =AT37/(AV4-AT25) -> 0 | AV37: =IF(AU37=0,0,(AU37*((LOG(AU37))/LOG(2)))) -> 0
A38: 12 | B38: 5729 | C38: 13 | D38: 5751 | E38: 24 | F38: 5761 | G38: 14 | H38: 5773 | I38: 24 | J38: 5783 | K38: 0 | L38: 11212 | N38: 22222 | O38: =COUNTIF($L$7:$L$500,N38) -> 0 | P38: =O38/$Q$4 -> 0 | Q38: =IF(P38=0,0,(P38*((LOG(P38))/LOG(2)))) -> 0 | T38: =N38 -> 22222 | U38: =COUNTIF(L7:L16,T38) -> 0 | V38: =U38/(W4-U25) -> 0 | W38: =IF(V38=0,0,(V38*((LOG(V38))/LOG(2)))) -> 0 | Y38: =N38 -> 22222 | Z38: =COUNTIF(L17:L26,Y38) -> 0 | AA38: =Z38/(AB4-Z25) -> 0 | AB38: =IF(AA38=0,0,(AA38*((LOG(AA38))/LOG(2)))) -> 0 | AD38: =N38 -> 22222 | AE38: =COUNTIF(L27:L35,AD38) -> 0 | AF38: =AE38/(AG4-AE25) -> 0 | AG38: =IF(AF38=0,0,(AF38*((LOG(AF38))/LOG(2)))) -> 0 | AI38: =N38 -> 22222 | AJ38: =COUNTIF(L36:L45,AI38) -> 0 | AK38: =AJ38/(AL4-AJ25) -> 0 | AL38: =IF(AK38=0,0,(AK38*((LOG(AK38))/LOG(2)))) -> 0 | AN38: =N38 -> 22222 | AO38: =COUNTIF(L46:L55,AN38) -> 0 | AP38: =AO38/(AQ4-AO25) -> 0 | AQ38: =IF(AP38=0,0,(AP38*((LOG(AP38))/LOG(2)))) -> 0 | AS38: =N38 -> 22222 | AT38: =COUNTIF(L56:L65,AS38) -> 0 | AU38: =AT38/(AV4-AT25) -> 0 | AV38: =IF(AU38=0,0,(AU38*((LOG(AU38))/LOG(2)))) -> 0
A39: 21 | B39: 5930 | C39: 11 | D39: 5941 | E39: 22 | F39: 5950 | G39: 14 | H39: 5959 | I39: 24 | J39: 5969 | K39: 0 | L39: 21212 | P39: =SUM(P7:P38) -> 1 | Q39: =-SUM(Q7:Q38) -> 3.52494242 | V39: =SUM(V7:V38) -> 1 | W39: =-SUM(W7:W38) -> 2.197159723 | AA39: =SUM(AA7:AA38) -> 1 | AB39: =-SUM(AB7:AB38) -> 2.646439345 | AF39: =SUM(AF7:AF38) -> 1 | AG39: =-SUM(AG7:AG38) -> 2.419381946 | AK39: =SUM(AK7:AK38) -> 1 | AL39: =-SUM(AL7:AL38) -> 2.370950594 | AP39: =SUM(AP7:AP38) -> 1 | AQ39: =-SUM(AQ7:AQ38) -> 2.721928095 | AU39: =SUM(AU7:AU38) -> 1 | AV39: =-SUM(AV7:AV38) -> 2.725480557
A40: 12 | B40: 6292 | C40: 13 | D40: 6303 | E40: 24 | F40: 6313 | G40: 14 | H40: 6328 | I40: 24 | J40: 6339 | K40: 0 | L40: 11212 | P40: U= | Q40: =Q39/(LOG(Q4)/LOG(2)) -> 0.6017333314 | V40: U1= | W40: =W39/(LOG(W4)/LOG(2)) -> 0.661410982 | AA40: U2= | AB40: =AB39/(LOG(AB4)/LOG(2)) -> 0.7966576245 | AF40: U3= | AG40: =AG39/(LOG(AG4)/LOG(2)) -> 0.7632300274 | AK40: U4= | AL40: =AL39/(LOG(AL4)/LOG(2)) -> 0.7137272472 | AP40: U5= | AQ40: =AQ39/(LOG(AQ4)/LOG(2)) -> 0.8193820026 | AU40: U6= | AV40: =AV39/(LOG(AV4)/LOG(2)) -> 0.8597933881
A41: 12 | B41: 6452 | C41: 13 | D41: 6461 | E41: 13 | F41: 6475 | G41: 14 | H41: 6490 | I41: 24 | J41: 6499 | K41: 0 | L41: 11112
A42: 21 | B42: 6682 | C42: 11 | D42: 6695 | E42: 22 | F42: 6708 | G42: 14 | H42: 6719 | I42: 24 | J42: 6730 | K42: 0 | L42: 21212
A43: 12 | B43: 6857 | C43: 24 | D43: 6869 | E43: 24 | F43: 6887 | G43: 14 | H43: 6900 | I43: 24 | J43: 6919 | K43: 0 | L43: 12212 | N43: Total Target Seq
A44: 12 | B44: 7087 | C44: 13 | D44: 7107 | E44: 24 | F44: 7116 | G44: 14 | H44: 7131 | I44: 24 | J44: 7144 | K44: 0 | L44: 11212 | N44: =COUNTIF(L7:L65,G3) -> 1 | P44: 10 | Q44: 10 | R44: 9 | S44: 10 | T44: 10 | U44: 10
A45: 12 | B45: 7296 | C45: 13 | D45: 7305 | E45: 13 | F45: 7317 | G45: 14 | H45: 7328 | I45: 13 | J45: 7344 | K45: 0 | L45: 11111 | P45: % of reinforcement given in 6 equal intervals based on number of trials
A46: 21 | B46: 7491 | C46: 11 | D46: 7500 | E46: 22 | F46: 7509 | G46: 14 | H46: 7523 | I46: 24 | J46: 7534 | K46: 0 | L46: 21212 | P46: %_1 | Q46: %_2 | R46: %_3 | S46: %_4 | T46: %_5 | U46: %_6
A47: 12 | B47: 7845 | C47: 24 | D47: 7851 | E47: 24 | F47: 7868 | G47: 14 | H47: 7879 | I47: 24 | J47: 7889 | K47: 0 | L47: 12212 | O47: target sequence | P47: =$G$3 -> 21121 | Q47: =$G$3 -> 21121 | R47: =$G$3 -> 21121 | S47: =$G$3 -> 21121 | T47: =$G$3 -> 21121 | U47: =$G$3 -> 21121
A48: 12 | B48: 8037 | C48: 24 | D48: 8060 | E48: 13 | F48: 8071 | G48: 23 | H48: 8081 | I48: 24 | J48: 8100 | K48: 0 | L48: 12122 | O48: total reinforcement | P48: =U25 -> 1 | Q48: =Z25 -> 0 | R48: =AE25 -> 0 | S48: =AJ25 -> 0 | T48: =AO25 -> 0 | U48: =AT25 -> 0
A49: 12 | B49: 8326 | C49: 13 | D49: 8336 | E49: 13 | F49: 8348 | G49: 23 | H49: 8358 | I49: 13 | J49: 8368 | K49: 0 | L49: 11121 | O49: % target
A50: 12 | B50: 8554 | C50: 24 | D50: 8563 | E50: 13 | F50: 8633 | G50: 23 | H50: 8643 | I50: 24 | J50: 8666 | K50: 0 | L50: 12122 | O50: CCRF
A51: 12 | B51: 8809 | C51: 13 | D51: 8827 | E51: 13 | F51: 8847 | G51: 23 | H51: 8857 | I51: 13 | J51: 8870 | K51: 0 | L51: 11121 | O51: % CCRf
A52: 12 | B52: 9052 | C52: 13 | D52: 9071 | E52: 24 | F52: 9108 | G52: 14 | H52: 9122 | I52: 24 | J52: 9131 | K52: 0 | L52: 11212 | O52: average response rate | P52: =J16/P44 -> 164 | Q52: =(J26-J16)/Q44 -> 163.2 | R52: =(J35-J26)/R44 -> 220.7777778 | S52: =(J45-J35)/S44 -> 208.5 | T52: =(J55-J45)/T44 -> 395.9 | U52: =(J65-J55)/U44 -> -1130.3
A53: 21 | B53: 9463 | C53: 22 | D53: 9485 | E53: 24 | F53: 9516 | G53: 14 | H53: 9532 | I53: 24 | J53: 9542 | K53: 0 | L53: 22212
A54: 12 | B54: 10638 | C54: 13 | D54: 10647 | E54: 24 | F54: 10662 | G54: 23 | H54: 10704 | I54: 13 | J54: 10716 | K54: 0 | L54: 11221
A55: 12 | B55: 10981 | C55: 24 | D55: 11225 | E55: 24 | F55: 11254 | G55: 14 | H55: 11292 | I55: 24 | J55: 11303 | K55: 0 | L55: 12212
A56: 21 | B56: 11440 | C56: 11 | D56: 11685 | E56: 22 | F56: 11695 | G56: 14 | H56: 11724 | I56: 24 | J56: 11734 | K56: 0 | L56: 21212
A57: 12 | B57: 11924 | C57: 24 | D57: 11950 | E57: 24 | F57: 11966 | G57: 23 | H57: 11976 | I57: 13 | J57: 11987 | K57: 0 | L57: 12221
A58: 12 | B58: 12186 | C58: 24 | D58: 12197 | E58: 24 | F58: 12247 | G58: 14 | H58: 12263 | I58: 24 | J58: 12273 | K58: 0 | L58: 12212
A59: 12 | B59: 12545 | C59: 13 | D59: 12553 | E59: 24 | F59: 12564 | G59: 14 | H59: 12580 | I59: 24 | J59: 12589 | K59: 0 | L59: 11212
A60: 21 | B60: 13791 | C60: 22 | D60: 13805 | E60: 24 | F60: 13818 | G60: 14 | H60: 13871 | I60: 24 | J60: 13882 | K60: 0 | L60: 22212
A61: 12 | B61: 16481 | C61: 13 | D61: 19468 | E61: 13 | F61: 19477 | G61: 14 | H61: 19498 | I61: 13 | J61: 19508 | K61: 0 | L61: 11111
A62: 12 | B62: 20046 | C62: 24 | D62: 20059 | E62: 13 | F62: 20072 | G62: 23 | H62: 20085 | I62: 24 | J62: 20114 | K62: 0 | L62: 12122
A63: 21 | B63: 20245 | C63: 11 | D63: 20271 | E63: 22 | F63: 20305 | G63: 14 | H63: 20321 | I63: 24 | J63: 20331 | K63: 0 | L63: 21212
A64: 12 | B64: 21253 | C64: 24 | D64: 21266 | E64: 24 | F64: 21282 | G64: 23 | H64: 21307 | I64: 13 | J64: 21328 | K64: 0 | L64: 12221
A65: 12 | B65: 21810 | C65: 13 | D65: 21821 | L65: 11

Sheet !N105A10.105
A1: Report for:!N105A10.105
A2: Date: | B2: <date>
A3: Hen: | B3: <hen> | F3: Correct Sequence | G3: =Start!J2 -> 21121 | P3: Total Sequences in Data | Q3: =4994-COUNTBLANK(L7:L5000) -> 20 | V3: Total Sequences in Block Data | W3: =COUNTA(L7:L9) -> 3 | AA3: Total Sequences in Block Data | AB3: =COUNTA(L10:L13) -> 4 | AF3: Total Sequences in Block Data | AG3: =COUNTA(L14:L16) -> 3 | AK3: Total Sequences in Block Data | AL3: =COUNTA(L17:L19) -> 3 | AP3: Total Sequences in Block Data | AQ3: =COUNTA(L20:L23) -> 4 | AU3: Total Sequences in Block Data | AV3: =COUNTA(L24:L26) -> 3
P4: Total Sequences in Summary | Q4: =SUM(O7:O38) -> 19 | V4: Total Sequences in Block Summary | W4: =SUM(U7:U38) -> 3 | AA4: Total Sequences in Block Summary | AB4: =SUM(Z7:Z38) -> 4 | AF4: Total Sequences in Block Summary | AG4: =SUM(AE7:AE38) -> 3 | AK4: Total Sequences in Block Summary | AL4: =SUM(AJ7:AJ38) -> 3 | AP4: Total Sequences in Block Summary | AQ4: =SUM(AO7:AO38) -> 4 | AU4: Total Sequences in Block Summary | AV4: =SUM(AT7:AT38) -> 2
T5: Block 1 | Y5: Block 2 | AD5: Block 3 | AI5: Block 4 | AN5: Block 5 | AS5: Block 6
A6: Sequence Component 1 | B6: Time 1 | C6: Sequence Component 2 | D6: Time 2 | E6: Sequence Component 3 | F6: Time 3 | G6: Sequence Component 4 | H6: Time 4 | I6: Sequence Component 5 | J6: Time 5 | K6: Correct? 0=No 1=Yes | L6: Sequence | N6: Frequency | P6: Relative Frequency | Q6: Variability | T6: Frequency | V6: Relative Frequency | W6: Variability | Y6: Frequency | AA6: Relative Frequency | AB6: Variability | AD6: Frequency | AF6: Relative Frequency | AG6: Variability | AI6: Frequency | AK6: Relative Frequency | AL6: Variability | AN6: Frequency | AP6: Relative Frequency | AQ6: Variability | AS6: Frequency | AU6: Relative Frequency | AV6: Variability
A7: 21 | B7: 31 | C7: 22 | D7: 52 | E7: 24 | F7: 76 | G7: 23 | H7: 84 | I7: 24 | J7: 114 | K7: 0 | L7: 22222 | N7: 11111 | O7: =COUNTIF($L$7:$L$500,N7) -> 1 | P7: =O7/$Q$4 -> 0.05263157895 | Q7: =IF(P7=0,0,(P7*((LOG(P7))/LOG(2)))) -> -0.2235751323 | T7: =N7 -> 11111 | U7: =COUNTIF(L7:L9,T7) -> 0 | V7: =U7/(W4-U25) -> 0 | W7: =IF(V7=0,0,(V7*((LOG(V7))/LOG(2)))) -> 0 | Y7: =N7 -> 11111 | Z7: =COUNTIF(L10:L13,Y7) -> 1 | AA7: =Z7/(AB4-Z25) -> 0.25 | AB7: =IF(AA7=0,0,(AA7*((LOG(AA7))/LOG(2)))) -> -0.5 | AD7: =N7 -> 11111 | AE7: =COUNTIF(L14:L16,AD7) -> 0 | AF7: =AE7/(AG4-AE25) -> 0 | AG7: =IF(AF7=0,0,(AF7*((LOG(AF7))/LOG(2)))) -> 0 | AI7: =N7 -> 11111 | AJ7: =COUNTIF(L17:L19,AI7) -> 0 | AK7: =AJ7/(AL4-AJ25) -> 0 | AL7: =IF(AK7=0,0,(AK7*((LOG(AK7))/LOG(2)))) -> 0 | AN7: =N7 -> 11111 | AO7: =COUNTIF(L20:L23,AN7) -> 0 | AP7: =AO7/(AQ4-AO25) -> 0 | AQ7: =IF(AP7=0,0,(AP7*((LOG(AP7))/LOG(2)))) -> 0 | AS7: =N7 -> 11111 | AT7: =COUNTIF(L24:L26,AS7) -> 0 | AU7: =AT7/(AV4-AT25) -> 0 | AV7: =IF(AU7=0,0,(AU7*((LOG(AU7))/LOG(2)))) -> 0
A8: 12 | B8: 231 | C8: 24 | D8: 240 | E8: 24 | F8: 258 | G8: 14 | H8: 280 | I8: 24 | J8: 290 | K8: 0 | L8: 12212 | N8: 11112 | O8: =COUNTIF($L$7:$L$500,N8) -> 0 | P8: =O8/$Q$4 -> 0 | Q8: =IF(P8=0,0,(P8*((LOG(P8))/LOG(2)))) -> 0 | T8: =N8 -> 11112 | U8: =COUNTIF(L7:L9,T8) -> 0 | V8: =U8/(W4-U25) -> 0 | W8: =IF(V8=0,0,(V8*((LOG(V8))/LOG(2)))) -> 0 | Y8: =N8 -> 11112 | Z8: =COUNTIF(L10:L13,Y8) -> 0 | AA8: =Z8/(AB4-Z25) -> 0 | AB8: =IF(AA8=0,0,(AA8*((LOG(AA8))/LOG(2)))) -> 0 | AD8: =N8 -> 11112 | AE8: =COUNTIF(L14:L16,AD8) -> 0 | AF8: =AE8/(AG4-AE25) -> 0 | AG8: =IF(AF8=0,0,(AF8*((LOG(AF8))/LOG(2)))) -> 0 | AI8: =N8 -> 11112 | AJ8: =COUNTIF(L17:L19,AI8) -> 0 | AK8: =AJ8/(AL4-AJ25) -> 0 | AL8: =IF(AK8=0,0,(AK8*((LOG(AK8))/LOG(2)))) -> 0 | AN8: =N8 -> 11112 | AO8: =COUNTIF(L20:L23,AN8) -> 0 | AP8: =AO8/(AQ4-AO25) -> 0 | AQ8: =IF(AP8=0,0,(AP8*((LOG(AP8))/LOG(2)))) -> 0 | AS8: =N8 -> 11112 | AT8: =COUNTIF(L24:L26,AS8) -> 0 | AU8: =AT8/(AV4-AT25) -> 0 | AV8: =IF(AU8=0,0,(AU8*((LOG(AU8))/LOG(2)))) -> 0
A9: 12 | B9: 393 | C9: 24 | D9: 455 | E9: 13 | F9: 470 | G9: 14 | H9: 480 | I9: 13 | J9: 543 | K9: 0 | L9: 12111 | N9: 11121 | O9: =COUNTIF($L$7:$L$500,N9) -> 0 | P9: =O9/$Q$4 -> 0 | Q9: =IF(P9=0,0,(P9*((LOG(P9))/LOG(2)))) -> 0 | T9: =N9 -> 11121 | U9: =COUNTIF(L7:L9,T9) -> 0 | V9: =U9/(W4-U25) -> 0 | W9: =IF(V9=0,0,(V9*((LOG(V9))/LOG(2)))) -> 0 | Y9: =N9 -> 11121 | Z9: =COUNTIF(L10:L13,Y9) -> 0 | AA9: =Z9/(AB4-Z25) -> 0 | AB9: =IF(AA9=0,0,(AA9*((LOG(AA9))/LOG(2)))) -> 0 | AD9: =N9 -> 11121 | AE9: =COUNTIF(L14:L16,AD9) -> 0 | AF9: =AE9/(AG4-AE25) -> 0 | AG9: =IF(AF9=0,0,(AF9*((LOG(AF9))/LOG(2)))) -> 0 | AI9: =N9 -> 11121 | AJ9: =COUNTIF(L17:L19,AI9) -> 0 | AK9: =AJ9/(AL4-AJ25) -> 0 | AL9: =IF(AK9=0,0,(AK9*((LOG(AK9))/LOG(2)))) -> 0 | AN9: =N9 -> 11121 | AO9: =COUNTIF(L20:L23,AN9) -> 0 | AP9: =AO9/(AQ4-AO25) -> 0 | AQ9: =IF(AP9=0,0,(AP9*((LOG(AP9))/LOG(2)))) -> 0 | AS9: =N9 -> 11121 | AT9: =COUNTIF(L24:L26,AS9) -> 0 | AU9: =AT9/(AV4-AT25) -> 0 | AV9: =IF(AU9=0,0,(AU9*((LOG(AU9))/LOG(2)))) -> 0
A10: 12 | B10: 651 | C10: 13 | D10: 666 | E10: 13 | F10: 677 | G10: 14 | H10: 726 | I10: 13 | J10: 757 | K10: 0 | L10: 11111 | N10: 11122 | O10: =COUNTIF($L$7:$L$500,N10) -> 1 | P10: =O10/$Q$4 -> 0.05263157895 | Q10: =IF(P10=0,0,(P10*((LOG(P10))/LOG(2)))) -> -0.2235751323 | T10: =N10 -> 11122 | U10: =COUNTIF(L7:L9,T10) -> 0 | V10: =U10/(W4-U25) -> 0 | W10: =IF(V10=0,0,(V10*((LOG(V10))/LOG(2)))) -> 0 | Y10: =N10 -> 11122 | Z10: =COUNTIF(L10:L13,Y10) -> 0 | AA10: =Z10/(AB4-Z25) -> 0 | AB10: =IF(AA10=0,0,(AA10*((LOG(AA10))/LOG(2)))) -> 0 | AD10: =N10 -> 11122 | AE10: =COUNTIF(L14:L16,AD10) -> 0 | AF10: =AE10/(AG4-AE25) -> 0 | AG10: =IF(AF10=0,0,(AF10*((LOG(AF10))/LOG(2)))) -> 0 | AI10: =N10 -> 11122 | AJ10: =COUNTIF(L17:L19,AI10) -> 0 | AK10: =AJ10/(AL4-AJ25) -> 0 | AL10: =IF(AK10=0,0,(AK10*((LOG(AK10))/LOG(2)))) -> 0 | AN10: =N10 -> 11122 | AO10: =COUNTIF(L20:L23,AN10) -> 1 | AP10: =AO10/(AQ4-AO25) -> 0.25 | AQ10: =IF(AP10=0,0,(AP10*((LOG(AP10))/LOG(2)))) -> -0.5 | AS10: =N10 -> 11122 | AT10: =COUNTIF(L24:L26,AS10) -> 0 | AU10: =AT10/(AV4-AT25) -> 0 | AV10: =IF(AU10=0,0,(AU10*((LOG(AU10))/LOG(2)))) -> 0
A11: 21 | B11: 962 | C11: 11 | D11: 973 | E11: 22 | F11: 982 | G11: 23 | H11: 995 | I11: 24 | J11: 1014 | K11: 0 | L11: 21222 | N11: 11211 | O11: =COUNTIF($L$7:$L$500,N11) -> 0 | P11: =O11/$Q$4 -> 0 | Q11: =IF(P11=0,0,(P11*((LOG(P11))/LOG(2)))) -> 0 | T11: =N11 -> 11211 | U11: =COUNTIF(L7:L9,T11) -> 0 | V11: =U11/(W4-U25) -> 0 | W11: =IF(V11=0,0,(V11*((LOG(V11))/LOG(2)))) -> 0 | Y11: =N11 -> 11211 | Z11: =COUNTIF(L10:L13,Y11) -> 0 | AA11: =Z11/(AB4-Z25) -> 0 | AB11: =IF(AA11=0,0,(AA11*((LOG(AA11))/LOG(2)))) -> 0 | AD11: =N11 -> 11211 | AE11: =COUNTIF(L14:L16,AD11) -> 0 | AF11: =AE11/(AG4-AE25) -> 0 | AG11: =IF(AF11=0,0,(AF11*((LOG(AF11))/LOG(2)))) -> 0 | AI11: =N11 -> 11211 | AJ11: =COUNTIF(L17:L19,AI11) -> 0 | AK11: =AJ11/(AL4-AJ25) -> 0 | AL11: =IF(AK11=0,0,(AK11*((LOG(AK11))/LOG(2)))) -> 0 | AN11: =N11 -> 11211 | AO11: =COUNTIF(L20:L23,AN11) -> 0 | AP11: =AO11/(AQ4-AO25) -> 0 | AQ11: =IF(AP11=0,0,(AP11*((LOG(AP11))/LOG(2)))) -> 0 | AS11: =N11 -> 11211 | AT11: =COUNTIF(L24:L26,AS11) -> 0 | AU11: =AT11/(AV4-AT25) -> 0 | AV11: =IF(AU11=0,0,(AU11*((LOG(AU11))/LOG(2)))) -> 0
A12: 21 | B12: 1160 | C12: 11 | D12: 1170 | E12: 22 | F12: 1176 | G12: 23 | H12: 1196 | I12: 24 | J12: 1206 | K12: 0 | L12: 21222 | N12: 11212 | O12: =COUNTIF($L$7:$L$500,N12) -> 0 | P12: =O12/$Q$4 -> 0 | Q12: =IF(P12=0,0,(P12*((LOG(P12))/LOG(2)))) -> 0 | T12: =N12 -> 11212 | U12: =COUNTIF(L7:L9,T12) -> 0 | V12: =U12/(W4-U25) -> 0 | W12: =IF(V12=0,0,(V12*((LOG(V12))/LOG(2)))) -> 0 | Y12: =N12 -> 11212 | Z12: =COUNTIF(L10:L13,Y12) -> 0 | AA12: =Z12/(AB4-Z25) -> 0 | AB12: =IF(AA12=0,0,(AA12*((LOG(AA12))/LOG(2)))) -> 0 | AD12: =N12 -> 11212 | AE12: =COUNTIF(L14:L16,AD12) -> 0 | AF12: =AE12/(AG4-AE25) -> 0 | AG12: =IF(AF12=0,0,(AF12*((LOG(AF12))/LOG(2)))) -> 0 | AI12: =N12 -> 11212 | AJ12: =COUNTIF(L17:L19,AI12) -> 0 | AK12: =AJ12/(AL4-AJ25) -> 0 | AL12: =IF(AK12=0,0,(AK12*((LOG(AK12))/LOG(2)))) -> 0 | AN12: =N12 -> 11212 | AO12: =COUNTIF(L20:L23,AN12) -> 0 | AP12: =AO12/(AQ4-AO25) -> 0 | AQ12: =IF(AP12=0,0,(AP12*((LOG(AP12))/LOG(2)))) -> 0 | AS12: =N12 -> 11212 | AT12: =COUNTIF(L24:L26,AS12) -> 0 | AU12: =AT12/(AV4-AT25) -> 0 | AV12: =IF(AU12=0,0,(AU12*((LOG(AU12))/LOG(2)))) -> 0
A13: 21 | B13: 1359 | C13: 22 | D13: 1407 | E13: 13 | F13: 1426 | G13: 23 | H13: 1437 | I13: 24 | J13: 1448 | K13: 0 | L13: 22122 | N13: 11221 | O13: =COUNTIF($L$7:$L$500,N13) -> 0 | P13: =O13/$Q$4 -> 0 | Q13: =IF(P13=0,0,(P13*((LOG(P13))/LOG(2)))) -> 0 | T13: =N13 -> 11221 | U13: =COUNTIF(L7:L9,T13) -> 0 | V13: =U13/(W4-U25) -> 0 | W13: =IF(V13=0,0,(V13*((LOG(V13))/LOG(2)))) -> 0 | Y13: =N13 -> 11221 | Z13: =COUNTIF(L10:L13,Y13) -> 0 | AA13: =Z13/(AB4-Z25) -> 0 | AB13: =IF(AA13=0,0,(AA13*((LOG(AA13))/LOG(2)))) -> 0 | AD13: =N13 -> 11221 | AE13: =COUNTIF(L14:L16,AD13) -> 0 | AF13: =AE13/(AG4-AE25) -> 0 | AG13: =IF(AF13=0,0,(AF13*((LOG(AF13))/LOG(2)))) -> 0 | AI13: =N13 -> 11221 | AJ13: =COUNTIF(L17:L19,AI13) -> 0 | AK13: =AJ13/(AL4-AJ25) -> 0 | AL13: =IF(AK13=0,0,(AK13*((LOG(AK13))/LOG(2)))) -> 0 | AN13: =N13 -> 11221 | AO13: =COUNTIF(L20:L23,AN13) -> 0 | AP13: =AO13/(AQ4-AO25) -> 0 | AQ13: =IF(AP13=0,0,(AP13*((LOG(AP13))/LOG(2)))) -> 0 | AS13: =N13 -> 11221 | AT13: =COUNTIF(L24:L26,AS13) -> 0 | AU13: =AT13/(AV4-AT25) -> 0 | AV13: =IF(AU13=0,0,(AU13*((LOG(AU13))/LOG(2)))) -> 0
A14: 12 | B14: 1579 | C14: 24 | D14: 1585 | E14: 13 | F14: 1595 | G14: 23 | H14: 1605 | I14: 13 | J14: 1619 | K14: 0 | L14: 12121 | N14: 11222 | O14: =COUNTIF($L$7:$L$500,N14) -> 0 | P14: =O14/$Q$4 -> 0 | Q14: =IF(P14=0,0,(P14*((LOG(P14))/LOG(2)))) -> 0 | T14: =N14 -> 11222 | U14: =COUNTIF(L7:L9,T14) -> 0 | V14: =U14/(W4-U25) -> 0 | W14: =IF(V14=0,0,(V14*((LOG(V14))/LOG(2)))) -> 0 | Y14: =N14 -> 11222 | Z14: =COUNTIF(L10:L13,Y14) -> 0 | AA14: =Z14/(AB4-Z25) -> 0 | AB14: =IF(AA14=0,0,(AA14*((LOG(AA14))/LOG(2)))) -> 0 | AD14: =N14 -> 11222 | AE14: =COUNTIF(L14:L16,AD14) -> 0 | AF14: =AE14/(AG4-AE25) -> 0 | AG14: =IF(AF14=0,0,(AF14*((LOG(AF14))/LOG(2)))) -> 0 | AI14: =N14 -> 11222 | AJ14: =COUNTIF(L17:L19,AI14) -> 0 | AK14: =AJ14/(AL4-AJ25) -> 0 | AL14: =IF(AK14=0,0,(AK14*((LOG(AK14))/LOG(2)))) -> 0 | AN14: =N14 -> 11222 | AO14: =COUNTIF(L20:L23,AN14) -> 0 | AP14: =AO14/(AQ4-AO25) -> 0 | AQ14: =IF(AP14=0,0,(AP14*((LOG(AP14))/LOG(2)))) -> 0 | AS14: =N14 -> 11222 | AT14: =COUNTIF(L24:L26,AS14) -> 0 | AU14: =AT14/(AV4-AT25) -> 0 | AV14: =IF(AU14=0,0,(AU14*((LOG(AU14))/LOG(2)))) -> 0
A15: 12 | B15: 1756 | C15: 24 | D15: 1778 | E15: 13 | F15: 1793 | G15: 23 | H15: 1803 | I15: 24 | J15: 1817 | K15: 0 | L15: 12122 | N15: 12111 | O15: =COUNTIF($L$7:$L$500,N15) -> 2 | P15: =O15/$Q$4 -> 0.1052631579 | Q15: =IF(P15=0,0,(P15*((LOG(P15))/LOG(2)))) -> -0.3418871067 | T15: =N15 -> 12111 | U15: =COUNTIF(L7:L9,T15) -> 1 | V15: =U15/(W4-U25) -> 0.3333333333 | W15: =IF(V15=0,0,(V15*((LOG(V15))/LOG(2)))) -> -0.5283208336 | Y15: =N15 -> 12111 | Z15: =COUNTIF(L10:L13,Y15) -> 0 | AA15: =Z15/(AB4-Z25) -> 0 | AB15: =IF(AA15=0,0,(AA15*((LOG(AA15))/LOG(2)))) -> 0 | AD15: =N15 -> 12111 | AE15: =COUNTIF(L14:L16,AD15) -> 0 | AF15: =AE15/(AG4-AE25) -> 0 | AG15: =IF(AF15=0,0,(AF15*((LOG(AF15))/LOG(2)))) -> 0 | AI15: =N15 -> 12111 | AJ15: =COUNTIF(L17:L19,AI15) -> 0 | AK15: =AJ15/(AL4-AJ25) -> 0 | AL15: =IF(AK15=0,0,(AK15*((LOG(AK15))/LOG(2)))) -> 0 | AN15: =N15 -> 12111 | AO15: =COUNTIF(L20:L23,AN15) -> 0 | AP15: =AO15/(AQ4-AO25) -> 0 | AQ15: =IF(AP15=0,0,(AP15*((LOG(AP15))/LOG(2)))) -> 0 | AS15: =N15 -> 12111 | AT15: =COUNTIF(L24:L26,AS15) -> 1 | AU15: =AT15/(AV4-AT25) -> 0.5 | AV15: =IF(AU15=0,0,(AU15*((LOG(AU15))/LOG(2)))) -> -0.5
A16: 21 | B16: 1928 | C16: 22 | D16: 1960 | E16: 13 | F16: 1981 | G16: 23 | H16: 1990 | I16: 13 | J16: 2003 | K16: 0 | L16: 22121 | N16: 12112 | O16: =COUNTIF($L$7:$L$500,N16) -> 1 | P16: =O16/$Q$4 -> 0.05263157895 | Q16: =IF(P16=0,0,(P16*((LOG(P16))/LOG(2)))) -> -0.2235751323 | T16: =N16 -> 12112 | U16: =COUNTIF(L7:L9,T16) -> 0 | V16: =U16/(W4-U25) -> 0 | W16: =IF(V16=0,0,(V16*((LOG(V16))/LOG(2)))) -> 0 | Y16: =N16 -> 12112 | Z16: =COUNTIF(L10:L13,Y16) -> 0 | AA16: =Z16/(AB4-Z25) -> 0 | AB16: =IF(AA16=0,0,(AA16*((LOG(AA16))/LOG(2)))) -> 0 | AD16: =N16 -> 12112 | AE16: =COUNTIF(L14:L16,AD16) -> 0 | AF16: =AE16/(AG4-AE25) -> 0 | AG16: =IF(AF16=0,0,(AF16*((LOG(AF16))/LOG(2)))) -> 0 | AI16: =N16 -> 12112 | AJ16: =COUNTIF(L17:L19,AI16) -> 1 | AK16: =AJ16/(AL4-AJ25) -> 0.3333333333 | AL16: =IF(AK16=0,0,(AK16*((LOG(AK16))/LOG(2)))) -> -0.5283208336 | AN16: =N16 -> 12112 | AO16: =COUNTIF(L20:L23,AN16) -> 0 | AP16: =AO16/(AQ4-AO25) -> 0 | AQ16: =IF(AP16=0,0,(AP16*((LOG(AP16))/LOG(2)))) -> 0 | AS16: =N16 -> 12112 | AT16: =COUNTIF(L24:L26,AS16) -> 0 | AU16: =AT16/(AV4-AT25) -> 0 | AV16: =IF(AU16=0,0,(AU16*((LOG(AU16))/LOG(2)))) -> 0
A17: 12 | B17: 2172 | C17: 24 | D17: 2199 | E17: 13 | F17: 2215 | G17: 14 | H17: 2240 | I17: 24 | J17: 2272 | K17: 0 | L17: 12112 | N17: 12121 | O17: =COUNTIF($L$7:$L$500,N17) -> 2 | P17: =O17/$Q$4 -> 0.1052631579 | Q17: =IF(P17=0,0,(P17*((LOG(P17))/LOG(2)))) -> -0.3418871067 | T17: =N17 -> 12121 | U17: =COUNTIF(L7:L9,T17) -> 0 | V17: =U17/(W4-U25) -> 0 | W17: =IF(V17=0,0,(V17*((LOG(V17))/LOG(2)))) -> 0 | Y17: =N17 -> 12121 | Z17: =COUNTIF(L10:L13,Y17) -> 0 | AA17: =Z17/(AB4-Z25) -> 0 | AB17: =IF(AA17=0,0,(AA17*((LOG(AA17))/LOG(2)))) -> 0 | AD17: =N17 -> 12121 | AE17: =COUNTIF(L14:L16,AD17) -> 1 | AF17: =AE17/(AG4-AE25) -> 0.3333333333 | AG17: =IF(AF17=0,0,(AF17*((LOG(AF17))/LOG(2)))) -> -0.5283208336 | AI17: =N17 -> 12121 | AJ17: =COUNTIF(L17:L19,AI17) -> 0 | AK17: =AJ17/(AL4-AJ25) -> 0 | AL17: =IF(AK17=0,0,(AK17*((LOG(AK17))/LOG(2)))) -> 0 | AN17: =N17 -> 12121 | AO17: =COUNTIF(L20:L23,AN17) -> 1 | AP17: =AO17/(AQ4-AO25) -> 0.25 | AQ17: =IF(AP17=0,0,(AP17*((LOG(AP17))/LOG(2)))) -> -0.5 | AS17: =N17 -> 12121 | AT17: =COUNTIF(L24:L26,AS17) -> 0 | AU17: =AT17/(AV4-AT25) -> 0 | AV17: =IF(AU17=0,0,(AU17*((LOG(AU17))/LOG(2)))) -> 0
A18: 12 | B18: 2396 | C18: 24 | D18: 2406 | E18: 24 | F18: 2427 | G18: 23 | H18: 2448 | I18: 24 | J18: 2460 | K18: 0 | L18: 12222 | N18: 12122 | O18: =COUNTIF($L$7:$L$500,N18) -> 1 | P18: =O18/$Q$4 -> 0.05263157895 | Q18: =IF(P18=0,0,(P18*((LOG(P18))/LOG(2)))) -> -0.2235751323 | T18: =N18 -> 12122 | U18: =COUNTIF(L7:L9,T18) -> 0 | V18: =U18/(W4-U25) -> 0 | W18: =IF(V18=0,0,(V18*((LOG(V18))/LOG(2)))) -> 0 | Y18: =N18 -> 12122 | Z18: =COUNTIF(L10:L13,Y18) -> 0 | AA18: =Z18/(AB4-Z25) -> 0 | AB18: =IF(AA18=0,0,(AA18*((LOG(AA18))/LOG(2)))) -> 0 | AD18: =N18 -> 12122 | AE18: =COUNTIF(L14:L16,AD18) -> 1 | AF18: =AE18/(AG4-AE25) -> 0.3333333333 | AG18: =IF(AF18=0,0,(AF18*((LOG(AF18))/LOG(2)))) -> -0.5283208336 | AI18: =N18 -> 12122 | AJ18: =COUNTIF(L17:L19,AI18) -> 0 | AK18: =AJ18/(AL4-AJ25) -> 0 | AL18: =IF(AK18=0,0,(AK18*((LOG(AK18))/LOG(2)))) -> 0 | AN18: =N18 -> 12122 | AO18: =COUNTIF(L20:L23,AN18) -> 0 | AP18: =AO18/(AQ4-AO25) -> 0 | AQ18: =IF(AP18=0,0,(AP18*((LOG(AP18))/LOG(2)))) -> 0 | AS18: =N18 -> 12122 | AT18: =COUNTIF(L24:L26,AS18) -> 0 | AU18: =AT18/(AV4-AT25) -> 0 | AV18: =IF(AU18=0,0,(AU18*((LOG(AU18))/LOG(2)))) -> 0
A19: 12 | B19: 2614 | C19: 24 | D19: 2625 | E19: 24 | F19: 2637 | G19: 23 | H19: 2897 | I19: 24 | J19: 4136 | K19: 0 | L19: 12222 | N19: 12211 | O19: =COUNTIF($L$7:$L$500,N19) -> 0 | P19: =O19/$Q$4 -> 0 | Q19: =IF(P19=0,0,(P19*((LOG(P19))/LOG(2)))) -> 0 | T19: =N19 -> 12211 | U19: =COUNTIF(L7:L9,T19) -> 0 | V19: =U19/(W4-U25) -> 0 | W19: =IF(V19=0,0,(V19*((LOG(V19))/LOG(2)))) -> 0 | Y19: =N19 -> 12211 | Z19: =COUNTIF(L10:L13,Y19) -> 0 | AA19: =Z19/(AB4-Z25) -> 0 | AB19: =IF(AA19=0,0,(AA19*((LOG(AA19))/LOG(2)))) -> 0 | AD19: =N19 -> 12211 | AE19: =COUNTIF(L14:L16,AD19) -> 0 | AF19: =AE19/(AG4-AE25) -> 0 | AG19: =IF(AF19=0,0,(AF19*((LOG(AF19))/LOG(2)))) -> 0 | AI19: =N19 -> 12211 | AJ19: =COUNTIF(L17:L19,AI19) -> 0 | AK19: =AJ19/(AL4-AJ25) -> 0 | AL19: =IF(AK19=0,0,(AK19*((LOG(AK19))/LOG(2)))) -> 0 | AN19: =N19 -> 12211 | AO19: =COUNTIF(L20:L23,AN19) -> 0 | AP19: =AO19/(AQ4-AO25) -> 0 | AQ19: =IF(AP19=0,0,(AP19*((LOG(AP19))/LOG(2)))) -> 0 | AS19: =N19 -> 12211 | AT19: =COUNTIF(L24:L26,AS19) -> 0 | AU19: =AT19/(AV4-AT25) -> 0 | AV19: =IF(AU19=0,0,(AU19*((LOG(AU19))/LOG(2)))) -> 0
A20: 21 | B20: 4289 | C20: 22 | D20: 4531 | E20: 13 | F20: 4556 | G20: 23 | H20: 4635 | I20: 13 | J20: 4690 | K20: 0 | L20: 22121 | N20: 12212 | O20: =COUNTIF($L$7:$L$500,N20) -> 1 | P20: =O20/$Q$4 -> 0.05263157895 | Q20: =IF(P20=0,0,(P20*((LOG(P20))/LOG(2)))) -> -0.2235751323 | T20: =N20 -> 12212 | U20: =COUNTIF(L7:L9,T20) -> 1 | V20: =U20/(W4-U25) -> 0.3333333333 | W20: =IF(V20=0,0,(V20*((LOG(V20))/LOG(2)))) -> -0.5283208336 | Y20: =N20 -> 12212 | Z20: =COUNTIF(L10:L13,Y20) -> 0 | AA20: =Z20/(AB4-Z25) -> 0 | AB20: =IF(AA20=0,0,(AA20*((LOG(AA20))/LOG(2)))) -> 0 | AD20: =N20 -> 12212 | AE20: =COUNTIF(L14:L16,AD20) -> 0 | AF20: =AE20/(AG4-AE25) -> 0 | AG20: =IF(AF20=0,0,(AF20*((LOG(AF20))/LOG(2)))) -> 0 | AI20: =N20 -> 12212 | AJ20: =COUNTIF(L17:L19,AI20) -> 0 | AK20: =AJ20/(AL4-AJ25) -> 0 | AL20: =IF(AK20=0,0,(AK20*((LOG(AK20))/LOG(2)))) -> 0 | AN20: =N20 -> 12212 | AO20: =COUNTIF(L20:L23,AN20) -> 0 | AP20: =AO20/(AQ4-AO25) -> 0 | AQ20: =IF(AP20=0,0,(AP20*((LOG(AP20))/LOG(2)))) -> 0 | AS20: =N20 -> 12212 | AT20: =COUNTIF(L24:L26,AS20) -> 0 | AU20: =AT20/(AV4-AT25) -> 0 | AV20: =IF(AU20=0,0,(AU20*((LOG(AU20))/LOG(2)))) -> 0
A21: 12 | B21: 4887 | C21: 24 | D21: 4918 | E21: 13 | F21: 4932 | G21: 23 | H21: 4971 | I21: 13 | J21: 5456 | K21: 0 | L21: 12121 | N21: 12221 | O21: =COUNTIF($L$7:$L$500,N21) -> 1 | P21: =O21/$Q$4 -> 0.05263157895 | Q21: =IF(P21=0,0,(P21*((LOG(P21))/LOG(2)))) -> -0.2235751323 | T21: =N21 -> 12221 | U21: =COUNTIF(L7:L9,T21) -> 0 | V21: =U21/(W4-U25) -> 0 | W21: =IF(V21=0,0,(V21*((LOG(V21))/LOG(2)))) -> 0 | Y21: =N21 -> 12221 | Z21: =COUNTIF(L10:L13,Y21) -> 0 | AA21: =Z21/(AB4-Z25) -> 0 | AB21: =IF(AA21=0,0,(AA21*((LOG(AA21))/LOG(2)))) -> 0 | AD21: =N21 -> 12221 | AE21: =COUNTIF(L14:L16,AD21) -> 0 | AF21: =AE21/(AG4-AE25) -> 0 | AG21: =IF(AF21=0,0,(AF21*((LOG(AF21))/LOG(2)))) -> 0 | AI21: =N21 -> 12221 | AJ21: =COUNTIF(L17:L19,AI21) -> 0 | AK21: =AJ21/(AL4-AJ25) -> 0 | AL21: =IF(AK21=0,0,(AK21*((LOG(AK21))/LOG(2)))) -> 0 | AN21: =N21 -> 12221 | AO21: =COUNTIF(L20:L23,AN21) -> 1 | AP21: =AO21/(AQ4-AO25) -> 0.25 | AQ21: =IF(AP21=0,0,(AP21*((LOG(AP21))/LOG(2)))) -> -0.5 | AS21: =N21 -> 12221 | AT21: =COUNTIF(L24:L26,AS21) -> 0 | AU21: =AT21/(AV4-AT25) -> 0 | AV21: =IF(AU21=0,0,(AU21*((LOG(AU21))/LOG(2)))) -> 0
A22: 12 | B22: 5690 | C22: 24 | D22: 5700 | E22: 24 | F22: 12858 | G22: 23 | H22: 12869 | I22: 13 | J22: 12885 | K22: 0 | L22: 12221 | N22: 12222 | O22: =COUNTIF($L$7:$L$500,N22) -> 2 | P22: =O22/$Q$4 -> 0.1052631579 | Q22: =IF(P22=0,0,(P22*((LOG(P22))/LOG(2)))) -> -0.3418871067 | T22: =N22 -> 12222 | U22: =COUNTIF(L7:L9,T22) -> 0 | V22: =U22/(W4-U25) -> 0 | W22: =IF(V22=0,0,(V22*((LOG(V22))/LOG(2)))) -> 0 | Y22: =N22 -> 12222 | Z22: =COUNTIF(L10:L13,Y22) -> 0 | AA22: =Z22/(AB4-Z25) -> 0 | AB22: =IF(AA22=0,0,(AA22*((LOG(AA22))/LOG(2)))) -> 0 | AD22: =N22 -> 12222 | AE22: =COUNTIF(L14:L16,AD22) -> 0 | AF22: =AE22/(AG4-AE25) -> 0 | AG22: =IF(AF22=0,0,(AF22*((LOG(AF22))/LOG(2)))) -> 0 | AI22: =N22 -> 12222 | AJ22: =COUNTIF(L17:L19,AI22) -> 2 | AK22: =AJ22/(AL4-AJ25) -> 0.6666666667 | AL22: =IF(AK22=0,0,(AK22*((LOG(AK22))/LOG(2)))) -> -0.3899750005 | AN22: =N22 -> 12222 | AO22: =COUNTIF(L20:L23,AN22) -> 0 | AP22: =AO22/(AQ4-AO25) -> 0 | AQ22: =IF(AP22=0,0,(AP22*((LOG(AP22))/LOG(2)))) -> 0 | AS22: =N22 -> 12222 | AT22: =COUNTIF(L24:L26,AS22) -> 0 | AU22: =AT22/(AV4-AT25) -> 0 | AV22: =IF(AU22=0,0,(AU22*((LOG(AU22))/LOG(2)))) -> 0
A23: 12 | B23: 14427 | C23: 13 | D23: 14449 | E23: 13 | F23: 14486 | G23: 23 | H23: 14495 | I23: 24 | J23: 14520 | K23: 0 | L23: 11122 | N23: 21111 | O23: =COUNTIF($L$7:$L$500,N23) -> 0 | P23: =O23/$Q$4 -> 0 | Q23: =IF(P23=0,0,(P23*((LOG(P23))/LOG(2)))) -> 0 | T23: =N23 -> 21111 | U23: =COUNTIF(L7:L9,T23) -> 0 | V23: =U23/(W4-U25) -> 0 | W23: =IF(V23=0,0,(V23*((LOG(V23))/LOG(2)))) -> 0 | Y23: =N23 -> 21111 | Z23: =COUNTIF(L10:L13,Y23) -> 0 | AA23: =Z23/(AB4-Z25) -> 0 | AB23: =IF(AA23=0,0,(AA23*((LOG(AA23))/LOG(2)))) -> 0 | AD23: =N23 -> 21111 | AE23: =COUNTIF(L14:L16,AD23) -> 0 | AF23: =AE23/(AG4-AE25) -> 0 | AG23: =IF(AF23=0,0,(AF23*((LOG(AF23))/LOG(2)))) -> 0 | AI23: =N23 -> 21111 | AJ23: =COUNTIF(L17:L19,AI23) -> 0 | AK23: =AJ23/(AL4-AJ25) -> 0 | AL23: =IF(AK23=0,0,(AK23*((LOG(AK23))/LOG(2)))) -> 0 | AN23: =N23 -> 21111 | AO23: =COUNTIF(L20:L23,AN23) -> 0 | AP23: =AO23/(AQ4-AO25) -> 0 | AQ23: =IF(AP23=0,0,(AP23*((LOG(AP23))/LOG(2)))) -> 0 | AS23: =N23 -> 21111 | AT23: =COUNTIF(L24:L26,AS23) -> 0 | AU23: =AT23/(AV4-AT25) -> 0 | AV23: =IF(AU23=0,0,(AU23*((LOG(AU23))/LOG(2)))) -> 0
A24: 21 | B24: 14737 | C24: 11 | D24: 14752 | E24: 22 | F24: 14762 | G24: 23 | H24: 14805 | I24: 13 | J24: 17373 | K24: 0 | L24: 21221 | N24: 21112 | O24: =COUNTIF($L$7:$L$500,N24) -> 0 | P24: =O24/$Q$4 -> 0 | Q24: =IF(P24=0,0,(P24*((LOG(P24))/LOG(2)))) -> 0 | T24: =N24 -> 21112 | U24: =COUNTIF(L7:L9,T24) -> 0 | V24: =U24/(W4-U25) -> 0 | W24: =IF(V24=0,0,(V24*((LOG(V24))/LOG(2)))) -> 0 | Y24: =N24 -> 21112 | Z24: =COUNTIF(L10:L13,Y24) -> 0 | AA24: =Z24/(AB4-Z25) -> 0 | AB24: =IF(AA24=0,0,(AA24*((LOG(AA24))/LOG(2)))) -> 0 | AD24: =N24 -> 21112 | AE24: =COUNTIF(L14:L16,AD24) -> 0 | AF24: =AE24/(AG4-AE25) -> 0 | AG24: =IF(AF24=0,0,(AF24*((LOG(AF24))/LOG(2)))) -> 0 | AI24: =N24 -> 21112 | AJ24: =COUNTIF(L17:L19,AI24) -> 0 | AK24: =AJ24/(AL4-AJ25) -> 0 | AL24: =IF(AK24=0,0,(AK24*((LOG(AK24))/LOG(2)))) -> 0 | AN24: =N24 -> 21112 | AO24: =COUNTIF(L20:L23,AN24) -> 0 | AP24: =AO24/(AQ4-AO25) -> 0 | AQ24: =IF(AP24=0,0,(AP24*((LOG(AP24))/LOG(2)))) -> 0 | AS24: =N24 -> 21112 | AT24: =COUNTIF(L24:L26,AS24) -> 0 | AU24: =AT24/(AV4-AT25) -> 0 | AV24: =IF(AU24=0,0,(AU24*((LOG(AU24))/LOG(2)))) -> 0
A25: 12 | B25: 17787 | C25: 24 | D25: 17797 | E25: 13 | F25: 17813 | G25: 14 | H25: 21082 | I25: 13 | J25: 21111 | K25: 0 | L25: 12111 | N25: 21121 | O25: =COUNTIF($L$7:$L$500,N25) -> 0 | P25: =O25/$Q$4 -> 0 | Q25: =IF(P25=0,0,(P25*((LOG(P25))/LOG(2)))) -> 0 | T25: =N25 -> 21121 | U25: =COUNTIF(L7:L9,T25) -> 0 | Y25: =N25 -> 21121 | Z25: =COUNTIF(L10:L13,Y25) -> 0 | AD25: =N25 -> 21121 | AE25: =COUNTIF(L14:L16,AD25) -> 0 | AI25: =N25 -> 21121 | AJ25: =COUNTIF(L17:L19,AI25) -> 0 | AN25: =N25 -> 21121 | AO25: =COUNTIF(L20:L23,AN25) -> 0 | AS25: =N25 -> 21121 | AT25: =COUNTIF(L24:L26,AS25) -> 0
A26: 21 | B26: 21831 | C26: 22 | D26: 22961 | E26: 24 | F26: 22972 | L26: 222 | N26: 21122 | O26: =COUNTIF($L$7:$L$500,N26) -> 0 | P26: =O26/$Q$4 -> 0 | Q26: =IF(P26=0,0,(P26*((LOG(P26))/LOG(2)))) -> 0 | T26: =N26 -> 21122 | U26: =COUNTIF(L7:L9,T26) -> 0 | V26: =U26/(W4-U25) -> 0 | W26: =IF(V26=0,0,(V26*((LOG(V26))/LOG(2)))) -> 0 | Y26: =N26 -> 21122 | Z26: =COUNTIF(L10:L13,Y26) -> 0 | AA26: =Z26/(AB4-Z25) -> 0 | AB26: =IF(AA26=0,0,(AA26*((LOG(AA26))/LOG(2)))) -> 0 | AD26: =N26 -> 21122 | AE26: =COUNTIF(L14:L16,AD26) -> 0 | AF26: =AE26/(AG4-AE25) -> 0 | AG26: =IF(AF26=0,0,(AF26*((LOG(AF26))/LOG(2)))) -> 0 | AI26: =N26 -> 21122 | AJ26: =COUNTIF(L17:L19,AI26) -> 0 | AK26: =AJ26/(AL4-AJ25) -> 0 | AL26: =IF(AK26=0,0,(AK26*((LOG(AK26))/LOG(2)))) -> 0 | AN26: =N26 -> 21122 | AO26: =COUNTIF(L20:L23,AN26) -> 0 | AP26: =AO26/(AQ4-AO25) -> 0 | AQ26: =IF(AP26=0,0,(AP26*((LOG(AP26))/LOG(2)))) -> 0 | AS26: =N26 -> 21122 | AT26: =COUNTIF(L24:L26,AS26) -> 0 | AU26: =AT26/(AV4-AT25) -> 0 | AV26: =IF(AU26=0,0,(AU26*((LOG(AU26))/LOG(2)))) -> 0
N27: 21211 | O27: =COUNTIF($L$7:$L$500,N27) -> 0 | P27: =O27/$Q$4 -> 0 | Q27: =IF(P27=0,0,(P27*((LOG(P27))/LOG(2)))) -> 0 | T27: =N27 -> 21211 | U27: =COUNTIF(L7:L9,T27) -> 0 | V27: =U27/(W4-U25) -> 0 | W27: =IF(V27=0,0,(V27*((LOG(V27))/LOG(2)))) -> 0 | Y27: =N27 -> 21211 | Z27: =COUNTIF(L10:L13,Y27) -> 0 | AA27: =Z27/(AB4-Z25) -> 0 | AB27: =IF(AA27=0,0,(AA27*((LOG(AA27))/LOG(2)))) -> 0 | AD27: =N27 -> 21211 | AE27: =COUNTIF(L14:L16,AD27) -> 0 | AF27: =AE27/(AG4-AE25) -> 0 | AG27: =IF(AF27=0,0,(AF27*((LOG(AF27))/LOG(2)))) -> 0 | AI27: =N27 -> 21211 | AJ27: =COUNTIF(L17:L19,AI27) -> 0 | AK27: =AJ27/(AL4-AJ25) -> 0 | AL27: =IF(AK27=0,0,(AK27*((LOG(AK27))/LOG(2)))) -> 0 | AN27: =N27 -> 21211 | AO27: =COUNTIF(L20:L23,AN27) -> 0 | AP27: =AO27/(AQ4-AO25) -> 0 | AQ27: =IF(AP27=0,0,(AP27*((LOG(AP27))/LOG(2)))) -> 0 | AS27: =N27 -> 21211 | AT27: =COUNTIF(L24:L26,AS27) -> 0 | AU27: =AT27/(AV4-AT25) -> 0 | AV27: =IF(AU27=0,0,(AU27*((LOG(AU27))/LOG(2)))) -> 0
N28: 21212 | O28: =COUNTIF($L$7:$L$500,N28) -> 0 | P28: =O28/$Q$4 -> 0 | Q28: =IF(P28=0,0,(P28*((LOG(P28))/LOG(2)))) -> 0 | T28: =N28 -> 21212 | U28: =COUNTIF(L7:L9,T28) -> 0 | V28: =U28/(W4-U25) -> 0 | W28: =IF(V28=0,0,(V28*((LOG(V28))/LOG(2)))) -> 0 | Y28: =N28 -> 21212 | Z28: =COUNTIF(L10:L13,Y28) -> 0 | AA28: =Z28/(AB4-Z25) -> 0 | AB28: =IF(AA28=0,0,(AA28*((LOG(AA28))/LOG(2)))) -> 0 | AD28: =N28 -> 21212 | AE28: =COUNTIF(L14:L16,AD28) -> 0 | AF28: =AE28/(AG4-AE25) -> 0 | AG28: =IF(AF28=0,0,(AF28*((LOG(AF28))/LOG(2)))) -> 0 | AI28: =N28 -> 21212 | AJ28: =COUNTIF(L17:L19,AI28) -> 0 | AK28: =AJ28/(AL4-AJ25) -> 0 | AL28: =IF(AK28=0,0,(AK28*((LOG(AK28))/LOG(2)))) -> 0 | AN28: =N28 -> 21212 | AO28: =COUNTIF(L20:L23,AN28) -> 0 | AP28: =AO28/(AQ4-AO25) -> 0 | AQ28: =IF(AP28=0,0,(AP28*((LOG(AP28))/LOG(2)))) -> 0 | AS28: =N28 -> 21212 | AT28: =COUNTIF(L24:L26,AS28) -> 0 | AU28: =AT28/(AV4-AT25) -> 0 | AV28: =IF(AU28=0,0,(AU28*((LOG(AU28))/LOG(2)))) -> 0
N29: 21221 | O29: =COUNTIF($L$7:$L$500,N29) -> 1 | P29: =O29/$Q$4 -> 0.05263157895 | Q29: =IF(P29=0,0,(P29*((LOG(P29))/LOG(2)))) -> -0.2235751323 | T29: =N29 -> 21221 | U29: =COUNTIF(L7:L9,T29) -> 0 | V29: =U29/(W4-U25) -> 0 | W29: =IF(V29=0,0,(V29*((LOG(V29))/LOG(2)))) -> 0 | Y29: =N29 -> 21221 | Z29: =COUNTIF(L10:L13,Y29) -> 0 | AA29: =Z29/(AB4-Z25) -> 0 | AB29: =IF(AA29=0,0,(AA29*((LOG(AA29))/LOG(2)))) -> 0 | AD29: =N29 -> 21221 | AE29: =COUNTIF(L14:L16,AD29) -> 0 | AF29: =AE29/(AG4-AE25) -> 0 | AG29: =IF(AF29=0,0,(AF29*((LOG(AF29))/LOG(2)))) -> 0 | AI29: =N29 -> 21221 | AJ29: =COUNTIF(L17:L19,AI29) -> 0 | AK29: =AJ29/(AL4-AJ25) -> 0 | AL29: =IF(AK29=0,0,(AK29*((LOG(AK29))/LOG(2)))) -> 0 | AN29: =N29 -> 21221 | AO29: =COUNTIF(L20:L23,AN29) -> 0 | AP29: =AO29/(AQ4-AO25) -> 0 | AQ29: =IF(AP29=0,0,(AP29*((LOG(AP29))/LOG(2)))) -> 0 | AS29: =N29 -> 21221 | AT29: =COUNTIF(L24:L26,AS29) -> 1 | AU29: =AT29/(AV4-AT25) -> 0.5 | AV29: =IF(AU29=0,0,(AU29*((LOG(AU29))/LOG(2)))) -> -0.5
N30: 21222 | O30: =COUNTIF($L$7:$L$500,N30) -> 2 | P30: =O30/$Q$4 -> 0.1052631579 | Q30: =IF(P30=0,0,(P30*((LOG(P30))/LOG(2)))) -> -0.3418871067 | T30: =N30 -> 21222 | U30: =COUNTIF(L7:L9,T30) -> 0 | V30: =U30/(W4-U25) -> 0 | W30: =IF(V30=0,0,(V30*((LOG(V30))/LOG(2)))) -> 0 | Y30: =N30 -> 21222 | Z30: =COUNTIF(L10:L13,Y30) -> 2 | AA30: =Z30/(AB4-Z25) -> 0.5 | AB30: =IF(AA30=0,0,(AA30*((LOG(AA30))/LOG(2)))) -> -0.5 | AD30: =N30 -> 21222 | AE30: =COUNTIF(L14:L16,AD30) -> 0 | AF30: =AE30/(AG4-AE25) -> 0 | AG30: =IF(AF30=0,0,(AF30*((LOG(AF30))/LOG(2)))) -> 0 | AI30: =N30 -> 21222 | AJ30: =COUNTIF(L17:L19,AI30) -> 0 | AK30: =AJ30/(AL4-AJ25) -> 0 | AL30: =IF(AK30=0,0,(AK30*((LOG(AK30))/LOG(2)))) -> 0 | AN30: =N30 -> 21222 | AO30: =COUNTIF(L20:L23,AN30) -> 0 | AP30: =AO30/(AQ4-AO25) -> 0 | AQ30: =IF(AP30=0,0,(AP30*((LOG(AP30))/LOG(2)))) -> 0 | AS30: =N30 -> 21222 | AT30: =COUNTIF(L24:L26,AS30) -> 0 | AU30: =AT30/(AV4-AT25) -> 0 | AV30: =IF(AU30=0,0,(AU30*((LOG(AU30))/LOG(2)))) -> 0
N31: 22111 | O31: =COUNTIF($L$7:$L$500,N31) -> 0 | P31: =O31/$Q$4 -> 0 | Q31: =IF(P31=0,0,(P31*((LOG(P31))/LOG(2)))) -> 0 | T31: =N31 -> 22111 | U31: =COUNTIF(L7:L9,T31) -> 0 | V31: =U31/(W4-U25) -> 0 | W31: =IF(V31=0,0,(V31*((LOG(V31))/LOG(2)))) -> 0 | Y31: =N31 -> 22111 | Z31: =COUNTIF(L10:L13,Y31) -> 0 | AA31: =Z31/(AB4-Z25) -> 0 | AB31: =IF(AA31=0,0,(AA31*((LOG(AA31))/LOG(2)))) -> 0 | AD31: =N31 -> 22111 | AE31: =COUNTIF(L14:L16,AD31) -> 0 | AF31: =AE31/(AG4-AE25) -> 0 | AG31: =IF(AF31=0,0,(AF31*((LOG(AF31))/LOG(2)))) -> 0 | AI31: =N31 -> 22111 | AJ31: =COUNTIF(L17:L19,AI31) -> 0 | AK31: =AJ31/(AL4-AJ25) -> 0 | AL31: =IF(AK31=0,0,(AK31*((LOG(AK31))/LOG(2)))) -> 0 | AN31: =N31 -> 22111 | AO31: =COUNTIF(L20:L23,AN31) -> 0 | AP31: =AO31/(AQ4-AO25) -> 0 | AQ31: =IF(AP31=0,0,(AP31*((LOG(AP31))/LOG(2)))) -> 0 | AS31: =N31 -> 22111 | AT31: =COUNTIF(L24:L26,AS31) -> 0 | AU31: =AT31/(AV4-AT25) -> 0 | AV31: =IF(AU31=0,0,(AU31*((LOG(AU31))/LOG(2)))) -> 0
N32: 22112 | O32: =COUNTIF($L$7:$L$500,N32) -> 0 | P32: =O32/$Q$4 -> 0 | Q32: =IF(P32=0,0,(P32*((LOG(P32))/LOG(2)))) -> 0 | T32: =N32 -> 22112 | U32: =COUNTIF(L7:L9,T32) -> 0 | V32: =U32/(W4-U25) -> 0 | W32: =IF(V32=0,0,(V32*((LOG(V32))/LOG(2)))) -> 0 | Y32: =N32 -> 22112 | Z32: =COUNTIF(L10:L13,Y32) -> 0 | AA32: =Z32/(AB4-Z25) -> 0 | AB32: =IF(AA32=0,0,(AA32*((LOG(AA32))/LOG(2)))) -> 0 | AD32: =N32 -> 22112 | AE32: =COUNTIF(L14:L16,AD32) -> 0 | AF32: =AE32/(AG4-AE25) -> 0 | AG32: =IF(AF32=0,0,(AF32*((LOG(AF32))/LOG(2)))) -> 0 | AI32: =N32 -> 22112 | AJ32: =COUNTIF(L17:L19,AI32) -> 0 | AK32: =AJ32/(AL4-AJ25) -> 0 | AL32: =IF(AK32=0,0,(AK32*((LOG(AK32))/LOG(2)))) -> 0 | AN32: =N32 -> 22112 | AO32: =COUNTIF(L20:L23,AN32) -> 0 | AP32: =AO32/(AQ4-AO25) -> 0 | AQ32: =IF(AP32=0,0,(AP32*((LOG(AP32))/LOG(2)))) -> 0 | AS32: =N32 -> 22112 | AT32: =COUNTIF(L24:L26,AS32) -> 0 | AU32: =AT32/(AV4-AT25) -> 0 | AV32: =IF(AU32=0,0,(AU32*((LOG(AU32))/LOG(2)))) -> 0
N33: 22121 | O33: =COUNTIF($L$7:$L$500,N33) -> 2 | P33: =O33/$Q$4 -> 0.1052631579 | Q33: =IF(P33=0,0,(P33*((LOG(P33))/LOG(2)))) -> -0.3418871067 | T33: =N33 -> 22121 | U33: =COUNTIF(L7:L9,T33) -> 0 | V33: =U33/(W4-U25) -> 0 | W33: =IF(V33=0,0,(V33*((LOG(V33))/LOG(2)))) -> 0 | Y33: =N33 -> 22121 | Z33: =COUNTIF(L10:L13,Y33) -> 0 | AA33: =Z33/(AB4-Z25) -> 0 | AB33: =IF(AA33=0,0,(AA33*((LOG(AA33))/LOG(2)))) -> 0 | AD33: =N33 -> 22121 | AE33: =COUNTIF(L14:L16,AD33) -> 1 | AF33: =AE33/(AG4-AE25) -> 0.3333333333 | AG33: =IF(AF33=0,0,(AF33*((LOG(AF33))/LOG(2)))) -> -0.5283208336 | AI33: =N33 -> 22121 | AJ33: =COUNTIF(L17:L19,AI33) -> 0 | AK33: =AJ33/(AL4-AJ25) -> 0 | AL33: =IF(AK33=0,0,(AK33*((LOG(AK33))/LOG(2)))) -> 0 | AN33: =N33 -> 22121 | AO33: =COUNTIF(L20:L23,AN33) -> 1 | AP33: =AO33/(AQ4-AO25) -> 0.25 | AQ33: =IF(AP33=0,0,(AP33*((LOG(AP33))/LOG(2)))) -> -0.5 | AS33: =N33 -> 22121 | AT33: =COUNTIF(L24:L26,AS33) -> 0 | AU33: =AT33/(AV4-AT25) -> 0 | AV33: =IF(AU33=0,0,(AU33*((LOG(AU33))/LOG(2)))) -> 0
N34: 22122 | O34: =COUNTIF($L$7:$L$500,N34) -> 1 | P34: =O34/$Q$4 -> 0.05263157895 | Q34: =IF(P34=0,0,(P34*((LOG(P34))/LOG(2)))) -> -0.2235751323 | T34: =N34 -> 22122 | U34: =COUNTIF(L7:L9,T34) -> 0 | V34: =U34/(W4-U25) -> 0 | W34: =IF(V34=0,0,(V34*((LOG(V34))/LOG(2)))) -> 0 | Y34: =N34 -> 22122 | Z34: =COUNTIF(L10:L13,Y34) -> 1 | AA34: =Z34/(AB4-Z25) -> 0.25 | AB34: =IF(AA34=0,0,(AA34*((LOG(AA34))/LOG(2)))) -> -0.5 | AD34: =N34 -> 22122 | AE34: =COUNTIF(L14:L16,AD34) -> 0 | AF34: =AE34/(AG4-AE25) -> 0 | AG34: =IF(AF34=0,0,(AF34*((LOG(AF34))/LOG(2)))) -> 0 | AI34: =N34 -> 22122 | AJ34: =COUNTIF(L17:L19,AI34) -> 0 | AK34: =AJ34/(AL4-AJ25) -> 0 | AL34: =IF(AK34=0,0,(AK34*((LOG(AK34))/LOG(2)))) -> 0 | AN34: =N34 -> 22122 | AO34: =COUNTIF(L20:L23,AN34) -> 0 | AP34: =AO34/(AQ4-AO25) -> 0 | AQ34: =IF(AP34=0,0,(AP34*((LOG(AP34))/LOG(2)))) -> 0 | AS34: =N34 -> 22122 | AT34: =COUNTIF(L24:L26,AS34) -> 0 | AU34: =AT34/(AV4-AT25) -> 0 | AV34: =IF(AU34=0,0,(AU34*((LOG(AU34))/LOG(2)))) -> 0
N35: 22211 | O35: =COUNTIF($L$7:$L$500,N35) -> 0 | P35: =O35/$Q$4 -> 0 | Q35: =IF(P35=0,0,(P35*((LOG(P35))/LOG(2)))) -> 0 | T35: =N35 -> 22211 | U35: =COUNTIF(L7:L9,T35) -> 0 | V35: =U35/(W4-U25) -> 0 | W35: =IF(V35=0,0,(V35*((LOG(V35))/LOG(2)))) -> 0 | Y35: =N35 -> 22211 | Z35: =COUNTIF(L10:L13,Y35) -> 0 | AA35: =Z35/(AB4-Z25) -> 0 | AB35: =IF(AA35=0,0,(AA35*((LOG(AA35))/LOG(2)))) -> 0 | AD35: =N35 -> 22211 | AE35: =COUNTIF(L14:L16,AD35) -> 0 | AF35: =AE35/(AG4-AE25) -> 0 | AG35: =IF(AF35=0,0,(AF35*((LOG(AF35))/LOG(2)))) -> 0 | AI35: =N35 -> 22211 | AJ35: =COUNTIF(L17:L19,AI35) -> 0 | AK35: =AJ35/(AL4-AJ25) -> 0 | AL35: =IF(AK35=0,0,(AK35*((LOG(AK35))/LOG(2)))) -> 0 | AN35: =N35 -> 22211 | AO35: =COUNTIF(L20:L23,AN35) -> 0 | AP35: =AO35/(AQ4-AO25) -> 0 | AQ35: =IF(AP35=0,0,(AP35*((LOG(AP35))/LOG(2)))) -> 0 | AS35: =N35 -> 22211 | AT35: =COUNTIF(L24:L26,AS35) -> 0 | AU35: =AT35/(AV4-AT25) -> 0 | AV35: =IF(AU35=0,0,(AU35*((LOG(AU35))/LOG(2)))) -> 0
N36: 22212 | O36: =COUNTIF($L$7:$L$500,N36) -> 0 | P36: =O36/$Q$4 -> 0 | Q36: =IF(P36=0,0,(P36*((LOG(P36))/LOG(2)))) -> 0 | T36: =N36 -> 22212 | U36: =COUNTIF(L7:L9,T36) -> 0 | V36: =U36/(W4-U25) -> 0 | W36: =IF(V36=0,0,(V36*((LOG(V36))/LOG(2)))) -> 0 | Y36: =N36 -> 22212 | Z36: =COUNTIF(L10:L13,Y36) -> 0 | AA36: =Z36/(AB4-Z25) -> 0 | AB36: =IF(AA36=0,0,(AA36*((LOG(AA36))/LOG(2)))) -> 0 | AD36: =N36 -> 22212 | AE36: =COUNTIF(L14:L16,AD36) -> 0 | AF36: =AE36/(AG4-AE25) -> 0 | AG36: =IF(AF36=0,0,(AF36*((LOG(AF36))/LOG(2)))) -> 0 | AI36: =N36 -> 22212 | AJ36: =COUNTIF(L17:L19,AI36) -> 0 | AK36: =AJ36/(AL4-AJ25) -> 0 | AL36: =IF(AK36=0,0,(AK36*((LOG(AK36))/LOG(2)))) -> 0 | AN36: =N36 -> 22212 | AO36: =COUNTIF(L20:L23,AN36) -> 0 | AP36: =AO36/(AQ4-AO25) -> 0 | AQ36: =IF(AP36=0,0,(AP36*((LOG(AP36))/LOG(2)))) -> 0 | AS36: =N36 -> 22212 | AT36: =COUNTIF(L24:L26,AS36) -> 0 | AU36: =AT36/(AV4-AT25) -> 0 | AV36: =IF(AU36=0,0,(AU36*((LOG(AU36))/LOG(2)))) -> 0
N37: 22221 | O37: =COUNTIF($L$7:$L$500,N37) -> 0 | P37: =O37/$Q$4 -> 0 | Q37: =IF(P37=0,0,(P37*((LOG(P37))/LOG(2)))) -> 0 | T37: =N37 -> 22221 | U37: =COUNTIF(L7:L9,T37) -> 0 | V37: =U37/(W4-U25) -> 0 | W37: =IF(V37=0,0,(V37*((LOG(V37))/LOG(2)))) -> 0 | Y37: =N37 -> 22221 | Z37: =COUNTIF(L10:L13,Y37) -> 0 | AA37: =Z37/(AB4-Z25) -> 0 | AB37: =IF(AA37=0,0,(AA37*((LOG(AA37))/LOG(2)))) -> 0 | AD37: =N37 -> 22221 | AE37: =COUNTIF(L14:L16,AD37) -> 0 | AF37: =AE37/(AG4-AE25) -> 0 | AG37: =IF(AF37=0,0,(AF37*((LOG(AF37))/LOG(2)))) -> 0 | AI37: =N37 -> 22221 | AJ37: =COUNTIF(L17:L19,AI37) -> 0 | AK37: =AJ37/(AL4-AJ25) -> 0 | AL37: =IF(AK37=0,0,(AK37*((LOG(AK37))/LOG(2)))) -> 0 | AN37: =N37 -> 22221 | AO37: =COUNTIF(L20:L23,AN37) -> 0 | AP37: =AO37/(AQ4-AO25) -> 0 | AQ37: =IF(AP37=0,0,(AP37*((LOG(AP37))/LOG(2)))) -> 0 | AS37: =N37 -> 22221 | AT37: =COUNTIF(L24:L26,AS37) -> 0 | AU37: =AT37/(AV4-AT25) -> 0 | AV37: =IF(AU37=0,0,(AU37*((LOG(AU37))/LOG(2)))) -> 0
N38: 22222 | O38: =COUNTIF($L$7:$L$500,N38) -> 1 | P38: =O38/$Q$4 -> 0.05263157895 | Q38: =IF(P38=0,0,(P38*((LOG(P38))/LOG(2)))) -> -0.2235751323 | T38: =N38 -> 22222 | U38: =COUNTIF(L7:L9,T38) -> 1 | V38: =U38/(W4-U25) -> 0.3333333333 | W38: =IF(V38=0,0,(V38*((LOG(V38))/LOG(2)))) -> -0.5283208336 | Y38: =N38 -> 22222 | Z38: =COUNTIF(L10:L13,Y38) -> 0 | AA38: =Z38/(AB4-Z25) -> 0 | AB38: =IF(AA38=0,0,(AA38*((LOG(AA38))/LOG(2)))) -> 0 | AD38: =N38 -> 22222 | AE38: =COUNTIF(L14:L16,AD38) -> 0 | AF38: =AE38/(AG4-AE25) -> 0 | AG38: =IF(AF38=0,0,(AF38*((LOG(AF38))/LOG(2)))) -> 0 | AI38: =N38 -> 22222 | AJ38: =COUNTIF(L17:L19,AI38) -> 0 | AK38: =AJ38/(AL4-AJ25) -> 0 | AL38: =IF(AK38=0,0,(AK38*((LOG(AK38))/LOG(2)))) -> 0 | AN38: =N38 -> 22222 | AO38: =COUNTIF(L20:L23,AN38) -> 0 | AP38: =AO38/(AQ4-AO25) -> 0 | AQ38: =IF(AP38=0,0,(AP38*((LOG(AP38))/LOG(2)))) -> 0 | AS38: =N38 -> 22222 | AT38: =COUNTIF(L24:L26,AS38) -> 0 | AU38: =AT38/(AV4-AT25) -> 0 | AV38: =IF(AU38=0,0,(AU38*((LOG(AU38))/LOG(2)))) -> 0
P39: =SUM(P7:P38) -> 1 | Q39: =-SUM(Q7:Q38) -> 3.721611724 | V39: =SUM(V7:V38) -> 1 | W39: =-SUM(W7:W38) -> 1.584962501 | AA39: =SUM(AA7:AA38) -> 1 | AB39: =-SUM(AB7:AB38) -> 1.5 | AF39: =SUM(AF7:AF38) -> 1 | AG39: =-SUM(AG7:AG38) -> 1.584962501 | AK39: =SUM(AK7:AK38) -> 1 | AL39: =-SUM(AL7:AL38) -> 0.9182958341 | AP39: =SUM(AP7:AP38) -> 1 | AQ39: =-SUM(AQ7:AQ38) -> 2 | AU39: =SUM(AU7:AU38) -> 1 | AV39: =-SUM(AV7:AV38) -> 1
P40: U= | Q40: =Q39/(LOG(Q4)/LOG(2)) -> 0.8761005719 | V40: U1= | W40: =W39/(LOG(W4)/LOG(2)) -> 1 | AA40: U2= | AB40: =AB39/(LOG(AB4)/LOG(2)) -> 0.75 | AF40: U3= | AG40: =AG39/(LOG(AG4)/LOG(2)) -> 1 | AK40: U4= | AL40: =AL39/(LOG(AL4)/LOG(2)) -> 0.5793801643 | AP40: U5= | AQ40: =AQ39/(LOG(AQ4)/LOG(2)) -> 1 | AU40: U6= | AV40: =AV39/(LOG(AV4)/LOG(2)) -> 1
N43: Total Target Seq
N44: =COUNTIF(L7:L26,G3) -> 0 | P44: 3 | Q44: 4 | R44: 3 | S44: 3 | T44: 4 | U44: 3
P45: % of reinforcement given in 6 equal intervals based on number of trials
P46: %_1 | Q46: %_2 | R46: %_3 | S46: %_4 | T46: %_5 | U46: %_6
O47: target sequence | P47: =$G$3 -> 21121 | Q47: =$G$3 -> 21121 | R47: =$G$3 -> 21121 | S47: =$G$3 -> 21121 | T47: =$G$3 -> 21121 | U47: =$G$3 -> 21121
O48: total reinforcement | P48: =U25 -> 0 | Q48: =Z25 -> 0 | R48: =AE25 -> 0 | S48: =AJ25 -> 0 | T48: =AO25 -> 0 | U48: =AT25 -> 0
O49: % target
O50: CCRF
O51: % CCRf
O52: average response rate | P52: =J9/P44 -> 181 | Q52: =(J13-J9)/Q44 -> 226.25 | R52: =(J16-J13)/R44 -> 185 | S52: =(J19-J16)/S44 -> 711 | T52: =(J23-J19)/T44 -> 2596 | U52: =(J26-J23)/U44 -> -4840

Sheet !N106840.105
A1: Report for:!N106840.105
A2: Date: | B2: <date>
A3: Hen: | B3: <hen> | F3: Correct Sequence | G3: =Start!J2 -> 21121 | P3: Total Sequences in Data | Q3: =4994-COUNTBLANK(L7:L5000) -> 11 | V3: Total Sequences in Block Data | W3: =COUNTA(L7:L8) -> 2 | AA3: Total Sequences in Block Data | AB3: =COUNTA(L9:L10) -> 2 | AF3: Total Sequences in Block Data | AG3: =COUNTA(L11:L11) -> 1 | AK3: Total Sequences in Block Data | AL3: =COUNTA(L12:L13) -> 2 | AP3: Total Sequences in Block Data | AQ3: =COUNTA(L14:L15) -> 2 | AU3: Total Sequences in Block Data | AV3: =COUNTA(L16:L17) -> 2
P4: Total Sequences in Summary | Q4: =SUM(O7:O38) -> 11 | V4: Total Sequences in Block Summary | W4: =SUM(U7:U38) -> 2 | AA4: Total Sequences in Block Summary | AB4: =SUM(Z7:Z38) -> 2 | AF4: Total Sequences in Block Summary | AG4: =SUM(AE7:AE38) -> 1 | AK4: Total Sequences in Block Summary | AL4: =SUM(AJ7:AJ38) -> 2 | AP4: Total Sequences in Block Summary | AQ4: =SUM(AO7:AO38) -> 2 | AU4: Total Sequences in Block Summary | AV4: =SUM(AT7:AT38) -> 2
T5: Block 1 | Y5: Block 2 | AD5: Block 3 | AI5: Block 4 | AN5: Block 5 | AS5: Block 6
A6: Sequence Component 1 | B6: Time 1 | C6: Sequence Component 2 | D6: Time 2 | E6: Sequence Component 3 | F6: Time 3 | G6: Sequence Component 4 | H6: Time 4 | I6: Sequence Component 5 | J6: Time 5 | K6: Correct? 0=No 1=Yes | L6: Sequence | N6: Frequency | P6: Relative Frequency | Q6: Variability | T6: Frequency | V6: Relative Frequency | W6: Variability | Y6: Frequency | AA6: Relative Frequency | AB6: Variability | AD6: Frequency | AF6: Relative Frequency | AG6: Variability | AI6: Frequency | AK6: Relative Frequency | AL6: Variability | AN6: Frequency | AP6: Relative Frequency | AQ6: Variability | AS6: Frequency | AU6: Relative Frequency | AV6: Variability
A7: 21 | B7: 32 | C7: 22 | D7: 44 | E7: 24 | F7: 71 | G7: 14 | H7: 100 | I7: 24 | J7: 110 | K7: 0 | L7: 22212 | N7: 11111 | O7: =COUNTIF($L$7:$L$500,N7) -> 0 | P7: =O7/$Q$4 -> 0 | Q7: =IF(P7=0,0,(P7*((LOG(P7))/LOG(2)))) -> 0 | T7: =N7 -> 11111 | U7: =COUNTIF(L7:L8,T7) -> 0 | V7: =U7/(W4-U25) -> 0 | W7: =IF(V7=0,0,(V7*((LOG(V7))/LOG(2)))) -> 0 | Y7: =N7 -> 11111 | Z7: =COUNTIF(L9:L10,Y7) -> 0 | AA7: =Z7/(AB4-Z25) -> 0 | AB7: =IF(AA7=0,0,(AA7*((LOG(AA7))/LOG(2)))) -> 0 | AD7: =N7 -> 11111 | AE7: =COUNTIF(L11:L11,AD7) -> 0 | AF7: =AE7/(AG4-AE25) -> 0 | AG7: =IF(AF7=0,0,(AF7*((LOG(AF7))/LOG(2)))) -> 0 | AI7: =N7 -> 11111 | AJ7: =COUNTIF(L12:L13,AI7) -> 0 | AK7: =AJ7/(AL4-AJ25) -> 0 | AL7: =IF(AK7=0,0,(AK7*((LOG(AK7))/LOG(2)))) -> 0 | AN7: =N7 -> 11111 | AO7: =COUNTIF(L14:L15,AN7) -> 0 | AP7: =AO7/(AQ4-AO25) -> 0 | AQ7: =IF(AP7=0,0,(AP7*((LOG(AP7))/LOG(2)))) -> 0 | AS7: =N7 -> 11111 | AT7: =COUNTIF(L16:L17,AS7) -> 0 | AU7: =AT7/(AV4-AT25) -> 0 | AV7: =IF(AU7=0,0,(AU7*((LOG(AU7))/LOG(2)))) -> 0
A8: 12 | B8: 273 | C8: 13 | D8: 440 | E8: 24 | F8: 449 | G8: 23 | H8: 459 | I8: 13 | J8: 505 | K8: 0 | L8: 11221 | N8: 11112 | O8: =COUNTIF($L$7:$L$500,N8) -> 0 | P8: =O8/$Q$4 -> 0 | Q8: =IF(P8=0,0,(P8*((LOG(P8))/LOG(2)))) -> 0 | T8: =N8 -> 11112 | U8: =COUNTIF(L7:L8,T8) -> 0 | V8: =U8/(W4-U25) -> 0 | W8: =IF(V8=0,0,(V8*((LOG(V8))/LOG(2)))) -> 0 | Y8: =N8 -> 11112 | Z8: =COUNTIF(L9:L10,Y8) -> 0 | AA8: =Z8/(AB4-Z25) -> 0 | AB8: =IF(AA8=0,0,(AA8*((LOG(AA8))/LOG(2)))) -> 0 | AD8: =N8 -> 11112 | AE8: =COUNTIF(L11:L11,AD8) -> 0 | AF8: =AE8/(AG4-AE25) -> 0 | AG8: =IF(AF8=0,0,(AF8*((LOG(AF8))/LOG(2)))) -> 0 | AI8: =N8 -> 11112 | AJ8: =COUNTIF(L12:L13,AI8) -> 0 | AK8: =AJ8/(AL4-AJ25) -> 0 | AL8: =IF(AK8=0,0,(AK8*((LOG(AK8))/LOG(2)))) -> 0 | AN8: =N8 -> 11112 | AO8: =COUNTIF(L14:L15,AN8) -> 0 | AP8: =AO8/(AQ4-AO25) -> 0 | AQ8: =IF(AP8=0,0,(AP8*((LOG(AP8))/LOG(2)))) -> 0 | AS8: =N8 -> 11112 | AT8: =COUNTIF(L16:L17,AS8) -> 0 | AU8: =AT8/(AV4-AT25) -> 0 | AV8: =IF(AU8=0,0,(AU8*((LOG(AU8))/LOG(2)))) -> 0
A9: 12 | B9: 687 | C9: 24 | D9: 699 | E9: 24 | F9: 710 | G9: 14 | H9: 796 | I9: 24 | J9: 1443 | K9: 0 | L9: 12212 | N9: 11121 | O9: =COUNTIF($L$7:$L$500,N9) -> 0 | P9: =O9/$Q$4 -> 0 | Q9: =IF(P9=0,0,(P9*((LOG(P9))/LOG(2)))) -> 0 | T9: =N9 -> 11121 | U9: =COUNTIF(L7:L8,T9) -> 0 | V9: =U9/(W4-U25) -> 0 | W9: =IF(V9=0,0,(V9*((LOG(V9))/LOG(2)))) -> 0 | Y9: =N9 -> 11121 | Z9: =COUNTIF(L9:L10,Y9) -> 0 | AA9: =Z9/(AB4-Z25) -> 0 | AB9: =IF(AA9=0,0,(AA9*((LOG(AA9))/LOG(2)))) -> 0 | AD9: =N9 -> 11121 | AE9: =COUNTIF(L11:L11,AD9) -> 0 | AF9: =AE9/(AG4-AE25) -> 0 | AG9: =IF(AF9=0,0,(AF9*((LOG(AF9))/LOG(2)))) -> 0 | AI9: =N9 -> 11121 | AJ9: =COUNTIF(L12:L13,AI9) -> 0 | AK9: =AJ9/(AL4-AJ25) -> 0 | AL9: =IF(AK9=0,0,(AK9*((LOG(AK9))/LOG(2)))) -> 0 | AN9: =N9 -> 11121 | AO9: =COUNTIF(L14:L15,AN9) -> 0 | AP9: =AO9/(AQ4-AO25) -> 0 | AQ9: =IF(AP9=0,0,(AP9*((LOG(AP9))/LOG(2)))) -> 0 | AS9: =N9 -> 11121 | AT9: =COUNTIF(L16:L17,AS9) -> 0 | AU9: =AT9/(AV4-AT25) -> 0 | AV9: =IF(AU9=0,0,(AU9*((LOG(AU9))/LOG(2)))) -> 0
A10: 12 | B10: 1621 | C10: 24 | D10: 1633 | E10: 13 | F10: 1648 | G10: 23 | H10: 1658 | I10: 13 | J10: 1672 | K10: 0 | L10: 12121 | N10: 11122 | O10: =COUNTIF($L$7:$L$500,N10) -> 0 | P10: =O10/$Q$4 -> 0 | Q10: =IF(P10=0,0,(P10*((LOG(P10))/LOG(2)))) -> 0 | T10: =N10 -> 11122 | U10: =COUNTIF(L7:L8,T10) -> 0 | V10: =U10/(W4-U25) -> 0 | W10: =IF(V10=0,0,(V10*((LOG(V10))/LOG(2)))) -> 0 | Y10: =N10 -> 11122 | Z10: =COUNTIF(L9:L10,Y10) -> 0 | AA10: =Z10/(AB4-Z25) -> 0 | AB10: =IF(AA10=0,0,(AA10*((LOG(AA10))/LOG(2)))) -> 0 | AD10: =N10 -> 11122 | AE10: =COUNTIF(L11:L11,AD10) -> 0 | AF10: =AE10/(AG4-AE25) -> 0 | AG10: =IF(AF10=0,0,(AF10*((LOG(AF10))/LOG(2)))) -> 0 | AI10: =N10 -> 11122 | AJ10: =COUNTIF(L12:L13,AI10) -> 0 | AK10: =AJ10/(AL4-AJ25) -> 0 | AL10: =IF(AK10=0,0,(AK10*((LOG(AK10))/LOG(2)))) -> 0 | AN10: =N10 -> 11122 | AO10: =COUNTIF(L14:L15,AN10) -> 0 | AP10: =AO10/(AQ4-AO25) -> 0 | AQ10: =IF(AP10=0,0,(AP10*((LOG(AP10))/LOG(2)))) -> 0 | AS10: =N10 -> 11122 | AT10: =COUNTIF(L16:L17,AS10) -> 0 | AU10: =AT10/(AV4-AT25) -> 0 | AV10: =IF(AU10=0,0,(AU10*((LOG(AU10))/LOG(2)))) -> 0
A11: 12 | B11: 1801 | C11: 24 | D11: 1810 | E11: 13 | F11: 1824 | G11: 23 | H11: 1834 | I11: 24 | J11: 1867 | K11: 0 | L11: 12122 | N11: 11211 | O11: =COUNTIF($L$7:$L$500,N11) -> 0 | P11: =O11/$Q$4 -> 0 | Q11: =IF(P11=0,0,(P11*((LOG(P11))/LOG(2)))) -> 0 | T11: =N11 -> 11211 | U11: =COUNTIF(L7:L8,T11) -> 0 | V11: =U11/(W4-U25) -> 0 | W11: =IF(V11=0,0,(V11*((LOG(V11))/LOG(2)))) -> 0 | Y11: =N11 -> 11211 | Z11: =COUNTIF(L9:L10,Y11) -> 0 | AA11: =Z11/(AB4-Z25) -> 0 | AB11: =IF(AA11=0,0,(AA11*((LOG(AA11))/LOG(2)))) -> 0 | AD11: =N11 -> 11211 | AE11: =COUNTIF(L11:L11,AD11) -> 0 | AF11: =AE11/(AG4-AE25) -> 0 | AG11: =IF(AF11=0,0,(AF11*((LOG(AF11))/LOG(2)))) -> 0 | AI11: =N11 -> 11211 | AJ11: =COUNTIF(L12:L13,AI11) -> 0 | AK11: =AJ11/(AL4-AJ25) -> 0 | AL11: =IF(AK11=0,0,(AK11*((LOG(AK11))/LOG(2)))) -> 0 | AN11: =N11 -> 11211 | AO11: =COUNTIF(L14:L15,AN11) -> 0 | AP11: =AO11/(AQ4-AO25) -> 0 | AQ11: =IF(AP11=0,0,(AP11*((LOG(AP11))/LOG(2)))) -> 0 | AS11: =N11 -> 11211 | AT11: =COUNTIF(L16:L17,AS11) -> 0 | AU11: =AT11/(AV4-AT25) -> 0 | AV11: =IF(AU11=0,0,(AU11*((LOG(AU11))/LOG(2)))) -> 0
A12: 21 | B12: 2512 | C12: 22 | D12: 2533 | E12: 13 | F12: 2561 | G12: 23 | H12: 2572 | I12: 13 | J12: 2587 | K12: 0 | L12: 22121 | N12: 11212 | O12: =COUNTIF($L$7:$L$500,N12) -> 1 | P12: =O12/$Q$4 -> 0.09090909091 | Q12: =IF(P12=0,0,(P12*((LOG(P12))/LOG(2)))) -> -0.3144937835 | T12: =N12 -> 11212 | U12: =COUNTIF(L7:L8,T12) -> 0 | V12: =U12/(W4-U25) -> 0 | W12: =IF(V12=0,0,(V12*((LOG(V12))/LOG(2)))) -> 0 | Y12: =N12 -> 11212 | Z12: =COUNTIF(L9:L10,Y12) -> 0 | AA12: =Z12/(AB4-Z25) -> 0 | AB12: =IF(AA12=0,0,(AA12*((LOG(AA12))/LOG(2)))) -> 0 | AD12: =N12 -> 11212 | AE12: =COUNTIF(L11:L11,AD12) -> 0 | AF12: =AE12/(AG4-AE25) -> 0 | AG12: =IF(AF12=0,0,(AF12*((LOG(AF12))/LOG(2)))) -> 0 | AI12: =N12 -> 11212 | AJ12: =COUNTIF(L12:L13,AI12) -> 0 | AK12: =AJ12/(AL4-AJ25) -> 0 | AL12: =IF(AK12=0,0,(AK12*((LOG(AK12))/LOG(2)))) -> 0 | AN12: =N12 -> 11212 | AO12: =COUNTIF(L14:L15,AN12) -> 0 | AP12: =AO12/(AQ4-AO25) -> 0 | AQ12: =IF(AP12=0,0,(AP12*((LOG(AP12))/LOG(2)))) -> 0 | AS12: =N12 -> 11212 | AT12: =COUNTIF(L16:L17,AS12) -> 1 | AU12: =AT12/(AV4-AT25) -> 0.5 | AV12: =IF(AU12=0,0,(AU12*((LOG(AU12))/LOG(2)))) -> -0.5
A13: 12 | B13: 3564 | C13: 24 | D13: 3575 | E13: 24 | F13: 3590 | G13: 14 | H13: 3605 | I13: 24 | J13: 3615 | K13: 0 | L13: 12212 | N13: 11221 | O13: =COUNTIF($L$7:$L$500,N13) -> 1 | P13: =O13/$Q$4 -> 0.09090909091 | Q13: =IF(P13=0,0,(P13*((LOG(P13))/LOG(2)))) -> -0.3144937835 | T13: =N13 -> 11221 | U13: =COUNTIF(L7:L8,T13) -> 1 | V13: =U13/(W4-U25) -> 0.5 | W13: =IF(V13=0,0,(V13*((LOG(V13))/LOG(2)))) -> -0.5 | Y13: =N13 -> 11221 | Z13: =COUNTIF(L9:L10,Y13) -> 0 | AA13: =Z13/(AB4-Z25) -> 0 | AB13: =IF(AA13=0,0,(AA13*((LOG(AA13))/LOG(2)))) -> 0 | AD13: =N13 -> 11221 | AE13: =COUNTIF(L11:L11,AD13) -> 0 | AF13: =AE13/(AG4-AE25) -> 0 | AG13: =IF(AF13=0,0,(AF13*((LOG(AF13))/LOG(2)))) -> 0 | AI13: =N13 -> 11221 | AJ13: =COUNTIF(L12:L13,AI13) -> 0 | AK13: =AJ13/(AL4-AJ25) -> 0 | AL13: =IF(AK13=0,0,(AK13*((LOG(AK13))/LOG(2)))) -> 0 | AN13: =N13 -> 11221 | AO13: =COUNTIF(L14:L15,AN13) -> 0 | AP13: =AO13/(AQ4-AO25) -> 0 | AQ13: =IF(AP13=0,0,(AP13*((LOG(AP13))/LOG(2)))) -> 0 | AS13: =N13 -> 11221 | AT13: =COUNTIF(L16:L17,AS13) -> 0 | AU13: =AT13/(AV4-AT25) -> 0 | AV13: =IF(AU13=0,0,(AU13*((LOG(AU13))/LOG(2)))) -> 0
A14: 21 | B14: 4269 | C14: 22 | D14: 4284 | E14: 13 | F14: 4316 | G14: 23 | H14: 4328 | I14: 13 | J14: 4343 | K14: 0 | L14: 22121 | N14: 11222 | O14: =COUNTIF($L$7:$L$500,N14) -> 0 | P14: =O14/$Q$4 -> 0 | Q14: =IF(P14=0,0,(P14*((LOG(P14))/LOG(2)))) -> 0 | T14: =N14 -> 11222 | U14: =COUNTIF(L7:L8,T14) -> 0 | V14: =U14/(W4-U25) -> 0 | W14: =IF(V14=0,0,(V14*((LOG(V14))/LOG(2)))) -> 0 | Y14: =N14 -> 11222 | Z14: =COUNTIF(L9:L10,Y14) -> 0 | AA14: =Z14/(AB4-Z25) -> 0 | AB14: =IF(AA14=0,0,(AA14*((LOG(AA14))/LOG(2)))) -> 0 | AD14: =N14 -> 11222 | AE14: =COUNTIF(L11:L11,AD14) -> 0 | AF14: =AE14/(AG4-AE25) -> 0 | AG14: =IF(AF14=0,0,(AF14*((LOG(AF14))/LOG(2)))) -> 0 | AI14: =N14 -> 11222 | AJ14: =COUNTIF(L12:L13,AI14) -> 0 | AK14: =AJ14/(AL4-AJ25) -> 0 | AL14: =IF(AK14=0,0,(AK14*((LOG(AK14))/LOG(2)))) -> 0 | AN14: =N14 -> 11222 | AO14: =COUNTIF(L14:L15,AN14) -> 0 | AP14: =AO14/(AQ4-AO25) -> 0 | AQ14: =IF(AP14=0,0,(AP14*((LOG(AP14))/LOG(2)))) -> 0 | AS14: =N14 -> 11222 | AT14: =COUNTIF(L16:L17,AS14) -> 0 | AU14: =AT14/(AV4-AT25) -> 0 | AV14: =IF(AU14=0,0,(AU14*((LOG(AU14))/LOG(2)))) -> 0
A15: 21 | B15: 4526 | C15: 11 | D15: 4590 | E15: 22 | F15: 4601 | G15: 14 | H15: 4638 | I15: 24 | J15: 4649 | K15: 0 | L15: 21212 | N15: 12111 | O15: =COUNTIF($L$7:$L$500,N15) -> 0 | P15: =O15/$Q$4 -> 0 | Q15: =IF(P15=0,0,(P15*((LOG(P15))/LOG(2)))) -> 0 | T15: =N15 -> 12111 | U15: =COUNTIF(L7:L8,T15) -> 0 | V15: =U15/(W4-U25) -> 0 | W15: =IF(V15=0,0,(V15*((LOG(V15))/LOG(2)))) -> 0 | Y15: =N15 -> 12111 | Z15: =COUNTIF(L9:L10,Y15) -> 0 | AA15: =Z15/(AB4-Z25) -> 0 | AB15: =IF(AA15=0,0,(AA15*((LOG(AA15))/LOG(2)))) -> 0 | AD15: =N15 -> 12111 | AE15: =COUNTIF(L11:L11,AD15) -> 0 | AF15: =AE15/(AG4-AE25) -> 0 | AG15: =IF(AF15=0,0,(AF15*((LOG(AF15))/LOG(2)))) -> 0 | AI15: =N15 -> 12111 | AJ15: =COUNTIF(L12:L13,AI15) -> 0 | AK15: =AJ15/(AL4-AJ25) -> 0 | AL15: =IF(AK15=0,0,(AK15*((LOG(AK15))/LOG(2)))) -> 0 | AN15: =N15 -> 12111 | AO15: =COUNTIF(L14:L15,AN15) -> 0 | AP15: =AO15/(AQ4-AO25) -> 0 | AQ15: =IF(AP15=0,0,(AP15*((LOG(AP15))/LOG(2)))) -> 0 | AS15: =N15 -> 12111 | AT15: =COUNTIF(L16:L17,AS15) -> 0 | AU15: =AT15/(AV4-AT25) -> 0 | AV15: =IF(AU15=0,0,(AU15*((LOG(AU15))/LOG(2)))) -> 0
A16: 12 | B16: 10703 | C16: 13 | D16: 10727 | E16: 24 | F16: 20527 | G16: 14 | H16: 20641 | I16: 24 | J16: 20656 | K16: 0 | L16: 11212 | N16: 12112 | O16: =COUNTIF($L$7:$L$500,N16) -> 0 | P16: =O16/$Q$4 -> 0 | Q16: =IF(P16=0,0,(P16*((LOG(P16))/LOG(2)))) -> 0 | T16: =N16 -> 12112 | U16: =COUNTIF(L7:L8,T16) -> 0 | V16: =U16/(W4-U25) -> 0 | W16: =IF(V16=0,0,(V16*((LOG(V16))/LOG(2)))) -> 0 | Y16: =N16 -> 12112 | Z16: =COUNTIF(L9:L10,Y16) -> 0 | AA16: =Z16/(AB4-Z25) -> 0 | AB16: =IF(AA16=0,0,(AA16*((LOG(AA16))/LOG(2)))) -> 0 | AD16: =N16 -> 12112 | AE16: =COUNTIF(L11:L11,AD16) -> 0 | AF16: =AE16/(AG4-AE25) -> 0 | AG16: =IF(AF16=0,0,(AF16*((LOG(AF16))/LOG(2)))) -> 0 | AI16: =N16 -> 12112 | AJ16: =COUNTIF(L12:L13,AI16) -> 0 | AK16: =AJ16/(AL4-AJ25) -> 0 | AL16: =IF(AK16=0,0,(AK16*((LOG(AK16))/LOG(2)))) -> 0 | AN16: =N16 -> 12112 | AO16: =COUNTIF(L14:L15,AN16) -> 0 | AP16: =AO16/(AQ4-AO25) -> 0 | AQ16: =IF(AP16=0,0,(AP16*((LOG(AP16))/LOG(2)))) -> 0 | AS16: =N16 -> 12112 | AT16: =COUNTIF(L16:L17,AS16) -> 0 | AU16: =AT16/(AV4-AT25) -> 0 | AV16: =IF(AU16=0,0,(AU16*((LOG(AU16))/LOG(2)))) -> 0
A17: 12 | B17: 21077 | C17: 24 | D17: 21089 | E17: 24 | F17: 21128 | G17: 14 | H17: 23930 | I17: 13 | J17: 23955 | L17: 12211 | N17: 12121 | O17: =COUNTIF($L$7:$L$500,N17) -> 1 | P17: =O17/$Q$4 -> 0.09090909091 | Q17: =IF(P17=0,0,(P17*((LOG(P17))/LOG(2)))) -> -0.3144937835 | T17: =N17 -> 12121 | U17: =COUNTIF(L7:L8,T17) -> 0 | V17: =U17/(W4-U25) -> 0 | W17: =IF(V17=0,0,(V17*((LOG(V17))/LOG(2)))) -> 0 | Y17: =N17 -> 12121 | Z17: =COUNTIF(L9:L10,Y17) -> 1 | AA17: =Z17/(AB4-Z25) -> 0.5 | AB17: =IF(AA17=0,0,(AA17*((LOG(AA17))/LOG(2)))) -> -0.5 | AD17: =N17 -> 12121 | AE17: =COUNTIF(L11:L11,AD17) -> 0 | AF17: =AE17/(AG4-AE25) -> 0 | AG17: =IF(AF17=0,0,(AF17*((LOG(AF17))/LOG(2)))) -> 0 | AI17: =N17 -> 12121 | AJ17: =COUNTIF(L12:L13,AI17) -> 0 | AK17: =AJ17/(AL4-AJ25) -> 0 | AL17: =IF(AK17=0,0,(AK17*((LOG(AK17))/LOG(2)))) -> 0 | AN17: =N17 -> 12121 | AO17: =COUNTIF(L14:L15,AN17) -> 0 | AP17: =AO17/(AQ4-AO25) -> 0 | AQ17: =IF(AP17=0,0,(AP17*((LOG(AP17))/LOG(2)))) -> 0 | AS17: =N17 -> 12121 | AT17: =COUNTIF(L16:L17,AS17) -> 0 | AU17: =AT17/(AV4-AT25) -> 0 | AV17: =IF(AU17=0,0,(AU17*((LOG(AU17))/LOG(2)))) -> 0
N18: 12122 | O18: =COUNTIF($L$7:$L$500,N18) -> 1 | P18: =O18/$Q$4 -> 0.09090909091 | Q18: =IF(P18=0,0,(P18*((LOG(P18))/LOG(2)))) -> -0.3144937835 | T18: =N18 -> 12122 | U18: =COUNTIF(L7:L8,T18) -> 0 | V18: =U18/(W4-U25) -> 0 | W18: =IF(V18=0,0,(V18*((LOG(V18))/LOG(2)))) -> 0 | Y18: =N18 -> 12122 | Z18: =COUNTIF(L9:L10,Y18) -> 0 | AA18: =Z18/(AB4-Z25) -> 0 | AB18: =IF(AA18=0,0,(AA18*((LOG(AA18))/LOG(2)))) -> 0 | AD18: =N18 -> 12122 | AE18: =COUNTIF(L11:L11,AD18) -> 1 | AF18: =AE18/(AG4-AE25) -> 1 | AG18: =IF(AF18=0,0,(AF18*((LOG(AF18))/LOG(2)))) -> 0 | AI18: =N18 -> 12122 | AJ18: =COUNTIF(L12:L13,AI18) -> 0 | AK18: =AJ18/(AL4-AJ25) -> 0 | AL18: =IF(AK18=0,0,(AK18*((LOG(AK18))/LOG(2)))) -> 0 | AN18: =N18 -> 12122 | AO18: =COUNTIF(L14:L15,AN18) -> 0 | AP18: =AO18/(AQ4-AO25) -> 0 | AQ18: =IF(AP18=0,0,(AP18*((LOG(AP18))/LOG(2)))) -> 0 | AS18: =N18 -> 12122 | AT18: =COUNTIF(L16:L17,AS18) -> 0 | AU18: =AT18/(AV4-AT25) -> 0 | AV18: =IF(AU18=0,0,(AU18*((LOG(AU18))/LOG(2)))) -> 0
N19: 12211 | O19: =COUNTIF($L$7:$L$500,N19) -> 1 | P19: =O19/$Q$4 -> 0.09090909091 | Q19: =IF(P19=0,0,(P19*((LOG(P19))/LOG(2)))) -> -0.3144937835 | T19: =N19 -> 12211 | U19: =COUNTIF(L7:L8,T19) -> 0 | V19: =U19/(W4-U25) -> 0 | W19: =IF(V19=0,0,(V19*((LOG(V19))/LOG(2)))) -> 0 | Y19: =N19 -> 12211 | Z19: =COUNTIF(L9:L10,Y19) -> 0 | AA19: =Z19/(AB4-Z25) -> 0 | AB19: =IF(AA19=0,0,(AA19*((LOG(AA19))/LOG(2)))) -> 0 | AD19: =N19 -> 12211 | AE19: =COUNTIF(L11:L11,AD19) -> 0 | AF19: =AE19/(AG4-AE25) -> 0 | AG19: =IF(AF19=0,0,(AF19*((LOG(AF19))/LOG(2)))) -> 0 | AI19: =N19 -> 12211 | AJ19: =COUNTIF(L12:L13,AI19) -> 0 | AK19: =AJ19/(AL4-AJ25) -> 0 | AL19: =IF(AK19=0,0,(AK19*((LOG(AK19))/LOG(2)))) -> 0 | AN19: =N19 -> 12211 | AO19: =COUNTIF(L14:L15,AN19) -> 0 | AP19: =AO19/(AQ4-AO25) -> 0 | AQ19: =IF(AP19=0,0,(AP19*((LOG(AP19))/LOG(2)))) -> 0 | AS19: =N19 -> 12211 | AT19: =COUNTIF(L16:L17,AS19) -> 1 | AU19: =AT19/(AV4-AT25) -> 0.5 | AV19: =IF(AU19=0,0,(AU19*((LOG(AU19))/LOG(2)))) -> -0.5
N20: 12212 | O20: =COUNTIF($L$7:$L$500,N20) -> 2 | P20: =O20/$Q$4 -> 0.1818181818 | Q20: =IF(P20=0,0,(P20*((LOG(P20))/LOG(2)))) -> -0.4471693852 | T20: =N20 -> 12212 | U20: =COUNTIF(L7:L8,T20) -> 0 | V20: =U20/(W4-U25) -> 0 | W20: =IF(V20=0,0,(V20*((LOG(V20))/LOG(2)))) -> 0 | Y20: =N20 -> 12212 | Z20: =COUNTIF(L9:L10,Y20) -> 1 | AA20: =Z20/(AB4-Z25) -> 0.5 | AB20: =IF(AA20=0,0,(AA20*((LOG(AA20))/LOG(2)))) -> -0.5 | AD20: =N20 -> 12212 | AE20: =COUNTIF(L11:L11,AD20) -> 0 | AF20: =AE20/(AG4-AE25) -> 0 | AG20: =IF(AF20=0,0,(AF20*((LOG(AF20))/LOG(2)))) -> 0 | AI20: =N20 -> 12212 | AJ20: =COUNTIF(L12:L13,AI20) -> 1 | AK20: =AJ20/(AL4-AJ25) -> 0.5 | AL20: =IF(AK20=0,0,(AK20*((LOG(AK20))/LOG(2)))) -> -0.5 | AN20: =N20 -> 12212 | AO20: =COUNTIF(L14:L15,AN20) -> 0 | AP20: =AO20/(AQ4-AO25) -> 0 | AQ20: =IF(AP20=0,0,(AP20*((LOG(AP20))/LOG(2)))) -> 0 | AS20: =N20 -> 12212 | AT20: =COUNTIF(L16:L17,AS20) -> 0 | AU20: =AT20/(AV4-AT25) -> 0 | AV20: =IF(AU20=0,0,(AU20*((LOG(AU20))/LOG(2)))) -> 0
N21: 12221 | O21: =COUNTIF($L$7:$L$500,N21) -> 0 | P21: =O21/$Q$4 -> 0 | Q21: =IF(P21=0,0,(P21*((LOG(P21))/LOG(2)))) -> 0 | T21: =N21 -> 12221 | U21: =COUNTIF(L7:L8,T21) -> 0 | V21: =U21/(W4-U25) -> 0 | W21: =IF(V21=0,0,(V21*((LOG(V21))/LOG(2)))) -> 0 | Y21: =N21 -> 12221 | Z21: =COUNTIF(L9:L10,Y21) -> 0 | AA21: =Z21/(AB4-Z25) -> 0 | AB21: =IF(AA21=0,0,(AA21*((LOG(AA21))/LOG(2)))) -> 0 | AD21: =N21 -> 12221 | AE21: =COUNTIF(L11:L11,AD21) -> 0 | AF21: =AE21/(AG4-AE25) -> 0 | AG21: =IF(AF21=0,0,(AF21*((LOG(AF21))/LOG(2)))) -> 0 | AI21: =N21 -> 12221 | AJ21: =COUNTIF(L12:L13,AI21) -> 0 | AK21: =AJ21/(AL4-AJ25) -> 0 | AL21: =IF(AK21=0,0,(AK21*((LOG(AK21))/LOG(2)))) -> 0 | AN21: =N21 -> 12221 | AO21: =COUNTIF(L14:L15,AN21) -> 0 | AP21: =AO21/(AQ4-AO25) -> 0 | AQ21: =IF(AP21=0,0,(AP21*((LOG(AP21))/LOG(2)))) -> 0 | AS21: =N21 -> 12221 | AT21: =COUNTIF(L16:L17,AS21) -> 0 | AU21: =AT21/(AV4-AT25) -> 0 | AV21: =IF(AU21=0,0,(AU21*((LOG(AU21))/LOG(2)))) -> 0
N22: 12222 | O22: =COUNTIF($L$7:$L$500,N22) -> 0 | P22: =O22/$Q$4 -> 0 | Q22: =IF(P22=0,0,(P22*((LOG(P22))/LOG(2)))) -> 0 | T22: =N22 -> 12222 | U22: =COUNTIF(L7:L8,T22) -> 0 | V22: =U22/(W4-U25) -> 0 | W22: =IF(V22=0,0,(V22*((LOG(V22))/LOG(2)))) -> 0 | Y22: =N22 -> 12222 | Z22: =COUNTIF(L9:L10,Y22) -> 0 | AA22: =Z22/(AB4-Z25) -> 0 | AB22: =IF(AA22=0,0,(AA22*((LOG(AA22))/LOG(2)))) -> 0 | AD22: =N22 -> 12222 | AE22: =COUNTIF(L11:L11,AD22) -> 0 | AF22: =AE22/(AG4-AE25) -> 0 | AG22: =IF(AF22=0,0,(AF22*((LOG(AF22))/LOG(2)))) -> 0 | AI22: =N22 -> 12222 | AJ22: =COUNTIF(L12:L13,AI22) -> 0 | AK22: =AJ22/(AL4-AJ25) -> 0 | AL22: =IF(AK22=0,0,(AK22*((LOG(AK22))/LOG(2)))) -> 0 | AN22: =N22 -> 12222 | AO22: =COUNTIF(L14:L15,AN22) -> 0 | AP22: =AO22/(AQ4-AO25) -> 0 | AQ22: =IF(AP22=0,0,(AP22*((LOG(AP22))/LOG(2)))) -> 0 | AS22: =N22 -> 12222 | AT22: =COUNTIF(L16:L17,AS22) -> 0 | AU22: =AT22/(AV4-AT25) -> 0 | AV22: =IF(AU22=0,0,(AU22*((LOG(AU22))/LOG(2)))) -> 0
N23: 21111 | O23: =COUNTIF($L$7:$L$500,N23) -> 0 | P23: =O23/$Q$4 -> 0 | Q23: =IF(P23=0,0,(P23*((LOG(P23))/LOG(2)))) -> 0 | T23: =N23 -> 21111 | U23: =COUNTIF(L7:L8,T23) -> 0 | V23: =U23/(W4-U25) -> 0 | W23: =IF(V23=0,0,(V23*((LOG(V23))/LOG(2)))) -> 0 | Y23: =N23 -> 21111 | Z23: =COUNTIF(L9:L10,Y23) -> 0 | AA23: =Z23/(AB4-Z25) -> 0 | AB23: =IF(AA23=0,0,(AA23*((LOG(AA23))/LOG(2)))) -> 0 | AD23: =N23 -> 21111 | AE23: =COUNTIF(L11:L11,AD23) -> 0 | AF23: =AE23/(AG4-AE25) -> 0 | AG23: =IF(AF23=0,0,(AF23*((LOG(AF23))/LOG(2)))) -> 0 | AI23: =N23 -> 21111 | AJ23: =COUNTIF(L12:L13,AI23) -> 0 | AK23: =AJ23/(AL4-AJ25) -> 0 | AL23: =IF(AK23=0,0,(AK23*((LOG(AK23))/LOG(2)))) -> 0 | AN23: =N23 -> 21111 | AO23: =COUNTIF(L14:L15,AN23) -> 0 | AP23: =AO23/(AQ4-AO25) -> 0 | AQ23: =IF(AP23=0,0,(AP23*((LOG(AP23))/LOG(2)))) -> 0 | AS23: =N23 -> 21111 | AT23: =COUNTIF(L16:L17,AS23) -> 0 | AU23: =AT23/(AV4-AT25) -> 0 | AV23: =IF(AU23=0,0,(AU23*((LOG(AU23))/LOG(2)))) -> 0
N24: 21112 | O24: =COUNTIF($L$7:$L$500,N24) -> 0 | P24: =O24/$Q$4 -> 0 | Q24: =IF(P24=0,0,(P24*((LOG(P24))/LOG(2)))) -> 0 | T24: =N24 -> 21112 | U24: =COUNTIF(L7:L8,T24) -> 0 | V24: =U24/(W4-U25) -> 0 | W24: =IF(V24=0,0,(V24*((LOG(V24))/LOG(2)))) -> 0 | Y24: =N24 -> 21112 | Z24: =COUNTIF(L9:L10,Y24) -> 0 | AA24: =Z24/(AB4-Z25) -> 0 | AB24: =IF(AA24=0,0,(AA24*((LOG(AA24))/LOG(2)))) -> 0 | AD24: =N24 -> 21112 | AE24: =COUNTIF(L11:L11,AD24) -> 0 | AF24: =AE24/(AG4-AE25) -> 0 | AG24: =IF(AF24=0,0,(AF24*((LOG(AF24))/LOG(2)))) -> 0 | AI24: =N24 -> 21112 | AJ24: =COUNTIF(L12:L13,AI24) -> 0 | AK24: =AJ24/(AL4-AJ25) -> 0 | AL24: =IF(AK24=0,0,(AK24*((LOG(AK24))/LOG(2)))) -> 0 | AN24: =N24 -> 21112 | AO24: =COUNTIF(L14:L15,AN24) -> 0 | AP24: =AO24/(AQ4-AO25) -> 0 | AQ24: =IF(AP24=0,0,(AP24*((LOG(AP24))/LOG(2)))) -> 0 | AS24: =N24 -> 21112 | AT24: =COUNTIF(L16:L17,AS24) -> 0 | AU24: =AT24/(AV4-AT25) -> 0 | AV24: =IF(AU24=0,0,(AU24*((LOG(AU24))/LOG(2)))) -> 0
N25: 21121 | O25: =COUNTIF($L$7:$L$500,N25) -> 0 | P25: =O25/$Q$4 -> 0 | Q25: =IF(P25=0,0,(P25*((LOG(P25))/LOG(2)))) -> 0 | T25: =N25 -> 21121 | U25: =COUNTIF(L7:L8,T25) -> 0 | Y25: =N25 -> 21121 | Z25: =COUNTIF(L9:L10,Y25) -> 0 | AD25: =N25 -> 21121 | AE25: =COUNTIF(L11:L11,AD25) -> 0 | AI25: =N25 -> 21121 | AJ25: =COUNTIF(L12:L13,AI25) -> 0 | AN25: =N25 -> 21121 | AO25: =COUNTIF(L14:L15,AN25) -> 0 | AS25: =N25 -> 21121 | AT25: =COUNTIF(L16:L17,AS25) -> 0
N26: 21122 | O26: =COUNTIF($L$7:$L$500,N26) -> 0 | P26: =O26/$Q$4 -> 0 | Q26: =IF(P26=0,0,(P26*((LOG(P26))/LOG(2)))) -> 0 | T26: =N26 -> 21122 | U26: =COUNTIF(L7:L8,T26) -> 0 | V26: =U26/(W4-U25) -> 0 | W26: =IF(V26=0,0,(V26*((LOG(V26))/LOG(2)))) -> 0 | Y26: =N26 -> 21122 | Z26: =COUNTIF(L9:L10,Y26) -> 0 | AA26: =Z26/(AB4-Z25) -> 0 | AB26: =IF(AA26=0,0,(AA26*((LOG(AA26))/LOG(2)))) -> 0 | AD26: =N26 -> 21122 | AE26: =COUNTIF(L11:L11,AD26) -> 0 | AF26: =AE26/(AG4-AE25) -> 0 | AG26: =IF(AF26=0,0,(AF26*((LOG(AF26))/LOG(2)))) -> 0 | AI26: =N26 -> 21122 | AJ26: =COUNTIF(L12:L13,AI26) -> 0 | AK26: =AJ26/(AL4-AJ25) -> 0 | AL26: =IF(AK26=0,0,(AK26*((LOG(AK26))/LOG(2)))) -> 0 | AN26: =N26 -> 21122 | AO26: =COUNTIF(L14:L15,AN26) -> 0 | AP26: =AO26/(AQ4-AO25) -> 0 | AQ26: =IF(AP26=0,0,(AP26*((LOG(AP26))/LOG(2)))) -> 0 | AS26: =N26 -> 21122 | AT26: =COUNTIF(L16:L17,AS26) -> 0 | AU26: =AT26/(AV4-AT25) -> 0 | AV26: =IF(AU26=0,0,(AU26*((LOG(AU26))/LOG(2)))) -> 0
N27: 21211 | O27: =COUNTIF($L$7:$L$500,N27) -> 0 | P27: =O27/$Q$4 -> 0 | Q27: =IF(P27=0,0,(P27*((LOG(P27))/LOG(2)))) -> 0 | T27: =N27 -> 21211 | U27: =COUNTIF(L7:L8,T27) -> 0 | V27: =U27/(W4-U25) -> 0 | W27: =IF(V27=0,0,(V27*((LOG(V27))/LOG(2)))) -> 0 | Y27: =N27 -> 21211 | Z27: =COUNTIF(L9:L10,Y27) -> 0 | AA27: =Z27/(AB4-Z25) -> 0 | AB27: =IF(AA27=0,0,(AA27*((LOG(AA27))/LOG(2)))) -> 0 | AD27: =N27 -> 21211 | AE27: =COUNTIF(L11:L11,AD27) -> 0 | AF27: =AE27/(AG4-AE25) -> 0 | AG27: =IF(AF27=0,0,(AF27*((LOG(AF27))/LOG(2)))) -> 0 | AI27: =N27 -> 21211 | AJ27: =COUNTIF(L12:L13,AI27) -> 0 | AK27: =AJ27/(AL4-AJ25) -> 0 | AL27: =IF(AK27=0,0,(AK27*((LOG(AK27))/LOG(2)))) -> 0 | AN27: =N27 -> 21211 | AO27: =COUNTIF(L14:L15,AN27) -> 0 | AP27: =AO27/(AQ4-AO25) -> 0 | AQ27: =IF(AP27=0,0,(AP27*((LOG(AP27))/LOG(2)))) -> 0 | AS27: =N27 -> 21211 | AT27: =COUNTIF(L16:L17,AS27) -> 0 | AU27: =AT27/(AV4-AT25) -> 0 | AV27: =IF(AU27=0,0,(AU27*((LOG(AU27))/LOG(2)))) -> 0
N28: 21212 | O28: =COUNTIF($L$7:$L$500,N28) -> 1 | P28: =O28/$Q$4 -> 0.09090909091 | Q28: =IF(P28=0,0,(P28*((LOG(P28))/LOG(2)))) -> -0.3144937835 | T28: =N28 -> 21212 | U28: =COUNTIF(L7:L8,T28) -> 0 | V28: =U28/(W4-U25) -> 0 | W28: =IF(V28=0,0,(V28*((LOG(V28))/LOG(2)))) -> 0 | Y28: =N28 -> 21212 | Z28: =COUNTIF(L9:L10,Y28) -> 0 | AA28: =Z28/(AB4-Z25) -> 0 | AB28: =IF(AA28=0,0,(AA28*((LOG(AA28))/LOG(2)))) -> 0 | AD28: =N28 -> 21212 | AE28: =COUNTIF(L11:L11,AD28) -> 0 | AF28: =AE28/(AG4-AE25) -> 0 | AG28: =IF(AF28=0,0,(AF28*((LOG(AF28))/LOG(2)))) -> 0 | AI28: =N28 -> 21212 | AJ28: =COUNTIF(L12:L13,AI28) -> 0 | AK28: =AJ28/(AL4-AJ25) -> 0 | AL28: =IF(AK28=0,0,(AK28*((LOG(AK28))/LOG(2)))) -> 0 | AN28: =N28 -> 21212 | AO28: =COUNTIF(L14:L15,AN28) -> 1 | AP28: =AO28/(AQ4-AO25) -> 0.5 | AQ28: =IF(AP28=0,0,(AP28*((LOG(AP28))/LOG(2)))) -> -0.5 | AS28: =N28 -> 21212 | AT28: =COUNTIF(L16:L17,AS28) -> 0 | AU28: =AT28/(AV4-AT25) -> 0 | AV28: =IF(AU28=0,0,(AU28*((LOG(AU28))/LOG(2)))) -> 0
N29: 21221 | O29: =COUNTIF($L$7:$L$500,N29) -> 0 | P29: =O29/$Q$4 -> 0 | Q29: =IF(P29=0,0,(P29*((LOG(P29))/LOG(2)))) -> 0 | T29: =N29 -> 21221 | U29: =COUNTIF(L7:L8,T29) -> 0 | V29: =U29/(W4-U25) -> 0 | W29: =IF(V29=0,0,(V29*((LOG(V29))/LOG(2)))) -> 0 | Y29: =N29 -> 21221 | Z29: =COUNTIF(L9:L10,Y29) -> 0 | AA29: =Z29/(AB4-Z25) -> 0 | AB29: =IF(AA29=0,0,(AA29*((LOG(AA29))/LOG(2)))) -> 0 | AD29: =N29 -> 21221 | AE29: =COUNTIF(L11:L11,AD29) -> 0 | AF29: =AE29/(AG4-AE25) -> 0 | AG29: =IF(AF29=0,0,(AF29*((LOG(AF29))/LOG(2)))) -> 0 | AI29: =N29 -> 21221 | AJ29: =COUNTIF(L12:L13,AI29) -> 0 | AK29: =AJ29/(AL4-AJ25) -> 0 | AL29: =IF(AK29=0,0,(AK29*((LOG(AK29))/LOG(2)))) -> 0 | AN29: =N29 -> 21221 | AO29: =COUNTIF(L14:L15,AN29) -> 0 | AP29: =AO29/(AQ4-AO25) -> 0 | AQ29: =IF(AP29=0,0,(AP29*((LOG(AP29))/LOG(2)))) -> 0 | AS29: =N29 -> 21221 | AT29: =COUNTIF(L16:L17,AS29) -> 0 | AU29: =AT29/(AV4-AT25) -> 0 | AV29: =IF(AU29=0,0,(AU29*((LOG(AU29))/LOG(2)))) -> 0
N30: 21222 | O30: =COUNTIF($L$7:$L$500,N30) -> 0 | P30: =O30/$Q$4 -> 0 | Q30: =IF(P30=0,0,(P30*((LOG(P30))/LOG(2)))) -> 0 | T30: =N30 -> 21222 | U30: =COUNTIF(L7:L8,T30) -> 0 | V30: =U30/(W4-U25) -> 0 | W30: =IF(V30=0,0,(V30*((LOG(V30))/LOG(2)))) -> 0 | Y30: =N30 -> 21222 | Z30: =COUNTIF(L9:L10,Y30) -> 0 | AA30: =Z30/(AB4-Z25) -> 0 | AB30: =IF(AA30=0,0,(AA30*((LOG(AA30))/LOG(2)))) -> 0 | AD30: =N30 -> 21222 | AE30: =COUNTIF(L11:L11,AD30) -> 0 | AF30: =AE30/(AG4-AE25) -> 0 | AG30: =IF(AF30=0,0,(AF30*((LOG(AF30))/LOG(2)))) -> 0 | AI30: =N30 -> 21222 | AJ30: =COUNTIF(L12:L13,AI30) -> 0 | AK30: =AJ30/(AL4-AJ25) -> 0 | AL30: =IF(AK30=0,0,(AK30*((LOG(AK30))/LOG(2)))) -> 0 | AN30: =N30 -> 21222 | AO30: =COUNTIF(L14:L15,AN30) -> 0 | AP30: =AO30/(AQ4-AO25) -> 0 | AQ30: =IF(AP30=0,0,(AP30*((LOG(AP30))/LOG(2)))) -> 0 | AS30: =N30 -> 21222 | AT30: =COUNTIF(L16:L17,AS30) -> 0 | AU30: =AT30/(AV4-AT25) -> 0 | AV30: =IF(AU30=0,0,(AU30*((LOG(AU30))/LOG(2)))) -> 0
N31: 22111 | O31: =COUNTIF($L$7:$L$500,N31) -> 0 | P31: =O31/$Q$4 -> 0 | Q31: =IF(P31=0,0,(P31*((LOG(P31))/LOG(2)))) -> 0 | T31: =N31 -> 22111 | U31: =COUNTIF(L7:L8,T31) -> 0 | V31: =U31/(W4-U25) -> 0 | W31: =IF(V31=0,0,(V31*((LOG(V31))/LOG(2)))) -> 0 | Y31: =N31 -> 22111 | Z31: =COUNTIF(L9:L10,Y31) -> 0 | AA31: =Z31/(AB4-Z25) -> 0 | AB31: =IF(AA31=0,0,(AA31*((LOG(AA31))/LOG(2)))) -> 0 | AD31: =N31 -> 22111 | AE31: =COUNTIF(L11:L11,AD31) -> 0 | AF31: =AE31/(AG4-AE25) -> 0 | AG31: =IF(AF31=0,0,(AF31*((LOG(AF31))/LOG(2)))) -> 0 | AI31: =N31 -> 22111 | AJ31: =COUNTIF(L12:L13,AI31) -> 0 | AK31: =AJ31/(AL4-AJ25) -> 0 | AL31: =IF(AK31=0,0,(AK31*((LOG(AK31))/LOG(2)))) -> 0 | AN31: =N31 -> 22111 | AO31: =COUNTIF(L14:L15,AN31) -> 0 | AP31: =AO31/(AQ4-AO25) -> 0 | AQ31: =IF(AP31=0,0,(AP31*((LOG(AP31))/LOG(2)))) -> 0 | AS31: =N31 -> 22111 | AT31: =COUNTIF(L16:L17,AS31) -> 0 | AU31: =AT31/(AV4-AT25) -> 0 | AV31: =IF(AU31=0,0,(AU31*((LOG(AU31))/LOG(2)))) -> 0
N32: 22112 | O32: =COUNTIF($L$7:$L$500,N32) -> 0 | P32: =O32/$Q$4 -> 0 | Q32: =IF(P32=0,0,(P32*((LOG(P32))/LOG(2)))) -> 0 | T32: =N32 -> 22112 | U32: =COUNTIF(L7:L8,T32) -> 0 | V32: =U32/(W4-U25) -> 0 | W32: =IF(V32=0,0,(V32*((LOG(V32))/LOG(2)))) -> 0 | Y32: =N32 -> 22112 | Z32: =COUNTIF(L9:L10,Y32) -> 0 | AA32: =Z32/(AB4-Z25) -> 0 | AB32: =IF(AA32=0,0,(AA32*((LOG(AA32))/LOG(2)))) -> 0 | AD32: =N32 -> 22112 | AE32: =COUNTIF(L11:L11,AD32) -> 0 | AF32: =AE32/(AG4-AE25) -> 0 | AG32: =IF(AF32=0,0,(AF32*((LOG(AF32))/LOG(2)))) -> 0 | AI32: =N32 -> 22112 | AJ32: =COUNTIF(L12:L13,AI32) -> 0 | AK32: =AJ32/(AL4-AJ25) -> 0 | AL32: =IF(AK32=0,0,(AK32*((LOG(AK32))/LOG(2)))) -> 0 | AN32: =N32 -> 22112 | AO32: =COUNTIF(L14:L15,AN32) -> 0 | AP32: =AO32/(AQ4-AO25) -> 0 | AQ32: =IF(AP32=0,0,(AP32*((LOG(AP32))/LOG(2)))) -> 0 | AS32: =N32 -> 22112 | AT32: =COUNTIF(L16:L17,AS32) -> 0 | AU32: =AT32/(AV4-AT25) -> 0 | AV32: =IF(AU32=0,0,(AU32*((LOG(AU32))/LOG(2)))) -> 0
N33: 22121 | O33: =COUNTIF($L$7:$L$500,N33) -> 2 | P33: =O33/$Q$4 -> 0.1818181818 | Q33: =IF(P33=0,0,(P33*((LOG(P33))/LOG(2)))) -> -0.4471693852 | T33: =N33 -> 22121 | U33: =COUNTIF(L7:L8,T33) -> 0 | V33: =U33/(W4-U25) -> 0 | W33: =IF(V33=0,0,(V33*((LOG(V33))/LOG(2)))) -> 0 | Y33: =N33 -> 22121 | Z33: =COUNTIF(L9:L10,Y33) -> 0 | AA33: =Z33/(AB4-Z25) -> 0 | AB33: =IF(AA33=0,0,(AA33*((LOG(AA33))/LOG(2)))) -> 0 | AD33: =N33 -> 22121 | AE33: =COUNTIF(L11:L11,AD33) -> 0 | AF33: =AE33/(AG4-AE25) -> 0 | AG33: =IF(AF33=0,0,(AF33*((LOG(AF33))/LOG(2)))) -> 0 | AI33: =N33 -> 22121 | AJ33: =COUNTIF(L12:L13,AI33) -> 1 | AK33: =AJ33/(AL4-AJ25) -> 0.5 | AL33: =IF(AK33=0,0,(AK33*((LOG(AK33))/LOG(2)))) -> -0.5 | AN33: =N33 -> 22121 | AO33: =COUNTIF(L14:L15,AN33) -> 1 | AP33: =AO33/(AQ4-AO25) -> 0.5 | AQ33: =IF(AP33=0,0,(AP33*((LOG(AP33))/LOG(2)))) -> -0.5 | AS33: =N33 -> 22121 | AT33: =COUNTIF(L16:L17,AS33) -> 0 | AU33: =AT33/(AV4-AT25) -> 0 | AV33: =IF(AU33=0,0,(AU33*((LOG(AU33))/LOG(2)))) -> 0
N34: 22122 | O34: =COUNTIF($L$7:$L$500,N34) -> 0 | P34: =O34/$Q$4 -> 0 | Q34: =IF(P34=0,0,(P34*((LOG(P34))/LOG(2)))) -> 0 | T34: =N34 -> 22122 | U34: =COUNTIF(L7:L8,T34) -> 0 | V34: =U34/(W4-U25) -> 0 | W34: =IF(V34=0,0,(V34*((LOG(V34))/LOG(2)))) -> 0 | Y34: =N34 -> 22122 | Z34: =COUNTIF(L9:L10,Y34) -> 0 | AA34: =Z34/(AB4-Z25) -> 0 | AB34: =IF(AA34=0,0,(AA34*((LOG(AA34))/LOG(2)))) -> 0 | AD34: =N34 -> 22122 | AE34: =COUNTIF(L11:L11,AD34) -> 0 | AF34: =AE34/(AG4-AE25) -> 0 | AG34: =IF(AF34=0,0,(AF34*((LOG(AF34))/LOG(2)))) -> 0 | AI34: =N34 -> 22122 | AJ34: =COUNTIF(L12:L13,AI34) -> 0 | AK34: =AJ34/(AL4-AJ25) -> 0 | AL34: =IF(AK34=0,0,(AK34*((LOG(AK34))/LOG(2)))) -> 0 | AN34: =N34 -> 22122 | AO34: =COUNTIF(L14:L15,AN34) -> 0 | AP34: =AO34/(AQ4-AO25) -> 0 | AQ34: =IF(AP34=0,0,(AP34*((LOG(AP34))/LOG(2)))) -> 0 | AS34: =N34 -> 22122 | AT34: =COUNTIF(L16:L17,AS34) -> 0 | AU34: =AT34/(AV4-AT25) -> 0 | AV34: =IF(AU34=0,0,(AU34*((LOG(AU34))/LOG(2)))) -> 0
N35: 22211 | O35: =COUNTIF($L$7:$L$500,N35) -> 0 | P35: =O35/$Q$4 -> 0 | Q35: =IF(P35=0,0,(P35*((LOG(P35))/LOG(2)))) -> 0 | T35: =N35 -> 22211 | U35: =COUNTIF(L7:L8,T35) -> 0 | V35: =U35/(W4-U25) -> 0 | W35: =IF(V35=0,0,(V35*((LOG(V35))/LOG(2)))) -> 0 | Y35: =N35 -> 22211 | Z35: =COUNTIF(L9:L10,Y35) -> 0 | AA35: =Z35/(AB4-Z25) -> 0 | AB35: =IF(AA35=0,0,(AA35*((LOG(AA35))/LOG(2)))) -> 0 | AD35: =N35 -> 22211 | AE35: =COUNTIF(L11:L11,AD35) -> 0 | AF35: =AE35/(AG4-AE25) -> 0 | AG35: =IF(AF35=0,0,(AF35*((LOG(AF35))/LOG(2)))) -> 0 | AI35: =N35 -> 22211 | AJ35: =COUNTIF(L12:L13,AI35) -> 0 | AK35: =AJ35/(AL4-AJ25) -> 0 | AL35: =IF(AK35=0,0,(AK35*((LOG(AK35))/LOG(2)))) -> 0 | AN35: =N35 -> 22211 | AO35: =COUNTIF(L14:L15,AN35) -> 0 | AP35: =AO35/(AQ4-AO25) -> 0 | AQ35: =IF(AP35=0,0,(AP35*((LOG(AP35))/LOG(2)))) -> 0 | AS35: =N35 -> 22211 | AT35: =COUNTIF(L16:L17,AS35) -> 0 | AU35: =AT35/(AV4-AT25) -> 0 | AV35: =IF(AU35=0,0,(AU35*((LOG(AU35))/LOG(2)))) -> 0
N36: 22212 | O36: =COUNTIF($L$7:$L$500,N36) -> 1 | P36: =O36/$Q$4 -> 0.09090909091 | Q36: =IF(P36=0,0,(P36*((LOG(P36))/LOG(2)))) -> -0.3144937835 | T36: =N36 -> 22212 | U36: =COUNTIF(L7:L8,T36) -> 1 | V36: =U36/(W4-U25) -> 0.5 | W36: =IF(V36=0,0,(V36*((LOG(V36))/LOG(2)))) -> -0.5 | Y36: =N36 -> 22212 | Z36: =COUNTIF(L9:L10,Y36) -> 0 | AA36: =Z36/(AB4-Z25) -> 0 | AB36: =IF(AA36=0,0,(AA36*((LOG(AA36))/LOG(2)))) -> 0 | AD36: =N36 -> 22212 | AE36: =COUNTIF(L11:L11,AD36) -> 0 | AF36: =AE36/(AG4-AE25) -> 0 | AG36: =IF(AF36=0,0,(AF36*((LOG(AF36))/LOG(2)))) -> 0 | AI36: =N36 -> 22212 | AJ36: =COUNTIF(L12:L13,AI36) -> 0 | AK36: =AJ36/(AL4-AJ25) -> 0 | AL36: =IF(AK36=0,0,(AK36*((LOG(AK36))/LOG(2)))) -> 0 | AN36: =N36 -> 22212 | AO36: =COUNTIF(L14:L15,AN36) -> 0 | AP36: =AO36/(AQ4-AO25) -> 0 | AQ36: =IF(AP36=0,0,(AP36*((LOG(AP36))/LOG(2)))) -> 0 | AS36: =N36 -> 22212 | AT36: =COUNTIF(L16:L17,AS36) -> 0 | AU36: =AT36/(AV4-AT25) -> 0 | AV36: =IF(AU36=0,0,(AU36*((LOG(AU36))/LOG(2)))) -> 0
N37: 22221 | O37: =COUNTIF($L$7:$L$500,N37) -> 0 | P37: =O37/$Q$4 -> 0 | Q37: =IF(P37=0,0,(P37*((LOG(P37))/LOG(2)))) -> 0 | T37: =N37 -> 22221 | U37: =COUNTIF(L7:L8,T37) -> 0 | V37: =U37/(W4-U25) -> 0 | W37: =IF(V37=0,0,(V37*((LOG(V37))/LOG(2)))) -> 0 | Y37: =N37 -> 22221 | Z37: =COUNTIF(L9:L10,Y37) -> 0 | AA37: =Z37/(AB4-Z25) -> 0 | AB37: =IF(AA37=0,0,(AA37*((LOG(AA37))/LOG(2)))) -> 0 | AD37: =N37 -> 22221 | AE37: =COUNTIF(L11:L11,AD37) -> 0 | AF37: =AE37/(AG4-AE25) -> 0 | AG37: =IF(AF37=0,0,(AF37*((LOG(AF37))/LOG(2)))) -> 0 | AI37: =N37 -> 22221 | AJ37: =COUNTIF(L12:L13,AI37) -> 0 | AK37: =AJ37/(AL4-AJ25) -> 0 | AL37: =IF(AK37=0,0,(AK37*((LOG(AK37))/LOG(2)))) -> 0 | AN37: =N37 -> 22221 | AO37: =COUNTIF(L14:L15,AN37) -> 0 | AP37: =AO37/(AQ4-AO25) -> 0 | AQ37: =IF(AP37=0,0,(AP37*((LOG(AP37))/LOG(2)))) -> 0 | AS37: =N37 -> 22221 | AT37: =COUNTIF(L16:L17,AS37) -> 0 | AU37: =AT37/(AV4-AT25) -> 0 | AV37: =IF(AU37=0,0,(AU37*((LOG(AU37))/LOG(2)))) -> 0
N38: 22222 | O38: =COUNTIF($L$7:$L$500,N38) -> 0 | P38: =O38/$Q$4 -> 0 | Q38: =IF(P38=0,0,(P38*((LOG(P38))/LOG(2)))) -> 0 | T38: =N38 -> 22222 | U38: =COUNTIF(L7:L8,T38) -> 0 | V38: =U38/(W4-U25) -> 0 | W38: =IF(V38=0,0,(V38*((LOG(V38))/LOG(2)))) -> 0 | Y38: =N38 -> 22222 | Z38: =COUNTIF(L9:L10,Y38) -> 0 | AA38: =Z38/(AB4-Z25) -> 0 | AB38: =IF(AA38=0,0,(AA38*((LOG(AA38))/LOG(2)))) -> 0 | AD38: =N38 -> 22222 | AE38: =COUNTIF(L11:L11,AD38) -> 0 | AF38: =AE38/(AG4-AE25) -> 0 | AG38: =IF(AF38=0,0,(AF38*((LOG(AF38))/LOG(2)))) -> 0 | AI38: =N38 -> 22222 | AJ38: =COUNTIF(L12:L13,AI38) -> 0 | AK38: =AJ38/(AL4-AJ25) -> 0 | AL38: =IF(AK38=0,0,(AK38*((LOG(AK38))/LOG(2)))) -> 0 | AN38: =N38 -> 22222 | AO38: =COUNTIF(L14:L15,AN38) -> 0 | AP38: =AO38/(AQ4-AO25) -> 0 | AQ38: =IF(AP38=0,0,(AP38*((LOG(AP38))/LOG(2)))) -> 0 | AS38: =N38 -> 22222 | AT38: =COUNTIF(L16:L17,AS38) -> 0 | AU38: =AT38/(AV4-AT25) -> 0 | AV38: =IF(AU38=0,0,(AU38*((LOG(AU38))/LOG(2)))) -> 0
P39: =SUM(P7:P38) -> 1 | Q39: =-SUM(Q7:Q38) -> 3.095795255 | V39: =SUM(V7:V38) -> 1 | W39: =-SUM(W7:W38) -> 1 | AA39: =SUM(AA7:AA38) -> 1 | AB39: =-SUM(AB7:AB38) -> 1 | AF39: =SUM(AF7:AF38) -> 1 | AG39: =-SUM(AG7:AG38) -> 0 | AK39: =SUM(AK7:AK38) -> 1 | AL39: =-SUM(AL7:AL38) -> 1 | AP39: =SUM(AP7:AP38) -> 1 | AQ39: =-SUM(AQ7:AQ38) -> 1 | AU39: =SUM(AU7:AU38) -> 1 | AV39: =-SUM(AV7:AV38) -> 1
P40: U= | Q40: =Q39/(LOG(Q4)/LOG(2)) -> 0.8948855177 | V40: U1= | W40: =W39/(LOG(W4)/LOG(2)) -> 1 | AA40: U2= | AB40: =AB39/(LOG(AB4)/LOG(2)) -> 1 | AF40: U3= | AG40: =AG39/(LOG(AG4)/LOG(2)) ->  | AK40: U4= | AL40: =AL39/(LOG(AL4)/LOG(2)) -> 1 | AP40: U5= | AQ40: =AQ39/(LOG(AQ4)/LOG(2)) -> 1 | AU40: U6= | AV40: =AV39/(LOG(AV4)/LOG(2)) -> 1
N43: Total Target Seq
N44: =COUNTIF(L7:L17,G3) -> 0 | P44: 2 | Q44: 2 | R44: 1 | S44: 2 | T44: 2 | U44: 2
P45: % of reinforcement given in 6 equal intervals based on number of trials
P46: %_1 | Q46: %_2 | R46: %_3 | S46: %_4 | T46: %_5 | U46: %_6
O47: target sequence | P47: =$G$3 -> 21121 | Q47: =$G$3 -> 21121 | R47: =$G$3 -> 21121 | S47: =$G$3 -> 21121 | T47: =$G$3 -> 21121 | U47: =$G$3 -> 21121
O48: total reinforcement | P48: =U25 -> 0 | Q48: =Z25 -> 0 | R48: =AE25 -> 0 | S48: =AJ25 -> 0 | T48: =AO25 -> 0 | U48: =AT25 -> 0
O49: % target
O50: CCRF
O51: % CCRf
O52: average response rate | P52: =J8/P44 -> 252.5 | Q52: =(J10-J8)/Q44 -> 583.5 | R52: =(J11-J10)/R44 -> 195 | S52: =(J13-J11)/S44 -> 874 | T52: =(J15-J13)/T44 -> 517 | U52: =(J17-J15)/U44 -> 9653

Sheet !N107910.105
A1: Report for:!N107910.105
A2: Date: | B2: <date>
A3: Hen: | B3: <hen> | F3: Correct Sequence | G3: =Start!J2 -> 21121 | P3: Total Sequences in Data | Q3: =4994-COUNTBLANK(L7:L5000) -> 32 | V3: Total Sequences in Block Data | W3: =COUNTA(L7:L11) -> 5 | AA3: Total Sequences in Block Data | AB3: =COUNTA(L12:L17) -> 6 | AF3: Total Sequences in Block Data | AG3: =COUNTA(L18:L22) -> 5 | AK3: Total Sequences in Block Data | AL3: =COUNTA(L23:L27) -> 5 | AP3: Total Sequences in Block Data | AQ3: =COUNTA(L28:L33) -> 6 | AU3: Total Sequences in Block Data | AV3: =COUNTA(L34:L38) -> 5
P4: Total Sequences in Summary | Q4: =SUM(O7:O38) -> 32 | V4: Total Sequences in Block Summary | W4: =SUM(U7:U38) -> 5 | AA4: Total Sequences in Block Summary | AB4: =SUM(Z7:Z38) -> 6 | AF4: Total Sequences in Block Summary | AG4: =SUM(AE7:AE38) -> 5 | AK4: Total Sequences in Block Summary | AL4: =SUM(AJ7:AJ38) -> 5 | AP4: Total Sequences in Block Summary | AQ4: =SUM(AO7:AO38) -> 6 | AU4: Total Sequences in Block Summary | AV4: =SUM(AT7:AT38) -> 5
T5: Block 1 | Y5: Block 2 | AD5: Block 3 | AI5: Block 4 | AN5: Block 5 | AS5: Block 6
A6: Sequence Component 1 | B6: Time 1 | C6: Sequence Component 2 | D6: Time 2 | E6: Sequence Component 3 | F6: Time 3 | G6: Sequence Component 4 | H6: Time 4 | I6: Sequence Component 5 | J6: Time 5 | K6: Correct? 0=No 1=Yes | L6: Sequence | N6: Frequency | P6: Relative Frequency | Q6: Variability | T6: Frequency | V6: Relative Frequency | W6: Variability | Y6: Frequency | AA6: Relative Frequency | AB6: Variability | AD6: Frequency | AF6: Relative Frequency | AG6: Variability | AI6: Frequency | AK6: Relative Frequency | AL6: Variability | AN6: Frequency | AP6: Relative Frequency | AQ6: Variability | AS6: Frequency | AU6: Relative Frequency | AV6: Variability
A7: 12 | B7: 17 | C7: 13 | D7: 38 | E7: 24 | F7: 51 | G7: 23 | H7: 62 | I7: 24 | J7: 84 | K7: 0 | L7: 11222 | N7: 11111 | O7: =COUNTIF($L$7:$L$500,N7) -> 0 | P7: =O7/$Q$4 -> 0 | Q7: =IF(P7=0,0,(P7*((LOG(P7))/LOG(2)))) -> 0 | T7: =N7 -> 11111 | U7: =COUNTIF(L7:L11,T7) -> 0 | V7: =U7/(W4-U25) -> 0 | W7: =IF(V7=0,0,(V7*((LOG(V7))/LOG(2)))) -> 0 | Y7: =N7 -> 11111 | Z7: =COUNTIF(L12:L17,Y7) -> 0 | AA7: =Z7/(AB4-Z25) -> 0 | AB7: =IF(AA7=0,0,(AA7*((LOG(AA7))/LOG(2)))) -> 0 | AD7: =N7 -> 11111 | AE7: =COUNTIF(L18:L22,AD7) -> 0 | AF7: =AE7/(AG4-AE25) -> 0 | AG7: =IF(AF7=0,0,(AF7*((LOG(AF7))/LOG(2)))) -> 0 | AI7: =N7 -> 11111 | AJ7: =COUNTIF(L23:L27,AI7) -> 0 | AK7: =AJ7/(AL4-AJ25) -> 0 | AL7: =IF(AK7=0,0,(AK7*((LOG(AK7))/LOG(2)))) -> 0 | AN7: =N7 -> 11111 | AO7: =COUNTIF(L28:L33,AN7) -> 0 | AP7: =AO7/(AQ4-AO25) -> 0 | AQ7: =IF(AP7=0,0,(AP7*((LOG(AP7))/LOG(2)))) -> 0 | AS7: =N7 -> 11111 | AT7: =COUNTIF(L34:L38,AS7) -> 0 | AU7: =AT7/(AV4-AT25) -> 0 | AV7: =IF(AU7=0,0,(AU7*((LOG(AU7))/LOG(2)))) -> 0
A8: 21 | B8: 189 | C8: 11 | D8: 199 | E8: 22 | F8: 206 | G8: 14 | H8: 220 | I8: 24 | J8: 226 | K8: 0 | L8: 21212 | N8: 11112 | O8: =COUNTIF($L$7:$L$500,N8) -> 0 | P8: =O8/$Q$4 -> 0 | Q8: =IF(P8=0,0,(P8*((LOG(P8))/LOG(2)))) -> 0 | T8: =N8 -> 11112 | U8: =COUNTIF(L7:L11,T8) -> 0 | V8: =U8/(W4-U25) -> 0 | W8: =IF(V8=0,0,(V8*((LOG(V8))/LOG(2)))) -> 0 | Y8: =N8 -> 11112 | Z8: =COUNTIF(L12:L17,Y8) -> 0 | AA8: =Z8/(AB4-Z25) -> 0 | AB8: =IF(AA8=0,0,(AA8*((LOG(AA8))/LOG(2)))) -> 0 | AD8: =N8 -> 11112 | AE8: =COUNTIF(L18:L22,AD8) -> 0 | AF8: =AE8/(AG4-AE25) -> 0 | AG8: =IF(AF8=0,0,(AF8*((LOG(AF8))/LOG(2)))) -> 0 | AI8: =N8 -> 11112 | AJ8: =COUNTIF(L23:L27,AI8) -> 0 | AK8: =AJ8/(AL4-AJ25) -> 0 | AL8: =IF(AK8=0,0,(AK8*((LOG(AK8))/LOG(2)))) -> 0 | AN8: =N8 -> 11112 | AO8: =COUNTIF(L28:L33,AN8) -> 0 | AP8: =AO8/(AQ4-AO25) -> 0 | AQ8: =IF(AP8=0,0,(AP8*((LOG(AP8))/LOG(2)))) -> 0 | AS8: =N8 -> 11112 | AT8: =COUNTIF(L34:L38,AS8) -> 0 | AU8: =AT8/(AV4-AT25) -> 0 | AV8: =IF(AU8=0,0,(AU8*((LOG(AU8))/LOG(2)))) -> 0
A9: 12 | B9: 326 | C9: 24 | D9: 334 | E9: 13 | F9: 344 | G9: 23 | H9: 351 | I9: 13 | J9: 364 | K9: 0 | L9: 12121 | N9: 11121 | O9: =COUNTIF($L$7:$L$500,N9) -> 0 | P9: =O9/$Q$4 -> 0 | Q9: =IF(P9=0,0,(P9*((LOG(P9))/LOG(2)))) -> 0 | T9: =N9 -> 11121 | U9: =COUNTIF(L7:L11,T9) -> 0 | V9: =U9/(W4-U25) -> 0 | W9: =IF(V9=0,0,(V9*((LOG(V9))/LOG(2)))) -> 0 | Y9: =N9 -> 11121 | Z9: =COUNTIF(L12:L17,Y9) -> 0 | AA9: =Z9/(AB4-Z25) -> 0 | AB9: =IF(AA9=0,0,(AA9*((LOG(AA9))/LOG(2)))) -> 0 | AD9: =N9 -> 11121 | AE9: =COUNTIF(L18:L22,AD9) -> 0 | AF9: =AE9/(AG4-AE25) -> 0 | AG9: =IF(AF9=0,0,(AF9*((LOG(AF9))/LOG(2)))) -> 0 | AI9: =N9 -> 11121 | AJ9: =COUNTIF(L23:L27,AI9) -> 0 | AK9: =AJ9/(AL4-AJ25) -> 0 | AL9: =IF(AK9=0,0,(AK9*((LOG(AK9))/LOG(2)))) -> 0 | AN9: =N9 -> 11121 | AO9: =COUNTIF(L28:L33,AN9) -> 0 | AP9: =AO9/(AQ4-AO25) -> 0 | AQ9: =IF(AP9=0,0,(AP9*((LOG(AP9))/LOG(2)))) -> 0 | AS9: =N9 -> 11121 | AT9: =COUNTIF(L34:L38,AS9) -> 0 | AU9: =AT9/(AV4-AT25) -> 0 | AV9: =IF(AU9=0,0,(AU9*((LOG(AU9))/LOG(2)))) -> 0
A10: 12 | B10: 501 | C10: 24 | D10: 537 | E10: 13 | F10: 634 | G10: 23 | H10: 644 | I10: 13 | J10: 659 | K10: 0 | L10: 12121 | N10: 11122 | O10: =COUNTIF($L$7:$L$500,N10) -> 2 | P10: =O10/$Q$4 -> 0.0625 | Q10: =IF(P10=0,0,(P10*((LOG(P10))/LOG(2)))) -> -0.25 | T10: =N10 -> 11122 | U10: =COUNTIF(L7:L11,T10) -> 0 | V10: =U10/(W4-U25) -> 0 | W10: =IF(V10=0,0,(V10*((LOG(V10))/LOG(2)))) -> 0 | Y10: =N10 -> 11122 | Z10: =COUNTIF(L12:L17,Y10) -> 0 | AA10: =Z10/(AB4-Z25) -> 0 | AB10: =IF(AA10=0,0,(AA10*((LOG(AA10))/LOG(2)))) -> 0 | AD10: =N10 -> 11122 | AE10: =COUNTIF(L18:L22,AD10) -> 1 | AF10: =AE10/(AG4-AE25) -> 0.2 | AG10: =IF(AF10=0,0,(AF10*((LOG(AF10))/LOG(2)))) -> -0.464385619 | AI10: =N10 -> 11122 | AJ10: =COUNTIF(L23:L27,AI10) -> 0 | AK10: =AJ10/(AL4-AJ25) -> 0 | AL10: =IF(AK10=0,0,(AK10*((LOG(AK10))/LOG(2)))) -> 0 | AN10: =N10 -> 11122 | AO10: =COUNTIF(L28:L33,AN10) -> 1 | AP10: =AO10/(AQ4-AO25) -> 0.2 | AQ10: =IF(AP10=0,0,(AP10*((LOG(AP10))/LOG(2)))) -> -0.464385619 | AS10: =N10 -> 11122 | AT10: =COUNTIF(L34:L38,AS10) -> 0 | AU10: =AT10/(AV4-AT25) -> 0 | AV10: =IF(AU10=0,0,(AU10*((LOG(AU10))/LOG(2)))) -> 0
A11: 21 | B11: 769 | C11: 11 | D11: 779 | E11: 22 | F11: 788 | G11: 14 | H11: 803 | I11: 24 | J11: 813 | K11: 0 | L11: 21212 | N11: 11211 | O11: =COUNTIF($L$7:$L$500,N11) -> 2 | P11: =O11/$Q$4 -> 0.0625 | Q11: =IF(P11=0,0,(P11*((LOG(P11))/LOG(2)))) -> -0.25 | T11: =N11 -> 11211 | U11: =COUNTIF(L7:L11,T11) -> 0 | V11: =U11/(W4-U25) -> 0 | W11: =IF(V11=0,0,(V11*((LOG(V11))/LOG(2)))) -> 0 | Y11: =N11 -> 11211 | Z11: =COUNTIF(L12:L17,Y11) -> 0 | AA11: =Z11/(AB4-Z25) -> 0 | AB11: =IF(AA11=0,0,(AA11*((LOG(AA11))/LOG(2)))) -> 0 | AD11: =N11 -> 11211 | AE11: =COUNTIF(L18:L22,AD11) -> 0 | AF11: =AE11/(AG4-AE25) -> 0 | AG11: =IF(AF11=0,0,(AF11*((LOG(AF11))/LOG(2)))) -> 0 | AI11: =N11 -> 11211 | AJ11: =COUNTIF(L23:L27,AI11) -> 0 | AK11: =AJ11/(AL4-AJ25) -> 0 | AL11: =IF(AK11=0,0,(AK11*((LOG(AK11))/LOG(2)))) -> 0 | AN11: =N11 -> 11211 | AO11: =COUNTIF(L28:L33,AN11) -> 1 | AP11: =AO11/(AQ4-AO25) -> 0.2 | AQ11: =IF(AP11=0,0,(AP11*((LOG(AP11))/LOG(2)))) -> -0.464385619 | AS11: =N11 -> 11211 | AT11: =COUNTIF(L34:L38,AS11) -> 1 | AU11: =AT11/(AV4-AT25) -> 0.2 | AV11: =IF(AU11=0,0,(AU11*((LOG(AU11))/LOG(2)))) -> -0.464385619
A12: 21 | B12: 965 | C12: 11 | D12: 977 | E12: 11 | F12: 1006 | G12: 21 | H12: 1016 | I12: 11 | J12: 1031 | K12: 1 | L12: 21121 | N12: 11212 | O12: =COUNTIF($L$7:$L$500,N12) -> 2 | P12: =O12/$Q$4 -> 0.0625 | Q12: =IF(P12=0,0,(P12*((LOG(P12))/LOG(2)))) -> -0.25 | T12: =N12 -> 11212 | U12: =COUNTIF(L7:L11,T12) -> 0 | V12: =U12/(W4-U25) -> 0 | W12: =IF(V12=0,0,(V12*((LOG(V12))/LOG(2)))) -> 0 | Y12: =N12 -> 11212 | Z12: =COUNTIF(L12:L17,Y12) -> 0 | AA12: =Z12/(AB4-Z25) -> 0 | AB12: =IF(AA12=0,0,(AA12*((LOG(AA12))/LOG(2)))) -> 0 | AD12: =N12 -> 11212 | AE12: =COUNTIF(L18:L22,AD12) -> 0 | AF12: =AE12/(AG4-AE25) -> 0 | AG12: =IF(AF12=0,0,(AF12*((LOG(AF12))/LOG(2)))) -> 0 | AI12: =N12 -> 11212 | AJ12: =COUNTIF(L23:L27,AI12) -> 0 | AK12: =AJ12/(AL4-AJ25) -> 0 | AL12: =IF(AK12=0,0,(AK12*((LOG(AK12))/LOG(2)))) -> 0 | AN12: =N12 -> 11212 | AO12: =COUNTIF(L28:L33,AN12) -> 1 | AP12: =AO12/(AQ4-AO25) -> 0.2 | AQ12: =IF(AP12=0,0,(AP12*((LOG(AP12))/LOG(2)))) -> -0.464385619 | AS12: =N12 -> 11212 | AT12: =COUNTIF(L34:L38,AS12) -> 1 | AU12: =AT12/(AV4-AT25) -> 0.2 | AV12: =IF(AU12=0,0,(AU12*((LOG(AU12))/LOG(2)))) -> -0.464385619
A13: 12 | B13: 1139 | C13: 24 | D13: 1147 | E13: 13 | F13: 1162 | G13: 23 | H13: 1171 | I13: 13 | J13: 1185 | K13: 0 | L13: 12121 | N13: 11221 | O13: =COUNTIF($L$7:$L$500,N13) -> 0 | P13: =O13/$Q$4 -> 0 | Q13: =IF(P13=0,0,(P13*((LOG(P13))/LOG(2)))) -> 0 | T13: =N13 -> 11221 | U13: =COUNTIF(L7:L11,T13) -> 0 | V13: =U13/(W4-U25) -> 0 | W13: =IF(V13=0,0,(V13*((LOG(V13))/LOG(2)))) -> 0 | Y13: =N13 -> 11221 | Z13: =COUNTIF(L12:L17,Y13) -> 0 | AA13: =Z13/(AB4-Z25) -> 0 | AB13: =IF(AA13=0,0,(AA13*((LOG(AA13))/LOG(2)))) -> 0 | AD13: =N13 -> 11221 | AE13: =COUNTIF(L18:L22,AD13) -> 0 | AF13: =AE13/(AG4-AE25) -> 0 | AG13: =IF(AF13=0,0,(AF13*((LOG(AF13))/LOG(2)))) -> 0 | AI13: =N13 -> 11221 | AJ13: =COUNTIF(L23:L27,AI13) -> 0 | AK13: =AJ13/(AL4-AJ25) -> 0 | AL13: =IF(AK13=0,0,(AK13*((LOG(AK13))/LOG(2)))) -> 0 | AN13: =N13 -> 11221 | AO13: =COUNTIF(L28:L33,AN13) -> 0 | AP13: =AO13/(AQ4-AO25) -> 0 | AQ13: =IF(AP13=0,0,(AP13*((LOG(AP13))/LOG(2)))) -> 0 | AS13: =N13 -> 11221 | AT13: =COUNTIF(L34:L38,AS13) -> 0 | AU13: =AT13/(AV4-AT25) -> 0 | AV13: =IF(AU13=0,0,(AU13*((LOG(AU13))/LOG(2)))) -> 0
A14: 12 | B14: 1296 | C14: 24 | D14: 1307 | E14: 13 | F14: 1316 | G14: 23 | H14: 1324 | I14: 13 | J14: 1339 | K14: 0 | L14: 12121 | N14: 11222 | O14: =COUNTIF($L$7:$L$500,N14) -> 4 | P14: =O14/$Q$4 -> 0.125 | Q14: =IF(P14=0,0,(P14*((LOG(P14))/LOG(2)))) -> -0.375 | T14: =N14 -> 11222 | U14: =COUNTIF(L7:L11,T14) -> 1 | V14: =U14/(W4-U25) -> 0.2 | W14: =IF(V14=0,0,(V14*((LOG(V14))/LOG(2)))) -> -0.464385619 | Y14: =N14 -> 11222 | Z14: =COUNTIF(L12:L17,Y14) -> 0 | AA14: =Z14/(AB4-Z25) -> 0 | AB14: =IF(AA14=0,0,(AA14*((LOG(AA14))/LOG(2)))) -> 0 | AD14: =N14 -> 11222 | AE14: =COUNTIF(L18:L22,AD14) -> 1 | AF14: =AE14/(AG4-AE25) -> 0.2 | AG14: =IF(AF14=0,0,(AF14*((LOG(AF14))/LOG(2)))) -> -0.464385619 | AI14: =N14 -> 11222 | AJ14: =COUNTIF(L23:L27,AI14) -> 1 | AK14: =AJ14/(AL4-AJ25) -> 0.2 | AL14: =IF(AK14=0,0,(AK14*((LOG(AK14))/LOG(2)))) -> -0.464385619 | AN14: =N14 -> 11222 | AO14: =COUNTIF(L28:L33,AN14) -> 0 | AP14: =AO14/(AQ4-AO25) -> 0 | AQ14: =IF(AP14=0,0,(AP14*((LOG(AP14))/LOG(2)))) -> 0 | AS14: =N14 -> 11222 | AT14: =COUNTIF(L34:L38,AS14) -> 1 | AU14: =AT14/(AV4-AT25) -> 0.2 | AV14: =IF(AU14=0,0,(AU14*((LOG(AU14))/LOG(2)))) -> -0.464385619
A15: 12 | B15: 1454 | C15: 24 | D15: 1464 | E15: 13 | F15: 1478 | G15: 23 | H15: 1487 | I15: 13 | J15: 1502 | K15: 0 | L15: 12121 | N15: 12111 | O15: =COUNTIF($L$7:$L$500,N15) -> 1 | P15: =O15/$Q$4 -> 0.03125 | Q15: =IF(P15=0,0,(P15*((LOG(P15))/LOG(2)))) -> -0.15625 | T15: =N15 -> 12111 | U15: =COUNTIF(L7:L11,T15) -> 0 | V15: =U15/(W4-U25) -> 0 | W15: =IF(V15=0,0,(V15*((LOG(V15))/LOG(2)))) -> 0 | Y15: =N15 -> 12111 | Z15: =COUNTIF(L12:L17,Y15) -> 0 | AA15: =Z15/(AB4-Z25) -> 0 | AB15: =IF(AA15=0,0,(AA15*((LOG(AA15))/LOG(2)))) -> 0 | AD15: =N15 -> 12111 | AE15: =COUNTIF(L18:L22,AD15) -> 0 | AF15: =AE15/(AG4-AE25) -> 0 | AG15: =IF(AF15=0,0,(AF15*((LOG(AF15))/LOG(2)))) -> 0 | AI15: =N15 -> 12111 | AJ15: =COUNTIF(L23:L27,AI15) -> 0 | AK15: =AJ15/(AL4-AJ25) -> 0 | AL15: =IF(AK15=0,0,(AK15*((LOG(AK15))/LOG(2)))) -> 0 | AN15: =N15 -> 12111 | AO15: =COUNTIF(L28:L33,AN15) -> 1 | AP15: =AO15/(AQ4-AO25) -> 0.2 | AQ15: =IF(AP15=0,0,(AP15*((LOG(AP15))/LOG(2)))) -> -0.464385619 | AS15: =N15 -> 12111 | AT15: =COUNTIF(L34:L38,AS15) -> 0 | AU15: =AT15/(AV4-AT25) -> 0 | AV15: =IF(AU15=0,0,(AU15*((LOG(AU15))/LOG(2)))) -> 0
A16: 12 | B16: 1641 | C16: 24 | D16: 1652 | E16: 24 | F16: 1674 | G16: 14 | H16: 1684 | I16: 24 | J16: 1694 | K16: 0 | L16: 12212 | N16: 12112 | O16: =COUNTIF($L$7:$L$500,N16) -> 0 | P16: =O16/$Q$4 -> 0 | Q16: =IF(P16=0,0,(P16*((LOG(P16))/LOG(2)))) -> 0 | T16: =N16 -> 12112 | U16: =COUNTIF(L7:L11,T16) -> 0 | V16: =U16/(W4-U25) -> 0 | W16: =IF(V16=0,0,(V16*((LOG(V16))/LOG(2)))) -> 0 | Y16: =N16 -> 12112 | Z16: =COUNTIF(L12:L17,Y16) -> 0 | AA16: =Z16/(AB4-Z25) -> 0 | AB16: =IF(AA16=0,0,(AA16*((LOG(AA16))/LOG(2)))) -> 0 | AD16: =N16 -> 12112 | AE16: =COUNTIF(L18:L22,AD16) -> 0 | AF16: =AE16/(AG4-AE25) -> 0 | AG16: =IF(AF16=0,0,(AF16*((LOG(AF16))/LOG(2)))) -> 0 | AI16: =N16 -> 12112 | AJ16: =COUNTIF(L23:L27,AI16) -> 0 | AK16: =AJ16/(AL4-AJ25) -> 0 | AL16: =IF(AK16=0,0,(AK16*((LOG(AK16))/LOG(2)))) -> 0 | AN16: =N16 -> 12112 | AO16: =COUNTIF(L28:L33,AN16) -> 0 | AP16: =AO16/(AQ4-AO25) -> 0 | AQ16: =IF(AP16=0,0,(AP16*((LOG(AP16))/LOG(2)))) -> 0 | AS16: =N16 -> 12112 | AT16: =COUNTIF(L34:L38,AS16) -> 0 | AU16: =AT16/(AV4-AT25) -> 0 | AV16: =IF(AU16=0,0,(AU16*((LOG(AU16))/LOG(2)))) -> 0
A17: 21 | B17: 1810 | C17: 11 | D17: 1819 | E17: 22 | F17: 1828 | G17: 14 | H17: 1842 | I17: 24 | J17: 1853 | K17: 0 | L17: 21212 | N17: 12121 | O17: =COUNTIF($L$7:$L$500,N17) -> 6 | P17: =O17/$Q$4 -> 0.1875 | Q17: =IF(P17=0,0,(P17*((LOG(P17))/LOG(2)))) -> -0.4528195311 | T17: =N17 -> 12121 | U17: =COUNTIF(L7:L11,T17) -> 2 | V17: =U17/(W4-U25) -> 0.4 | W17: =IF(V17=0,0,(V17*((LOG(V17))/LOG(2)))) -> -0.528771238 | Y17: =N17 -> 12121 | Z17: =COUNTIF(L12:L17,Y17) -> 3 | AA17: =Z17/(AB4-Z25) -> 0.6 | AB17: =IF(AA17=0,0,(AA17*((LOG(AA17))/LOG(2)))) -> -0.4421793565 | AD17: =N17 -> 12121 | AE17: =COUNTIF(L18:L22,AD17) -> 1 | AF17: =AE17/(AG4-AE25) -> 0.2 | AG17: =IF(AF17=0,0,(AF17*((LOG(AF17))/LOG(2)))) -> -0.464385619 | AI17: =N17 -> 12121 | AJ17: =COUNTIF(L23:L27,AI17) -> 0 | AK17: =AJ17/(AL4-AJ25) -> 0 | AL17: =IF(AK17=0,0,(AK17*((LOG(AK17))/LOG(2)))) -> 0 | AN17: =N17 -> 12121 | AO17: =COUNTIF(L28:L33,AN17) -> 0 | AP17: =AO17/(AQ4-AO25) -> 0 | AQ17: =IF(AP17=0,0,(AP17*((LOG(AP17))/LOG(2)))) -> 0 | AS17: =N17 -> 12121 | AT17: =COUNTIF(L34:L38,AS17) -> 0 | AU17: =AT17/(AV4-AT25) -> 0 | AV17: =IF(AU17=0,0,(AU17*((LOG(AU17))/LOG(2)))) -> 0
A18: 21 | B18: 1993 | C18: 22 | D18: 2104 | E18: 13 | F18: 2123 | G18: 23 | H18: 2134 | I18: 13 | J18: 2144 | K18: 0 | L18: 22121 | N18: 12122 | O18: =COUNTIF($L$7:$L$500,N18) -> 1 | P18: =O18/$Q$4 -> 0.03125 | Q18: =IF(P18=0,0,(P18*((LOG(P18))/LOG(2)))) -> -0.15625 | T18: =N18 -> 12122 | U18: =COUNTIF(L7:L11,T18) -> 0 | V18: =U18/(W4-U25) -> 0 | W18: =IF(V18=0,0,(V18*((LOG(V18))/LOG(2)))) -> 0 | Y18: =N18 -> 12122 | Z18: =COUNTIF(L12:L17,Y18) -> 0 | AA18: =Z18/(AB4-Z25) -> 0 | AB18: =IF(AA18=0,0,(AA18*((LOG(AA18))/LOG(2)))) -> 0 | AD18: =N18 -> 12122 | AE18: =COUNTIF(L18:L22,AD18) -> 0 | AF18: =AE18/(AG4-AE25) -> 0 | AG18: =IF(AF18=0,0,(AF18*((LOG(AF18))/LOG(2)))) -> 0 | AI18: =N18 -> 12122 | AJ18: =COUNTIF(L23:L27,AI18) -> 1 | AK18: =AJ18/(AL4-AJ25) -> 0.2 | AL18: =IF(AK18=0,0,(AK18*((LOG(AK18))/LOG(2)))) -> -0.464385619 | AN18: =N18 -> 12122 | AO18: =COUNTIF(L28:L33,AN18) -> 0 | AP18: =AO18/(AQ4-AO25) -> 0 | AQ18: =IF(AP18=0,0,(AP18*((LOG(AP18))/LOG(2)))) -> 0 | AS18: =N18 -> 12122 | AT18: =COUNTIF(L34:L38,AS18) -> 0 | AU18: =AT18/(AV4-AT25) -> 0 | AV18: =IF(AU18=0,0,(AU18*((LOG(AU18))/LOG(2)))) -> 0
A19: 12 | B19: 2311 | C19: 24 | D19: 2318 | E19: 13 | F19: 2331 | G19: 23 | H19: 2341 | I19: 13 | J19: 2370 | K19: 0 | L19: 12121 | N19: 12211 | O19: =COUNTIF($L$7:$L$500,N19) -> 0 | P19: =O19/$Q$4 -> 0 | Q19: =IF(P19=0,0,(P19*((LOG(P19))/LOG(2)))) -> 0 | T19: =N19 -> 12211 | U19: =COUNTIF(L7:L11,T19) -> 0 | V19: =U19/(W4-U25) -> 0 | W19: =IF(V19=0,0,(V19*((LOG(V19))/LOG(2)))) -> 0 | Y19: =N19 -> 12211 | Z19: =COUNTIF(L12:L17,Y19) -> 0 | AA19: =Z19/(AB4-Z25) -> 0 | AB19: =IF(AA19=0,0,(AA19*((LOG(AA19))/LOG(2)))) -> 0 | AD19: =N19 -> 12211 | AE19: =COUNTIF(L18:L22,AD19) -> 0 | AF19: =AE19/(AG4-AE25) -> 0 | AG19: =IF(AF19=0,0,(AF19*((LOG(AF19))/LOG(2)))) -> 0 | AI19: =N19 -> 12211 | AJ19: =COUNTIF(L23:L27,AI19) -> 0 | AK19: =AJ19/(AL4-AJ25) -> 0 | AL19: =IF(AK19=0,0,(AK19*((LOG(AK19))/LOG(2)))) -> 0 | AN19: =N19 -> 12211 | AO19: =COUNTIF(L28:L33,AN19) -> 0 | AP19: =AO19/(AQ4-AO25) -> 0 | AQ19: =IF(AP19=0,0,(AP19*((LOG(AP19))/LOG(2)))) -> 0 | AS19: =N19 -> 12211 | AT19: =COUNTIF(L34:L38,AS19) -> 0 | AU19: =AT19/(AV4-AT25) -> 0 | AV19: =IF(AU19=0,0,(AU19*((LOG(AU19))/LOG(2)))) -> 0
A20: 12 | B20: 2527 | C20: 13 | D20: 2550 | E20: 24 | F20: 2560 | G20: 23 | H20: 2569 | I20: 24 | J20: 2609 | K20: 0 | L20: 11222 | N20: 12212 | O20: =COUNTIF($L$7:$L$500,N20) -> 2 | P20: =O20/$Q$4 -> 0.0625 | Q20: =IF(P20=0,0,(P20*((LOG(P20))/LOG(2)))) -> -0.25 | T20: =N20 -> 12212 | U20: =COUNTIF(L7:L11,T20) -> 0 | V20: =U20/(W4-U25) -> 0 | W20: =IF(V20=0,0,(V20*((LOG(V20))/LOG(2)))) -> 0 | Y20: =N20 -> 12212 | Z20: =COUNTIF(L12:L17,Y20) -> 1 | AA20: =Z20/(AB4-Z25) -> 0.2 | AB20: =IF(AA20=0,0,(AA20*((LOG(AA20))/LOG(2)))) -> -0.464385619 | AD20: =N20 -> 12212 | AE20: =COUNTIF(L18:L22,AD20) -> 1 | AF20: =AE20/(AG4-AE25) -> 0.2 | AG20: =IF(AF20=0,0,(AF20*((LOG(AF20))/LOG(2)))) -> -0.464385619 | AI20: =N20 -> 12212 | AJ20: =COUNTIF(L23:L27,AI20) -> 0 | AK20: =AJ20/(AL4-AJ25) -> 0 | AL20: =IF(AK20=0,0,(AK20*((LOG(AK20))/LOG(2)))) -> 0 | AN20: =N20 -> 12212 | AO20: =COUNTIF(L28:L33,AN20) -> 0 | AP20: =AO20/(AQ4-AO25) -> 0 | AQ20: =IF(AP20=0,0,(AP20*((LOG(AP20))/LOG(2)))) -> 0 | AS20: =N20 -> 12212 | AT20: =COUNTIF(L34:L38,AS20) -> 0 | AU20: =AT20/(AV4-AT25) -> 0 | AV20: =IF(AU20=0,0,(AU20*((LOG(AU20))/LOG(2)))) -> 0
A21: 12 | B21: 2754 | C21: 24 | D21: 2764 | E21: 24 | F21: 2777 | G21: 14 | H21: 2790 | I21: 24 | J21: 2802 | K21: 0 | L21: 12212 | N21: 12221 | O21: =COUNTIF($L$7:$L$500,N21) -> 0 | P21: =O21/$Q$4 -> 0 | Q21: =IF(P21=0,0,(P21*((LOG(P21))/LOG(2)))) -> 0 | T21: =N21 -> 12221 | U21: =COUNTIF(L7:L11,T21) -> 0 | V21: =U21/(W4-U25) -> 0 | W21: =IF(V21=0,0,(V21*((LOG(V21))/LOG(2)))) -> 0 | Y21: =N21 -> 12221 | Z21: =COUNTIF(L12:L17,Y21) -> 0 | AA21: =Z21/(AB4-Z25) -> 0 | AB21: =IF(AA21=0,0,(AA21*((LOG(AA21))/LOG(2)))) -> 0 | AD21: =N21 -> 12221 | AE21: =COUNTIF(L18:L22,AD21) -> 0 | AF21: =AE21/(AG4-AE25) -> 0 | AG21: =IF(AF21=0,0,(AF21*((LOG(AF21))/LOG(2)))) -> 0 | AI21: =N21 -> 12221 | AJ21: =COUNTIF(L23:L27,AI21) -> 0 | AK21: =AJ21/(AL4-AJ25) -> 0 | AL21: =IF(AK21=0,0,(AK21*((LOG(AK21))/LOG(2)))) -> 0 | AN21: =N21 -> 12221 | AO21: =COUNTIF(L28:L33,AN21) -> 0 | AP21: =AO21/(AQ4-AO25) -> 0 | AQ21: =IF(AP21=0,0,(AP21*((LOG(AP21))/LOG(2)))) -> 0 | AS21: =N21 -> 12221 | AT21: =COUNTIF(L34:L38,AS21) -> 0 | AU21: =AT21/(AV4-AT25) -> 0 | AV21: =IF(AU21=0,0,(AU21*((LOG(AU21))/LOG(2)))) -> 0
A22: 12 | B22: 2929 | C22: 13 | D22: 2976 | E22: 13 | F22: 3433 | G22: 23 | H22: 3442 | I22: 24 | J22: 3463 | K22: 0 | L22: 11122 | N22: 12222 | O22: =COUNTIF($L$7:$L$500,N22) -> 0 | P22: =O22/$Q$4 -> 0 | Q22: =IF(P22=0,0,(P22*((LOG(P22))/LOG(2)))) -> 0 | T22: =N22 -> 12222 | U22: =COUNTIF(L7:L11,T22) -> 0 | V22: =U22/(W4-U25) -> 0 | W22: =IF(V22=0,0,(V22*((LOG(V22))/LOG(2)))) -> 0 | Y22: =N22 -> 12222 | Z22: =COUNTIF(L12:L17,Y22) -> 0 | AA22: =Z22/(AB4-Z25) -> 0 | AB22: =IF(AA22=0,0,(AA22*((LOG(AA22))/LOG(2)))) -> 0 | AD22: =N22 -> 12222 | AE22: =COUNTIF(L18:L22,AD22) -> 0 | AF22: =AE22/(AG4-AE25) -> 0 | AG22: =IF(AF22=0,0,(AF22*((LOG(AF22))/LOG(2)))) -> 0 | AI22: =N22 -> 12222 | AJ22: =COUNTIF(L23:L27,AI22) -> 0 | AK22: =AJ22/(AL4-AJ25) -> 0 | AL22: =IF(AK22=0,0,(AK22*((LOG(AK22))/LOG(2)))) -> 0 | AN22: =N22 -> 12222 | AO22: =COUNTIF(L28:L33,AN22) -> 0 | AP22: =AO22/(AQ4-AO25) -> 0 | AQ22: =IF(AP22=0,0,(AP22*((LOG(AP22))/LOG(2)))) -> 0 | AS22: =N22 -> 12222 | AT22: =COUNTIF(L34:L38,AS22) -> 0 | AU22: =AT22/(AV4-AT25) -> 0 | AV22: =IF(AU22=0,0,(AU22*((LOG(AU22))/LOG(2)))) -> 0
A23: 12 | B23: 3643 | C23: 24 | D23: 3652 | E23: 13 | F23: 3666 | G23: 23 | H23: 3676 | I23: 24 | J23: 3719 | K23: 0 | L23: 12122 | N23: 21111 | O23: =COUNTIF($L$7:$L$500,N23) -> 0 | P23: =O23/$Q$4 -> 0 | Q23: =IF(P23=0,0,(P23*((LOG(P23))/LOG(2)))) -> 0 | T23: =N23 -> 21111 | U23: =COUNTIF(L7:L11,T23) -> 0 | V23: =U23/(W4-U25) -> 0 | W23: =IF(V23=0,0,(V23*((LOG(V23))/LOG(2)))) -> 0 | Y23: =N23 -> 21111 | Z23: =COUNTIF(L12:L17,Y23) -> 0 | AA23: =Z23/(AB4-Z25) -> 0 | AB23: =IF(AA23=0,0,(AA23*((LOG(AA23))/LOG(2)))) -> 0 | AD23: =N23 -> 21111 | AE23: =COUNTIF(L18:L22,AD23) -> 0 | AF23: =AE23/(AG4-AE25) -> 0 | AG23: =IF(AF23=0,0,(AF23*((LOG(AF23))/LOG(2)))) -> 0 | AI23: =N23 -> 21111 | AJ23: =COUNTIF(L23:L27,AI23) -> 0 | AK23: =AJ23/(AL4-AJ25) -> 0 | AL23: =IF(AK23=0,0,(AK23*((LOG(AK23))/LOG(2)))) -> 0 | AN23: =N23 -> 21111 | AO23: =COUNTIF(L28:L33,AN23) -> 0 | AP23: =AO23/(AQ4-AO25) -> 0 | AQ23: =IF(AP23=0,0,(AP23*((LOG(AP23))/LOG(2)))) -> 0 | AS23: =N23 -> 21111 | AT23: =COUNTIF(L34:L38,AS23) -> 0 | AU23: =AT23/(AV4-AT25) -> 0 | AV23: =IF(AU23=0,0,(AU23*((LOG(AU23))/LOG(2)))) -> 0
A24: 12 | B24: 4443 | C24: 13 | D24: 4453 | E24: 24 | F24: 4463 | G24: 23 | H24: 4479 | I24: 24 | J24: 4502 | K24: 0 | L24: 11222 | N24: 21112 | O24: =COUNTIF($L$7:$L$500,N24) -> 1 | P24: =O24/$Q$4 -> 0.03125 | Q24: =IF(P24=0,0,(P24*((LOG(P24))/LOG(2)))) -> -0.15625 | T24: =N24 -> 21112 | U24: =COUNTIF(L7:L11,T24) -> 0 | V24: =U24/(W4-U25) -> 0 | W24: =IF(V24=0,0,(V24*((LOG(V24))/LOG(2)))) -> 0 | Y24: =N24 -> 21112 | Z24: =COUNTIF(L12:L17,Y24) -> 0 | AA24: =Z24/(AB4-Z25) -> 0 | AB24: =IF(AA24=0,0,(AA24*((LOG(AA24))/LOG(2)))) -> 0 | AD24: =N24 -> 21112 | AE24: =COUNTIF(L18:L22,AD24) -> 0 | AF24: =AE24/(AG4-AE25) -> 0 | AG24: =IF(AF24=0,0,(AF24*((LOG(AF24))/LOG(2)))) -> 0 | AI24: =N24 -> 21112 | AJ24: =COUNTIF(L23:L27,AI24) -> 0 | AK24: =AJ24/(AL4-AJ25) -> 0 | AL24: =IF(AK24=0,0,(AK24*((LOG(AK24))/LOG(2)))) -> 0 | AN24: =N24 -> 21112 | AO24: =COUNTIF(L28:L33,AN24) -> 0 | AP24: =AO24/(AQ4-AO25) -> 0 | AQ24: =IF(AP24=0,0,(AP24*((LOG(AP24))/LOG(2)))) -> 0 | AS24: =N24 -> 21112 | AT24: =COUNTIF(L34:L38,AS24) -> 1 | AU24: =AT24/(AV4-AT25) -> 0.2 | AV24: =IF(AU24=0,0,(AU24*((LOG(AU24))/LOG(2)))) -> -0.464385619
A25: 21 | B25: 5593 | C25: 11 | D25: 5614 | E25: 22 | F25: 5621 | G25: 23 | H25: 5644 | I25: 13 | J25: 5655 | K25: 0 | L25: 21221 | N25: 21121 | O25: =COUNTIF($L$7:$L$500,N25) -> 2 | P25: =O25/$Q$4 -> 0.0625 | Q25: =IF(P25=0,0,(P25*((LOG(P25))/LOG(2)))) -> -0.25 | T25: =N25 -> 21121 | U25: =COUNTIF(L7:L11,T25) -> 0 | Y25: =N25 -> 21121 | Z25: =COUNTIF(L12:L17,Y25) -> 1 | AD25: =N25 -> 21121 | AE25: =COUNTIF(L18:L22,AD25) -> 0 | AI25: =N25 -> 21121 | AJ25: =COUNTIF(L23:L27,AI25) -> 0 | AN25: =N25 -> 21121 | AO25: =COUNTIF(L28:L33,AN25) -> 1 | AS25: =N25 -> 21121 | AT25: =COUNTIF(L34:L38,AS25) -> 0
A26: 21 | B26: 6154 | C26: 11 | D26: 6165 | E26: 22 | F26: 6175 | G26: 14 | H26: 6190 | I26: 24 | J26: 6200 | K26: 0 | L26: 21212 | N26: 21122 | O26: =COUNTIF($L$7:$L$500,N26) -> 0 | P26: =O26/$Q$4 -> 0 | Q26: =IF(P26=0,0,(P26*((LOG(P26))/LOG(2)))) -> 0 | T26: =N26 -> 21122 | U26: =COUNTIF(L7:L11,T26) -> 0 | V26: =U26/(W4-U25) -> 0 | W26: =IF(V26=0,0,(V26*((LOG(V26))/LOG(2)))) -> 0 | Y26: =N26 -> 21122 | Z26: =COUNTIF(L12:L17,Y26) -> 0 | AA26: =Z26/(AB4-Z25) -> 0 | AB26: =IF(AA26=0,0,(AA26*((LOG(AA26))/LOG(2)))) -> 0 | AD26: =N26 -> 21122 | AE26: =COUNTIF(L18:L22,AD26) -> 0 | AF26: =AE26/(AG4-AE25) -> 0 | AG26: =IF(AF26=0,0,(AF26*((LOG(AF26))/LOG(2)))) -> 0 | AI26: =N26 -> 21122 | AJ26: =COUNTIF(L23:L27,AI26) -> 0 | AK26: =AJ26/(AL4-AJ25) -> 0 | AL26: =IF(AK26=0,0,(AK26*((LOG(AK26))/LOG(2)))) -> 0 | AN26: =N26 -> 21122 | AO26: =COUNTIF(L28:L33,AN26) -> 0 | AP26: =AO26/(AQ4-AO25) -> 0 | AQ26: =IF(AP26=0,0,(AP26*((LOG(AP26))/LOG(2)))) -> 0 | AS26: =N26 -> 21122 | AT26: =COUNTIF(L34:L38,AS26) -> 0 | AU26: =AT26/(AV4-AT25) -> 0 | AV26: =IF(AU26=0,0,(AU26*((LOG(AU26))/LOG(2)))) -> 0
A27: 21 | B27: 7065 | C27: 22 | D27: 7075 | E27: 24 | F27: 7101 | G27: 14 | H27: 7136 | I27: 24 | J27: 7148 | K27: 0 | L27: 22212 | N27: 21211 | O27: =COUNTIF($L$7:$L$500,N27) -> 0 | P27: =O27/$Q$4 -> 0 | Q27: =IF(P27=0,0,(P27*((LOG(P27))/LOG(2)))) -> 0 | T27: =N27 -> 21211 | U27: =COUNTIF(L7:L11,T27) -> 0 | V27: =U27/(W4-U25) -> 0 | W27: =IF(V27=0,0,(V27*((LOG(V27))/LOG(2)))) -> 0 | Y27: =N27 -> 21211 | Z27: =COUNTIF(L12:L17,Y27) -> 0 | AA27: =Z27/(AB4-Z25) -> 0 | AB27: =IF(AA27=0,0,(AA27*((LOG(AA27))/LOG(2)))) -> 0 | AD27: =N27 -> 21211 | AE27: =COUNTIF(L18:L22,AD27) -> 0 | AF27: =AE27/(AG4-AE25) -> 0 | AG27: =IF(AF27=0,0,(AF27*((LOG(AF27))/LOG(2)))) -> 0 | AI27: =N27 -> 21211 | AJ27: =COUNTIF(L23:L27,AI27) -> 0 | AK27: =AJ27/(AL4-AJ25) -> 0 | AL27: =IF(AK27=0,0,(AK27*((LOG(AK27))/LOG(2)))) -> 0 | AN27: =N27 -> 21211 | AO27: =COUNTIF(L28:L33,AN27) -> 0 | AP27: =AO27/(AQ4-AO25) -> 0 | AQ27: =IF(AP27=0,0,(AP27*((LOG(AP27))/LOG(2)))) -> 0 | AS27: =N27 -> 21211 | AT27: =COUNTIF(L34:L38,AS27) -> 0 | AU27: =AT27/(AV4-AT25) -> 0 | AV27: =IF(AU27=0,0,(AU27*((LOG(AU27))/LOG(2)))) -> 0
A28: 12 | B28: 7537 | C28: 13 | D28: 7558 | E28: 24 | F28: 7657 | G28: 14 | H28: 7666 | I28: 13 | J28: 7685 | K28: 0 | L28: 11211 | N28: 21212 | O28: =COUNTIF($L$7:$L$500,N28) -> 5 | P28: =O28/$Q$4 -> 0.15625 | Q28: =IF(P28=0,0,(P28*((LOG(P28))/LOG(2)))) -> -0.4184487352 | T28: =N28 -> 21212 | U28: =COUNTIF(L7:L11,T28) -> 2 | V28: =U28/(W4-U25) -> 0.4 | W28: =IF(V28=0,0,(V28*((LOG(V28))/LOG(2)))) -> -0.528771238 | Y28: =N28 -> 21212 | Z28: =COUNTIF(L12:L17,Y28) -> 1 | AA28: =Z28/(AB4-Z25) -> 0.2 | AB28: =IF(AA28=0,0,(AA28*((LOG(AA28))/LOG(2)))) -> -0.464385619 | AD28: =N28 -> 21212 | AE28: =COUNTIF(L18:L22,AD28) -> 0 | AF28: =AE28/(AG4-AE25) -> 0 | AG28: =IF(AF28=0,0,(AF28*((LOG(AF28))/LOG(2)))) -> 0 | AI28: =N28 -> 21212 | AJ28: =COUNTIF(L23:L27,AI28) -> 1 | AK28: =AJ28/(AL4-AJ25) -> 0.2 | AL28: =IF(AK28=0,0,(AK28*((LOG(AK28))/LOG(2)))) -> -0.464385619 | AN28: =N28 -> 21212 | AO28: =COUNTIF(L28:L33,AN28) -> 0 | AP28: =AO28/(AQ4-AO25) -> 0 | AQ28: =IF(AP28=0,0,(AP28*((LOG(AP28))/LOG(2)))) -> 0 | AS28: =N28 -> 21212 | AT28: =COUNTIF(L34:L38,AS28) -> 1 | AU28: =AT28/(AV4-AT25) -> 0.2 | AV28: =IF(AU28=0,0,(AU28*((LOG(AU28))/LOG(2)))) -> -0.464385619
A29: 12 | B29: 7998 | C29: 13 | D29: 8008 | E29: 24 | F29: 8020 | G29: 14 | H29: 8034 | I29: 24 | J29: 8043 | K29: 0 | L29: 11212 | N29: 21221 | O29: =COUNTIF($L$7:$L$500,N29) -> 1 | P29: =O29/$Q$4 -> 0.03125 | Q29: =IF(P29=0,0,(P29*((LOG(P29))/LOG(2)))) -> -0.15625 | T29: =N29 -> 21221 | U29: =COUNTIF(L7:L11,T29) -> 0 | V29: =U29/(W4-U25) -> 0 | W29: =IF(V29=0,0,(V29*((LOG(V29))/LOG(2)))) -> 0 | Y29: =N29 -> 21221 | Z29: =COUNTIF(L12:L17,Y29) -> 0 | AA29: =Z29/(AB4-Z25) -> 0 | AB29: =IF(AA29=0,0,(AA29*((LOG(AA29))/LOG(2)))) -> 0 | AD29: =N29 -> 21221 | AE29: =COUNTIF(L18:L22,AD29) -> 0 | AF29: =AE29/(AG4-AE25) -> 0 | AG29: =IF(AF29=0,0,(AF29*((LOG(AF29))/LOG(2)))) -> 0 | AI29: =N29 -> 21221 | AJ29: =COUNTIF(L23:L27,AI29) -> 1 | AK29: =AJ29/(AL4-AJ25) -> 0.2 | AL29: =IF(AK29=0,0,(AK29*((LOG(AK29))/LOG(2)))) -> -0.464385619 | AN29: =N29 -> 21221 | AO29: =COUNTIF(L28:L33,AN29) -> 0 | AP29: =AO29/(AQ4-AO25) -> 0 | AQ29: =IF(AP29=0,0,(AP29*((LOG(AP29))/LOG(2)))) -> 0 | AS29: =N29 -> 21221 | AT29: =COUNTIF(L34:L38,AS29) -> 0 | AU29: =AT29/(AV4-AT25) -> 0 | AV29: =IF(AU29=0,0,(AU29*((LOG(AU29))/LOG(2)))) -> 0
A30: 21 | B30: 8499 | C30: 22 | D30: 8512 | E30: 13 | F30: 8522 | G30: 23 | H30: 8532 | I30: 13 | J30: 8558 | K30: 0 | L30: 22121 | N30: 21222 | O30: =COUNTIF($L$7:$L$500,N30) -> 0 | P30: =O30/$Q$4 -> 0 | Q30: =IF(P30=0,0,(P30*((LOG(P30))/LOG(2)))) -> 0 | T30: =N30 -> 21222 | U30: =COUNTIF(L7:L11,T30) -> 0 | V30: =U30/(W4-U25) -> 0 | W30: =IF(V30=0,0,(V30*((LOG(V30))/LOG(2)))) -> 0 | Y30: =N30 -> 21222 | Z30: =COUNTIF(L12:L17,Y30) -> 0 | AA30: =Z30/(AB4-Z25) -> 0 | AB30: =IF(AA30=0,0,(AA30*((LOG(AA30))/LOG(2)))) -> 0 | AD30: =N30 -> 21222 | AE30: =COUNTIF(L18:L22,AD30) -> 0 | AF30: =AE30/(AG4-AE25) -> 0 | AG30: =IF(AF30=0,0,(AF30*((LOG(AF30))/LOG(2)))) -> 0 | AI30: =N30 -> 21222 | AJ30: =COUNTIF(L23:L27,AI30) -> 0 | AK30: =AJ30/(AL4-AJ25) -> 0 | AL30: =IF(AK30=0,0,(AK30*((LOG(AK30))/LOG(2)))) -> 0 | AN30: =N30 -> 21222 | AO30: =COUNTIF(L28:L33,AN30) -> 0 | AP30: =AO30/(AQ4-AO25) -> 0 | AQ30: =IF(AP30=0,0,(AP30*((LOG(AP30))/LOG(2)))) -> 0 | AS30: =N30 -> 21222 | AT30: =COUNTIF(L34:L38,AS30) -> 0 | AU30: =AT30/(AV4-AT25) -> 0 | AV30: =IF(AU30=0,0,(AU30*((LOG(AU30))/LOG(2)))) -> 0
A31: 12 | B31: 8974 | C31: 13 | D31: 8985 | E31: 13 | F31: 9821 | G31: 23 | H31: 9831 | I31: 24 | J31: 9850 | K31: 0 | L31: 11122 | N31: 22111 | O31: =COUNTIF($L$7:$L$500,N31) -> 0 | P31: =O31/$Q$4 -> 0 | Q31: =IF(P31=0,0,(P31*((LOG(P31))/LOG(2)))) -> 0 | T31: =N31 -> 22111 | U31: =COUNTIF(L7:L11,T31) -> 0 | V31: =U31/(W4-U25) -> 0 | W31: =IF(V31=0,0,(V31*((LOG(V31))/LOG(2)))) -> 0 | Y31: =N31 -> 22111 | Z31: =COUNTIF(L12:L17,Y31) -> 0 | AA31: =Z31/(AB4-Z25) -> 0 | AB31: =IF(AA31=0,0,(AA31*((LOG(AA31))/LOG(2)))) -> 0 | AD31: =N31 -> 22111 | AE31: =COUNTIF(L18:L22,AD31) -> 0 | AF31: =AE31/(AG4-AE25) -> 0 | AG31: =IF(AF31=0,0,(AF31*((LOG(AF31))/LOG(2)))) -> 0 | AI31: =N31 -> 22111 | AJ31: =COUNTIF(L23:L27,AI31) -> 0 | AK31: =AJ31/(AL4-AJ25) -> 0 | AL31: =IF(AK31=0,0,(AK31*((LOG(AK31))/LOG(2)))) -> 0 | AN31: =N31 -> 22111 | AO31: =COUNTIF(L28:L33,AN31) -> 0 | AP31: =AO31/(AQ4-AO25) -> 0 | AQ31: =IF(AP31=0,0,(AP31*((LOG(AP31))/LOG(2)))) -> 0 | AS31: =N31 -> 22111 | AT31: =COUNTIF(L34:L38,AS31) -> 0 | AU31: =AT31/(AV4-AT25) -> 0 | AV31: =IF(AU31=0,0,(AU31*((LOG(AU31))/LOG(2)))) -> 0
A32: 12 | B32: 12291 | C32: 24 | D32: 12310 | E32: 13 | F32: 12328 | G32: 14 | H32: 12338 | I32: 13 | J32: 12403 | K32: 0 | L32: 12111 | N32: 22112 | O32: =COUNTIF($L$7:$L$500,N32) -> 0 | P32: =O32/$Q$4 -> 0 | Q32: =IF(P32=0,0,(P32*((LOG(P32))/LOG(2)))) -> 0 | T32: =N32 -> 22112 | U32: =COUNTIF(L7:L11,T32) -> 0 | V32: =U32/(W4-U25) -> 0 | W32: =IF(V32=0,0,(V32*((LOG(V32))/LOG(2)))) -> 0 | Y32: =N32 -> 22112 | Z32: =COUNTIF(L12:L17,Y32) -> 0 | AA32: =Z32/(AB4-Z25) -> 0 | AB32: =IF(AA32=0,0,(AA32*((LOG(AA32))/LOG(2)))) -> 0 | AD32: =N32 -> 22112 | AE32: =COUNTIF(L18:L22,AD32) -> 0 | AF32: =AE32/(AG4-AE25) -> 0 | AG32: =IF(AF32=0,0,(AF32*((LOG(AF32))/LOG(2)))) -> 0 | AI32: =N32 -> 22112 | AJ32: =COUNTIF(L23:L27,AI32) -> 0 | AK32: =AJ32/(AL4-AJ25) -> 0 | AL32: =IF(AK32=0,0,(AK32*((LOG(AK32))/LOG(2)))) -> 0 | AN32: =N32 -> 22112 | AO32: =COUNTIF(L28:L33,AN32) -> 0 | AP32: =AO32/(AQ4-AO25) -> 0 | AQ32: =IF(AP32=0,0,(AP32*((LOG(AP32))/LOG(2)))) -> 0 | AS32: =N32 -> 22112 | AT32: =COUNTIF(L34:L38,AS32) -> 0 | AU32: =AT32/(AV4-AT25) -> 0 | AV32: =IF(AU32=0,0,(AU32*((LOG(AU32))/LOG(2)))) -> 0
A33: 21 | B33: 16738 | C33: 11 | D33: 21138 | E33: 11 | F33: 21153 | G33: 21 | H33: 21164 | I33: 11 | J33: 21182 | K33: 1 | L33: 21121 | N33: 22121 | O33: =COUNTIF($L$7:$L$500,N33) -> 2 | P33: =O33/$Q$4 -> 0.0625 | Q33: =IF(P33=0,0,(P33*((LOG(P33))/LOG(2)))) -> -0.25 | T33: =N33 -> 22121 | U33: =COUNTIF(L7:L11,T33) -> 0 | V33: =U33/(W4-U25) -> 0 | W33: =IF(V33=0,0,(V33*((LOG(V33))/LOG(2)))) -> 0 | Y33: =N33 -> 22121 | Z33: =COUNTIF(L12:L17,Y33) -> 0 | AA33: =Z33/(AB4-Z25) -> 0 | AB33: =IF(AA33=0,0,(AA33*((LOG(AA33))/LOG(2)))) -> 0 | AD33: =N33 -> 22121 | AE33: =COUNTIF(L18:L22,AD33) -> 1 | AF33: =AE33/(AG4-AE25) -> 0.2 | AG33: =IF(AF33=0,0,(AF33*((LOG(AF33))/LOG(2)))) -> -0.464385619 | AI33: =N33 -> 22121 | AJ33: =COUNTIF(L23:L27,AI33) -> 0 | AK33: =AJ33/(AL4-AJ25) -> 0 | AL33: =IF(AK33=0,0,(AK33*((LOG(AK33))/LOG(2)))) -> 0 | AN33: =N33 -> 22121 | AO33: =COUNTIF(L28:L33,AN33) -> 1 | AP33: =AO33/(AQ4-AO25) -> 0.2 | AQ33: =IF(AP33=0,0,(AP33*((LOG(AP33))/LOG(2)))) -> -0.464385619 | AS33: =N33 -> 22121 | AT33: =COUNTIF(L34:L38,AS33) -> 0 | AU33: =AT33/(AV4-AT25) -> 0 | AV33: =IF(AU33=0,0,(AU33*((LOG(AU33))/LOG(2)))) -> 0
A34: 12 | B34: 21381 | C34: 13 | D34: 21395 | E34: 24 | F34: 21407 | G34: 23 | H34: 21424 | I34: 24 | J34: 21440 | K34: 0 | L34: 11222 | N34: 22122 | O34: =COUNTIF($L$7:$L$500,N34) -> 0 | P34: =O34/$Q$4 -> 0 | Q34: =IF(P34=0,0,(P34*((LOG(P34))/LOG(2)))) -> 0 | T34: =N34 -> 22122 | U34: =COUNTIF(L7:L11,T34) -> 0 | V34: =U34/(W4-U25) -> 0 | W34: =IF(V34=0,0,(V34*((LOG(V34))/LOG(2)))) -> 0 | Y34: =N34 -> 22122 | Z34: =COUNTIF(L12:L17,Y34) -> 0 | AA34: =Z34/(AB4-Z25) -> 0 | AB34: =IF(AA34=0,0,(AA34*((LOG(AA34))/LOG(2)))) -> 0 | AD34: =N34 -> 22122 | AE34: =COUNTIF(L18:L22,AD34) -> 0 | AF34: =AE34/(AG4-AE25) -> 0 | AG34: =IF(AF34=0,0,(AF34*((LOG(AF34))/LOG(2)))) -> 0 | AI34: =N34 -> 22122 | AJ34: =COUNTIF(L23:L27,AI34) -> 0 | AK34: =AJ34/(AL4-AJ25) -> 0 | AL34: =IF(AK34=0,0,(AK34*((LOG(AK34))/LOG(2)))) -> 0 | AN34: =N34 -> 22122 | AO34: =COUNTIF(L28:L33,AN34) -> 0 | AP34: =AO34/(AQ4-AO25) -> 0 | AQ34: =IF(AP34=0,0,(AP34*((LOG(AP34))/LOG(2)))) -> 0 | AS34: =N34 -> 22122 | AT34: =COUNTIF(L34:L38,AS34) -> 0 | AU34: =AT34/(AV4-AT25) -> 0 | AV34: =IF(AU34=0,0,(AU34*((LOG(AU34))/LOG(2)))) -> 0
A35: 12 | B35: 21557 | C35: 13 | D35: 21569 | E35: 24 | F35: 21579 | G35: 14 | H35: 21588 | I35: 13 | J35: 21602 | K35: 0 | L35: 11211 | N35: 22211 | O35: =COUNTIF($L$7:$L$500,N35) -> 0 | P35: =O35/$Q$4 -> 0 | Q35: =IF(P35=0,0,(P35*((LOG(P35))/LOG(2)))) -> 0 | T35: =N35 -> 22211 | U35: =COUNTIF(L7:L11,T35) -> 0 | V35: =U35/(W4-U25) -> 0 | W35: =IF(V35=0,0,(V35*((LOG(V35))/LOG(2)))) -> 0 | Y35: =N35 -> 22211 | Z35: =COUNTIF(L12:L17,Y35) -> 0 | AA35: =Z35/(AB4-Z25) -> 0 | AB35: =IF(AA35=0,0,(AA35*((LOG(AA35))/LOG(2)))) -> 0 | AD35: =N35 -> 22211 | AE35: =COUNTIF(L18:L22,AD35) -> 0 | AF35: =AE35/(AG4-AE25) -> 0 | AG35: =IF(AF35=0,0,(AF35*((LOG(AF35))/LOG(2)))) -> 0 | AI35: =N35 -> 22211 | AJ35: =COUNTIF(L23:L27,AI35) -> 0 | AK35: =AJ35/(AL4-AJ25) -> 0 | AL35: =IF(AK35=0,0,(AK35*((LOG(AK35))/LOG(2)))) -> 0 | AN35: =N35 -> 22211 | AO35: =COUNTIF(L28:L33,AN35) -> 0 | AP35: =AO35/(AQ4-AO25) -> 0 | AQ35: =IF(AP35=0,0,(AP35*((LOG(AP35))/LOG(2)))) -> 0 | AS35: =N35 -> 22211 | AT35: =COUNTIF(L34:L38,AS35) -> 0 | AU35: =AT35/(AV4-AT25) -> 0 | AV35: =IF(AU35=0,0,(AU35*((LOG(AU35))/LOG(2)))) -> 0
A36: 21 | B36: 21742 | C36: 11 | D36: 21752 | E36: 11 | F36: 21766 | G36: 12 | H36: 21778 | I36: 24 | J36: 21789 | K36: 0 | L36: 21112 | N36: 22212 | O36: =COUNTIF($L$7:$L$500,N36) -> 1 | P36: =O36/$Q$4 -> 0.03125 | Q36: =IF(P36=0,0,(P36*((LOG(P36))/LOG(2)))) -> -0.15625 | T36: =N36 -> 22212 | U36: =COUNTIF(L7:L11,T36) -> 0 | V36: =U36/(W4-U25) -> 0 | W36: =IF(V36=0,0,(V36*((LOG(V36))/LOG(2)))) -> 0 | Y36: =N36 -> 22212 | Z36: =COUNTIF(L12:L17,Y36) -> 0 | AA36: =Z36/(AB4-Z25) -> 0 | AB36: =IF(AA36=0,0,(AA36*((LOG(AA36))/LOG(2)))) -> 0 | AD36: =N36 -> 22212 | AE36: =COUNTIF(L18:L22,AD36) -> 0 | AF36: =AE36/(AG4-AE25) -> 0 | AG36: =IF(AF36=0,0,(AF36*((LOG(AF36))/LOG(2)))) -> 0 | AI36: =N36 -> 22212 | AJ36: =COUNTIF(L23:L27,AI36) -> 1 | AK36: =AJ36/(AL4-AJ25) -> 0.2 | AL36: =IF(AK36=0,0,(AK36*((LOG(AK36))/LOG(2)))) -> -0.464385619 | AN36: =N36 -> 22212 | AO36: =COUNTIF(L28:L33,AN36) -> 0 | AP36: =AO36/(AQ4-AO25) -> 0 | AQ36: =IF(AP36=0,0,(AP36*((LOG(AP36))/LOG(2)))) -> 0 | AS36: =N36 -> 22212 | AT36: =COUNTIF(L34:L38,AS36) -> 0 | AU36: =AT36/(AV4-AT25) -> 0 | AV36: =IF(AU36=0,0,(AU36*((LOG(AU36))/LOG(2)))) -> 0
A37: 12 | B37: 21936 | C37: 13 | D37: 21957 | E37: 24 | F37: 21967 | G37: 14 | H37: 21986 | I37: 24 | J37: 21998 | K37: 0 | L37: 11212 | N37: 22221 | O37: =COUNTIF($L$7:$L$500,N37) -> 0 | P37: =O37/$Q$4 -> 0 | Q37: =IF(P37=0,0,(P37*((LOG(P37))/LOG(2)))) -> 0 | T37: =N37 -> 22221 | U37: =COUNTIF(L7:L11,T37) -> 0 | V37: =U37/(W4-U25) -> 0 | W37: =IF(V37=0,0,(V37*((LOG(V37))/LOG(2)))) -> 0 | Y37: =N37 -> 22221 | Z37: =COUNTIF(L12:L17,Y37) -> 0 | AA37: =Z37/(AB4-Z25) -> 0 | AB37: =IF(AA37=0,0,(AA37*((LOG(AA37))/LOG(2)))) -> 0 | AD37: =N37 -> 22221 | AE37: =COUNTIF(L18:L22,AD37) -> 0 | AF37: =AE37/(AG4-AE25) -> 0 | AG37: =IF(AF37=0,0,(AF37*((LOG(AF37))/LOG(2)))) -> 0 | AI37: =N37 -> 22221 | AJ37: =COUNTIF(L23:L27,AI37) -> 0 | AK37: =AJ37/(AL4-AJ25) -> 0 | AL37: =IF(AK37=0,0,(AK37*((LOG(AK37))/LOG(2)))) -> 0 | AN37: =N37 -> 22221 | AO37: =COUNTIF(L28:L33,AN37) -> 0 | AP37: =AO37/(AQ4-AO25) -> 0 | AQ37: =IF(AP37=0,0,(AP37*((LOG(AP37))/LOG(2)))) -> 0 | AS37: =N37 -> 22221 | AT37: =COUNTIF(L34:L38,AS37) -> 0 | AU37: =AT37/(AV4-AT25) -> 0 | AV37: =IF(AU37=0,0,(AU37*((LOG(AU37))/LOG(2)))) -> 0
A38: 21 | B38: 22499 | C38: 11 | D38: 22526 | E38: 22 | F38: 22537 | G38: 14 | H38: 22553 | I38: 24 | J38: 22564 | K38: 0 | L38: 21212 | N38: 22222 | O38: =COUNTIF($L$7:$L$500,N38) -> 0 | P38: =O38/$Q$4 -> 0 | Q38: =IF(P38=0,0,(P38*((LOG(P38))/LOG(2)))) -> 0 | T38: =N38 -> 22222 | U38: =COUNTIF(L7:L11,T38) -> 0 | V38: =U38/(W4-U25) -> 0 | W38: =IF(V38=0,0,(V38*((LOG(V38))/LOG(2)))) -> 0 | Y38: =N38 -> 22222 | Z38: =COUNTIF(L12:L17,Y38) -> 0 | AA38: =Z38/(AB4-Z25) -> 0 | AB38: =IF(AA38=0,0,(AA38*((LOG(AA38))/LOG(2)))) -> 0 | AD38: =N38 -> 22222 | AE38: =COUNTIF(L18:L22,AD38) -> 0 | AF38: =AE38/(AG4-AE25) -> 0 | AG38: =IF(AF38=0,0,(AF38*((LOG(AF38))/LOG(2)))) -> 0 | AI38: =N38 -> 22222 | AJ38: =COUNTIF(L23:L27,AI38) -> 0 | AK38: =AJ38/(AL4-AJ25) -> 0 | AL38: =IF(AK38=0,0,(AK38*((LOG(AK38))/LOG(2)))) -> 0 | AN38: =N38 -> 22222 | AO38: =COUNTIF(L28:L33,AN38) -> 0 | AP38: =AO38/(AQ4-AO25) -> 0 | AQ38: =IF(AP38=0,0,(AP38*((LOG(AP38))/LOG(2)))) -> 0 | AS38: =N38 -> 22222 | AT38: =COUNTIF(L34:L38,AS38) -> 0 | AU38: =AT38/(AV4-AT25) -> 0 | AV38: =IF(AU38=0,0,(AU38*((LOG(AU38))/LOG(2)))) -> 0
P39: =SUM(P7:P38) -> 1 | Q39: =-SUM(Q7:Q38) -> 3.527518266 | V39: =SUM(V7:V38) -> 1 | W39: =-SUM(W7:W38) -> 1.521928095 | AA39: =SUM(AA7:AA38) -> 1 | AB39: =-SUM(AB7:AB38) -> 1.370950594 | AF39: =SUM(AF7:AF38) -> 1 | AG39: =-SUM(AG7:AG38) -> 2.321928095 | AK39: =SUM(AK7:AK38) -> 1 | AL39: =-SUM(AL7:AL38) -> 2.321928095 | AP39: =SUM(AP7:AP38) -> 1 | AQ39: =-SUM(AQ7:AQ38) -> 2.321928095 | AU39: =SUM(AU7:AU38) -> 1 | AV39: =-SUM(AV7:AV38) -> 2.321928095
P40: U= | Q40: =Q39/(LOG(Q4)/LOG(2)) -> 0.7055036533 | V40: U1= | W40: =W39/(LOG(W4)/LOG(2)) -> 0.6554587535 | AA40: U2= | AB40: =AB39/(LOG(AB4)/LOG(2)) -> 0.530356086 | AF40: U3= | AG40: =AG39/(LOG(AG4)/LOG(2)) -> 1 | AK40: U4= | AL40: =AL39/(LOG(AL4)/LOG(2)) -> 1 | AP40: U5= | AQ40: =AQ39/(LOG(AQ4)/LOG(2)) -> 0.8982444017 | AU40: U6= | AV40: =AV39/(LOG(AV4)/LOG(2)) -> 1
N43: Total Target Seq
N44: =COUNTIF(L7:L38,G3) -> 2 | P44: 5 | Q44: 6 | R44: 5 | S44: 5 | T44: 6 | U44: 5
P45: % of reinforcement given in 6 equal intervals based on number of trials
P46: %_1 | Q46: %_2 | R46: %_3 | S46: %_4 | T46: %_5 | U46: %_6
O47: target sequence | P47: =$G$3 -> 21121 | Q47: =$G$3 -> 21121 | R47: =$G$3 -> 21121 | S47: =$G$3 -> 21121 | T47: =$G$3 -> 21121 | U47: =$G$3 -> 21121
O48: total reinforcement | P48: =U25 -> 0 | Q48: =Z25 -> 1 | R48: =AE25 -> 0 | S48: =AJ25 -> 0 | T48: =AO25 -> 1 | U48: =AT25 -> 0
O49: % target
O50: CCRF
O51: % CCRf
O52: average response rate | P52: =J11/P44 -> 162.6 | Q52: =(J17-J11)/Q44 -> 173.3333333 | R52: =(J22-J17)/R44 -> 322 | S52: =(J27-J22)/S44 -> 737 | T52: =(J33-J27)/T44 -> 2339 | U52: =(J38-J33)/U44 -> 276.4

Sheet !N108A10.105
A1: Report for:!N108A10.105
A2: Date: | B2: <date>
A3: Hen: | B3: <hen> | F3: Correct Sequence | G3: =Start!J2 -> 21121 | P3: Total Sequences in Data | Q3: =4994-COUNTBLANK(L7:L5000) -> 40 | V3: Total Sequences in Block Data | W3: =COUNTA(L7:L13) -> 7 | AA3: Total Sequences in Block Data | AB3: =COUNTA(L14:L19) -> 6 | AF3: Total Sequences in Block Data | AG3: =COUNTA(L20:L26) -> 7 | AK3: Total Sequences in Block Data | AL3: =COUNTA(L27:L33) -> 7 | AP3: Total Sequences in Block Data | AQ3: =COUNTA(L34:L39) -> 6 | AU3: Total Sequences in Block Data | AV3: =COUNTA(L40:L46) -> 7
P4: Total Sequences in Summary | Q4: =SUM(O7:O38) -> 40 | V4: Total Sequences in Block Summary | W4: =SUM(U7:U38) -> 7 | AA4: Total Sequences in Block Summary | AB4: =SUM(Z7:Z38) -> 6 | AF4: Total Sequences in Block Summary | AG4: =SUM(AE7:AE38) -> 7 | AK4: Total Sequences in Block Summary | AL4: =SUM(AJ7:AJ38) -> 7 | AP4: Total Sequences in Block Summary | AQ4: =SUM(AO7:AO38) -> 6 | AU4: Total Sequences in Block Summary | AV4: =SUM(AT7:AT38) -> 7
T5: Block 1 | Y5: Block 2 | AD5: Block 3 | AI5: Block 4 | AN5: Block 5 | AS5: Block 6
A6: Sequence Component 1 | B6: Time 1 | C6: Sequence Component 2 | D6: Time 2 | E6: Sequence Component 3 | F6: Time 3 | G6: Sequence Component 4 | H6: Time 4 | I6: Sequence Component 5 | J6: Time 5 | K6: Correct? 0=No 1=Yes | L6: Sequence | N6: Frequency | P6: Relative Frequency | Q6: Variability | T6: Frequency | V6: Relative Frequency | W6: Variability | Y6: Frequency | AA6: Relative Frequency | AB6: Variability | AD6: Frequency | AF6: Relative Frequency | AG6: Variability | AI6: Frequency | AK6: Relative Frequency | AL6: Variability | AN6: Frequency | AP6: Relative Frequency | AQ6: Variability | AS6: Frequency | AU6: Relative Frequency | AV6: Variability
A7: 21 | B7: 46 | C7: 11 | D7: 59 | E7: 22 | F7: 66 | G7: 14 | H7: 78 | I7: 24 | J7: 89 | K7: 0 | L7: 21212 | N7: 11111 | O7: =COUNTIF($L$7:$L$500,N7) -> 1 | P7: =O7/$Q$4 -> 0.025 | Q7: =IF(P7=0,0,(P7*((LOG(P7))/LOG(2)))) -> -0.1330482024 | T7: =N7 -> 11111 | U7: =COUNTIF(L7:L13,T7) -> 0 | V7: =U7/(W4-U25) -> 0 | W7: =IF(V7=0,0,(V7*((LOG(V7))/LOG(2)))) -> 0 | Y7: =N7 -> 11111 | Z7: =COUNTIF(L14:L19,Y7) -> 0 | AA7: =Z7/(AB4-Z25) -> 0 | AB7: =IF(AA7=0,0,(AA7*((LOG(AA7))/LOG(2)))) -> 0 | AD7: =N7 -> 11111 | AE7: =COUNTIF(L20:L26,AD7) -> 0 | AF7: =AE7/(AG4-AE25) -> 0 | AG7: =IF(AF7=0,0,(AF7*((LOG(AF7))/LOG(2)))) -> 0 | AI7: =N7 -> 11111 | AJ7: =COUNTIF(L27:L33,AI7) -> 0 | AK7: =AJ7/(AL4-AJ25) -> 0 | AL7: =IF(AK7=0,0,(AK7*((LOG(AK7))/LOG(2)))) -> 0 | AN7: =N7 -> 11111 | AO7: =COUNTIF(L34:L39,AN7) -> 1 | AP7: =AO7/(AQ4-AO25) -> 0.1666666667 | AQ7: =IF(AP7=0,0,(AP7*((LOG(AP7))/LOG(2)))) -> -0.4308270835 | AS7: =N7 -> 11111 | AT7: =COUNTIF(L40:L46,AS7) -> 0 | AU7: =AT7/(AV4-AT25) -> 0 | AV7: =IF(AU7=0,0,(AU7*((LOG(AU7))/LOG(2)))) -> 0
A8: 12 | B8: 209 | C8: 24 | D8: 221 | E8: 24 | F8: 239 | G8: 23 | H8: 260 | I8: 13 | J8: 283 | K8: 0 | L8: 12221 | N8: 11112 | O8: =COUNTIF($L$7:$L$500,N8) -> 0 | P8: =O8/$Q$4 -> 0 | Q8: =IF(P8=0,0,(P8*((LOG(P8))/LOG(2)))) -> 0 | T8: =N8 -> 11112 | U8: =COUNTIF(L7:L13,T8) -> 0 | V8: =U8/(W4-U25) -> 0 | W8: =IF(V8=0,0,(V8*((LOG(V8))/LOG(2)))) -> 0 | Y8: =N8 -> 11112 | Z8: =COUNTIF(L14:L19,Y8) -> 0 | AA8: =Z8/(AB4-Z25) -> 0 | AB8: =IF(AA8=0,0,(AA8*((LOG(AA8))/LOG(2)))) -> 0 | AD8: =N8 -> 11112 | AE8: =COUNTIF(L20:L26,AD8) -> 0 | AF8: =AE8/(AG4-AE25) -> 0 | AG8: =IF(AF8=0,0,(AF8*((LOG(AF8))/LOG(2)))) -> 0 | AI8: =N8 -> 11112 | AJ8: =COUNTIF(L27:L33,AI8) -> 0 | AK8: =AJ8/(AL4-AJ25) -> 0 | AL8: =IF(AK8=0,0,(AK8*((LOG(AK8))/LOG(2)))) -> 0 | AN8: =N8 -> 11112 | AO8: =COUNTIF(L34:L39,AN8) -> 0 | AP8: =AO8/(AQ4-AO25) -> 0 | AQ8: =IF(AP8=0,0,(AP8*((LOG(AP8))/LOG(2)))) -> 0 | AS8: =N8 -> 11112 | AT8: =COUNTIF(L40:L46,AS8) -> 0 | AU8: =AT8/(AV4-AT25) -> 0 | AV8: =IF(AU8=0,0,(AU8*((LOG(AU8))/LOG(2)))) -> 0
A9: 12 | B9: 402 | C9: 13 | D9: 412 | E9: 13 | F9: 446 | G9: 23 | H9: 455 | I9: 24 | J9: 483 | K9: 0 | L9: 11122 | N9: 11121 | O9: =COUNTIF($L$7:$L$500,N9) -> 1 | P9: =O9/$Q$4 -> 0.025 | Q9: =IF(P9=0,0,(P9*((LOG(P9))/LOG(2)))) -> -0.1330482024 | T9: =N9 -> 11121 | U9: =COUNTIF(L7:L13,T9) -> 0 | V9: =U9/(W4-U25) -> 0 | W9: =IF(V9=0,0,(V9*((LOG(V9))/LOG(2)))) -> 0 | Y9: =N9 -> 11121 | Z9: =COUNTIF(L14:L19,Y9) -> 0 | AA9: =Z9/(AB4-Z25) -> 0 | AB9: =IF(AA9=0,0,(AA9*((LOG(AA9))/LOG(2)))) -> 0 | AD9: =N9 -> 11121 | AE9: =COUNTIF(L20:L26,AD9) -> 0 | AF9: =AE9/(AG4-AE25) -> 0 | AG9: =IF(AF9=0,0,(AF9*((LOG(AF9))/LOG(2)))) -> 0 | AI9: =N9 -> 11121 | AJ9: =COUNTIF(L27:L33,AI9) -> 0 | AK9: =AJ9/(AL4-AJ25) -> 0 | AL9: =IF(AK9=0,0,(AK9*((LOG(AK9))/LOG(2)))) -> 0 | AN9: =N9 -> 11121 | AO9: =COUNTIF(L34:L39,AN9) -> 1 | AP9: =AO9/(AQ4-AO25) -> 0.1666666667 | AQ9: =IF(AP9=0,0,(AP9*((LOG(AP9))/LOG(2)))) -> -0.4308270835 | AS9: =N9 -> 11121 | AT9: =COUNTIF(L40:L46,AS9) -> 0 | AU9: =AT9/(AV4-AT25) -> 0 | AV9: =IF(AU9=0,0,(AU9*((LOG(AU9))/LOG(2)))) -> 0
A10: 21 | B10: 638 | C10: 22 | D10: 653 | E10: 13 | F10: 664 | G10: 23 | H10: 671 | I10: 13 | J10: 687 | K10: 0 | L10: 22121 | N10: 11122 | O10: =COUNTIF($L$7:$L$500,N10) -> 1 | P10: =O10/$Q$4 -> 0.025 | Q10: =IF(P10=0,0,(P10*((LOG(P10))/LOG(2)))) -> -0.1330482024 | T10: =N10 -> 11122 | U10: =COUNTIF(L7:L13,T10) -> 1 | V10: =U10/(W4-U25) -> 0.1428571429 | W10: =IF(V10=0,0,(V10*((LOG(V10))/LOG(2)))) -> -0.4010507032 | Y10: =N10 -> 11122 | Z10: =COUNTIF(L14:L19,Y10) -> 0 | AA10: =Z10/(AB4-Z25) -> 0 | AB10: =IF(AA10=0,0,(AA10*((LOG(AA10))/LOG(2)))) -> 0 | AD10: =N10 -> 11122 | AE10: =COUNTIF(L20:L26,AD10) -> 0 | AF10: =AE10/(AG4-AE25) -> 0 | AG10: =IF(AF10=0,0,(AF10*((LOG(AF10))/LOG(2)))) -> 0 | AI10: =N10 -> 11122 | AJ10: =COUNTIF(L27:L33,AI10) -> 0 | AK10: =AJ10/(AL4-AJ25) -> 0 | AL10: =IF(AK10=0,0,(AK10*((LOG(AK10))/LOG(2)))) -> 0 | AN10: =N10 -> 11122 | AO10: =COUNTIF(L34:L39,AN10) -> 0 | AP10: =AO10/(AQ4-AO25) -> 0 | AQ10: =IF(AP10=0,0,(AP10*((LOG(AP10))/LOG(2)))) -> 0 | AS10: =N10 -> 11122 | AT10: =COUNTIF(L40:L46,AS10) -> 0 | AU10: =AT10/(AV4-AT25) -> 0 | AV10: =IF(AU10=0,0,(AU10*((LOG(AU10))/LOG(2)))) -> 0
A11: 21 | B11: 810 | C11: 22 | D11: 824 | E11: 13 | F11: 835 | G11: 23 | H11: 845 | I11: 24 | J11: 866 | K11: 0 | L11: 22122 | N11: 11211 | O11: =COUNTIF($L$7:$L$500,N11) -> 0 | P11: =O11/$Q$4 -> 0 | Q11: =IF(P11=0,0,(P11*((LOG(P11))/LOG(2)))) -> 0 | T11: =N11 -> 11211 | U11: =COUNTIF(L7:L13,T11) -> 0 | V11: =U11/(W4-U25) -> 0 | W11: =IF(V11=0,0,(V11*((LOG(V11))/LOG(2)))) -> 0 | Y11: =N11 -> 11211 | Z11: =COUNTIF(L14:L19,Y11) -> 0 | AA11: =Z11/(AB4-Z25) -> 0 | AB11: =IF(AA11=0,0,(AA11*((LOG(AA11))/LOG(2)))) -> 0 | AD11: =N11 -> 11211 | AE11: =COUNTIF(L20:L26,AD11) -> 0 | AF11: =AE11/(AG4-AE25) -> 0 | AG11: =IF(AF11=0,0,(AF11*((LOG(AF11))/LOG(2)))) -> 0 | AI11: =N11 -> 11211 | AJ11: =COUNTIF(L27:L33,AI11) -> 0 | AK11: =AJ11/(AL4-AJ25) -> 0 | AL11: =IF(AK11=0,0,(AK11*((LOG(AK11))/LOG(2)))) -> 0 | AN11: =N11 -> 11211 | AO11: =COUNTIF(L34:L39,AN11) -> 0 | AP11: =AO11/(AQ4-AO25) -> 0 | AQ11: =IF(AP11=0,0,(AP11*((LOG(AP11))/LOG(2)))) -> 0 | AS11: =N11 -> 11211 | AT11: =COUNTIF(L40:L46,AS11) -> 0 | AU11: =AT11/(AV4-AT25) -> 0 | AV11: =IF(AU11=0,0,(AU11*((LOG(AU11))/LOG(2)))) -> 0
A12: 21 | B12: 1040 | C12: 11 | D12: 1052 | E12: 22 | F12: 1060 | G12: 23 | H12: 1082 | I12: 13 | J12: 1096 | K12: 0 | L12: 21221 | N12: 11212 | O12: =COUNTIF($L$7:$L$500,N12) -> 1 | P12: =O12/$Q$4 -> 0.025 | Q12: =IF(P12=0,0,(P12*((LOG(P12))/LOG(2)))) -> -0.1330482024 | T12: =N12 -> 11212 | U12: =COUNTIF(L7:L13,T12) -> 0 | V12: =U12/(W4-U25) -> 0 | W12: =IF(V12=0,0,(V12*((LOG(V12))/LOG(2)))) -> 0 | Y12: =N12 -> 11212 | Z12: =COUNTIF(L14:L19,Y12) -> 0 | AA12: =Z12/(AB4-Z25) -> 0 | AB12: =IF(AA12=0,0,(AA12*((LOG(AA12))/LOG(2)))) -> 0 | AD12: =N12 -> 11212 | AE12: =COUNTIF(L20:L26,AD12) -> 0 | AF12: =AE12/(AG4-AE25) -> 0 | AG12: =IF(AF12=0,0,(AF12*((LOG(AF12))/LOG(2)))) -> 0 | AI12: =N12 -> 11212 | AJ12: =COUNTIF(L27:L33,AI12) -> 0 | AK12: =AJ12/(AL4-AJ25) -> 0 | AL12: =IF(AK12=0,0,(AK12*((LOG(AK12))/LOG(2)))) -> 0 | AN12: =N12 -> 11212 | AO12: =COUNTIF(L34:L39,AN12) -> 0 | AP12: =AO12/(AQ4-AO25) -> 0 | AQ12: =IF(AP12=0,0,(AP12*((LOG(AP12))/LOG(2)))) -> 0 | AS12: =N12 -> 11212 | AT12: =COUNTIF(L40:L46,AS12) -> 1 | AU12: =AT12/(AV4-AT25) -> 0.1428571429 | AV12: =IF(AU12=0,0,(AU12*((LOG(AU12))/LOG(2)))) -> -0.4010507032
A13: 21 | B13: 1317 | C13: 22 | D13: 1343 | E13: 24 | F13: 1373 | G13: 14 | H13: 1389 | I13: 24 | J13: 1402 | K13: 0 | L13: 22212 | N13: 11221 | O13: =COUNTIF($L$7:$L$500,N13) -> 0 | P13: =O13/$Q$4 -> 0 | Q13: =IF(P13=0,0,(P13*((LOG(P13))/LOG(2)))) -> 0 | T13: =N13 -> 11221 | U13: =COUNTIF(L7:L13,T13) -> 0 | V13: =U13/(W4-U25) -> 0 | W13: =IF(V13=0,0,(V13*((LOG(V13))/LOG(2)))) -> 0 | Y13: =N13 -> 11221 | Z13: =COUNTIF(L14:L19,Y13) -> 0 | AA13: =Z13/(AB4-Z25) -> 0 | AB13: =IF(AA13=0,0,(AA13*((LOG(AA13))/LOG(2)))) -> 0 | AD13: =N13 -> 11221 | AE13: =COUNTIF(L20:L26,AD13) -> 0 | AF13: =AE13/(AG4-AE25) -> 0 | AG13: =IF(AF13=0,0,(AF13*((LOG(AF13))/LOG(2)))) -> 0 | AI13: =N13 -> 11221 | AJ13: =COUNTIF(L27:L33,AI13) -> 0 | AK13: =AJ13/(AL4-AJ25) -> 0 | AL13: =IF(AK13=0,0,(AK13*((LOG(AK13))/LOG(2)))) -> 0 | AN13: =N13 -> 11221 | AO13: =COUNTIF(L34:L39,AN13) -> 0 | AP13: =AO13/(AQ4-AO25) -> 0 | AQ13: =IF(AP13=0,0,(AP13*((LOG(AP13))/LOG(2)))) -> 0 | AS13: =N13 -> 11221 | AT13: =COUNTIF(L40:L46,AS13) -> 0 | AU13: =AT13/(AV4-AT25) -> 0 | AV13: =IF(AU13=0,0,(AU13*((LOG(AU13))/LOG(2)))) -> 0
A14: 21 | B14: 1551 | C14: 22 | D14: 1579 | E14: 24 | F14: 1605 | G14: 23 | H14: 1657 | I14: 13 | J14: 1671 | K14: 0 | L14: 22221 | N14: 11222 | O14: =COUNTIF($L$7:$L$500,N14) -> 0 | P14: =O14/$Q$4 -> 0 | Q14: =IF(P14=0,0,(P14*((LOG(P14))/LOG(2)))) -> 0 | T14: =N14 -> 11222 | U14: =COUNTIF(L7:L13,T14) -> 0 | V14: =U14/(W4-U25) -> 0 | W14: =IF(V14=0,0,(V14*((LOG(V14))/LOG(2)))) -> 0 | Y14: =N14 -> 11222 | Z14: =COUNTIF(L14:L19,Y14) -> 0 | AA14: =Z14/(AB4-Z25) -> 0 | AB14: =IF(AA14=0,0,(AA14*((LOG(AA14))/LOG(2)))) -> 0 | AD14: =N14 -> 11222 | AE14: =COUNTIF(L20:L26,AD14) -> 0 | AF14: =AE14/(AG4-AE25) -> 0 | AG14: =IF(AF14=0,0,(AF14*((LOG(AF14))/LOG(2)))) -> 0 | AI14: =N14 -> 11222 | AJ14: =COUNTIF(L27:L33,AI14) -> 0 | AK14: =AJ14/(AL4-AJ25) -> 0 | AL14: =IF(AK14=0,0,(AK14*((LOG(AK14))/LOG(2)))) -> 0 | AN14: =N14 -> 11222 | AO14: =COUNTIF(L34:L39,AN14) -> 0 | AP14: =AO14/(AQ4-AO25) -> 0 | AQ14: =IF(AP14=0,0,(AP14*((LOG(AP14))/LOG(2)))) -> 0 | AS14: =N14 -> 11222 | AT14: =COUNTIF(L40:L46,AS14) -> 0 | AU14: =AT14/(AV4-AT25) -> 0 | AV14: =IF(AU14=0,0,(AU14*((LOG(AU14))/LOG(2)))) -> 0
A15: 21 | B15: 1789 | C15: 22 | D15: 1802 | E15: 24 | F15: 1818 | G15: 14 | H15: 1828 | I15: 24 | J15: 1839 | K15: 0 | L15: 22212 | N15: 12111 | O15: =COUNTIF($L$7:$L$500,N15) -> 0 | P15: =O15/$Q$4 -> 0 | Q15: =IF(P15=0,0,(P15*((LOG(P15))/LOG(2)))) -> 0 | T15: =N15 -> 12111 | U15: =COUNTIF(L7:L13,T15) -> 0 | V15: =U15/(W4-U25) -> 0 | W15: =IF(V15=0,0,(V15*((LOG(V15))/LOG(2)))) -> 0 | Y15: =N15 -> 12111 | Z15: =COUNTIF(L14:L19,Y15) -> 0 | AA15: =Z15/(AB4-Z25) -> 0 | AB15: =IF(AA15=0,0,(AA15*((LOG(AA15))/LOG(2)))) -> 0 | AD15: =N15 -> 12111 | AE15: =COUNTIF(L20:L26,AD15) -> 0 | AF15: =AE15/(AG4-AE25) -> 0 | AG15: =IF(AF15=0,0,(AF15*((LOG(AF15))/LOG(2)))) -> 0 | AI15: =N15 -> 12111 | AJ15: =COUNTIF(L27:L33,AI15) -> 0 | AK15: =AJ15/(AL4-AJ25) -> 0 | AL15: =IF(AK15=0,0,(AK15*((LOG(AK15))/LOG(2)))) -> 0 | AN15: =N15 -> 12111 | AO15: =COUNTIF(L34:L39,AN15) -> 0 | AP15: =AO15/(AQ4-AO25) -> 0 | AQ15: =IF(AP15=0,0,(AP15*((LOG(AP15))/LOG(2)))) -> 0 | AS15: =N15 -> 12111 | AT15: =COUNTIF(L40:L46,AS15) -> 0 | AU15: =AT15/(AV4-AT25) -> 0 | AV15: =IF(AU15=0,0,(AU15*((LOG(AU15))/LOG(2)))) -> 0
A16: 12 | B16: 1973 | C16: 24 | D16: 1985 | E16: 24 | F16: 2010 | G16: 14 | H16: 2021 | I16: 24 | J16: 2032 | K16: 0 | L16: 12212 | N16: 12112 | O16: =COUNTIF($L$7:$L$500,N16) -> 0 | P16: =O16/$Q$4 -> 0 | Q16: =IF(P16=0,0,(P16*((LOG(P16))/LOG(2)))) -> 0 | T16: =N16 -> 12112 | U16: =COUNTIF(L7:L13,T16) -> 0 | V16: =U16/(W4-U25) -> 0 | W16: =IF(V16=0,0,(V16*((LOG(V16))/LOG(2)))) -> 0 | Y16: =N16 -> 12112 | Z16: =COUNTIF(L14:L19,Y16) -> 0 | AA16: =Z16/(AB4-Z25) -> 0 | AB16: =IF(AA16=0,0,(AA16*((LOG(AA16))/LOG(2)))) -> 0 | AD16: =N16 -> 12112 | AE16: =COUNTIF(L20:L26,AD16) -> 0 | AF16: =AE16/(AG4-AE25) -> 0 | AG16: =IF(AF16=0,0,(AF16*((LOG(AF16))/LOG(2)))) -> 0 | AI16: =N16 -> 12112 | AJ16: =COUNTIF(L27:L33,AI16) -> 0 | AK16: =AJ16/(AL4-AJ25) -> 0 | AL16: =IF(AK16=0,0,(AK16*((LOG(AK16))/LOG(2)))) -> 0 | AN16: =N16 -> 12112 | AO16: =COUNTIF(L34:L39,AN16) -> 0 | AP16: =AO16/(AQ4-AO25) -> 0 | AQ16: =IF(AP16=0,0,(AP16*((LOG(AP16))/LOG(2)))) -> 0 | AS16: =N16 -> 12112 | AT16: =COUNTIF(L40:L46,AS16) -> 0 | AU16: =AT16/(AV4-AT25) -> 0 | AV16: =IF(AU16=0,0,(AU16*((LOG(AU16))/LOG(2)))) -> 0
A17: 21 | B17: 2294 | C17: 11 | D17: 2306 | E17: 22 | F17: 2317 | G17: 14 | H17: 2354 | I17: 24 | J17: 2378 | K17: 0 | L17: 21212 | N17: 12121 | O17: =COUNTIF($L$7:$L$500,N17) -> 7 | P17: =O17/$Q$4 -> 0.175 | Q17: =IF(P17=0,0,(P17*((LOG(P17))/LOG(2)))) -> -0.4400503052 | T17: =N17 -> 12121 | U17: =COUNTIF(L7:L13,T17) -> 0 | V17: =U17/(W4-U25) -> 0 | W17: =IF(V17=0,0,(V17*((LOG(V17))/LOG(2)))) -> 0 | Y17: =N17 -> 12121 | Z17: =COUNTIF(L14:L19,Y17) -> 0 | AA17: =Z17/(AB4-Z25) -> 0 | AB17: =IF(AA17=0,0,(AA17*((LOG(AA17))/LOG(2)))) -> 0 | AD17: =N17 -> 12121 | AE17: =COUNTIF(L20:L26,AD17) -> 2 | AF17: =AE17/(AG4-AE25) -> 0.2857142857 | AG17: =IF(AF17=0,0,(AF17*((LOG(AF17))/LOG(2)))) -> -0.5163871206 | AI17: =N17 -> 12121 | AJ17: =COUNTIF(L27:L33,AI17) -> 2 | AK17: =AJ17/(AL4-AJ25) -> 0.2857142857 | AL17: =IF(AK17=0,0,(AK17*((LOG(AK17))/LOG(2)))) -> -0.5163871206 | AN17: =N17 -> 12121 | AO17: =COUNTIF(L34:L39,AN17) -> 1 | AP17: =AO17/(AQ4-AO25) -> 0.1666666667 | AQ17: =IF(AP17=0,0,(AP17*((LOG(AP17))/LOG(2)))) -> -0.4308270835 | AS17: =N17 -> 12121 | AT17: =COUNTIF(L40:L46,AS17) -> 2 | AU17: =AT17/(AV4-AT25) -> 0.2857142857 | AV17: =IF(AU17=0,0,(AU17*((LOG(AU17))/LOG(2)))) -> -0.5163871206
